Workbook

Sheet Table 14
E1: Table 14: GCE A level examination results of students aged 16 to 181 by subject, grade and gender
E2: Years: 1995/96 to 2012/13
E3: Coverage: England
E4: All subjects | F4: Males and females | H4: =IF(selectedsex="Males",2,IF(selectedsex="Females",9,16)) -> 16 | I4: =IF(selectedsex="Males",2,IF(selectedsex="Females",10,18)) -> 18
E5: =selectedsubject -> All subjects | F5: =selectedsex -> Males and females
F6: Percentage achieving grade | M6: Number of entries
E7: Academic year ending | F7: A* | G7: A | H7: B | I7: C | J7: D | K7: E | L7: A* to E
E8: 2013 2 | F8: =VLOOKUP(selectedsubject,'2013 data'!$B$5:$Z$39,$I$4+0,FALSE) -> 7.9 | G8: =VLOOKUP(selectedsubject,'2013 data'!$B$5:$Z$39,$I$4+1,FALSE) -> 18.9 | H8: =VLOOKUP(selectedsubject,'2013 data'!$B$5:$Z$39,$I$4+2,FALSE) -> 26.5 | I8: =VLOOKUP(selectedsubject,'2013 data'!$B$5:$Z$39,$I$4+3,FALSE) -> 24.3 | J8: =VLOOKUP(selectedsubject,'2013 data'!$B$5:$Z$39,$I$4+4,FALSE) -> 14.9 | K8: =VLOOKUP(selectedsubject,'2013 data'!$B$5:$Z$39,$I$4+5,FALSE) -> 6.2 | L8: =VLOOKUP(selectedsubject,'2013 data'!$B$5:$Z$39,$I$4+6,FALSE) -> 98.7 | M8: =VLOOKUP(selectedsubject,'2013 data'!$B$5:$Z$39,$I$4+7,FALSE) -> 773651
E9: 2012 | F9: =VLOOKUP(selectedsubject,'2012 data'!$B$5:$Z$39,$I$4+0,FALSE) -> 8.2 | G9: =VLOOKUP(selectedsubject,'2012 data'!$B$5:$Z$39,$I$4+1,FALSE) -> 18.8 | H9: =VLOOKUP(selectedsubject,'2012 data'!$B$5:$Z$39,$I$4+2,FALSE) -> 25.9 | I9: =VLOOKUP(selectedsubject,'2012 data'!$B$5:$Z$39,$I$4+3,FALSE) -> 24 | J9: =VLOOKUP(selectedsubject,'2012 data'!$B$5:$Z$39,$I$4+4,FALSE) -> 15.1 | K9: =VLOOKUP(selectedsubject,'2012 data'!$B$5:$Z$39,$I$4+5,FALSE) -> 6.5 | L9: =VLOOKUP(selectedsubject,'2012 data'!$B$5:$Z$39,$I$4+6,FALSE) -> 98.6 | M9: =VLOOKUP(selectedsubject,'2012 data'!$B$5:$Z$39,$I$4+7,FALSE) -> 779479
E10: 2011 | F10: =VLOOKUP(selectedsubject,'2011 data'!$B$5:$Z$39,$I$4+0,FALSE) -> 8.4 | G10: =VLOOKUP(selectedsubject,'2011 data'!$B$5:$Z$39,$I$4+1,FALSE) -> 18.8 | H10: =VLOOKUP(selectedsubject,'2011 data'!$B$5:$Z$39,$I$4+2,FALSE) -> 25.6 | I10: =VLOOKUP(selectedsubject,'2011 data'!$B$5:$Z$39,$I$4+3,FALSE) -> 23.8 | J10: =VLOOKUP(selectedsubject,'2011 data'!$B$5:$Z$39,$I$4+4,FALSE) -> 15.2 | K10: =VLOOKUP(selectedsubject,'2011 data'!$B$5:$Z$39,$I$4+5,FALSE) -> 6.7 | L10: =VLOOKUP(selectedsubject,'2011 data'!$B$5:$Z$39,$I$4+6,FALSE) -> 98.5 | M10: =VLOOKUP(selectedsubject,'2011 data'!$B$5:$Z$39,$I$4+7,FALSE) -> 782771
E11: 2010 | F11: =VLOOKUP(selectedsubject,'2010 data'!$B$5:$Z$39,$I$4+0,FALSE) -> 8 | G11: =VLOOKUP(selectedsubject,'2010 data'!$B$5:$Z$39,$I$4+1,FALSE) -> 18.9 | H11: =VLOOKUP(selectedsubject,'2010 data'!$B$5:$Z$39,$I$4+2,FALSE) -> 25.2 | I11: =VLOOKUP(selectedsubject,'2010 data'!$B$5:$Z$39,$I$4+3,FALSE) -> 23.5 | J11: =VLOOKUP(selectedsubject,'2010 data'!$B$5:$Z$39,$I$4+4,FALSE) -> 15.5 | K11: =VLOOKUP(selectedsubject,'2010 data'!$B$5:$Z$39,$I$4+5,FALSE) -> 7.1 | L11: =VLOOKUP(selectedsubject,'2010 data'!$B$5:$Z$39,$I$4+6,FALSE) -> 98.3 | M11: =VLOOKUP(selectedsubject,'2010 data'!$B$5:$Z$39,$I$4+7,FALSE) -> 783347
E12: 2009 | F12: - | G12: =VLOOKUP(selectedsubject,'2009 data'!$B$5:$W$39,$H$4+0,FALSE) -> 26.8 | H12: =VLOOKUP(selectedsubject,'2009 data'!$B$5:$W$39,$H$4+1,FALSE) -> 25.1 | I12: =VLOOKUP(selectedsubject,'2009 data'!$B$5:$W$39,$H$4+2,FALSE) -> 23.2 | J12: =VLOOKUP(selectedsubject,'2009 data'!$B$5:$W$39,$H$4+3,FALSE) -> 15.5 | K12: =VLOOKUP(selectedsubject,'2009 data'!$B$5:$W$39,$H$4+4,FALSE) -> 7.4 | L12: =VLOOKUP(selectedsubject,'2009 data'!$B$5:$W$39,$H$4+5,FALSE) -> 98.1 | M12: =VLOOKUP(selectedsubject,'2009 data'!$B$5:$W$39,$H$4+6,FALSE) -> 757696
E13: 2008 | F13: - | G13: =VLOOKUP(selectedsubject,'2008 data'!$B$5:$W$39,$H$4+0,FALSE) -> 25.9 | H13: =VLOOKUP(selectedsubject,'2008 data'!$B$5:$W$39,$H$4+1,FALSE) -> 24.7 | I13: =VLOOKUP(selectedsubject,'2008 data'!$B$5:$W$39,$H$4+2,FALSE) -> 23.3 | J13: =VLOOKUP(selectedsubject,'2008 data'!$B$5:$W$39,$H$4+3,FALSE) -> 16 | K13: =VLOOKUP(selectedsubject,'2008 data'!$B$5:$W$39,$H$4+4,FALSE) -> 7.9 | L13: =VLOOKUP(selectedsubject,'2008 data'!$B$5:$W$39,$H$4+5,FALSE) -> 97.8 | M13: =VLOOKUP(selectedsubject,'2008 data'!$B$5:$W$39,$H$4+6,FALSE) -> 741356
E14: 2007 | F14: - | G14: =VLOOKUP(selectedsubject,data2007,$H$4+0,FALSE) -> 25.3 | H14: =VLOOKUP(selectedsubject,data2007,$H$4+1,FALSE) -> 24.2 | I14: =VLOOKUP(selectedsubject,data2007,$H$4+2,FALSE) -> 23.1 | J14: =VLOOKUP(selectedsubject,data2007,$H$4+3,FALSE) -> 16.4 | K14: =VLOOKUP(selectedsubject,data2007,$H$4+4,FALSE) -> 8.4 | L14: =VLOOKUP(selectedsubject,data2007,$H$4+5,FALSE) -> 97.4 | M14: =VLOOKUP(selectedsubject,data2007,$H$4+6,FALSE) -> 718756
E15: 2006 | F15: - | G15: =VLOOKUP(selectedsubject,data2006_new,$H$4+0,FALSE) -> 24 | H15: =VLOOKUP(selectedsubject,data2006_new,$H$4+1,FALSE) -> 23.8 | I15: =VLOOKUP(selectedsubject,data2006_new,$H$4+2,FALSE) -> 23.4 | J15: =VLOOKUP(selectedsubject,data2006_new,$H$4+3,FALSE) -> 17 | K15: =VLOOKUP(selectedsubject,data2006_new,$H$4+4,FALSE) -> 9 | L15: =VLOOKUP(selectedsubject,data2006_new,$H$4+5,FALSE) -> 97.2 | M15: =VLOOKUP(selectedsubject,data2006_new,$H$4+6,FALSE) -> 715203
E16: 2005 | F16: - | G16: =VLOOKUP(selectedsubject,data2005_new,$H$4+0,FALSE) -> 22.7 | H16: =VLOOKUP(selectedsubject,data2005_new,$H$4+1,FALSE) -> 23.6 | I16: =VLOOKUP(selectedsubject,data2005_new,$H$4+2,FALSE) -> 23.5 | J16: =VLOOKUP(selectedsubject,data2005_new,$H$4+3,FALSE) -> 17.6 | K16: =VLOOKUP(selectedsubject,data2005_new,$H$4+4,FALSE) -> 9.5 | L16: =VLOOKUP(selectedsubject,data2005_new,$H$4+5,FALSE) -> 96.8 | M16: =VLOOKUP(selectedsubject,data2005_new,$H$4+6,FALSE) -> 691371
E17: 2004 | F17: - | G17: =VLOOKUP(selectedsubject,data2004_new,$H$4+0,FALSE) -> 22.3 | H17: =VLOOKUP(selectedsubject,data2004_new,$H$4+1,FALSE) -> 23.2 | I17: =VLOOKUP(selectedsubject,data2004_new,$H$4+2,FALSE) -> 23.4 | J17: =VLOOKUP(selectedsubject,data2004_new,$H$4+3,FALSE) -> 17.9 | K17: =VLOOKUP(selectedsubject,data2004_new,$H$4+4,FALSE) -> 9.8 | L17: =VLOOKUP(selectedsubject,data2004_new,$H$4+5,FALSE) -> 96.6 | M17: =VLOOKUP(selectedsubject,data2004_new,$H$4+6,FALSE) -> 675924
E18: 2003 | F18: - | G18: =VLOOKUP(selectedsubject,data2003_new,$H$4+0,FALSE) -> 21.5 | H18: =VLOOKUP(selectedsubject,data2003_new,$H$4+1,FALSE) -> 22.7 | I18: =VLOOKUP(selectedsubject,data2003_new,$H$4+2,FALSE) -> 23.2 | J18: =VLOOKUP(selectedsubject,data2003_new,$H$4+3,FALSE) -> 18.3 | K18: =VLOOKUP(selectedsubject,data2003_new,$H$4+4,FALSE) -> 10.4 | L18: =VLOOKUP(selectedsubject,data2003_new,$H$4+5,FALSE) -> 96.1 | M18: =VLOOKUP(selectedsubject,data2003_new,$H$4+6,FALSE) -> 662670
E19: 2002 | F19: - | G19: =VLOOKUP(selectedsubject,data2002_new,$H$4+0,FALSE) -> 20.5 | H19: =VLOOKUP(selectedsubject,data2002_new,$H$4+1,FALSE) -> 21.8 | I19: =VLOOKUP(selectedsubject,data2002_new,$H$4+2,FALSE) -> 22.8 | J19: =VLOOKUP(selectedsubject,data2002_new,$H$4+3,FALSE) -> 18.5 | K19: =VLOOKUP(selectedsubject,data2002_new,$H$4+4,FALSE) -> 11.1 | L19: =VLOOKUP(selectedsubject,data2002_new,$H$4+5,FALSE) -> 94.8 | M19: =VLOOKUP(selectedsubject,data2002_new,$H$4+6,FALSE) -> 645033
E20: 2001 | F20: - | G20: =VLOOKUP(selectedsubject,data2001_new,$H$4+0,FALSE) -> 18.7 | H20: =VLOOKUP(selectedsubject,data2001_new,$H$4+1,FALSE) -> 19.3 | I20: =VLOOKUP(selectedsubject,data2001_new,$H$4+2,FALSE) -> 21.6 | J20: =VLOOKUP(selectedsubject,data2001_new,$H$4+3,FALSE) -> 18.2 | K20: =VLOOKUP(selectedsubject,data2001_new,$H$4+4,FALSE) -> 12.2 | L20: =VLOOKUP(selectedsubject,data2001_new,$H$4+5,FALSE) -> 90 | M20: =VLOOKUP(selectedsubject,data2001_new,$H$4+6,FALSE) -> 681553
E21: 2000 | F21: - | G21: =VLOOKUP(selectedsubject,data2000_new,$H$4+0,FALSE) -> 18 | H21: =VLOOKUP(selectedsubject,data2000_new,$H$4+1,FALSE) -> 19.1 | I21: =VLOOKUP(selectedsubject,data2000_new,$H$4+2,FALSE) -> 21.4 | J21: =VLOOKUP(selectedsubject,data2000_new,$H$4+3,FALSE) -> 18.6 | K21: =VLOOKUP(selectedsubject,data2000_new,$H$4+4,FALSE) -> 12.5 | L21: =VLOOKUP(selectedsubject,data2000_new,$H$4+5,FALSE) -> 89.5 | M21: =VLOOKUP(selectedsubject,data2000_new,$H$4+6,FALSE) -> 672362
E22: 1999 | F22: - | G22: =VLOOKUP(selectedsubject,data1999_new,$H$4+0,FALSE) -> 17.7 | H22: =VLOOKUP(selectedsubject,data1999_new,$H$4+1,FALSE) -> 19.1 | I22: =VLOOKUP(selectedsubject,data1999_new,$H$4+2,FALSE) -> 21.2 | J22: =VLOOKUP(selectedsubject,data1999_new,$H$4+3,FALSE) -> 18.4 | K22: =VLOOKUP(selectedsubject,data1999_new,$H$4+4,FALSE) -> 12.7 | L22: =VLOOKUP(selectedsubject,data1999_new,$H$4+5,FALSE) -> 89 | M22: =VLOOKUP(selectedsubject,data1999_new,$H$4+6,FALSE) -> 680048
E23: 1998 | F23: - | G23: =VLOOKUP(selectedsubject,data1998_new,$H$4+0,FALSE) -> 17.1 | H23: =VLOOKUP(selectedsubject,data1998_new,$H$4+1,FALSE) -> 18.9 | I23: =VLOOKUP(selectedsubject,data1998_new,$H$4+2,FALSE) -> 20.9 | J23: =VLOOKUP(selectedsubject,data1998_new,$H$4+3,FALSE) -> 18.4 | K23: =VLOOKUP(selectedsubject,data1998_new,$H$4+4,FALSE) -> 13 | L23: =VLOOKUP(selectedsubject,data1998_new,$H$4+5,FALSE) -> 88.3 | M23: =VLOOKUP(selectedsubject,data1998_new,$H$4+6,FALSE) -> 681082
E24: 1997 | F24: - | G24: =VLOOKUP(selectedsubject,data1997_new,$H$4+0,FALSE) -> 16.1 | H24: =VLOOKUP(selectedsubject,data1997_new,$H$4+1,FALSE) -> 18.9 | I24: =VLOOKUP(selectedsubject,data1997_new,$H$4+2,FALSE) -> 20.3 | J24: =VLOOKUP(selectedsubject,data1997_new,$H$4+3,FALSE) -> 18.5 | K24: =VLOOKUP(selectedsubject,data1997_new,$H$4+4,FALSE) -> 13.3 | L24: =VLOOKUP(selectedsubject,data1997_new,$H$4+5,FALSE) -> 87.2 | M24: =VLOOKUP(selectedsubject,data1997_new,$H$4+6,FALSE) -> 662163
E25: 1996 | F25: - | G25: =VLOOKUP(selectedsubject,data1996_new,$H$4+0,FALSE) -> 16.2 | H25: =VLOOKUP(selectedsubject,data1996_new,$H$4+1,FALSE) -> 18 | I25: =VLOOKUP(selectedsubject,data1996_new,$H$4+2,FALSE) -> 19.7 | J25: =VLOOKUP(selectedsubject,data1996_new,$H$4+3,FALSE) -> 18.1 | K25: =VLOOKUP(selectedsubject,data1996_new,$H$4+4,FALSE) -> 13.6 | L25: =VLOOKUP(selectedsubject,data1996_new,$H$4+5,FALSE) -> 85.6 | M25: =VLOOKUP(selectedsubject,data1996_new,$H$4+6,FALSE) -> 620164
M26: Source: Key Stage 5 attainment data
E28: 1. Covers students aged 16, 17 or 18 at the start of the academic year, i.e. 31 August.
E29: 2. 2013 figures are revised. Figures for all other years are final.
E30: x Percentages have been suppressed where underlying figures are less than 3.
E32: Note: A* grade at A level has been awarded since the 2009/10 academic year.
E33: Note: where qualifications taken by a student are in the same subject area and similar in content ‘discounting’ rules have been applied to avoid double counting qualifications. Refer to the Technical Notes section of the SFR.

Sheet Table 15
E1: Table 15: GCE AS level examination results of students aged 16 to 181 by subject, grade and gender
E2: Years: 2000/01 to 2012/13
E3: Coverage: England
E4: All subjects | F4: Males and females | G4: =IF(selectedsex="Males",2,IF(selectedsex="Females",9,16)) -> 16
E5: =selectedsubject -> All subjects | F5: =selectedsex -> Males and females
F6: Percentage achieving grade | L6: Number of entries
E7: Academic year ending | F7: A | G7: B | H7: C | I7: D | J7: E | K7: A to E
E8: 2013 2 | F8: =VLOOKUP(selectedsubject,'2013AS'!$B$7:$W$41,$G$4+0,FALSE) -> 17 | G8: =VLOOKUP(selectedsubject,'2013AS'!$B$7:$W$41,$G$4+1,FALSE) -> 18.9 | H8: =VLOOKUP(selectedsubject,'2013AS'!$B$7:$W$41,$G$4+2,FALSE) -> 21 | I8: =VLOOKUP(selectedsubject,'2013AS'!$B$7:$W$41,$G$4+3,FALSE) -> 17.5 | J8: =VLOOKUP(selectedsubject,'2013AS'!$B$7:$W$41,$G$4+4,FALSE) -> 12.3 | K8: =VLOOKUP(selectedsubject,'2013AS'!$B$7:$W$41,$G$4+5,FALSE) -> 86.7 | L8: =VLOOKUP(selectedsubject,'2013AS'!$B$7:$W$41,$G$4+6,FALSE) -> 1128323
E9: 2012 | F9: =VLOOKUP(selectedsubject,'2012AS'!$B$7:$W$41,$G$4+0,FALSE) -> 16.9 | G9: =VLOOKUP(selectedsubject,'2012AS'!$B$7:$W$41,$G$4+1,FALSE) -> 18.9 | H9: =VLOOKUP(selectedsubject,'2012AS'!$B$7:$W$41,$G$4+2,FALSE) -> 21 | I9: =VLOOKUP(selectedsubject,'2012AS'!$B$7:$W$41,$G$4+3,FALSE) -> 17.6 | J9: =VLOOKUP(selectedsubject,'2012AS'!$B$7:$W$41,$G$4+4,FALSE) -> 12.4 | K9: =VLOOKUP(selectedsubject,'2012AS'!$B$7:$W$41,$G$4+5,FALSE) -> 86.8 | L9: =VLOOKUP(selectedsubject,'2012AS'!$B$7:$W$41,$G$4+6,FALSE) -> 1131886
E10: 2011 | F10: =VLOOKUP(selectedsubject,data2011AS,$G$4+0,FALSE) -> 16.1 | G10: =VLOOKUP(selectedsubject,data2011AS,$G$4+1,FALSE) -> 18.1 | H10: =VLOOKUP(selectedsubject,data2011AS,$G$4+2,FALSE) -> 20.8 | I10: =VLOOKUP(selectedsubject,data2011AS,$G$4+3,FALSE) -> 18.1 | J10: =VLOOKUP(selectedsubject,data2011AS,$G$4+4,FALSE) -> 13.3 | K10: =VLOOKUP(selectedsubject,data2011AS,$G$4+5,FALSE) -> 86.4 | L10: =VLOOKUP(selectedsubject,data2011AS,$G$4+6,FALSE) -> 1181498
E11: 2010 | F11: =VLOOKUP(selectedsubject,data2010AS,$G$4+0,FALSE) -> 15.8 | G11: =VLOOKUP(selectedsubject,data2010AS,$G$4+1,FALSE) -> 17.8 | H11: =VLOOKUP(selectedsubject,data2010AS,$G$4+2,FALSE) -> 20.7 | I11: =VLOOKUP(selectedsubject,data2010AS,$G$4+3,FALSE) -> 18.3 | J11: =VLOOKUP(selectedsubject,data2010AS,$G$4+4,FALSE) -> 13.7 | K11: =VLOOKUP(selectedsubject,data2010AS,$G$4+5,FALSE) -> 86.3 | L11: =VLOOKUP(selectedsubject,data2010AS,$G$4+6,FALSE) -> 973589
E12: 2009 | F12: =VLOOKUP(selectedsubject,data2009AS,$G$4+0,FALSE) -> 16 | G12: =VLOOKUP(selectedsubject,data2009AS,$G$4+1,FALSE) -> 17.4 | H12: =VLOOKUP(selectedsubject,data2009AS,$G$4+2,FALSE) -> 20.4 | I12: =VLOOKUP(selectedsubject,data2009AS,$G$4+3,FALSE) -> 18.3 | J12: =VLOOKUP(selectedsubject,data2009AS,$G$4+4,FALSE) -> 13.9 | K12: =VLOOKUP(selectedsubject,data2009AS,$G$4+5,FALSE) -> 86 | L12: =VLOOKUP(selectedsubject,data2009AS,$G$4+6,FALSE) -> 966857
E13: 2008 | F13: =VLOOKUP(selectedsubject,data2008AS,$G$4+0,FALSE) -> 15.7 | G13: =VLOOKUP(selectedsubject,data2008AS,$G$4+1,FALSE) -> 17.8 | H13: =VLOOKUP(selectedsubject,data2008AS,$G$4+2,FALSE) -> 20.6 | I13: =VLOOKUP(selectedsubject,data2008AS,$G$4+3,FALSE) -> 18.4 | J13: =VLOOKUP(selectedsubject,data2008AS,$G$4+4,FALSE) -> 13.8 | K13: =VLOOKUP(selectedsubject,data2008AS,$G$4+5,FALSE) -> 86.3 | L13: =VLOOKUP(selectedsubject,data2008AS,$G$4+6,FALSE) -> 937337
E14: 2007 | F14: =VLOOKUP(selectedsubject,data2007AS,$G$4+0,FALSE) -> 15.8 | G14: =VLOOKUP(selectedsubject,data2007AS,$G$4+1,FALSE) -> 17.6 | H14: =VLOOKUP(selectedsubject,data2007AS,$G$4+2,FALSE) -> 20.2 | I14: =VLOOKUP(selectedsubject,data2007AS,$G$4+3,FALSE) -> 18.3 | J14: =VLOOKUP(selectedsubject,data2007AS,$G$4+4,FALSE) -> 14 | K14: =VLOOKUP(selectedsubject,data2007AS,$G$4+5,FALSE) -> 85.9 | L14: =VLOOKUP(selectedsubject,data2007AS,$G$4+6,FALSE) -> 943877
E15: 2006 | F15: =VLOOKUP(selectedsubject,data2006as,$G$4+0,FALSE) -> 15.9 | G15: =VLOOKUP(selectedsubject,data2006as,$G$4+1,FALSE) -> 17.4 | H15: =VLOOKUP(selectedsubject,data2006as,$G$4+2,FALSE) -> 20.2 | I15: =VLOOKUP(selectedsubject,data2006as,$G$4+3,FALSE) -> 18.3 | J15: =VLOOKUP(selectedsubject,data2006as,$G$4+4,FALSE) -> 14.1 | K15: =VLOOKUP(selectedsubject,data2006as,$G$4+5,FALSE) -> 85.8 | L15: =VLOOKUP(selectedsubject,data2006as,$G$4+6,FALSE) -> 919764
E16: 2005 | F16: =VLOOKUP(selectedsubject,data2005as,$G$4+0,FALSE) -> 15.3 | G16: =VLOOKUP(selectedsubject,data2005as,$G$4+1,FALSE) -> 17.3 | H16: =VLOOKUP(selectedsubject,data2005as,$G$4+2,FALSE) -> 20.2 | I16: =VLOOKUP(selectedsubject,data2005as,$G$4+3,FALSE) -> 18.3 | J16: =VLOOKUP(selectedsubject,data2005as,$G$4+4,FALSE) -> 14.1 | K16: =VLOOKUP(selectedsubject,data2005as,$G$4+5,FALSE) -> 85.3 | L16: =VLOOKUP(selectedsubject,data2005as,$G$4+6,FALSE) -> 907029
E17: 2004 | F17: =VLOOKUP(selectedsubject,data2004as,$G$4+0,FALSE) -> 15 | G17: =VLOOKUP(selectedsubject,data2004as,$G$4+1,FALSE) -> 17 | H17: =VLOOKUP(selectedsubject,data2004as,$G$4+2,FALSE) -> 20 | I17: =VLOOKUP(selectedsubject,data2004as,$G$4+3,FALSE) -> 18.5 | J17: =VLOOKUP(selectedsubject,data2004as,$G$4+4,FALSE) -> 14.2 | K17: =VLOOKUP(selectedsubject,data2004as,$G$4+5,FALSE) -> 84.8 | L17: =VLOOKUP(selectedsubject,data2004as,$G$4+6,FALSE) -> 878794
E18: 2003 | F18: =VLOOKUP(selectedsubject,data2003as,$G$4+0,FALSE) -> 15.1 | G18: =VLOOKUP(selectedsubject,data2003as,$G$4+1,FALSE) -> 16.7 | H18: =VLOOKUP(selectedsubject,data2003as,$G$4+2,FALSE) -> 19.7 | I18: =VLOOKUP(selectedsubject,data2003as,$G$4+3,FALSE) -> 18.4 | J18: =VLOOKUP(selectedsubject,data2003as,$G$4+4,FALSE) -> 14.5 | K18: =VLOOKUP(selectedsubject,data2003as,$G$4+5,FALSE) -> 84.3 | L18: =VLOOKUP(selectedsubject,data2003as,$G$4+6,FALSE) -> 879858
E19: 2002 | F19: =VLOOKUP(selectedsubject,data2002as,$G$4+0,FALSE) -> 16 | G19: =VLOOKUP(selectedsubject,data2002as,$G$4+1,FALSE) -> 17 | H19: =VLOOKUP(selectedsubject,data2002as,$G$4+2,FALSE) -> 19.8 | I19: =VLOOKUP(selectedsubject,data2002as,$G$4+3,FALSE) -> 18.1 | J19: =VLOOKUP(selectedsubject,data2002as,$G$4+4,FALSE) -> 13.7 | K19: =VLOOKUP(selectedsubject,data2002as,$G$4+5,FALSE) -> 84.5 | L19: =VLOOKUP(selectedsubject,data2002as,$G$4+6,FALSE) -> 839141
E20: 2001 | F20: =VLOOKUP(selectedsubject,data2001as,$G$4+0,FALSE) -> 15.9 | G20: =VLOOKUP(selectedsubject,data2001as,$G$4+1,FALSE) -> 17.4 | H20: =VLOOKUP(selectedsubject,data2001as,$G$4+2,FALSE) -> 20.1 | I20: =VLOOKUP(selectedsubject,data2001as,$G$4+3,FALSE) -> 18 | J20: =VLOOKUP(selectedsubject,data2001as,$G$4+4,FALSE) -> 13.3 | K20: =VLOOKUP(selectedsubject,data2001as,$G$4+5,FALSE) -> 84.7 | L20: =VLOOKUP(selectedsubject,data2001as,$G$4+6,FALSE) -> 772359
L21: Source: Key Stage 5 attainment data
E22: 1. Covers students aged 16, 17 or 18 at the start of the academic year, i.e. 31 August.
E23: 2. 2013 figures are revised. Figures for all other years are final.
E24: x Percentages have been suppressed where underlying figures are less than 3.
E26: Note: where qualifications taken by a student are in the same subject area and similar in content ‘discounting’ rules have been applied to avoid double counting qualifications. Refer to the Technical Notes section of the SFR.

Sheet 1996data_new (hidden)
C3: Males | I3: Females | O3: Total | U3: total entries | X3: total passes
C4: A | D4: B | E4: C | F4: D | G4: E | H4: other | I4: A | J4: B | K4: C | L4: D | M4: E | N4: other | O4: A | P4: B | Q4: C | R4: D | S4: E | T4: other | U4: Male | V4: Female | W4: Male and Female | X4: Male | Y4: Female | Z4: Male and Female
B5: Biological Sciences | C5: 2260 | D5: 3179 | E5: 3344 | F5: 3296 | G5: 2750 | H5: 2926 | I5: 3739 | J5: 5097 | K5: 4997 | L5: 4446 | M5: 3661 | N5: 3703 | O5: 5999 | P5: 8276 | Q5: 8341 | R5: 7742 | S5: 6411 | T5: 6629 | U5: 17755 | V5: 25643 | W5: 43398 | X5: 14829 | Y5: 21940 | Z5: 36769
B6: Chemistry | C6: 3915 | D6: 4032 | E6: 3522 | F6: 2897 | G6: 2372 | H6: 2812 | I6: 3123 | J6: 3246 | K6: 2892 | L6: 2261 | M6: 1704 | N6: 1901 | O6: 7038 | P6: 7278 | Q6: 6414 | R6: 5158 | S6: 4076 | T6: 4713 | U6: 19550 | V6: 15127 | W6: 34677 | X6: 16738 | Y6: 13226 | Z6: 29964
B7: Physics | C7: 4626 | D7: 4157 | E7: 3988 | F7: 3560 | G7: 2977 | H7: 3135 | I7: 1262 | J7: 1291 | K7: 1102 | L7: 869 | M7: 674 | N7: 759 | O7: 5888 | P7: 5448 | Q7: 5090 | R7: 4429 | S7: 3651 | T7: 3894 | U7: 22443 | V7: 5957 | W7: 28400 | X7: 19308 | Y7: 5198 | Z7: 24506
B8: Other Science | C8: 276 | D8: 373 | E8: 521 | F8: 554 | G8: 453 | H8: 480 | I8: 152 | J8: 248 | K8: 331 | L8: 331 | M8: 247 | N8: 228 | O8: 428 | P8: 621 | Q8: 852 | R8: 885 | S8: 700 | T8: 708 | U8: 2657 | V8: 1537 | W8: 4194 | X8: 2177 | Y8: 1309 | Z8: 3486
B9: Mathematics | C9: 8847 | D9: 6446 | E9: 5939 | F9: 5071 | G9: 4055 | H9: 4649 | I9: 4819 | J9: 4018 | K9: 3408 | L9: 2808 | M9: 2044 | N9: 2021 | O9: 13666 | P9: 10464 | Q9: 9347 | R9: 7879 | S9: 6099 | T9: 6670 | U9: 35007 | V9: 19118 | W9: 54125 | X9: 30358 | Y9: 17097 | Z9: 47455
B10: Further Mathematics | C10: 1689 | D10: 764 | E10: 484 | F10: 337 | G10: 211 | H10: 197 | I10: 575 | J10: 262 | K10: 182 | L10: 100 | M10: 62 | N10: 50 | O10: 2264 | P10: 1026 | Q10: 666 | R10: 437 | S10: 273 | T10: 247 | U10: 3682 | V10: 1231 | W10: 4913 | X10: 3485 | Y10: 1181 | Z10: 4666
B11: Design and Technology | C11: 846 | D11: 964 | E11: 1668 | F11: 1632 | G11: 1085 | H11: 994 | I11: 270 | J11: 314 | K11: 450 | L11: 388 | M11: 236 | N11: 139 | O11: 1116 | P11: 1278 | Q11: 2118 | R11: 2020 | S11: 1321 | T11: 1133 | U11: 7189 | V11: 1797 | W11: 8986 | X11: 6195 | Y11: 1658 | Z11: 7853
B12: Computer Studies | C12: 821 | D12: 896 | E12: 1289 | F12: 1328 | G12: 1193 | H12: 1757 | I12: 70 | J12: 148 | K12: 191 | L12: 272 | M12: 250 | N12: 335 | O12: 891 | P12: 1044 | Q12: 1480 | R12: 1600 | S12: 1443 | T12: 2092 | U12: 7284 | V12: 1266 | W12: 8550 | X12: 5527 | Y12: 931 | Z12: 6458
B13: ICT | C13: 0 | D13: 0 | E13: 0 | F13: 0 | G13: 0 | H13: 0 | I13: 0 | J13: 0 | K13: 0 | L13: 0 | M13: 0 | N13: 0 | O13: 0 | P13: 0 | Q13: 0 | R13: 0 | S13: 0 | T13: 0 | U13: 0 | V13: 0 | W13: 0 | X13: 0 | Y13: 0 | Z13: 0
B14: Home Economics | C14: 7 | D14: 12 | E14: 23 | F14: 18 | G14: 27 | H14: 31 | I14: 237 | J14: 307 | K14: 399 | L14: 394 | M14: 278 | N14: 290 | O14: 244 | P14: 319 | Q14: 422 | R14: 412 | S14: 305 | T14: 321 | U14: 118 | V14: 1905 | W14: 2023 | X14: 87 | Y14: 1615 | Z14: 1702
B15: Accounting and Finance | C15: 120 | D15: 197 | E15: 144 | F15: 176 | G15: 143 | H15: 476 | I15: 72 | J15: 116 | K15: 94 | L15: 106 | M15: 105 | N15: 293 | O15: 192 | P15: 313 | Q15: 238 | R15: 282 | S15: 248 | T15: 769 | U15: 1256 | V15: 786 | W15: 2042 | X15: 780 | Y15: 493 | Z15: 1273
B16: Business Studies | C16: 1000 | D16: 2102 | E16: 2922 | F16: 2847 | G16: 2159 | H16: 2246 | I16: 860 | J16: 1805 | K16: 2454 | L16: 2390 | M16: 1842 | N16: 2094 | O16: 1860 | P16: 3907 | Q16: 5376 | R16: 5237 | S16: 4001 | T16: 4340 | U16: 13276 | V16: 11445 | W16: 24721 | X16: 11030 | Y16: 9351 | Z16: 20381
B17: Economics | C17: 2249 | D17: 2221 | E17: 2457 | F17: 2376 | G17: 1967 | H17: 2411 | I17: 1015 | J17: 1091 | K17: 1277 | L17: 1219 | M17: 1059 | N17: 1409 | O17: 3264 | P17: 3312 | Q17: 3734 | R17: 3595 | S17: 3026 | T17: 3820 | U17: 13681 | V17: 7070 | W17: 20751 | X17: 11270 | Y17: 5661 | Z17: 16931
B18: Geography | C18: 2509 | D18: 3347 | E18: 3902 | F18: 3998 | G18: 3011 | H18: 3731 | I18: 2682 | J18: 3221 | K18: 3058 | L18: 2911 | M18: 2121 | N18: 2671 | O18: 5191 | P18: 6568 | Q18: 6960 | R18: 6909 | S18: 5132 | T18: 6402 | U18: 20498 | V18: 16664 | W18: 37162 | X18: 16767 | Y18: 13993 | Z18: 30760
B19: Government and Politics | C19: 767 | D19: 1092 | E19: 1019 | F19: 921 | G19: 647 | H19: 645 | I19: 585 | J19: 783 | K19: 715 | L19: 611 | M19: 439 | N19: 447 | O19: 1352 | P19: 1875 | Q19: 1734 | R19: 1532 | S19: 1086 | T19: 1092 | U19: 5091 | V19: 3580 | W19: 8671 | X19: 4446 | Y19: 3133 | Z19: 7579
B20: History | C20: 2469 | D20: 2853 | E20: 3462 | F20: 3143 | G20: 2227 | H20: 2165 | I20: 2979 | J20: 3375 | K20: 4069 | L20: 3777 | M20: 2839 | N20: 2936 | O20: 5448 | P20: 6228 | Q20: 7531 | R20: 6920 | S20: 5066 | T20: 5101 | U20: 16319 | V20: 19975 | W20: 36294 | X20: 14154 | Y20: 17039 | Z20: 31193
B21: Law | C21: 267 | D21: 329 | E21: 400 | F21: 509 | G21: 447 | H21: 947 | I21: 477 | J21: 495 | K21: 686 | L21: 723 | M21: 608 | N21: 1129 | O21: 744 | P21: 824 | Q21: 1086 | R21: 1232 | S21: 1055 | T21: 2076 | U21: 2899 | V21: 4118 | W21: 7017 | X21: 1952 | Y21: 2989 | Z21: 4941
B22: Psychology | C22: 354 | D22: 600 | E22: 733 | F22: 729 | G22: 740 | H22: 1333 | I22: 1703 | J22: 2452 | K22: 2588 | L22: 2402 | M22: 1901 | N22: 2522 | O22: 2057 | P22: 3052 | Q22: 3321 | R22: 3131 | S22: 2641 | T22: 3855 | U22: 4489 | V22: 13568 | W22: 18057 | X22: 3156 | Y22: 11046 | Z22: 14202
B23: Sociology | C23: 496 | D23: 727 | E23: 760 | F23: 904 | G23: 756 | H23: 1640 | I23: 1962 | J23: 2684 | K23: 2701 | L23: 2706 | M23: 2188 | N23: 3837 | O23: 2458 | P23: 3411 | Q23: 3461 | R23: 3610 | S23: 2944 | T23: 5477 | U23: 5283 | V23: 16078 | W23: 21361 | X23: 3643 | Y23: 12241 | Z23: 15884
B24: Other social studies | C24: 108 | D24: 158 | E24: 164 | F24: 148 | G24: 141 | H24: 216 | I24: 97 | J24: 133 | K24: 151 | L24: 145 | M24: 108 | N24: 214 | O24: 205 | P24: 291 | Q24: 315 | R24: 293 | S24: 249 | T24: 430 | U24: 935 | V24: 848 | W24: 1783 | X24: 719 | Y24: 634 | Z24: 1353
B25: Art and Design | C25: 2015 | D25: 2093 | E25: 2648 | F25: 2233 | G25: 1503 | H25: 1252 | I25: 3639 | J25: 3691 | K25: 4283 | L25: 3269 | M25: 1924 | N25: 1246 | O25: 5654 | P25: 5784 | Q25: 6931 | R25: 5502 | S25: 3427 | T25: 2498 | U25: 11744 | V25: 18052 | W25: 29796 | X25: 10492 | Y25: 16806 | Z25: 27298
B26: Drama | C26: 185 | D26: 270 | E26: 376 | F26: 405 | G26: 388 | H26: 453 | I26: 701 | J26: 933 | K26: 1213 | L26: 1187 | M26: 949 | N26: 837 | O26: 886 | P26: 1203 | Q26: 1589 | R26: 1592 | S26: 1337 | T26: 1290 | U26: 2077 | V26: 5820 | W26: 7897 | X26: 1624 | Y26: 4983 | Z26: 6607
B27: English | C27: 3492 | D27: 4524 | E27: 4690 | F27: 4386 | G27: 3081 | H27: 2256 | I27: 7224 | J27: 9699 | K27: 11249 | L27: 10724 | M27: 7062 | N27: 4157 | O27: 10716 | P27: 14223 | Q27: 15939 | R27: 15110 | S27: 10143 | T27: 6413 | U27: 22429 | V27: 50115 | W27: 72544 | X27: 20173 | Y27: 45958 | Z27: 66131
B28: Media/Film/TV Studies | C28: 286 | D28: 467 | E28: 894 | F28: 766 | G28: 367 | H28: 247 | I28: 380 | J28: 709 | K28: 1162 | L28: 920 | M28: 414 | N28: 229 | O28: 666 | P28: 1176 | Q28: 2056 | R28: 1686 | S28: 781 | T28: 476 | U28: 3027 | V28: 3814 | W28: 6841 | X28: 2780 | Y28: 3585 | Z28: 6365
B29: Other Communication Studies | C29: 189 | D29: 317 | E29: 442 | F29: 416 | G29: 348 | H29: 629 | I29: 446 | J29: 890 | K29: 1123 | L29: 828 | M29: 537 | N29: 641 | O29: 635 | P29: 1207 | Q29: 1565 | R29: 1244 | S29: 885 | T29: 1270 | U29: 2341 | V29: 4465 | W29: 6806 | X29: 1712 | Y29: 3824 | Z29: 5536
B30: French | C30: 1509 | D30: 1237 | E30: 1389 | F30: 1181 | G30: 838 | H30: 705 | I30: 3169 | J30: 2759 | K30: 3165 | L30: 2707 | M30: 2065 | N30: 1994 | O30: 4678 | P30: 3996 | Q30: 4554 | R30: 3888 | S30: 2903 | T30: 2699 | U30: 6859 | V30: 15859 | W30: 22718 | X30: 6154 | Y30: 13865 | Z30: 20019
B31: German | C31: 741 | D31: 506 | E31: 516 | F31: 449 | G31: 339 | H31: 304 | I31: 1385 | J31: 1166 | K31: 1213 | L31: 1130 | M31: 843 | N31: 714 | O31: 2126 | P31: 1672 | Q31: 1729 | R31: 1579 | S31: 1182 | T31: 1018 | U31: 2855 | V31: 6451 | W31: 9306 | X31: 2551 | Y31: 5737 | Z31: 8288
B32: Spanish | C32: 292 | D32: 260 | E32: 236 | F32: 161 | G32: 106 | H32: 114 | I32: 634 | J32: 605 | K32: 542 | L32: 465 | M32: 338 | N32: 342 | O32: 926 | P32: 865 | Q32: 778 | R32: 626 | S32: 444 | T32: 456 | U32: 1169 | V32: 2926 | W32: 4095 | X32: 1055 | Y32: 2584 | Z32: 3639
B33: Other modern languages | C33: 415 | D33: 304 | E33: 235 | F33: 192 | G33: 142 | H33: 210 | I33: 549 | J33: 460 | K33: 395 | L33: 238 | M33: 141 | N33: 154 | O33: 964 | P33: 764 | Q33: 630 | R33: 430 | S33: 283 | T33: 364 | U33: 1498 | V33: 1937 | W33: 3435 | X33: 1288 | Y33: 1783 | Z33: 3071
B34: Classical Studies | C34: 750 | D34: 565 | E34: 522 | F34: 424 | G34: 267 | H34: 242 | I34: 898 | J34: 811 | K34: 793 | L34: 575 | M34: 310 | N34: 252 | O34: 1648 | P34: 1376 | Q34: 1315 | R34: 999 | S34: 577 | T34: 494 | U34: 2770 | V34: 3639 | W34: 6409 | X34: 2528 | Y34: 3387 | Z34: 5915
B35: Religious Studies | C35: 269 | D35: 359 | E35: 400 | F35: 357 | G35: 184 | H35: 178 | I35: 702 | J35: 988 | K35: 1206 | L35: 991 | M35: 616 | N35: 478 | O35: 971 | P35: 1347 | Q35: 1606 | R35: 1348 | S35: 800 | T35: 656 | U35: 1747 | V35: 4981 | W35: 6728 | X35: 1569 | Y35: 4503 | Z35: 6072
B36: Music | C36: 455 | D36: 409 | E36: 443 | F36: 355 | G36: 221 | H36: 156 | I36: 638 | J36: 697 | K36: 803 | L36: 625 | M36: 369 | N36: 231 | O36: 1093 | P36: 1106 | Q36: 1246 | R36: 980 | S36: 590 | T36: 387 | U36: 2039 | V36: 3363 | W36: 5402 | X36: 1883 | Y36: 3132 | Z36: 5015
B37: Physical Education | C37: 293 | D37: 659 | E37: 1208 | F37: 1537 | G37: 1157 | H37: 657 | I37: 419 | J37: 602 | K37: 831 | L37: 752 | M37: 552 | N37: 375 | O37: 712 | P37: 1261 | Q37: 2039 | R37: 2289 | S37: 1709 | T37: 1032 | U37: 5511 | V37: 3531 | W37: 9042 | X37: 4854 | Y37: 3156 | Z37: 8010
B38: General Studies | C38: 4682 | D38: 5229 | E38: 5926 | F38: 5868 | G38: 4419 | H38: 4570 | I38: 3956 | J38: 4799 | K38: 5909 | L38: 6104 | M38: 4888 | N38: 5670 | O38: 8638 | P38: 10028 | Q38: 11835 | R38: 11972 | S38: 9307 | T38: 10240 | U38: 30694 | V38: 31326 | W38: 62020 | X38: 26124 | Y38: 25656 | Z38: 51780
B39: All subjects | C39: 49199 | D39: 51648 | E39: 56666 | F39: 53174 | G39: 40721 | H39: 44764 | I39: 51419 | J39: 59895 | K39: 65632 | L39: 59374 | M39: 43374 | N39: 44298 | O39: 100618 | P39: 111543 | Q39: 122298 | R39: 112548 | S39: 84095 | T39: 89062 | U39: 296172 | V39: 323992 | W39: 620164 | X39: 251408 | Y39: 279694 | Z39: 531102
B41: Biological Sciences | C41: 12.7 | D41: 17.9 | E41: 18.8 | F41: 18.6 | G41: 15.5 | H41: 83.5 | I41: 17755 | J41: 14.6 | K41: 19.9 | L41: 19.5 | M41: 17.3 | N41: 14.3 | O41: 85.6 | P41: 25643 | Q41: 13.8 | R41: 19.1 | S41: 19.2 | T41: 17.8 | U41: 14.8 | V41: 84.7 | W41: 43398
B42: Chemistry | C42: 20 | D42: 20.6 | E42: 18 | F42: 14.8 | G42: 12.1 | H42: 85.6 | I42: 19550 | J42: 20.6 | K42: 21.5 | L42: 19.1 | M42: 14.9 | N42: 11.3 | O42: 87.4 | P42: 15127 | Q42: 20.3 | R42: 21 | S42: 18.5 | T42: 14.9 | U42: 11.8 | V42: 86.4 | W42: 34677
B43: Physics | C43: 20.6 | D43: 18.5 | E43: 17.8 | F43: 15.9 | G43: 13.3 | H43: 86 | I43: 22443 | J43: 21.2 | K43: 21.7 | L43: 18.5 | M43: 14.6 | N43: 11.3 | O43: 87.3 | P43: 5957 | Q43: 20.7 | R43: 19.2 | S43: 17.9 | T43: 15.6 | U43: 12.9 | V43: 86.3 | W43: 28400
B44: Other Science | C44: 10.4 | D44: 14 | E44: 19.6 | F44: 20.9 | G44: 17 | H44: 81.9 | I44: 2657 | J44: 9.9 | K44: 16.1 | L44: 21.5 | M44: 21.5 | N44: 16.1 | O44: 85.2 | P44: 1537 | Q44: 10.2 | R44: 14.8 | S44: 20.3 | T44: 21.1 | U44: 16.7 | V44: 83.1 | W44: 4194
B45: Mathematics | C45: 25.3 | D45: 18.4 | E45: 17 | F45: 14.5 | G45: 11.6 | H45: 86.7 | I45: 35007 | J45: 25.2 | K45: 21 | L45: 17.8 | M45: 14.7 | N45: 10.7 | O45: 89.4 | P45: 19118 | Q45: 25.2 | R45: 19.3 | S45: 17.3 | T45: 14.6 | U45: 11.3 | V45: 87.7 | W45: 54125
B46: Further Mathematics | C46: 45.9 | D46: 20.7 | E46: 13.1 | F46: 9.2 | G46: 5.7 | H46: 94.6 | I46: 3682 | J46: 46.7 | K46: 21.3 | L46: 14.8 | M46: 8.1 | N46: 5 | O46: 95.9 | P46: 1231 | Q46: 46.1 | R46: 20.9 | S46: 13.6 | T46: 8.9 | U46: 5.6 | V46: 95 | W46: 4913
B47: Design and Technology | C47: 11.8 | D47: 13.4 | E47: 23.2 | F47: 22.7 | G47: 15.1 | H47: 86.2 | I47: 7189 | J47: 15 | K47: 17.5 | L47: 25 | M47: 21.6 | N47: 13.1 | O47: 92.3 | P47: 1797 | Q47: 12.4 | R47: 14.2 | S47: 23.6 | T47: 22.5 | U47: 14.7 | V47: 87.4 | W47: 8986
B48: Computer Studies | C48: 11.3 | D48: 12.3 | E48: 17.7 | F48: 18.2 | G48: 16.4 | H48: 75.9 | I48: 7284 | J48: 5.5 | K48: 11.7 | L48: 15.1 | M48: 21.5 | N48: 19.7 | O48: 73.5 | P48: 1266 | Q48: 10.4 | R48: 12.2 | S48: 17.3 | T48: 18.7 | U48: 16.9 | V48: 75.5 | W48: 8550
B49: ICT | C49: 0 | D49: 0 | E49: 0 | F49: 0 | G49: 0 | H49: 0 | I49: 0 | J49: 0 | K49: 0 | L49: 0 | M49: 0 | N49: 0 | O49: 0 | P49: 0 | Q49: 0 | R49: 0 | S49: 0 | T49: 0 | U49: 0 | V49: 0 | W49: 0
B50: Home Economics | C50: 5.9 | D50: 10.2 | E50: 19.5 | F50: 15.3 | G50: 22.9 | H50: 73.7 | I50: 118 | J50: 12.4 | K50: 16.1 | L50: 20.9 | M50: 20.7 | N50: 14.6 | O50: 84.8 | P50: 1905 | Q50: 12.1 | R50: 15.8 | S50: 20.9 | T50: 20.4 | U50: 15.1 | V50: 84.1 | W50: 2023
B51: Accounting and Finance | C51: 9.6 | D51: 15.7 | E51: 11.5 | F51: 14 | G51: 11.4 | H51: 62.1 | I51: 1256 | J51: 9.2 | K51: 14.8 | L51: 12 | M51: 13.5 | N51: 13.4 | O51: 62.7 | P51: 786 | Q51: 9.4 | R51: 15.3 | S51: 11.7 | T51: 13.8 | U51: 12.1 | V51: 62.3 | W51: 2042
B52: Business Studies | C52: 7.5 | D52: 15.8 | E52: 22 | F52: 21.4 | G52: 16.3 | H52: 83.1 | I52: 13276 | J52: 7.5 | K52: 15.8 | L52: 21.4 | M52: 20.9 | N52: 16.1 | O52: 81.7 | P52: 11445 | Q52: 7.5 | R52: 15.8 | S52: 21.7 | T52: 21.2 | U52: 16.2 | V52: 82.4 | W52: 24721
B53: Economics | C53: 16.4 | D53: 16.2 | E53: 18 | F53: 17.4 | G53: 14.4 | H53: 82.4 | I53: 13681 | J53: 14.4 | K53: 15.4 | L53: 18.1 | M53: 17.2 | N53: 15 | O53: 80.1 | P53: 7070 | Q53: 15.7 | R53: 16 | S53: 18 | T53: 17.3 | U53: 14.6 | V53: 81.6 | W53: 20751
B54: Geography | C54: 12.2 | D54: 16.3 | E54: 19 | F54: 19.5 | G54: 14.7 | H54: 81.8 | I54: 20498 | J54: 16.1 | K54: 19.3 | L54: 18.4 | M54: 17.5 | N54: 12.7 | O54: 84 | P54: 16664 | Q54: 14 | R54: 17.7 | S54: 18.7 | T54: 18.6 | U54: 13.8 | V54: 82.8 | W54: 37162
B55: Government and Politics | C55: 15.1 | D55: 21.4 | E55: 20 | F55: 18.1 | G55: 12.7 | H55: 87.3 | I55: 5091 | J55: 16.3 | K55: 21.9 | L55: 20 | M55: 17.1 | N55: 12.3 | O55: 87.5 | P55: 3580 | Q55: 15.6 | R55: 21.6 | S55: 20 | T55: 17.7 | U55: 12.5 | V55: 87.4 | W55: 8671
B56: History | C56: 15.1 | D56: 17.5 | E56: 21.2 | F56: 19.3 | G56: 13.6 | H56: 86.7 | I56: 16319 | J56: 14.9 | K56: 16.9 | L56: 20.4 | M56: 18.9 | N56: 14.2 | O56: 85.3 | P56: 19975 | Q56: 15 | R56: 17.2 | S56: 20.7 | T56: 19.1 | U56: 14 | V56: 85.9 | W56: 36294
B57: Law | C57: 9.2 | D57: 11.3 | E57: 13.8 | F57: 17.6 | G57: 15.4 | H57: 67.3 | I57: 2899 | J57: 11.6 | K57: 12 | L57: 16.7 | M57: 17.6 | N57: 14.8 | O57: 72.6 | P57: 4118 | Q57: 10.6 | R57: 11.7 | S57: 15.5 | T57: 17.6 | U57: 15 | V57: 70.4 | W57: 7017
B58: Psychology | C58: 7.9 | D58: 13.4 | E58: 16.3 | F58: 16.2 | G58: 16.5 | H58: 70.3 | I58: 4489 | J58: 12.6 | K58: 18.1 | L58: 19.1 | M58: 17.7 | N58: 14 | O58: 81.4 | P58: 13568 | Q58: 11.4 | R58: 16.9 | S58: 18.4 | T58: 17.3 | U58: 14.6 | V58: 78.7 | W58: 18057
B59: Sociology | C59: 9.4 | D59: 13.8 | E59: 14.4 | F59: 17.1 | G59: 14.3 | H59: 69 | I59: 5283 | J59: 12.2 | K59: 16.7 | L59: 16.8 | M59: 16.8 | N59: 13.6 | O59: 76.1 | P59: 16078 | Q59: 11.5 | R59: 16 | S59: 16.2 | T59: 16.9 | U59: 13.8 | V59: 74.4 | W59: 21361
B60: Other social studies | C60: 11.6 | D60: 16.9 | E60: 17.5 | F60: 15.8 | G60: 15.1 | H60: 76.9 | I60: 935 | J60: 11.4 | K60: 15.7 | L60: 17.8 | M60: 17.1 | N60: 12.7 | O60: 74.8 | P60: 848 | Q60: 11.5 | R60: 16.3 | S60: 17.7 | T60: 16.4 | U60: 14 | V60: 75.9 | W60: 1783
B61: Art and Design | C61: 17.2 | D61: 17.8 | E61: 22.5 | F61: 19 | G61: 12.8 | H61: 89.3 | I61: 11744 | J61: 20.2 | K61: 20.4 | L61: 23.7 | M61: 18.1 | N61: 10.7 | O61: 93.1 | P61: 18052 | Q61: 19 | R61: 19.4 | S61: 23.3 | T61: 18.5 | U61: 11.5 | V61: 91.6 | W61: 29796
B62: Drama | C62: 8.9 | D62: 13 | E62: 18.1 | F62: 19.5 | G62: 18.7 | H62: 78.2 | I62: 2077 | J62: 12 | K62: 16 | L62: 20.8 | M62: 20.4 | N62: 16.3 | O62: 85.6 | P62: 5820 | Q62: 11.2 | R62: 15.2 | S62: 20.1 | T62: 20.2 | U62: 16.9 | V62: 83.7 | W62: 7897
B63: English | C63: 15.6 | D63: 20.2 | E63: 20.9 | F63: 19.6 | G63: 13.7 | H63: 89.9 | I63: 22429 | J63: 14.4 | K63: 19.4 | L63: 22.4 | M63: 21.4 | N63: 14.1 | O63: 91.7 | P63: 50115 | Q63: 14.8 | R63: 19.6 | S63: 22 | T63: 20.8 | U63: 14 | V63: 91.2 | W63: 72544
B64: Media/Film/TV Studies | C64: 9.4 | D64: 15.4 | E64: 29.5 | F64: 25.3 | G64: 12.1 | H64: 91.8 | I64: 3027 | J64: 10 | K64: 18.6 | L64: 30.5 | M64: 24.1 | N64: 10.9 | O64: 94 | P64: 3814 | Q64: 9.7 | R64: 17.2 | S64: 30.1 | T64: 24.6 | U64: 11.4 | V64: 93 | W64: 6841
B65: Other Communication Studies | C65: 8.1 | D65: 13.5 | E65: 18.9 | F65: 17.8 | G65: 14.9 | H65: 73.1 | I65: 2341 | J65: 10 | K65: 19.9 | L65: 25.2 | M65: 18.5 | N65: 12 | O65: 85.6 | P65: 4465 | Q65: 9.3 | R65: 17.7 | S65: 23 | T65: 18.3 | U65: 13 | V65: 81.3 | W65: 6806
B66: French | C66: 22 | D66: 18 | E66: 20.3 | F66: 17.2 | G66: 12.2 | H66: 89.7 | I66: 6859 | J66: 20 | K66: 17.4 | L66: 20 | M66: 17.1 | N66: 13 | O66: 87.4 | P66: 15859 | Q66: 20.6 | R66: 17.6 | S66: 20 | T66: 17.1 | U66: 12.8 | V66: 88.1 | W66: 22718
B67: German | C67: 26 | D67: 17.7 | E67: 18.1 | F67: 15.7 | G67: 11.9 | H67: 89.4 | I67: 2855 | J67: 21.5 | K67: 18.1 | L67: 18.8 | M67: 17.5 | N67: 13.1 | O67: 88.9 | P67: 6451 | Q67: 22.8 | R67: 18 | S67: 18.6 | T67: 17 | U67: 12.7 | V67: 89.1 | W67: 9306
B68: Spanish | C68: 25 | D68: 22.2 | E68: 20.2 | F68: 13.8 | G68: 9.1 | H68: 90.2 | I68: 1169 | J68: 21.7 | K68: 20.7 | L68: 18.5 | M68: 15.9 | N68: 11.6 | O68: 88.3 | P68: 2926 | Q68: 22.6 | R68: 21.1 | S68: 19 | T68: 15.3 | U68: 10.8 | V68: 88.9 | W68: 4095
B69: Other modern languages | C69: 27.7 | D69: 20.3 | E69: 15.7 | F69: 12.8 | G69: 9.5 | H69: 86 | I69: 1498 | J69: 28.3 | K69: 23.7 | L69: 20.4 | M69: 12.3 | N69: 7.3 | O69: 92 | P69: 1937 | Q69: 28.1 | R69: 22.2 | S69: 18.3 | T69: 12.5 | U69: 8.2 | V69: 89.4 | W69: 3435
B70: Classical Studies | C70: 27.1 | D70: 20.4 | E70: 18.8 | F70: 15.3 | G70: 9.6 | H70: 91.3 | I70: 2770 | J70: 24.7 | K70: 22.3 | L70: 21.8 | M70: 15.8 | N70: 8.5 | O70: 93.1 | P70: 3639 | Q70: 25.7 | R70: 21.5 | S70: 20.5 | T70: 15.6 | U70: 9 | V70: 92.3 | W70: 6409
B71: Religious Studies | C71: 15.4 | D71: 20.5 | E71: 22.9 | F71: 20.4 | G71: 10.5 | H71: 89.8 | I71: 1747 | J71: 14.1 | K71: 19.8 | L71: 24.2 | M71: 19.9 | N71: 12.4 | O71: 90.4 | P71: 4981 | Q71: 14.4 | R71: 20 | S71: 23.9 | T71: 20 | U71: 11.9 | V71: 90.2 | W71: 6728
B72: Music | C72: 22.3 | D72: 20.1 | E72: 21.7 | F72: 17.4 | G72: 10.8 | H72: 92.3 | I72: 2039 | J72: 19 | K72: 20.7 | L72: 23.9 | M72: 18.6 | N72: 11 | O72: 93.1 | P72: 3363 | Q72: 20.2 | R72: 20.5 | S72: 23.1 | T72: 18.1 | U72: 10.9 | V72: 92.8 | W72: 5402
B73: Physical Education | C73: 5.3 | D73: 12 | E73: 21.9 | F73: 27.9 | G73: 21 | H73: 88.1 | I73: 5511 | J73: 11.9 | K73: 17 | L73: 23.5 | M73: 21.3 | N73: 15.6 | O73: 89.4 | P73: 3531 | Q73: 7.9 | R73: 13.9 | S73: 22.6 | T73: 25.3 | U73: 18.9 | V73: 88.6 | W73: 9042
B74: General Studies | C74: 15.3 | D74: 17 | E74: 19.3 | F74: 19.1 | G74: 14.4 | H74: 85.1 | I74: 30694 | J74: 12.6 | K74: 15.3 | L74: 18.9 | M74: 19.5 | N74: 15.6 | O74: 81.9 | P74: 31326 | Q74: 13.9 | R74: 16.2 | S74: 19.1 | T74: 19.3 | U74: 15 | V74: 83.5 | W74: 62020
B75: All subjects | C75: 16.6 | D75: 17.4 | E75: 19.1 | F75: 18 | G75: 13.7 | H75: 84.9 | I75: 296172 | J75: 15.9 | K75: 18.5 | L75: 20.3 | M75: 18.3 | N75: 13.4 | O75: 86.3 | P75: 323992 | Q75: 16.2 | R75: 18 | S75: 19.7 | T75: 18.1 | U75: 13.6 | V75: 85.6 | W75: 620164
B77: Biological Sciences | C77: =ROUND(C41,1) -> 12.7 | D77: =ROUND(D41,1) -> 17.9 | E77: 18.8 | F77: 18.6 | G77: 15.5 | H77: 83.5 | I77: =ROUND(I41,0) -> 17755 | J77: 14.6 | K77: 19.9 | L77: 19.5 | M77: 17.3 | N77: 14.3 | O77: 85.6 | P77: =ROUND(P41,0) -> 25643 | Q77: 13.8 | R77: 19.1 | S77: 19.2 | T77: 17.8 | U77: 14.8 | V77: 84.7 | W77: =ROUND(W41,0) -> 43398
B78: Chemistry | C78: =ROUND(C42,1) -> 20 | D78: 20.6 | E78: 18 | F78: 14.8 | G78: 12.1 | H78: 85.6 | I78: =ROUND(I42,0) -> 19550 | J78: 20.6 | K78: 21.5 | L78: 19.1 | M78: 14.9 | N78: 11.3 | O78: 87.4 | P78: =ROUND(P42,0) -> 15127 | Q78: 20.3 | R78: 21 | S78: 18.5 | T78: 14.9 | U78: 11.8 | V78: 86.4 | W78: =ROUND(W42,0) -> 34677
B79: Physics | C79: 20.6 | D79: 18.5 | E79: 17.8 | F79: 15.9 | G79: 13.3 | H79: 86 | I79: 22443 | J79: 21.2 | K79: 21.7 | L79: 18.5 | M79: 14.6 | N79: 11.3 | O79: 87.3 | P79: 5957 | Q79: 20.7 | R79: 19.2 | S79: 17.9 | T79: 15.6 | U79: 12.9 | V79: 86.3 | W79: 28400
B80: Other Science | C80: 10.4 | D80: 14 | E80: 19.6 | F80: 20.9 | G80: 17 | H80: 81.9 | I80: 2657 | J80: 9.9 | K80: 16.1 | L80: 21.5 | M80: 21.5 | N80: 16.1 | O80: 85.2 | P80: 1537 | Q80: 10.2 | R80: 14.8 | S80: 20.3 | T80: 21.1 | U80: 16.7 | V80: 83.1 | W80: 4194
B81: Mathematics | C81: 25.3 | D81: 18.4 | E81: 17 | F81: 14.5 | G81: 11.6 | H81: 86.7 | I81: 35007 | J81: 25.2 | K81: 21 | L81: 17.8 | M81: 14.7 | N81: 10.7 | O81: 89.4 | P81: 19118 | Q81: 25.2 | R81: 19.3 | S81: 17.3 | T81: 14.6 | U81: 11.3 | V81: 87.7 | W81: 54125
B82: Further Mathematics | C82: 45.9 | D82: 20.7 | E82: 13.1 | F82: 9.2 | G82: 5.7 | H82: 94.6 | I82: 3682 | J82: 46.7 | K82: 21.3 | L82: 14.8 | M82: 8.1 | N82: 5 | O82: 95.9 | P82: 1231 | Q82: 46.1 | R82: 20.9 | S82: 13.6 | T82: 8.9 | U82: 5.6 | V82: 95 | W82: 4913
B83: Design and Technology | C83: 11.8 | D83: 13.4 | E83: 23.2 | F83: 22.7 | G83: 15.1 | H83: 86.2 | I83: 7189 | J83: 15 | K83: 17.5 | L83: 25 | M83: 21.6 | N83: 13.1 | O83: 92.3 | P83: 1797 | Q83: 12.4 | R83: 14.2 | S83: 23.6 | T83: 22.5 | U83: 14.7 | V83: 87.4 | W83: 8986
B84: Computer Studies | C84: 11.3 | D84: 12.3 | E84: 17.7 | F84: 18.2 | G84: 16.4 | H84: 75.9 | I84: 7284 | J84: 5.5 | K84: 11.7 | L84: 15.1 | M84: 21.5 | N84: 19.7 | O84: 73.5 | P84: 1266 | Q84: 10.4 | R84: 12.2 | S84: 17.3 | T84: 18.7 | U84: 16.9 | V84: 75.5 | W84: 8550
B85: ICT | C85: 0 | D85: 0 | E85: 0 | F85: 0 | G85: 0 | H85: 0 | I85: 0 | J85: 0 | K85: 0 | L85: 0 | M85: 0 | N85: 0 | O85: 0 | P85: 0 | Q85: 0 | R85: 0 | S85: 0 | T85: 0 | U85: 0 | V85: 0 | W85: 0
B86: Home Economics | C86: 5.9 | D86: 10.2 | E86: 19.5 | F86: 15.3 | G86: 22.9 | H86: 73.7 | I86: 118 | J86: 12.4 | K86: 16.1 | L86: 20.9 | M86: 20.7 | N86: 14.6 | O86: 84.8 | P86: 1905 | Q86: 12.1 | R86: 15.8 | S86: 20.9 | T86: 20.4 | U86: 15.1 | V86: 84.1 | W86: 2023
B87: Accounting and Finance | C87: 9.6 | D87: 15.7 | E87: 11.5 | F87: 14 | G87: 11.4 | H87: 62.1 | I87: 1256 | J87: 9.2 | K87: 14.8 | L87: 12 | M87: 13.5 | N87: 13.4 | O87: 62.7 | P87: 786 | Q87: 9.4 | R87: 15.3 | S87: 11.7 | T87: 13.8 | U87: 12.1 | V87: 62.3 | W87: 2042
B88: Business Studies | C88: 7.5 | D88: 15.8 | E88: 22 | F88: 21.4 | G88: 16.3 | H88: 83.1 | I88: 13276 | J88: 7.5 | K88: 15.8 | L88: 21.4 | M88: 20.9 | N88: 16.1 | O88: 81.7 | P88: 11445 | Q88: 7.5 | R88: 15.8 | S88: 21.7 | T88: 21.2 | U88: 16.2 | V88: 82.4 | W88: 24721
B89: Economics | C89: 16.4 | D89: 16.2 | E89: 18 | F89: 17.4 | G89: 14.4 | H89: 82.4 | I89: 13681 | J89: 14.4 | K89: 15.4 | L89: 18.1 | M89: 17.2 | N89: 15 | O89: 80.1 | P89: 7070 | Q89: 15.7 | R89: 16 | S89: 18 | T89: 17.3 | U89: 14.6 | V89: 81.6 | W89: 20751
B90: Geography | C90: 12.2 | D90: 16.3 | E90: 19 | F90: 19.5 | G90: 14.7 | H90: 81.8 | I90: 20498 | J90: 16.1 | K90: 19.3 | L90: 18.4 | M90: 17.5 | N90: 12.7 | O90: 84 | P90: 16664 | Q90: 14 | R90: 17.7 | S90: 18.7 | T90: 18.6 | U90: 13.8 | V90: 82.8 | W90: 37162
B91: Government and Politics | C91: 15.1 | D91: 21.4 | E91: 20 | F91: 18.1 | G91: 12.7 | H91: 87.3 | I91: 5091 | J91: 16.3 | K91: 21.9 | L91: 20 | M91: 17.1 | N91: 12.3 | O91: 87.5 | P91: 3580 | Q91: 15.6 | R91: 21.6 | S91: 20 | T91: 17.7 | U91: 12.5 | V91: 87.4 | W91: 8671
B92: History | C92: 15.1 | D92: 17.5 | E92: 21.2 | F92: 19.3 | G92: 13.6 | H92: 86.7 | I92: 16319 | J92: 14.9 | K92: 16.9 | L92: 20.4 | M92: 18.9 | N92: 14.2 | O92: 85.3 | P92: 19975 | Q92: 15 | R92: 17.2 | S92: 20.7 | T92: 19.1 | U92: 14 | V92: 85.9 | W92: 36294
B93: Law | C93: 9.2 | D93: 11.3 | E93: 13.8 | F93: 17.6 | G93: 15.4 | H93: 67.3 | I93: 2899 | J93: =ROUND(J57,1) -> 11.6 | K93: 12 | L93: 16.7 | M93: 17.6 | N93: 14.8 | O93: 72.6 | P93: 4118 | Q93: =ROUND(Q57,1) -> 10.6 | R93: 11.7 | S93: 15.5 | T93: 17.6 | U93: 15 | V93: 70.4 | W93: 7017
B94: Psychology | C94: =ROUND(C58,1) -> 7.9 | D94: 13.4 | E94: 16.3 | F94: 16.2 | G94: 16.5 | H94: 70.3 | I94: 4489 | J94: 12.6 | K94: 18.1 | L94: 19.1 | M94: 17.7 | N94: 14 | O94: 81.4 | P94: 13568 | Q94: 11.4 | R94: 16.9 | S94: 18.4 | T94: 17.3 | U94: 14.6 | V94: 78.7 | W94: 18057
B95: Sociology | C95: 9.4 | D95: 13.8 | E95: 14.4 | F95: 17.1 | G95: 14.3 | H95: 69 | I95: 5283 | J95: 12.2 | K95: 16.7 | L95: 16.8 | M95: 16.8 | N95: 13.6 | O95: 76.1 | P95: 16078 | Q95: 11.5 | R95: 16 | S95: 16.2 | T95: 16.9 | U95: 13.8 | V95: 74.4 | W95: 21361
B96: Other social studies | C96: 11.6 | D96: 16.9 | E96: 17.5 | F96: 15.8 | G96: 15.1 | H96: 76.9 | I96: 935 | J96: 11.4 | K96: 15.7 | L96: 17.8 | M96: 17.1 | N96: 12.7 | O96: 74.8 | P96: 848 | Q96: 11.5 | R96: 16.3 | S96: 17.7 | T96: 16.4 | U96: 14 | V96: 75.9 | W96: 1783
B97: Art and Design | C97: 17.2 | D97: 17.8 | E97: 22.5 | F97: 19 | G97: 12.8 | H97: 89.3 | I97: 11744 | J97: 20.2 | K97: 20.4 | L97: 23.7 | M97: 18.1 | N97: 10.7 | O97: 93.1 | P97: 18052 | Q97: 19 | R97: 19.4 | S97: 23.3 | T97: 18.5 | U97: 11.5 | V97: 91.6 | W97: 29796
B98: Drama | C98: 8.9 | D98: 13 | E98: 18.1 | F98: 19.5 | G98: 18.7 | H98: 78.2 | I98: 2077 | J98: 12 | K98: 16 | L98: 20.8 | M98: 20.4 | N98: 16.3 | O98: 85.6 | P98: 5820 | Q98: 11.2 | R98: 15.2 | S98: 20.1 | T98: 20.2 | U98: 16.9 | V98: 83.7 | W98: 7897
B99: English | C99: 15.6 | D99: 20.2 | E99: 20.9 | F99: 19.6 | G99: 13.7 | H99: 89.9 | I99: 22429 | J99: 14.4 | K99: 19.4 | L99: 22.4 | M99: 21.4 | N99: 14.1 | O99: 91.7 | P99: 50115 | Q99: 14.8 | R99: 19.6 | S99: 22 | T99: 20.8 | U99: 14 | V99: 91.2 | W99: 72544
B100: Media/Film/TV Studies | C100: 9.4 | D100: 15.4 | E100: 29.5 | F100: 25.3 | G100: 12.1 | H100: 91.8 | I100: 3027 | J100: 10 | K100: 18.6 | L100: 30.5 | M100: 24.1 | N100: 10.9 | O100: 94 | P100: 3814 | Q100: 9.7 | R100: 17.2 | S100: 30.1 | T100: 24.6 | U100: 11.4 | V100: 93 | W100: 6841
B101: Other Communication Studies | C101: 8.1 | D101: 13.5 | E101: 18.9 | F101: 17.8 | G101: 14.9 | H101: 73.1 | I101: 2341 | J101: 10 | K101: 19.9 | L101: 25.2 | M101: 18.5 | N101: 12 | O101: 85.6 | P101: 4465 | Q101: 9.3 | R101: 17.7 | S101: 23 | T101: 18.3 | U101: 13 | V101: 81.3 | W101: 6806
B102: French | C102: 22 | D102: 18 | E102: 20.3 | F102: 17.2 | G102: 12.2 | H102: 89.7 | I102: 6859 | J102: 20 | K102: 17.4 | L102: 20 | M102: 17.1 | N102: 13 | O102: 87.4 | P102: 15859 | Q102: 20.6 | R102: 17.6 | S102: 20 | T102: 17.1 | U102: 12.8 | V102: 88.1 | W102: 22718
B103: German | C103: 26 | D103: 17.7 | E103: 18.1 | F103: 15.7 | G103: 11.9 | H103: 89.4 | I103: 2855 | J103: 21.5 | K103: 18.1 | L103: 18.8 | M103: 17.5 | N103: 13.1 | O103: 88.9 | P103: 6451 | Q103: 22.8 | R103: 18 | S103: 18.6 | T103: 17 | U103: 12.7 | V103: 89.1 | W103: 9306
B104: Spanish | C104: 25 | D104: 22.2 | E104: 20.2 | F104: 13.8 | G104: 9.1 | H104: 90.2 | I104: 1169 | J104: 21.7 | K104: 20.7 | L104: 18.5 | M104: 15.9 | N104: 11.6 | O104: 88.3 | P104: 2926 | Q104: 22.6 | R104: 21.1 | S104: 19 | T104: 15.3 | U104: 10.8 | V104: 88.9 | W104: 4095
B105: Other modern languages | C105: 27.7 | D105: 20.3 | E105: 15.7 | F105: 12.8 | G105: 9.5 | H105: 86 | I105: 1498 | J105: 28.3 | K105: 23.7 | L105: 20.4 | M105: 12.3 | N105: 7.3 | O105: 92 | P105: 1937 | Q105: 28.1 | R105: 22.2 | S105: 18.3 | T105: 12.5 | U105: 8.2 | V105: 89.4 | W105: 3435
B106: Classical Studies | C106: 27.1 | D106: 20.4 | E106: 18.8 | F106: 15.3 | G106: 9.6 | H106: 91.3 | I106: 2770 | J106: 24.7 | K106: 22.3 | L106: 21.8 | M106: 15.8 | N106: 8.5 | O106: 93.1 | P106: 3639 | Q106: 25.7 | R106: 21.5 | S106: 20.5 | T106: 15.6 | U106: 9 | V106: 92.3 | W106: 6409
B107: Religious Studies | C107: 15.4 | D107: 20.5 | E107: 22.9 | F107: 20.4 | G107: 10.5 | H107: 89.8 | I107: 1747 | J107: 14.1 | K107: 19.8 | L107: 24.2 | M107: 19.9 | N107: 12.4 | O107: 90.4 | P107: 4981 | Q107: 14.4 | R107: 20 | S107: 23.9 | T107: 20 | U107: 11.9 | V107: 90.2 | W107: 6728
B108: Music | C108: 22.3 | D108: 20.1 | E108: 21.7 | F108: 17.4 | G108: 10.8 | H108: 92.3 | I108: 2039 | J108: 19 | K108: 20.7 | L108: 23.9 | M108: 18.6 | N108: 11 | O108: 93.1 | P108: 3363 | Q108: 20.2 | R108: 20.5 | S108: 23.1 | T108: 18.1 | U108: 10.9 | V108: 92.8 | W108: 5402
B109: Physical Education | C109: 5.3 | D109: 12 | E109: 21.9 | F109: 27.9 | G109: 21 | H109: 88.1 | I109: 5511 | J109: =ROUND(J73,1) -> 11.9 | K109: 17 | L109: 23.5 | M109: 21.3 | N109: 15.6 | O109: 89.4 | P109: 3531 | Q109: =ROUND(Q73,1) -> 7.9 | R109: 13.9 | S109: 22.6 | T109: 25.3 | U109: 18.9 | V109: 88.6 | W109: 9042
B110: General Studies | C110: =ROUND(C74,1) -> 15.3 | D110: 17 | E110: 19.3 | F110: 19.1 | G110: 14.4 | H110: 85.1 | I110: 30694 | J110: 12.6 | K110: 15.3 | L110: 18.9 | M110: 19.5 | N110: 15.6 | O110: 81.9 | P110: 31326 | Q110: 13.9 | R110: 16.2 | S110: 19.1 | T110: 19.3 | U110: 15 | V110: 83.5 | W110: 62020
B111: All subjects | C111: 16.6 | D111: 17.4 | E111: 19.1 | F111: 18 | G111: 13.7 | H111: 84.9 | I111: 296172 | J111: 15.9 | K111: 18.5 | L111: 20.3 | M111: 18.3 | N111: 13.4 | O111: 86.3 | P111: 323992 | Q111: 16.2 | R111: 18 | S111: 19.7 | T111: 18.1 | U111: 13.6 | V111: 85.6 | W111: 620164

Sheet 1997data_new (hidden)
C3: Males | I3: Females | O3: Total | U3: total entries | X3: total passes
C4: A | D4: B | E4: C | F4: D | G4: E | H4: other | I4: A | J4: B | K4: C | L4: D | M4: E | N4: other | O4: A | P4: B | Q4: C | R4: D | S4: E | T4: other | U4: Male | V4: Female | W4: Male and Female | X4: Male | Y4: Female | Z4: Male and Female
B5: Biological Sciences | C5: 2657 | D5: 3644 | E5: 3653 | F5: 3572 | G5: 3007 | H5: 2927 | I5: 4362 | J5: 5703 | K5: 5520 | L5: 4928 | M5: 3999 | N5: 3626 | O5: 7019 | P5: 9347 | Q5: 9173 | R5: 8500 | S5: 7006 | T5: 6553 | U5: 19460 | V5: 28138 | W5: 47598 | X5: 16533 | Y5: 24512 | Z5: 41045
B6: Chemistry | C6: 4296 | D6: 4217 | E6: 3620 | F6: 2998 | G6: 2453 | H6: 2697 | I6: 3488 | J6: 3510 | K6: 3065 | L6: 2395 | M6: 1887 | N6: 1803 | O6: 7784 | P6: 7727 | Q6: 6685 | R6: 5393 | S6: 4340 | T6: 4500 | U6: 20281 | V6: 16148 | W6: 36429 | X6: 17584 | Y6: 14345 | Z6: 31929
B7: Physics | C7: 4849 | D7: 4747 | E7: 4103 | F7: 3582 | G7: 2650 | H7: 2699 | I7: 1365 | J7: 1465 | K7: 1149 | L7: 913 | M7: 626 | N7: 629 | O7: 6214 | P7: 6212 | Q7: 5252 | R7: 4495 | S7: 3276 | T7: 3328 | U7: 22630 | V7: 6147 | W7: 28777 | X7: 19931 | Y7: 5518 | Z7: 25449
B8: Other Science | C8: 292 | D8: 371 | E8: 528 | F8: 602 | G8: 448 | H8: 439 | I8: 174 | J8: 273 | K8: 313 | L8: 372 | M8: 264 | N8: 225 | O8: 466 | P8: 644 | Q8: 841 | R8: 974 | S8: 712 | T8: 664 | U8: 2680 | V8: 1621 | W8: 4301 | X8: 2241 | Y8: 1396 | Z8: 3637
B9: Mathematics | C9: 9297 | D9: 6898 | E9: 6032 | F9: 5245 | G9: 3977 | H9: 4565 | I9: 5064 | J9: 4264 | K9: 3695 | L9: 2960 | M9: 2058 | N9: 1995 | O9: 14361 | P9: 11162 | Q9: 9727 | R9: 8205 | S9: 6035 | T9: 6560 | U9: 36014 | V9: 20036 | W9: 56050 | X9: 31449 | Y9: 18041 | Z9: 49490
B10: Further Mathematics | C10: 1794 | D10: 776 | E10: 505 | F10: 310 | G10: 208 | H10: 163 | I10: 567 | J10: 267 | K10: 201 | L10: 108 | M10: 61 | N10: 39 | O10: 2361 | P10: 1043 | Q10: 706 | R10: 418 | S10: 269 | T10: 202 | U10: 3756 | V10: 1243 | W10: 4999 | X10: 3593 | Y10: 1204 | Z10: 4797
B11: Design and Technology | C11: 888 | D11: 1035 | E11: 1661 | F11: 1647 | G11: 1098 | H11: 818 | I11: 306 | J11: 405 | K11: 656 | L11: 500 | M11: 284 | N11: 195 | O11: 1194 | P11: 1440 | Q11: 2317 | R11: 2147 | S11: 1382 | T11: 1013 | U11: 7147 | V11: 2346 | W11: 9493 | X11: 6329 | Y11: 2151 | Z11: 8480
B12: Computer Studies | C12: 866 | D12: 1076 | E12: 1519 | F12: 1671 | G12: 1452 | H12: 1991 | I12: 94 | J12: 183 | K12: 245 | L12: 328 | M12: 300 | N12: 393 | O12: 960 | P12: 1259 | Q12: 1764 | R12: 1999 | S12: 1752 | T12: 2384 | U12: 8575 | V12: 1543 | W12: 10118 | X12: 6584 | Y12: 1150 | Z12: 7734
B13: ICT | C13: 0 | D13: 0 | E13: 0 | F13: 0 | G13: 0 | H13: 0 | I13: 0 | J13: 0 | K13: 0 | L13: 0 | M13: 0 | N13: 0 | O13: 0 | P13: 0 | Q13: 0 | R13: 0 | S13: 0 | T13: 0 | U13: 0 | V13: 0 | W13: 0 | X13: 0 | Y13: 0 | Z13: 0
B14: Home Economics | C14: 2 | D14: 5 | E14: 13 | F14: 18 | G14: 18 | H14: 31 | I14: 195 | J14: 269 | K14: 347 | L14: 384 | M14: 272 | N14: 257 | O14: 197 | P14: 274 | Q14: 360 | R14: 402 | S14: 290 | T14: 288 | U14: 87 | V14: 1724 | W14: 1811 | X14: 56 | Y14: 1467 | Z14: 1523
B15: Accounting and Finance | C15: 111 | D15: 162 | E15: 145 | F15: 154 | G15: 176 | H15: 436 | I15: 64 | J15: 109 | K15: 114 | L15: 101 | M15: 95 | N15: 256 | O15: 175 | P15: 271 | Q15: 259 | R15: 255 | S15: 271 | T15: 692 | U15: 1184 | V15: 739 | W15: 1923 | X15: 748 | Y15: 483 | Z15: 1231
B16: Business Studies | C16: 1047 | D16: 2840 | E16: 3523 | F16: 3192 | G16: 2204 | H16: 2046 | I16: 1005 | J16: 2537 | K16: 2961 | L16: 2599 | M16: 1688 | N16: 1671 | O16: 2052 | P16: 5377 | Q16: 6484 | R16: 5791 | S16: 3892 | T16: 3717 | U16: 14852 | V16: 12461 | W16: 27313 | X16: 12806 | Y16: 10790 | Z16: 23596
B17: Economics | C17: 2055 | D17: 2174 | E17: 2370 | F17: 2301 | G17: 1730 | H17: 2042 | I17: 1070 | J17: 1146 | K17: 1234 | L17: 1190 | M17: 955 | N17: 1117 | O17: 3125 | P17: 3320 | Q17: 3604 | R17: 3491 | S17: 2685 | T17: 3159 | U17: 12672 | V17: 6712 | W17: 19384 | X17: 10630 | Y17: 5595 | Z17: 16225
B18: Geography | C18: 2121 | D18: 4144 | E18: 4844 | F18: 4266 | G18: 3101 | H18: 2388 | I18: 2397 | J18: 4063 | K18: 4036 | L18: 3050 | M18: 2017 | N18: 1552 | O18: 4518 | P18: 8207 | Q18: 8880 | R18: 7316 | S18: 5118 | T18: 3940 | U18: 20864 | V18: 17115 | W18: 37979 | X18: 18476 | Y18: 15563 | Z18: 34039
B19: Government and Politics | C19: 757 | D19: 1188 | E19: 1129 | F19: 849 | G19: 507 | H19: 442 | I19: 516 | J19: 870 | K19: 741 | L19: 642 | M19: 350 | N19: 341 | O19: 1273 | P19: 2058 | Q19: 1870 | R19: 1491 | S19: 857 | T19: 783 | U19: 4872 | V19: 3460 | W19: 8332 | X19: 4430 | Y19: 3119 | Z19: 7549
B20: History | C20: 2533 | D20: 3177 | E20: 3437 | F20: 2967 | G20: 2105 | H20: 2047 | I20: 2837 | J20: 3669 | K20: 4069 | L20: 3760 | M20: 2691 | N20: 2786 | O20: 5370 | P20: 6846 | Q20: 7506 | R20: 6727 | S20: 4796 | T20: 4833 | U20: 16266 | V20: 19812 | W20: 36078 | X20: 14219 | Y20: 17026 | Z20: 31245
B21: Law | C21: 347 | D21: 340 | E21: 515 | F21: 481 | G21: 430 | H21: 887 | I21: 481 | J21: 551 | K21: 724 | L21: 734 | M21: 664 | N21: 1099 | O21: 828 | P21: 891 | Q21: 1239 | R21: 1215 | S21: 1094 | T21: 1986 | U21: 3000 | V21: 4253 | W21: 7253 | X21: 2113 | Y21: 3154 | Z21: 5267
B22: Psychology | C22: 408 | D22: 704 | E22: 987 | F22: 961 | G22: 900 | H22: 1510 | I22: 2060 | J22: 3294 | K22: 3322 | L22: 3068 | M22: 2218 | N22: 2830 | O22: 2468 | P22: 3998 | Q22: 4309 | R22: 4029 | S22: 3118 | T22: 4340 | U22: 5470 | V22: 16792 | W22: 22262 | X22: 3960 | Y22: 13962 | Z22: 17922
B23: Sociology | C23: 495 | D23: 783 | E23: 809 | F23: 892 | G23: 823 | H23: 1559 | I23: 2148 | J23: 3025 | K23: 2839 | L23: 2776 | M23: 2452 | N23: 3697 | O23: 2643 | P23: 3808 | Q23: 3648 | R23: 3668 | S23: 3275 | T23: 5256 | U23: 5361 | V23: 16937 | W23: 22298 | X23: 3802 | Y23: 13240 | Z23: 17042
B24: Other social studies | C24: 104 | D24: 144 | E24: 144 | F24: 117 | G24: 109 | H24: 178 | I24: 135 | J24: 127 | K24: 154 | L24: 144 | M24: 117 | N24: 184 | O24: 239 | P24: 271 | Q24: 298 | R24: 261 | S24: 226 | T24: 362 | U24: 796 | V24: 861 | W24: 1657 | X24: 618 | Y24: 677 | Z24: 1295
B25: Art and Design | C25: 2203 | D25: 2247 | E25: 2809 | F25: 2558 | G25: 1506 | H25: 1195 | I25: 4058 | J25: 4030 | K25: 4625 | L25: 3520 | M25: 1822 | N25: 1169 | O25: 6261 | P25: 6277 | Q25: 7434 | R25: 6078 | S25: 3328 | T25: 2364 | U25: 12518 | V25: 19224 | W25: 31742 | X25: 11323 | Y25: 18055 | Z25: 29378
B26: Drama | C26: 233 | D26: 315 | E26: 445 | F26: 485 | G26: 401 | H26: 453 | I26: 818 | J26: 1015 | K26: 1386 | L26: 1342 | M26: 1048 | N26: 813 | O26: 1051 | P26: 1330 | Q26: 1831 | R26: 1827 | S26: 1449 | T26: 1266 | U26: 2332 | V26: 6422 | W26: 8754 | X26: 1879 | Y26: 5609 | Z26: 7488
B27: English | C27: 3761 | D27: 4704 | E27: 5600 | F27: 5238 | G27: 3427 | H27: 2218 | I27: 7979 | J27: 10641 | K27: 12920 | L27: 12118 | M27: 7903 | N27: 4150 | O27: 11740 | P27: 15345 | Q27: 18520 | R27: 17356 | S27: 11330 | T27: 6368 | U27: 24948 | V27: 55711 | W27: 80659 | X27: 22730 | Y27: 51561 | Z27: 74291
B28: Media/Film/TV Studies | C28: 369 | D28: 622 | E28: 1118 | F28: 963 | G28: 542 | H28: 313 | I28: 565 | J28: 922 | K28: 1449 | L28: 1249 | M28: 557 | N28: 285 | O28: 934 | P28: 1544 | Q28: 2567 | R28: 2212 | S28: 1099 | T28: 598 | U28: 3927 | V28: 5027 | W28: 8954 | X28: 3614 | Y28: 4742 | Z28: 8356
B29: Other Communication Studies | C29: 199 | D29: 391 | E29: 525 | F29: 499 | G29: 355 | H29: 584 | I29: 539 | J29: 1075 | K29: 1341 | L29: 932 | M29: 534 | N29: 599 | O29: 738 | P29: 1466 | Q29: 1866 | R29: 1431 | S29: 889 | T29: 1183 | U29: 2553 | V29: 5020 | W29: 7573 | X29: 1969 | Y29: 4421 | Z29: 6390
B30: French | C30: 1379 | D30: 1291 | E30: 1236 | F30: 1080 | G30: 772 | H30: 655 | I30: 2937 | J30: 3011 | K30: 3002 | L30: 2540 | M30: 1878 | N30: 1583 | O30: 4316 | P30: 4302 | Q30: 4238 | R30: 3620 | S30: 2650 | T30: 2238 | U30: 6413 | V30: 14951 | W30: 21364 | X30: 5758 | Y30: 13368 | Z30: 19126
B31: German | C31: 769 | D31: 520 | E31: 495 | F31: 449 | G31: 329 | H31: 283 | I31: 1330 | J31: 1182 | K31: 1157 | L31: 1077 | M31: 804 | N31: 589 | O31: 2099 | P31: 1702 | Q31: 1652 | R31: 1526 | S31: 1133 | T31: 872 | U31: 2845 | V31: 6139 | W31: 8984 | X31: 2562 | Y31: 5550 | Z31: 8112
B32: Spanish | C32: 350 | D32: 306 | E32: 231 | F32: 184 | G32: 106 | H32: 91 | I32: 685 | J32: 610 | K32: 593 | L32: 531 | M32: 326 | N32: 315 | O32: 1035 | P32: 916 | Q32: 824 | R32: 715 | S32: 432 | T32: 406 | U32: 1268 | V32: 3060 | W32: 4328 | X32: 1177 | Y32: 2745 | Z32: 3922
B33: Other modern languages | C33: 423 | D33: 329 | E33: 243 | F33: 159 | G33: 100 | H33: 194 | I33: 594 | J33: 509 | K33: 355 | L33: 250 | M33: 132 | N33: 185 | O33: 1017 | P33: 838 | Q33: 598 | R33: 409 | S33: 232 | T33: 379 | U33: 1448 | V33: 2025 | W33: 3473 | X33: 1254 | Y33: 1840 | Z33: 3094
B34: Classical Studies | C34: 672 | D34: 525 | E34: 479 | F34: 421 | G34: 250 | H34: 202 | I34: 882 | J34: 824 | K34: 807 | L34: 515 | M34: 283 | N34: 235 | O34: 1554 | P34: 1349 | Q34: 1286 | R34: 936 | S34: 533 | T34: 437 | U34: 2549 | V34: 3546 | W34: 6095 | X34: 2347 | Y34: 3311 | Z34: 5658
B35: Religious Studies | C35: 332 | D35: 347 | E35: 429 | F35: 356 | G35: 200 | H35: 182 | I35: 703 | J35: 924 | K35: 1267 | L35: 1096 | M35: 652 | N35: 468 | O35: 1035 | P35: 1271 | Q35: 1696 | R35: 1452 | S35: 852 | T35: 650 | U35: 1846 | V35: 5110 | W35: 6956 | X35: 1664 | Y35: 4642 | Z35: 6306
B36: Music | C36: 488 | D36: 459 | E36: 502 | F36: 418 | G36: 260 | H36: 206 | I36: 654 | J36: 728 | K36: 837 | L36: 660 | M36: 357 | N36: 219 | O36: 1142 | P36: 1187 | Q36: 1339 | R36: 1078 | S36: 617 | T36: 425 | U36: 2333 | V36: 3455 | W36: 5788 | X36: 2127 | Y36: 3236 | Z36: 5363
B37: Physical Education | C37: 403 | D37: 894 | E37: 1573 | F37: 1977 | G37: 1496 | H37: 905 | I37: 555 | J37: 762 | K37: 992 | L37: 1031 | M37: 656 | N37: 452 | O37: 958 | P37: 1656 | Q37: 2565 | R37: 3008 | S37: 2152 | T37: 1357 | U37: 7248 | V37: 4448 | W37: 11696 | X37: 6343 | Y37: 3996 | Z37: 10339
B38: General Studies | C38: 5328 | D38: 6136 | E38: 6690 | F38: 6571 | G38: 5108 | H38: 5222 | I38: 4403 | J38: 5570 | K38: 6676 | L38: 7328 | M38: 6100 | N38: 6610 | O38: 9731 | P38: 11706 | Q38: 13366 | R38: 13899 | S38: 11208 | T38: 11832 | U38: 35055 | V38: 36687 | W38: 71742 | X38: 29833 | Y38: 30077 | Z38: 59910
B39: All subjects | C39: 51828 | D39: 57511 | E39: 61912 | F39: 57183 | G39: 42248 | H39: 42568 | I39: 55030 | J39: 67533 | K39: 72792 | L39: 65141 | M39: 46050 | N39: 42367 | O39: 106858 | P39: 125044 | Q39: 134704 | R39: 122324 | S39: 88298 | T39: 84935 | U39: 313250 | V39: 348913 | W39: 662163 | X39: 270682 | Y39: 306546 | Z39: 577228
B41: Biological Sciences | C41: 13.7 | D41: 18.7 | E41: 18.8 | F41: 18.4 | G41: 15.5 | H41: 85 | I41: 19460 | J41: 15.5 | K41: 20.3 | L41: 19.6 | M41: 17.5 | N41: 14.2 | O41: 87.1 | P41: 28138 | Q41: 14.7 | R41: 19.6 | S41: 19.3 | T41: 17.9 | U41: 14.7 | V41: 86.2 | W41: 47598
B42: Chemistry | C42: 21.2 | D42: 20.8 | E42: 17.8 | F42: 14.8 | G42: 12.1 | H42: 86.7 | I42: 20281 | J42: 21.6 | K42: 21.7 | L42: 19 | M42: 14.8 | N42: 11.7 | O42: 88.8 | P42: 16148 | Q42: 21.4 | R42: 21.2 | S42: 18.4 | T42: 14.8 | U42: 11.9 | V42: 87.6 | W42: 36429
B43: Physics | C43: 21.4 | D43: 21 | E43: 18.1 | F43: 15.8 | G43: 11.7 | H43: 88.1 | I43: 22630 | J43: 22.2 | K43: 23.8 | L43: 18.7 | M43: 14.9 | N43: 10.2 | O43: 89.8 | P43: 6147 | Q43: 21.6 | R43: 21.6 | S43: 18.3 | T43: 15.6 | U43: 11.4 | V43: 88.4 | W43: 28777
B44: Other Science | C44: 10.9 | D44: 13.8 | E44: 19.7 | F44: 22.5 | G44: 16.7 | H44: 83.6 | I44: 2680 | J44: 10.7 | K44: 16.8 | L44: 19.3 | M44: 22.9 | N44: 16.3 | O44: 86.1 | P44: 1621 | Q44: 10.8 | R44: 15 | S44: 19.6 | T44: 22.6 | U44: 16.6 | V44: 84.6 | W44: 4301
B45: Mathematics | C45: 25.8 | D45: 19.2 | E45: 16.7 | F45: 14.6 | G45: 11 | H45: 87.3 | I45: 36014 | J45: 25.3 | K45: 21.3 | L45: 18.4 | M45: 14.8 | N45: 10.3 | O45: 90 | P45: 20036 | Q45: 25.6 | R45: 19.9 | S45: 17.4 | T45: 14.6 | U45: 10.8 | V45: 88.3 | W45: 56050
B46: Further Mathematics | C46: 47.8 | D46: 20.7 | E46: 13.4 | F46: 8.3 | G46: 5.5 | H46: 95.7 | I46: 3756 | J46: 45.6 | K46: 21.5 | L46: 16.2 | M46: 8.7 | N46: 4.9 | O46: 96.9 | P46: 1243 | Q46: 47.2 | R46: 20.9 | S46: 14.1 | T46: 8.4 | U46: 5.4 | V46: 96 | W46: 4999
B47: Design and Technology | C47: 12.4 | D47: 14.5 | E47: 23.2 | F47: 23 | G47: 15.4 | H47: 88.6 | I47: 7147 | J47: 13 | K47: 17.3 | L47: 28 | M47: 21.3 | N47: 12.1 | O47: 91.7 | P47: 2346 | Q47: 12.6 | R47: 15.2 | S47: 24.4 | T47: 22.6 | U47: 14.6 | V47: 89.3 | W47: 9493
B48: Computer Studies | C48: 10.1 | D48: 12.5 | E48: 17.7 | F48: 19.5 | G48: 16.9 | H48: 76.8 | I48: 8575 | J48: 6.1 | K48: 11.9 | L48: 15.9 | M48: 21.3 | N48: 19.4 | O48: 74.5 | P48: 1543 | Q48: 9.5 | R48: 12.4 | S48: 17.4 | T48: 19.8 | U48: 17.3 | V48: 76.4 | W48: 10118
B49: ICT | C49: 0 | D49: 0 | E49: 0 | F49: 0 | G49: 0 | H49: 0 | I49: 0 | J49: 0 | K49: 0 | L49: 0 | M49: 0 | N49: 0 | O49: 0 | P49: 0 | Q49: 0 | R49: 0 | S49: 0 | T49: 0 | U49: 0 | V49: 0 | W49: 0
B50: Home Economics | C50: x | D50: 5.7 | E50: 14.9 | F50: 20.7 | G50: 20.7 | H50: 64.4 | I50: 87 | J50: 11.3 | K50: 15.6 | L50: 20.1 | M50: 22.3 | N50: 15.8 | O50: 85.1 | P50: 1724 | Q50: 10.9 | R50: 15.1 | S50: 19.9 | T50: 22.2 | U50: 16 | V50: 84.1 | W50: 1811
B51: Accounting and Finance | C51: 9.4 | D51: 13.7 | E51: 12.2 | F51: 13 | G51: 14.9 | H51: 63.2 | I51: 1184 | J51: 8.7 | K51: 14.7 | L51: 15.4 | M51: 13.7 | N51: 12.9 | O51: 65.4 | P51: 739 | Q51: 9.1 | R51: 14.1 | S51: 13.5 | T51: 13.3 | U51: 14.1 | V51: 64 | W51: 1923
B52: Business Studies | C52: 7 | D52: 19.1 | E52: 23.7 | F52: 21.5 | G52: 14.8 | H52: 86.2 | I52: 14852 | J52: 8.1 | K52: 20.4 | L52: 23.8 | M52: 20.9 | N52: 13.5 | O52: 86.6 | P52: 12461 | Q52: 7.5 | R52: 19.7 | S52: 23.7 | T52: 21.2 | U52: 14.2 | V52: 86.4 | W52: 27313
B53: Economics | C53: 16.2 | D53: 17.2 | E53: 18.7 | F53: 18.2 | G53: 13.7 | H53: 83.9 | I53: 12672 | J53: 15.9 | K53: 17.1 | L53: 18.4 | M53: 17.7 | N53: 14.2 | O53: 83.4 | P53: 6712 | Q53: 16.1 | R53: 17.1 | S53: 18.6 | T53: 18 | U53: 13.9 | V53: 83.7 | W53: 19384
B54: Geography | C54: 10.2 | D54: 19.9 | E54: 23.2 | F54: 20.4 | G54: 14.9 | H54: 88.6 | I54: 20864 | J54: 14 | K54: 23.7 | L54: 23.6 | M54: 17.8 | N54: 11.8 | O54: 90.9 | P54: 17115 | Q54: 11.9 | R54: 21.6 | S54: 23.4 | T54: 19.3 | U54: 13.5 | V54: 89.6 | W54: 37979
B55: Government and Politics | C55: 15.5 | D55: 24.4 | E55: 23.2 | F55: 17.4 | G55: 10.4 | H55: 90.9 | I55: 4872 | J55: 14.9 | K55: 25.1 | L55: 21.4 | M55: 18.6 | N55: 10.1 | O55: 90.1 | P55: 3460 | Q55: 15.3 | R55: 24.7 | S55: 22.4 | T55: 17.9 | U55: 10.3 | V55: 90.6 | W55: 8332
B56: History | C56: 15.6 | D56: 19.5 | E56: 21.1 | F56: 18.2 | G56: 12.9 | H56: 87.4 | I56: 16266 | J56: 14.3 | K56: 18.5 | L56: 20.5 | M56: 19 | N56: 13.6 | O56: 85.9 | P56: 19812 | Q56: 14.9 | R56: 19 | S56: 20.8 | T56: 18.6 | U56: 13.3 | V56: 86.6 | W56: 36078
B57: Law | C57: 11.6 | D57: 11.3 | E57: 17.2 | F57: 16 | G57: 14.3 | H57: 70.4 | I57: 3000 | J57: 11.3 | K57: 13 | L57: 17 | M57: 17.3 | N57: 15.6 | O57: 74.2 | P57: 4253 | Q57: 11.4 | R57: 12.3 | S57: 17.1 | T57: 16.8 | U57: 15.1 | V57: 72.6 | W57: 7253
B58: Psychology | C58: 7.5 | D58: 12.9 | E58: 18 | F58: 17.6 | G58: 16.5 | H58: 72.4 | I58: 5470 | J58: 12.3 | K58: 19.6 | L58: 19.8 | M58: 18.3 | N58: 13.2 | O58: 83.1 | P58: 16792 | Q58: 11.1 | R58: 18 | S58: 19.4 | T58: 18.1 | U58: 14 | V58: 80.5 | W58: 22262
B59: Sociology | C59: 9.2 | D59: 14.6 | E59: 15.1 | F59: 16.6 | G59: 15.4 | H59: 70.9 | I59: 5361 | J59: 12.7 | K59: 17.9 | L59: 16.8 | M59: 16.4 | N59: 14.5 | O59: 78.2 | P59: 16937 | Q59: 11.9 | R59: 17.1 | S59: 16.4 | T59: 16.4 | U59: 14.7 | V59: 76.4 | W59: 22298
B60: Other social studies | C60: 13.1 | D60: 18.1 | E60: 18.1 | F60: 14.7 | G60: 13.7 | H60: 77.6 | I60: 796 | J60: 15.7 | K60: 14.8 | L60: 17.9 | M60: 16.7 | N60: 13.6 | O60: 78.6 | P60: 861 | Q60: 14.4 | R60: 16.4 | S60: 18 | T60: 15.8 | U60: 13.6 | V60: 78.2 | W60: 1657
B61: Art and Design | C61: 17.6 | D61: 18 | E61: 22.4 | F61: 20.4 | G61: 12 | H61: 90.5 | I61: 12518 | J61: 21.1 | K61: 21 | L61: 24.1 | M61: 18.3 | N61: 9.5 | O61: 93.9 | P61: 19224 | Q61: 19.7 | R61: 19.8 | S61: 23.4 | T61: 19.1 | U61: 10.5 | V61: 92.6 | W61: 31742
B62: Drama | C62: 10 | D62: 13.5 | E62: 19.1 | F62: 20.8 | G62: 17.2 | H62: 80.6 | I62: 2332 | J62: 12.7 | K62: 15.8 | L62: 21.6 | M62: 20.9 | N62: 16.3 | O62: 87.3 | P62: 6422 | Q62: 12 | R62: 15.2 | S62: 20.9 | T62: 20.9 | U62: 16.6 | V62: 85.5 | W62: 8754
B63: English | C63: 15.1 | D63: 18.9 | E63: 22.4 | F63: 21 | G63: 13.7 | H63: 91.1 | I63: 24948 | J63: 14.3 | K63: 19.1 | L63: 23.2 | M63: 21.8 | N63: 14.2 | O63: 92.6 | P63: 55711 | Q63: 14.6 | R63: 19 | S63: 23 | T63: 21.5 | U63: 14 | V63: 92.1 | W63: 80659
B64: Media/Film/TV Studies | C64: 9.4 | D64: 15.8 | E64: 28.5 | F64: 24.5 | G64: 13.8 | H64: 92 | I64: 3927 | J64: 11.2 | K64: 18.3 | L64: 28.8 | M64: 24.8 | N64: 11.1 | O64: 94.3 | P64: 5027 | Q64: 10.4 | R64: 17.2 | S64: 28.7 | T64: 24.7 | U64: 12.3 | V64: 93.3 | W64: 8954
B65: Other Communication Studies | C65: 7.8 | D65: 15.3 | E65: 20.6 | F65: 19.5 | G65: 13.9 | H65: 77.1 | I65: 2553 | J65: 10.7 | K65: 21.4 | L65: 26.7 | M65: 18.6 | N65: 10.6 | O65: 88.1 | P65: 5020 | Q65: 9.7 | R65: 19.4 | S65: 24.6 | T65: 18.9 | U65: 11.7 | V65: 84.4 | W65: 7573
B66: French | C66: 21.5 | D66: 20.1 | E66: 19.3 | F66: 16.8 | G66: 12 | H66: 89.8 | I66: 6413 | J66: 19.6 | K66: 20.1 | L66: 20.1 | M66: 17 | N66: 12.6 | O66: 89.4 | P66: 14951 | Q66: 20.2 | R66: 20.1 | S66: 19.8 | T66: 16.9 | U66: 12.4 | V66: 89.5 | W66: 21364
B67: German | C67: 27 | D67: 18.3 | E67: 17.4 | F67: 15.8 | G67: 11.6 | H67: 90.1 | I67: 2845 | J67: 21.7 | K67: 19.3 | L67: 18.8 | M67: 17.5 | N67: 13.1 | O67: 90.4 | P67: 6139 | Q67: 23.4 | R67: 18.9 | S67: 18.4 | T67: 17 | U67: 12.6 | V67: 90.3 | W67: 8984
B68: Spanish | C68: 27.6 | D68: 24.1 | E68: 18.2 | F68: 14.5 | G68: 8.4 | H68: 92.8 | I68: 1268 | J68: 22.4 | K68: 19.9 | L68: 19.4 | M68: 17.4 | N68: 10.7 | O68: 89.7 | P68: 3060 | Q68: 23.9 | R68: 21.2 | S68: 19 | T68: 16.5 | U68: 10 | V68: 90.6 | W68: 4328
B69: Other modern languages | C69: 29.2 | D69: 22.7 | E69: 16.8 | F69: 11 | G69: 6.9 | H69: 86.6 | I69: 1448 | J69: 29.3 | K69: 25.1 | L69: 17.5 | M69: 12.3 | N69: 6.5 | O69: 90.9 | P69: 2025 | Q69: 29.3 | R69: 24.1 | S69: 17.2 | T69: 11.8 | U69: 6.7 | V69: 89.1 | W69: 3473
B70: Classical Studies | C70: 26.4 | D70: 20.6 | E70: 18.8 | F70: 16.5 | G70: 9.8 | H70: 92.1 | I70: 2549 | J70: 24.9 | K70: 23.2 | L70: 22.8 | M70: 14.5 | N70: 8 | O70: 93.4 | P70: 3546 | Q70: 25.5 | R70: 22.1 | S70: 21.1 | T70: 15.4 | U70: 8.7 | V70: 92.8 | W70: 6095
B71: Religious Studies | C71: 18 | D71: 18.8 | E71: 23.2 | F71: 19.3 | G71: 10.8 | H71: 90.1 | I71: 1846 | J71: 13.8 | K71: 18.1 | L71: 24.8 | M71: 21.4 | N71: 12.8 | O71: 90.8 | P71: 5110 | Q71: 14.9 | R71: 18.3 | S71: 24.4 | T71: 20.9 | U71: 12.2 | V71: 90.7 | W71: 6956
B72: Music | C72: 20.9 | D72: 19.7 | E72: 21.5 | F72: 17.9 | G72: 11.1 | H72: 91.2 | I72: 2333 | J72: 18.9 | K72: 21.1 | L72: 24.2 | M72: 19.1 | N72: 10.3 | O72: 93.7 | P72: 3455 | Q72: 19.7 | R72: 20.5 | S72: 23.1 | T72: 18.6 | U72: 10.7 | V72: 92.7 | W72: 5788
B73: Physical Education | C73: 5.6 | D73: 12.3 | E73: 21.7 | F73: 27.3 | G73: 20.6 | H73: 87.5 | I73: 7248 | J73: 12.5 | K73: 17.1 | L73: 22.3 | M73: 23.2 | N73: 14.7 | O73: 89.8 | P73: 4448 | Q73: 8.2 | R73: 14.2 | S73: 21.9 | T73: 25.7 | U73: 18.4 | V73: 88.4 | W73: 11696
B74: General Studies | C74: 15.2 | D74: 17.5 | E74: 19.1 | F74: 18.7 | G74: 14.6 | H74: 85.1 | I74: 35055 | J74: 12 | K74: 15.2 | L74: 18.2 | M74: 20 | N74: 16.6 | O74: 82 | P74: 36687 | Q74: 13.6 | R74: 16.3 | S74: 18.6 | T74: 19.4 | U74: 15.6 | V74: 83.5 | W74: 71742
B75: All subjects | C75: 16.5 | D75: 18.4 | E75: 19.8 | F75: 18.3 | G75: 13.5 | H75: 86.4 | I75: 313250 | J75: 15.8 | K75: 19.4 | L75: 20.9 | M75: 18.7 | N75: 13.2 | O75: 87.9 | P75: 348913 | Q75: 16.1 | R75: 18.9 | S75: 20.3 | T75: 18.5 | U75: 13.3 | V75: 87.2 | W75: 662163
B77: Biological Sciences | C77: =ROUND(C41,1) -> 13.7 | D77: =ROUND(D41,1) -> 18.7 | E77: 18.8 | F77: 18.4 | G77: 15.5 | H77: 85 | I77: =ROUND(I41,0) -> 19460 | J77: 15.5 | K77: 20.3 | L77: 19.6 | M77: 17.5 | N77: 14.2 | O77: 87.1 | P77: =ROUND(P41,0) -> 28138 | Q77: 14.7 | R77: 19.6 | S77: 19.3 | T77: 17.9 | U77: 14.7 | V77: 86.2 | W77: =ROUND(W41,0) -> 47598
B78: Chemistry | C78: =ROUND(C42,1) -> 21.2 | D78: 20.8 | E78: 17.8 | F78: 14.8 | G78: 12.1 | H78: 86.7 | I78: =ROUND(I42,0) -> 20281 | J78: 21.6 | K78: 21.7 | L78: 19 | M78: 14.8 | N78: 11.7 | O78: 88.8 | P78: =ROUND(P42,0) -> 16148 | Q78: 21.4 | R78: 21.2 | S78: 18.4 | T78: 14.8 | U78: 11.9 | V78: 87.6 | W78: =ROUND(W42,0) -> 36429
B79: Physics | C79: 21.4 | D79: 21 | E79: 18.1 | F79: 15.8 | G79: 11.7 | H79: 88.1 | I79: 22630 | J79: 22.2 | K79: 23.8 | L79: 18.7 | M79: 14.9 | N79: 10.2 | O79: 89.8 | P79: 6147 | Q79: 21.6 | R79: 21.6 | S79: 18.3 | T79: 15.6 | U79: 11.4 | V79: 88.4 | W79: 28777
B80: Other Science | C80: 10.9 | D80: 13.8 | E80: 19.7 | F80: 22.5 | G80: 16.7 | H80: 83.6 | I80: 2680 | J80: 10.7 | K80: 16.8 | L80: 19.3 | M80: 22.9 | N80: 16.3 | O80: 86.1 | P80: 1621 | Q80: 10.8 | R80: 15 | S80: 19.6 | T80: 22.6 | U80: 16.6 | V80: 84.6 | W80: 4301
B81: Mathematics | C81: 25.8 | D81: 19.2 | E81: 16.7 | F81: 14.6 | G81: 11 | H81: 87.3 | I81: 36014 | J81: 25.3 | K81: 21.3 | L81: 18.4 | M81: 14.8 | N81: 10.3 | O81: 90 | P81: 20036 | Q81: 25.6 | R81: 19.9 | S81: 17.4 | T81: 14.6 | U81: 10.8 | V81: 88.3 | W81: 56050
B82: Further Mathematics | C82: 47.8 | D82: 20.7 | E82: 13.4 | F82: 8.3 | G82: 5.5 | H82: 95.7 | I82: 3756 | J82: 45.6 | K82: 21.5 | L82: 16.2 | M82: 8.7 | N82: 4.9 | O82: 96.9 | P82: 1243 | Q82: 47.2 | R82: 20.9 | S82: 14.1 | T82: 8.4 | U82: 5.4 | V82: 96 | W82: 4999
B83: Design and Technology | C83: 12.4 | D83: 14.5 | E83: 23.2 | F83: 23 | G83: 15.4 | H83: 88.6 | I83: 7147 | J83: 13 | K83: 17.3 | L83: 28 | M83: 21.3 | N83: 12.1 | O83: 91.7 | P83: 2346 | Q83: 12.6 | R83: 15.2 | S83: 24.4 | T83: 22.6 | U83: 14.6 | V83: 89.3 | W83: 9493
B84: Computer Studies | C84: 10.1 | D84: 12.5 | E84: 17.7 | F84: 19.5 | G84: 16.9 | H84: 76.8 | I84: 8575 | J84: 6.1 | K84: 11.9 | L84: 15.9 | M84: 21.3 | N84: 19.4 | O84: 74.5 | P84: 1543 | Q84: 9.5 | R84: 12.4 | S84: 17.4 | T84: 19.8 | U84: 17.3 | V84: 76.4 | W84: 10118
B85: ICT | C85: 0 | D85: 0 | E85: 0 | F85: 0 | G85: 0 | H85: 0 | I85: 0 | J85: 0 | K85: 0 | L85: 0 | M85: 0 | N85: 0 | O85: 0 | P85: 0 | Q85: 0 | R85: 0 | S85: 0 | T85: 0 | U85: 0 | V85: 0 | W85: 0
B86: Home Economics | D86: 5.7 | E86: 14.9 | F86: 20.7 | G86: 20.7 | H86: 64.4 | I86: 87 | J86: 11.3 | K86: 15.6 | L86: 20.1 | M86: 22.3 | N86: 15.8 | O86: 85.1 | P86: 1724 | Q86: 10.9 | R86: 15.1 | S86: 19.9 | T86: 22.2 | U86: 16 | V86: 84.1 | W86: 1811
B87: Accounting and Finance | C87: 9.4 | D87: 13.7 | E87: 12.2 | F87: 13 | G87: 14.9 | H87: 63.2 | I87: 1184 | J87: 8.7 | K87: 14.7 | L87: 15.4 | M87: 13.7 | N87: 12.9 | O87: 65.4 | P87: 739 | Q87: 9.1 | R87: 14.1 | S87: 13.5 | T87: 13.3 | U87: 14.1 | V87: 64 | W87: 1923
B88: Business Studies | C88: 7 | D88: 19.1 | E88: 23.7 | F88: 21.5 | G88: 14.8 | H88: 86.2 | I88: 14852 | J88: 8.1 | K88: 20.4 | L88: 23.8 | M88: 20.9 | N88: 13.5 | O88: 86.6 | P88: 12461 | Q88: 7.5 | R88: 19.7 | S88: 23.7 | T88: 21.2 | U88: 14.2 | V88: 86.4 | W88: 27313
B89: Economics | C89: 16.2 | D89: 17.2 | E89: 18.7 | F89: 18.2 | G89: 13.7 | H89: 83.9 | I89: 12672 | J89: 15.9 | K89: 17.1 | L89: 18.4 | M89: 17.7 | N89: 14.2 | O89: 83.4 | P89: 6712 | Q89: 16.1 | R89: 17.1 | S89: 18.6 | T89: 18 | U89: 13.9 | V89: 83.7 | W89: 19384
B90: Geography | C90: 10.2 | D90: 19.9 | E90: 23.2 | F90: 20.4 | G90: 14.9 | H90: 88.6 | I90: 20864 | J90: 14 | K90: 23.7 | L90: 23.6 | M90: 17.8 | N90: 11.8 | O90: 90.9 | P90: 17115 | Q90: 11.9 | R90: 21.6 | S90: 23.4 | T90: 19.3 | U90: 13.5 | V90: 89.6 | W90: 37979
B91: Government and Politics | C91: 15.5 | D91: 24.4 | E91: 23.2 | F91: 17.4 | G91: 10.4 | H91: 90.9 | I91: 4872 | J91: 14.9 | K91: 25.1 | L91: 21.4 | M91: 18.6 | N91: 10.1 | O91: 90.1 | P91: 3460 | Q91: 15.3 | R91: 24.7 | S91: 22.4 | T91: 17.9 | U91: 10.3 | V91: 90.6 | W91: 8332
B92: History | C92: 15.6 | D92: 19.5 | E92: 21.1 | F92: 18.2 | G92: 12.9 | H92: 87.4 | I92: 16266 | J92: 14.3 | K92: 18.5 | L92: 20.5 | M92: 19 | N92: 13.6 | O92: 85.9 | P92: 19812 | Q92: 14.9 | R92: 19 | S92: 20.8 | T92: 18.6 | U92: 13.3 | V92: 86.6 | W92: 36078
B93: Law | C93: 11.6 | D93: 11.3 | E93: 17.2 | F93: 16 | G93: 14.3 | H93: 70.4 | I93: 3000 | J93: =ROUND(J57,1) -> 11.3 | K93: 13 | L93: 17 | M93: 17.3 | N93: 15.6 | O93: 74.2 | P93: 4253 | Q93: =ROUND(Q57,1) -> 11.4 | R93: 12.3 | S93: 17.1 | T93: 16.8 | U93: 15.1 | V93: 72.6 | W93: 7253
B94: Psychology | C94: =ROUND(C58,1) -> 7.5 | D94: 12.9 | E94: 18 | F94: 17.6 | G94: 16.5 | H94: 72.4 | I94: 5470 | J94: 12.3 | K94: 19.6 | L94: 19.8 | M94: 18.3 | N94: 13.2 | O94: 83.1 | P94: 16792 | Q94: 11.1 | R94: 18 | S94: 19.4 | T94: 18.1 | U94: 14 | V94: 80.5 | W94: 22262
B95: Sociology | C95: 9.2 | D95: 14.6 | E95: 15.1 | F95: 16.6 | G95: 15.4 | H95: 70.9 | I95: 5361 | J95: 12.7 | K95: 17.9 | L95: 16.8 | M95: 16.4 | N95: 14.5 | O95: 78.2 | P95: 16937 | Q95: 11.9 | R95: 17.1 | S95: 16.4 | T95: 16.4 | U95: 14.7 | V95: 76.4 | W95: 22298
B96: Other social studies | C96: 13.1 | D96: 18.1 | E96: 18.1 | F96: 14.7 | G96: 13.7 | H96: 77.6 | I96: 796 | J96: 15.7 | K96: 14.8 | L96: 17.9 | M96: 16.7 | N96: 13.6 | O96: 78.6 | P96: 861 | Q96: 14.4 | R96: 16.4 | S96: 18 | T96: 15.8 | U96: 13.6 | V96: 78.2 | W96: 1657
B97: Art and Design | C97: 17.6 | D97: 18 | E97: 22.4 | F97: 20.4 | G97: 12 | H97: 90.5 | I97: 12518 | J97: 21.1 | K97: 21 | L97: 24.1 | M97: 18.3 | N97: 9.5 | O97: 93.9 | P97: 19224 | Q97: 19.7 | R97: 19.8 | S97: 23.4 | T97: 19.1 | U97: 10.5 | V97: 92.6 | W97: 31742
B98: Drama | C98: 10 | D98: 13.5 | E98: 19.1 | F98: 20.8 | G98: 17.2 | H98: 80.6 | I98: 2332 | J98: 12.7 | K98: 15.8 | L98: 21.6 | M98: 20.9 | N98: 16.3 | O98: 87.3 | P98: 6422 | Q98: 12 | R98: 15.2 | S98: 20.9 | T98: 20.9 | U98: 16.6 | V98: 85.5 | W98: 8754
B99: English | C99: 15.1 | D99: 18.9 | E99: 22.4 | F99: 21 | G99: 13.7 | H99: 91.1 | I99: 24948 | J99: 14.3 | K99: 19.1 | L99: 23.2 | M99: 21.8 | N99: 14.2 | O99: 92.6 | P99: 55711 | Q99: 14.6 | R99: 19 | S99: 23 | T99: 21.5 | U99: 14 | V99: 92.1 | W99: 80659
B100: Media/Film/TV Studies | C100: 9.4 | D100: 15.8 | E100: 28.5 | F100: 24.5 | G100: 13.8 | H100: 92 | I100: 3927 | J100: 11.2 | K100: 18.3 | L100: 28.8 | M100: 24.8 | N100: 11.1 | O100: 94.3 | P100: 5027 | Q100: 10.4 | R100: 17.2 | S100: 28.7 | T100: 24.7 | U100: 12.3 | V100: 93.3 | W100: 8954
B101: Other Communication Studies | C101: 7.8 | D101: 15.3 | E101: 20.6 | F101: 19.5 | G101: 13.9 | H101: 77.1 | I101: 2553 | J101: 10.7 | K101: 21.4 | L101: 26.7 | M101: 18.6 | N101: 10.6 | O101: 88.1 | P101: 5020 | Q101: 9.7 | R101: 19.4 | S101: 24.6 | T101: 18.9 | U101: 11.7 | V101: 84.4 | W101: 7573
B102: French | C102: 21.5 | D102: 20.1 | E102: 19.3 | F102: 16.8 | G102: 12 | H102: 89.8 | I102: 6413 | J102: 19.6 | K102: 20.1 | L102: 20.1 | M102: 17 | N102: 12.6 | O102: 89.4 | P102: 14951 | Q102: 20.2 | R102: 20.1 | S102: 19.8 | T102: 16.9 | U102: 12.4 | V102: 89.5 | W102: 21364
B103: German | C103: 27 | D103: 18.3 | E103: 17.4 | F103: 15.8 | G103: 11.6 | H103: 90.1 | I103: 2845 | J103: 21.7 | K103: 19.3 | L103: 18.8 | M103: 17.5 | N103: 13.1 | O103: 90.4 | P103: 6139 | Q103: 23.4 | R103: 18.9 | S103: 18.4 | T103: 17 | U103: 12.6 | V103: 90.3 | W103: 8984
B104: Spanish | C104: 27.6 | D104: 24.1 | E104: 18.2 | F104: 14.5 | G104: 8.4 | H104: 92.8 | I104: 1268 | J104: 22.4 | K104: 19.9 | L104: 19.4 | M104: 17.4 | N104: 10.7 | O104: 89.7 | P104: 3060 | Q104: 23.9 | R104: 21.2 | S104: 19 | T104: 16.5 | U104: 10 | V104: 90.6 | W104: 4328
B105: Other modern languages | C105: 29.2 | D105: 22.7 | E105: 16.8 | F105: 11 | G105: 6.9 | H105: 86.6 | I105: 1448 | J105: 29.3 | K105: 25.1 | L105: 17.5 | M105: 12.3 | N105: 6.5 | O105: 90.9 | P105: 2025 | Q105: 29.3 | R105: 24.1 | S105: 17.2 | T105: 11.8 | U105: 6.7 | V105: 89.1 | W105: 3473
B106: Classical Studies | C106: 26.4 | D106: 20.6 | E106: 18.8 | F106: 16.5 | G106: 9.8 | H106: 92.1 | I106: 2549 | J106: 24.9 | K106: 23.2 | L106: 22.8 | M106: 14.5 | N106: 8 | O106: 93.4 | P106: 3546 | Q106: 25.5 | R106: 22.1 | S106: 21.1 | T106: 15.4 | U106: 8.7 | V106: 92.8 | W106: 6095
B107: Religious Studies | C107: 18 | D107: 18.8 | E107: 23.2 | F107: 19.3 | G107: 10.8 | H107: 90.1 | I107: 1846 | J107: 13.8 | K107: 18.1 | L107: 24.8 | M107: 21.4 | N107: 12.8 | O107: 90.8 | P107: 5110 | Q107: 14.9 | R107: 18.3 | S107: 24.4 | T107: 20.9 | U107: 12.2 | V107: 90.7 | W107: 6956
B108: Music | C108: 20.9 | D108: 19.7 | E108: 21.5 | F108: 17.9 | G108: 11.1 | H108: 91.2 | I108: 2333 | J108: 18.9 | K108: 21.1 | L108: 24.2 | M108: 19.1 | N108: 10.3 | O108: 93.7 | P108: 3455 | Q108: 19.7 | R108: 20.5 | S108: 23.1 | T108: 18.6 | U108: 10.7 | V108: 92.7 | W108: 5788
B109: Physical Education | C109: 5.6 | D109: 12.3 | E109: 21.7 | F109: 27.3 | G109: 20.6 | H109: 87.5 | I109: 7248 | J109: =ROUND(J73,1) -> 12.5 | K109: 17.1 | L109: 22.3 | M109: 23.2 | N109: 14.7 | O109: 89.8 | P109: 4448 | Q109: =ROUND(Q73,1) -> 8.2 | R109: 14.2 | S109: 21.9 | T109: 25.7 | U109: 18.4 | V109: 88.4 | W109: 11696
B110: General Studies | C110: =ROUND(C74,1) -> 15.2 | D110: 17.5 | E110: 19.1 | F110: 18.7 | G110: 14.6 | H110: 85.1 | I110: 35055 | J110: 12 | K110: 15.2 | L110: 18.2 | M110: 20 | N110: 16.6 | O110: 82 | P110: 36687 | Q110: 13.6 | R110: 16.3 | S110: 18.6 | T110: 19.4 | U110: 15.6 | V110: 83.5 | W110: 71742
B111: All subjects | C111: 16.5 | D111: 18.4 | E111: 19.8 | F111: 18.3 | G111: 13.5 | H111: 86.4 | I111: 313250 | J111: 15.8 | K111: 19.4 | L111: 20.9 | M111: 18.7 | N111: 13.2 | O111: 87.9 | P111: 348913 | Q111: 16.1 | R111: 18.9 | S111: 20.3 | T111: 18.5 | U111: 13.3 | V111: 87.2 | W111: 662163

Sheet 1998data_new (hidden)
C3: Males | I3: Females | O3: Total | U3: total entries | X3: total passes
C4: A | D4: B | E4: C | F4: D | G4: E | H4: other | I4: A | J4: B | K4: C | L4: D | M4: E | N4: other | O4: A | P4: B | Q4: C | R4: D | S4: E | T4: other | U4: Male | V4: Female | W4: Male and Female | X4: Male | Y4: Female | Z4: Male and Female
B5: Biological Sciences | C5: 2980 | D5: 3629 | E5: 3713 | F5: 3628 | G5: 3073 | H5: 2801 | I5: 4950 | J5: 5944 | K5: 5751 | L5: 5040 | M5: 4006 | N5: 3382 | O5: 7930 | P5: 9573 | Q5: 9464 | R5: 8668 | S5: 7079 | T5: 6183 | U5: 19824 | V5: 29073 | W5: 48897 | X5: 17023 | Y5: 25691 | Z5: 42714
B6: Chemistry | C6: 4731 | D6: 4038 | E6: 3787 | F6: 2948 | G6: 2294 | H6: 2334 | I6: 4037 | J6: 3745 | K6: 3150 | L6: 2535 | M6: 1802 | N6: 1702 | O6: 8768 | P6: 7783 | Q6: 6937 | R6: 5483 | S6: 4096 | T6: 4036 | U6: 20132 | V6: 16971 | W6: 37103 | X6: 17798 | Y6: 15269 | Z6: 33067
B7: Physics | C7: 5251 | D7: 4634 | E7: 4279 | F7: 3650 | G7: 2685 | H7: 2620 | I7: 1547 | J7: 1512 | K7: 1264 | L7: 959 | M7: 680 | N7: 591 | O7: 6798 | P7: 6146 | Q7: 5543 | R7: 4609 | S7: 3365 | T7: 3211 | U7: 23119 | V7: 6553 | W7: 29672 | X7: 20499 | Y7: 5962 | Z7: 26461
B8: Other Science | C8: 328 | D8: 395 | E8: 583 | F8: 640 | G8: 434 | H8: 315 | I8: 190 | J8: 266 | K8: 301 | L8: 372 | M8: 290 | N8: 211 | O8: 518 | P8: 661 | Q8: 884 | R8: 1012 | S8: 724 | T8: 526 | U8: 2695 | V8: 1630 | W8: 4325 | X8: 2380 | Y8: 1419 | Z8: 3799
B9: Mathematics | C9: 9535 | D9: 6480 | E9: 6003 | F9: 5288 | G9: 4255 | H9: 4375 | I9: 5604 | J9: 4375 | K9: 3695 | L9: 2915 | M9: 2084 | N9: 1980 | O9: 15139 | P9: 10855 | Q9: 9698 | R9: 8203 | S9: 6339 | T9: 6355 | U9: 35936 | V9: 20653 | W9: 56589 | X9: 31561 | Y9: 18673 | Z9: 50234
B10: Further Mathematics | C10: 1923 | D10: 791 | E10: 469 | F10: 351 | G10: 195 | H10: 160 | I10: 629 | J10: 273 | K10: 188 | L10: 135 | M10: 52 | N10: 45 | O10: 2552 | P10: 1064 | Q10: 657 | R10: 486 | S10: 247 | T10: 205 | U10: 3889 | V10: 1322 | W10: 5211 | X10: 3729 | Y10: 1277 | Z10: 5006
B11: Design and Technology | C11: 952 | D11: 1078 | E11: 1905 | F11: 1889 | G11: 1460 | H11: 1099 | I11: 366 | J11: 438 | K11: 656 | L11: 576 | M11: 339 | N11: 228 | O11: 1318 | P11: 1516 | Q11: 2561 | R11: 2465 | S11: 1799 | T11: 1327 | U11: 8383 | V11: 2603 | W11: 10986 | X11: 7284 | Y11: 2375 | Z11: 9659
B12: Computer Studies | C12: 912 | D12: 1362 | E12: 2114 | F12: 2032 | G12: 1751 | H12: 2082 | I12: 119 | J12: 281 | K12: 466 | L12: 491 | M12: 429 | N12: 490 | O12: 1031 | P12: 1643 | Q12: 2580 | R12: 2523 | S12: 2180 | T12: 2572 | U12: 10253 | V12: 2276 | W12: 12529 | X12: 8171 | Y12: 1786 | Z12: 9957
B13: ICT | C13: 0 | D13: 0 | E13: 0 | F13: 0 | G13: 0 | H13: 0 | I13: 0 | J13: 0 | K13: 0 | L13: 0 | M13: 0 | N13: 0 | O13: 0 | P13: 0 | Q13: 0 | R13: 0 | S13: 0 | T13: 0 | U13: 0 | V13: 0 | W13: 0 | X13: 0 | Y13: 0 | Z13: 0
B14: Home Economics | C14: 4 | D14: 7 | E14: 20 | F14: 20 | G14: 14 | H14: 24 | I14: 192 | J14: 251 | K14: 338 | L14: 355 | M14: 250 | N14: 281 | O14: 196 | P14: 258 | Q14: 358 | R14: 375 | S14: 264 | T14: 305 | U14: 89 | V14: 1667 | W14: 1756 | X14: 65 | Y14: 1386 | Z14: 1451
B15: Accounting and Finance | C15: 89 | D15: 162 | E15: 181 | F15: 161 | G15: 167 | H15: 389 | I15: 84 | J15: 116 | K15: 86 | L15: 92 | M15: 88 | N15: 254 | O15: 173 | P15: 278 | Q15: 267 | R15: 253 | S15: 255 | T15: 643 | U15: 1149 | V15: 720 | W15: 1869 | X15: 760 | Y15: 466 | Z15: 1226
B16: Business Studies | C16: 1285 | D16: 3124 | E16: 3958 | F16: 3416 | G16: 2246 | H16: 2033 | I16: 1177 | J16: 2826 | K16: 3297 | L16: 2740 | M16: 1776 | N16: 1768 | O16: 2462 | P16: 5950 | Q16: 7255 | R16: 6156 | S16: 4022 | T16: 3801 | U16: 16062 | V16: 13584 | W16: 29646 | X16: 14029 | Y16: 11816 | Z16: 25845
B17: Economics | C17: 2132 | D17: 2072 | E17: 2291 | F17: 2046 | G17: 1481 | H17: 1671 | I17: 1138 | J17: 1183 | K17: 1264 | L17: 1059 | M17: 839 | N17: 974 | O17: 3270 | P17: 3255 | Q17: 3555 | R17: 3105 | S17: 2320 | T17: 2645 | U17: 11693 | V17: 6457 | W17: 18150 | X17: 10022 | Y17: 5483 | Z17: 15505
B18: Geography | C18: 2760 | D18: 4389 | E18: 5002 | F18: 4159 | G18: 2743 | H18: 1950 | I18: 3202 | J18: 4162 | K18: 4037 | L18: 3084 | M18: 2009 | N18: 1335 | O18: 5962 | P18: 8551 | Q18: 9039 | R18: 7243 | S18: 4752 | T18: 3285 | U18: 21003 | V18: 17829 | W18: 38832 | X18: 19053 | Y18: 16494 | Z18: 35547
B19: Government and Politics | C19: 875 | D19: 1008 | E19: 986 | F19: 758 | G19: 420 | H19: 401 | I19: 641 | J19: 755 | K19: 736 | L19: 562 | M19: 323 | N19: 284 | O19: 1516 | P19: 1763 | Q19: 1722 | R19: 1320 | S19: 743 | T19: 685 | U19: 4448 | V19: 3301 | W19: 7749 | X19: 4047 | Y19: 3017 | Z19: 7064
B20: History | C20: 2486 | D20: 3086 | E20: 3311 | F20: 2816 | G20: 1906 | H20: 1878 | I20: 2922 | J20: 3611 | K20: 3905 | L20: 3649 | M20: 2458 | N20: 2409 | O20: 5408 | P20: 6697 | Q20: 7216 | R20: 6465 | S20: 4364 | T20: 4287 | U20: 15483 | V20: 18954 | W20: 34437 | X20: 13605 | Y20: 16545 | Z20: 30150
B21: Law | C21: 285 | D21: 334 | E21: 476 | F21: 524 | G21: 463 | H21: 849 | I21: 483 | J21: 525 | K21: 724 | L21: 730 | M21: 654 | N21: 1058 | O21: 768 | P21: 859 | Q21: 1200 | R21: 1254 | S21: 1117 | T21: 1907 | U21: 2931 | V21: 4174 | W21: 7105 | X21: 2082 | Y21: 3116 | Z21: 5198
B22: Psychology | C22: 430 | D22: 787 | E22: 1078 | F22: 1128 | G22: 972 | H22: 1279 | I22: 2410 | J22: 3488 | K22: 4012 | L22: 3434 | M22: 2522 | N22: 2339 | O22: 2840 | P22: 4275 | Q22: 5090 | R22: 4562 | S22: 3494 | T22: 3618 | U22: 5674 | V22: 18205 | W22: 23879 | X22: 4395 | Y22: 15866 | Z22: 20261
B23: Sociology | C23: 519 | D23: 847 | E23: 919 | F23: 782 | G23: 753 | H23: 1023 | I23: 2175 | J23: 3161 | K23: 3197 | L23: 2720 | M23: 2160 | N23: 2658 | O23: 2694 | P23: 4008 | Q23: 4116 | R23: 3502 | S23: 2913 | T23: 3681 | U23: 4843 | V23: 16071 | W23: 20914 | X23: 3820 | Y23: 13413 | Z23: 17233
B24: Other social studies | C24: 72 | D24: 92 | E24: 92 | F24: 120 | G24: 83 | H24: 156 | I24: 88 | J24: 104 | K24: 96 | L24: 116 | M24: 89 | N24: 149 | O24: 160 | P24: 196 | Q24: 188 | R24: 236 | S24: 172 | T24: 305 | U24: 615 | V24: 642 | W24: 1257 | X24: 459 | Y24: 493 | Z24: 952
B25: Art and Design | C25: 2487 | D25: 2356 | E25: 2927 | F25: 2436 | G25: 1573 | H25: 1159 | I25: 4986 | J25: 4308 | K25: 4961 | L25: 3581 | M25: 1862 | N25: 1179 | O25: 7473 | P25: 6664 | Q25: 7888 | R25: 6017 | S25: 3435 | T25: 2338 | U25: 12938 | V25: 20877 | W25: 33815 | X25: 11779 | Y25: 19698 | Z25: 31477
B26: Drama | C26: 272 | D26: 343 | E26: 586 | F26: 586 | G26: 399 | H26: 431 | I26: 945 | J26: 1218 | K26: 1874 | L26: 1594 | M26: 888 | N26: 724 | O26: 1217 | P26: 1561 | Q26: 2460 | R26: 2180 | S26: 1287 | T26: 1155 | U26: 2617 | V26: 7243 | W26: 9860 | X26: 2186 | Y26: 6519 | Z26: 8705
B27: English | C27: 3704 | D27: 4673 | E27: 5499 | F27: 4925 | G27: 3290 | H27: 2121 | I27: 8515 | J27: 10998 | K27: 13004 | L27: 12008 | M27: 7536 | N27: 4273 | O27: 12219 | P27: 15671 | Q27: 18503 | R27: 16933 | S27: 10826 | T27: 6394 | U27: 24212 | V27: 56334 | W27: 80546 | X27: 22091 | Y27: 52061 | Z27: 74152
B28: Media/Film/TV Studies | C28: 366 | D28: 635 | E28: 1273 | F28: 1212 | G28: 641 | H28: 352 | I28: 718 | J28: 1078 | K28: 1934 | L28: 1561 | M28: 703 | N28: 332 | O28: 1084 | P28: 1713 | Q28: 3207 | R28: 2773 | S28: 1344 | T28: 684 | U28: 4479 | V28: 6326 | W28: 10805 | X28: 4127 | Y28: 5994 | Z28: 10121
B29: Other Communication Studies | C29: 176 | D29: 403 | E29: 495 | F29: 526 | G29: 382 | H29: 591 | I29: 609 | J29: 1088 | K29: 1321 | L29: 983 | M29: 545 | N29: 585 | O29: 785 | P29: 1491 | Q29: 1816 | R29: 1509 | S29: 927 | T29: 1176 | U29: 2573 | V29: 5131 | W29: 7704 | X29: 1982 | Y29: 4546 | Z29: 6528
B30: French | C30: 1451 | D30: 1248 | E30: 1166 | F30: 1023 | G30: 608 | H30: 403 | I30: 2840 | J30: 2848 | K30: 2666 | L30: 2397 | M30: 1715 | N30: 1264 | O30: 4291 | P30: 4096 | Q30: 3832 | R30: 3420 | S30: 2323 | T30: 1667 | U30: 5899 | V30: 13730 | W30: 19629 | X30: 5496 | Y30: 12466 | Z30: 17962
B31: German | C31: 831 | D31: 525 | E31: 522 | F31: 339 | G31: 287 | H31: 160 | I31: 1544 | J31: 1195 | K31: 1235 | L31: 1041 | M31: 705 | N31: 519 | O31: 2375 | P31: 1720 | Q31: 1757 | R31: 1380 | S31: 992 | T31: 679 | U31: 2664 | V31: 6239 | W31: 8903 | X31: 2504 | Y31: 5720 | Z31: 8224
B32: Spanish | C32: 344 | D32: 313 | E32: 282 | F32: 159 | G32: 104 | H32: 83 | I32: 794 | J32: 693 | K32: 623 | L32: 480 | M32: 355 | N32: 269 | O32: 1138 | P32: 1006 | Q32: 905 | R32: 639 | S32: 459 | T32: 352 | U32: 1285 | V32: 3214 | W32: 4499 | X32: 1202 | Y32: 2945 | Z32: 4147
B33: Other modern languages | C33: 477 | D33: 402 | E33: 272 | F33: 182 | G33: 96 | H33: 134 | I33: 655 | J33: 494 | K33: 325 | L33: 215 | M33: 88 | N33: 117 | O33: 1132 | P33: 896 | Q33: 597 | R33: 397 | S33: 184 | T33: 251 | U33: 1563 | V33: 1894 | W33: 3457 | X33: 1429 | Y33: 1777 | Z33: 3206
B34: Classical Studies | C34: 654 | D34: 513 | E34: 450 | F34: 342 | G34: 224 | H34: 194 | I34: 917 | J34: 783 | K34: 698 | L34: 489 | M34: 271 | N34: 201 | O34: 1571 | P34: 1296 | Q34: 1148 | R34: 831 | S34: 495 | T34: 395 | U34: 2377 | V34: 3359 | W34: 5736 | X34: 2183 | Y34: 3158 | Z34: 5341
B35: Religious Studies | C35: 281 | D35: 356 | E35: 373 | F35: 318 | G35: 183 | H35: 191 | I35: 767 | J35: 1058 | K35: 1159 | L35: 1016 | M35: 578 | N35: 460 | O35: 1048 | P35: 1414 | Q35: 1532 | R35: 1334 | S35: 761 | T35: 651 | U35: 1702 | V35: 5038 | W35: 6740 | X35: 1511 | Y35: 4578 | Z35: 6089
B36: Music | C36: 473 | D36: 496 | E36: 529 | F36: 474 | G36: 258 | H36: 220 | I36: 725 | J36: 702 | K36: 845 | L36: 661 | M36: 401 | N36: 212 | O36: 1198 | P36: 1198 | Q36: 1374 | R36: 1135 | S36: 659 | T36: 432 | U36: 2450 | V36: 3546 | W36: 5996 | X36: 2230 | Y36: 3334 | Z36: 5564
B37: Physical Education | C37: 485 | D37: 899 | E37: 1844 | F37: 2235 | G37: 1799 | H37: 1053 | I37: 746 | J37: 849 | K37: 1221 | L37: 1193 | M37: 829 | N37: 527 | O37: 1231 | P37: 1748 | Q37: 3065 | R37: 3428 | S37: 2628 | T37: 1580 | U37: 8315 | V37: 5365 | W37: 13680 | X37: 7262 | Y37: 4838 | Z37: 12100
B38: General Studies | C38: 5250 | D38: 6456 | E38: 7523 | F38: 7299 | G38: 5647 | H38: 5773 | I38: 5097 | J38: 6651 | K38: 8451 | L38: 8046 | M38: 6252 | N38: 6361 | O38: 10347 | P38: 13107 | Q38: 15974 | R38: 15345 | S38: 11899 | T38: 12134 | U38: 37948 | V38: 40858 | W38: 78806 | X38: 32175 | Y38: 34497 | Z38: 66672
B39: All subjects | C39: 54800 | D39: 57933 | E39: 64908 | F39: 58412 | G39: 42886 | H39: 40304 | I39: 61812 | J39: 70979 | K39: 77480 | L39: 66829 | M39: 45578 | N39: 39161 | O39: 116612 | P39: 128912 | Q39: 142388 | R39: 125241 | S39: 88464 | T39: 79465 | U39: 319243 | V39: 361839 | W39: 681082 | X39: 278939 | Y39: 322678 | Z39: 601617
B41: Biological Sciences | C41: 15 | D41: 18.3 | E41: 18.7 | F41: 18.3 | G41: 15.5 | H41: 85.9 | I41: 19824 | J41: 17 | K41: 20.4 | L41: 19.8 | M41: 17.3 | N41: 13.8 | O41: 88.4 | P41: 29073 | Q41: 16.2 | R41: 19.6 | S41: 19.4 | T41: 17.7 | U41: 14.5 | V41: 87.4 | W41: 48897
B42: Chemistry | C42: 23.5 | D42: 20.1 | E42: 18.8 | F42: 14.6 | G42: 11.4 | H42: 88.4 | I42: 20132 | J42: 23.8 | K42: 22.1 | L42: 18.6 | M42: 14.9 | N42: 10.6 | O42: 90 | P42: 16971 | Q42: 23.6 | R42: 21 | S42: 18.7 | T42: 14.8 | U42: 11 | V42: 89.1 | W42: 37103
B43: Physics | C43: 22.7 | D43: 20 | E43: 18.5 | F43: 15.8 | G43: 11.6 | H43: 88.7 | I43: 23119 | J43: 23.6 | K43: 23.1 | L43: 19.3 | M43: 14.6 | N43: 10.4 | O43: 91 | P43: 6553 | Q43: 22.9 | R43: 20.7 | S43: 18.7 | T43: 15.5 | U43: 11.3 | V43: 89.2 | W43: 29672
B44: Other Science | C44: 12.2 | D44: 14.7 | E44: 21.6 | F44: 23.7 | G44: 16.1 | H44: 88.3 | I44: 2695 | J44: 11.7 | K44: 16.3 | L44: 18.5 | M44: 22.8 | N44: 17.8 | O44: 87.1 | P44: 1630 | Q44: 12 | R44: 15.3 | S44: 20.4 | T44: 23.4 | U44: 16.7 | V44: 87.8 | W44: 4325
B45: Mathematics | C45: 26.5 | D45: 18 | E45: 16.7 | F45: 14.7 | G45: 11.8 | H45: 87.8 | I45: 35936 | J45: 27.1 | K45: 21.2 | L45: 17.9 | M45: 14.1 | N45: 10.1 | O45: 90.4 | P45: 20653 | Q45: 26.8 | R45: 19.2 | S45: 17.1 | T45: 14.5 | U45: 11.2 | V45: 88.8 | W45: 56589
B46: Further Mathematics | C46: 49.4 | D46: 20.3 | E46: 12.1 | F46: 9 | G46: 5 | H46: 95.9 | I46: 3889 | J46: 47.6 | K46: 20.7 | L46: 14.2 | M46: 10.2 | N46: 3.9 | O46: 96.6 | P46: 1322 | Q46: 49 | R46: 20.4 | S46: 12.6 | T46: 9.3 | U46: 4.7 | V46: 96.1 | W46: 5211
B47: Design and Technology | C47: 11.4 | D47: 12.9 | E47: 22.7 | F47: 22.5 | G47: 17.4 | H47: 86.9 | I47: 8383 | J47: 14.1 | K47: 16.8 | L47: 25.2 | M47: 22.1 | N47: 13 | O47: 91.2 | P47: 2603 | Q47: 12 | R47: 13.8 | S47: 23.3 | T47: 22.4 | U47: 16.4 | V47: 87.9 | W47: 10986
B48: Computer Studies | C48: 8.9 | D48: 13.3 | E48: 20.6 | F48: 19.8 | G48: 17.1 | H48: 79.7 | I48: 10253 | J48: 5.2 | K48: 12.3 | L48: 20.5 | M48: 21.6 | N48: 18.8 | O48: 78.5 | P48: 2276 | Q48: 8.2 | R48: 13.1 | S48: 20.6 | T48: 20.1 | U48: 17.4 | V48: 79.5 | W48: 12529
B49: ICT | C49: 0 | D49: 0 | E49: 0 | F49: 0 | G49: 0 | H49: 0 | I49: 0 | J49: 0 | K49: 0 | L49: 0 | M49: 0 | N49: 0 | O49: 0 | P49: 0 | Q49: 0 | R49: 0 | S49: 0 | T49: 0 | U49: 0 | V49: 0 | W49: 0
B50: Home Economics | C50: 4.5 | D50: 7.9 | E50: 22.5 | F50: 22.5 | G50: 15.7 | H50: 73 | I50: 89 | J50: 11.5 | K50: 15.1 | L50: 20.3 | M50: 21.3 | N50: 15 | O50: 83.1 | P50: 1667 | Q50: 11.2 | R50: 14.7 | S50: 20.4 | T50: 21.4 | U50: 15 | V50: 82.6 | W50: 1756
B51: Accounting and Finance | C51: 7.7 | D51: 14.1 | E51: 15.8 | F51: 14 | G51: 14.5 | H51: 66.1 | I51: 1149 | J51: 11.7 | K51: 16.1 | L51: 11.9 | M51: 12.8 | N51: 12.2 | O51: 64.7 | P51: 720 | Q51: 9.3 | R51: 14.9 | S51: 14.3 | T51: 13.5 | U51: 13.6 | V51: 65.6 | W51: 1869
B52: Business Studies | C52: 8 | D52: 19.4 | E52: 24.6 | F52: 21.3 | G52: 14 | H52: 87.3 | I52: 16062 | J52: 8.7 | K52: 20.8 | L52: 24.3 | M52: 20.2 | N52: 13.1 | O52: 87 | P52: 13584 | Q52: 8.3 | R52: 20.1 | S52: 24.5 | T52: 20.8 | U52: 13.6 | V52: 87.2 | W52: 29646
B53: Economics | C53: 18.2 | D53: 17.7 | E53: 19.6 | F53: 17.5 | G53: 12.7 | H53: 85.7 | I53: 11693 | J53: 17.6 | K53: 18.3 | L53: 19.6 | M53: 16.4 | N53: 13 | O53: 84.9 | P53: 6457 | Q53: 18 | R53: 17.9 | S53: 19.6 | T53: 17.1 | U53: 12.8 | V53: 85.4 | W53: 18150
B54: Geography | C54: 13.1 | D54: 20.9 | E54: 23.8 | F54: 19.8 | G54: 13.1 | H54: 90.7 | I54: 21003 | J54: 18 | K54: 23.3 | L54: 22.6 | M54: 17.3 | N54: 11.3 | O54: 92.5 | P54: 17829 | Q54: 15.4 | R54: 22 | S54: 23.3 | T54: 18.7 | U54: 12.2 | V54: 91.5 | W54: 38832
B55: Government and Politics | C55: 19.7 | D55: 22.7 | E55: 22.2 | F55: 17 | G55: 9.4 | H55: 91 | I55: 4448 | J55: 19.4 | K55: 22.9 | L55: 22.3 | M55: 17 | N55: 9.8 | O55: 91.4 | P55: 3301 | Q55: 19.6 | R55: 22.8 | S55: 22.2 | T55: 17 | U55: 9.6 | V55: 91.2 | W55: 7749
B56: History | C56: 16.1 | D56: 19.9 | E56: 21.4 | F56: 18.2 | G56: 12.3 | H56: 87.9 | I56: 15483 | J56: 15.4 | K56: 19.1 | L56: 20.6 | M56: 19.3 | N56: 13 | O56: 87.3 | P56: 18954 | Q56: 15.7 | R56: 19.4 | S56: 21 | T56: 18.8 | U56: 12.7 | V56: 87.6 | W56: 34437
B57: Law | C57: 9.7 | D57: 11.4 | E57: 16.2 | F57: 17.9 | G57: 15.8 | H57: 71 | I57: 2931 | J57: 11.6 | K57: 12.6 | L57: 17.3 | M57: 17.5 | N57: 15.7 | O57: 74.7 | P57: 4174 | Q57: 10.8 | R57: 12.1 | S57: 16.9 | T57: 17.6 | U57: 15.7 | V57: 73.2 | W57: 7105
B58: Psychology | C58: 7.6 | D58: 13.9 | E58: 19 | F58: 19.9 | G58: 17.1 | H58: 77.5 | I58: 5674 | J58: 13.2 | K58: 19.2 | L58: 22 | M58: 18.9 | N58: 13.9 | O58: 87.2 | P58: 18205 | Q58: 11.9 | R58: 17.9 | S58: 21.3 | T58: 19.1 | U58: 14.6 | V58: 84.8 | W58: 23879
B59: Sociology | C59: 10.7 | D59: 17.5 | E59: 19 | F59: 16.1 | G59: 15.5 | H59: 78.9 | I59: 4843 | J59: 13.5 | K59: 19.7 | L59: 19.9 | M59: 16.9 | N59: 13.4 | O59: 83.5 | P59: 16071 | Q59: 12.9 | R59: 19.2 | S59: 19.7 | T59: 16.7 | U59: 13.9 | V59: 82.4 | W59: 20914
B60: Other social studies | C60: 11.7 | D60: 15 | E60: 15 | F60: 19.5 | G60: 13.5 | H60: 74.6 | I60: 615 | J60: 13.7 | K60: 16.2 | L60: 15 | M60: 18.1 | N60: 13.9 | O60: 76.8 | P60: 642 | Q60: 12.7 | R60: 15.6 | S60: 15 | T60: 18.8 | U60: 13.7 | V60: 75.7 | W60: 1257
B61: Art and Design | C61: 19.2 | D61: 18.2 | E61: 22.6 | F61: 18.8 | G61: 12.2 | H61: 91 | I61: 12938 | J61: 23.9 | K61: 20.6 | L61: 23.8 | M61: 17.2 | N61: 8.9 | O61: 94.4 | P61: 20877 | Q61: 22.1 | R61: 19.7 | S61: 23.3 | T61: 17.8 | U61: 10.2 | V61: 93.1 | W61: 33815
B62: Drama | C62: 10.4 | D62: 13.1 | E62: 22.4 | F62: 22.4 | G62: 15.2 | H62: 83.5 | I62: 2617 | J62: 13 | K62: 16.8 | L62: 25.9 | M62: 22 | N62: 12.3 | O62: 90 | P62: 7243 | Q62: 12.3 | R62: 15.8 | S62: 24.9 | T62: 22.1 | U62: 13.1 | V62: 88.3 | W62: 9860
B63: English | C63: 15.3 | D63: 19.3 | E63: 22.7 | F63: 20.3 | G63: 13.6 | H63: 91.2 | I63: 24212 | J63: 15.1 | K63: 19.5 | L63: 23.1 | M63: 21.3 | N63: 13.4 | O63: 92.4 | P63: 56334 | Q63: 15.2 | R63: 19.5 | S63: 23 | T63: 21 | U63: 13.4 | V63: 92.1 | W63: 80546
B64: Media/Film/TV Studies | C64: 8.2 | D64: 14.2 | E64: 28.4 | F64: 27.1 | G64: 14.3 | H64: 92.1 | I64: 4479 | J64: 11.3 | K64: 17 | L64: 30.6 | M64: 24.7 | N64: 11.1 | O64: 94.8 | P64: 6326 | Q64: 10 | R64: 15.9 | S64: 29.7 | T64: 25.7 | U64: 12.4 | V64: 93.7 | W64: 10805
B65: Other Communication Studies | C65: 6.8 | D65: 15.7 | E65: 19.2 | F65: 20.4 | G65: 14.8 | H65: 77 | I65: 2573 | J65: 11.9 | K65: 21.2 | L65: 25.7 | M65: 19.2 | N65: 10.6 | O65: 88.6 | P65: 5131 | Q65: 10.2 | R65: 19.4 | S65: 23.6 | T65: 19.6 | U65: 12 | V65: 84.7 | W65: 7704
B66: French | C66: 24.6 | D66: 21.2 | E66: 19.8 | F66: 17.3 | G66: 10.3 | H66: 93.2 | I66: 5899 | J66: 20.7 | K66: 20.7 | L66: 19.4 | M66: 17.5 | N66: 12.5 | O66: 90.8 | P66: 13730 | Q66: 21.9 | R66: 20.9 | S66: 19.5 | T66: 17.4 | U66: 11.8 | V66: 91.5 | W66: 19629
B67: German | C67: 31.2 | D67: 19.7 | E67: 19.6 | F67: 12.7 | G67: 10.8 | H67: 94 | I67: 2664 | J67: 24.7 | K67: 19.2 | L67: 19.8 | M67: 16.7 | N67: 11.3 | O67: 91.7 | P67: 6239 | Q67: 26.7 | R67: 19.3 | S67: 19.7 | T67: 15.5 | U67: 11.1 | V67: 92.4 | W67: 8903
B68: Spanish | C68: 26.8 | D68: 24.4 | E68: 21.9 | F68: 12.4 | G68: 8.1 | H68: 93.5 | I68: 1285 | J68: 24.7 | K68: 21.6 | L68: 19.4 | M68: 14.9 | N68: 11 | O68: 91.6 | P68: 3214 | Q68: 25.3 | R68: 22.4 | S68: 20.1 | T68: 14.2 | U68: 10.2 | V68: 92.2 | W68: 4499
B69: Other modern languages | C69: 30.5 | D69: 25.7 | E69: 17.4 | F69: 11.6 | G69: 6.1 | H69: 91.4 | I69: 1563 | J69: 34.6 | K69: 26.1 | L69: 17.2 | M69: 11.4 | N69: 4.6 | O69: 93.8 | P69: 1894 | Q69: 32.7 | R69: 25.9 | S69: 17.3 | T69: 11.5 | U69: 5.3 | V69: 92.7 | W69: 3457
B70: Classical Studies | C70: 27.5 | D70: 21.6 | E70: 18.9 | F70: 14.4 | G70: 9.4 | H70: 91.8 | I70: 2377 | J70: 27.3 | K70: 23.3 | L70: 20.8 | M70: 14.6 | N70: 8.1 | O70: 94 | P70: 3359 | Q70: 27.4 | R70: 22.6 | S70: 20 | T70: 14.5 | U70: 8.6 | V70: 93.1 | W70: 5736
B71: Religious Studies | C71: 16.5 | D71: 20.9 | E71: 21.9 | F71: 18.7 | G71: 10.8 | H71: 88.8 | I71: 1702 | J71: 15.2 | K71: 21 | L71: 23 | M71: 20.2 | N71: 11.5 | O71: 90.9 | P71: 5038 | Q71: 15.5 | R71: 21 | S71: 22.7 | T71: 19.8 | U71: 11.3 | V71: 90.3 | W71: 6740
B72: Music | C72: 19.3 | D72: 20.2 | E72: 21.6 | F72: 19.3 | G72: 10.5 | H72: 91 | I72: 2450 | J72: 20.4 | K72: 19.8 | L72: 23.8 | M72: 18.6 | N72: 11.3 | O72: 94 | P72: 3546 | Q72: 20 | R72: 20 | S72: 22.9 | T72: 18.9 | U72: 11 | V72: 92.8 | W72: 5996
B73: Physical Education | C73: 5.8 | D73: 10.8 | E73: 22.2 | F73: 26.9 | G73: 21.6 | H73: 87.3 | I73: 8315 | J73: 13.9 | K73: 15.8 | L73: 22.8 | M73: 22.2 | N73: 15.5 | O73: 90.2 | P73: 5365 | Q73: 9 | R73: 12.8 | S73: 22.4 | T73: 25.1 | U73: 19.2 | V73: 88.5 | W73: 13680
B74: General Studies | C74: 13.8 | D74: 17 | E74: 19.8 | F74: 19.2 | G74: 14.9 | H74: 84.8 | I74: 37948 | J74: 12.5 | K74: 16.3 | L74: 20.7 | M74: 19.7 | N74: 15.3 | O74: 84.4 | P74: 40858 | Q74: 13.1 | R74: 16.6 | S74: 20.3 | T74: 19.5 | U74: 15.1 | V74: 84.6 | W74: 78806
B75: All subjects | C75: 17.2 | D75: 18.1 | E75: 20.3 | F75: 18.3 | G75: 13.4 | H75: 87.4 | I75: 319243 | J75: 17.1 | K75: 19.6 | L75: 21.4 | M75: 18.5 | N75: 12.6 | O75: 89.2 | P75: 361839 | Q75: 17.1 | R75: 18.9 | S75: 20.9 | T75: 18.4 | U75: 13 | V75: 88.3 | W75: 681082
B77: Biological Sciences | C77: =ROUND(C41,1) -> 15 | D77: =ROUND(D41,1) -> 18.3 | E77: 18.7 | F77: 18.3 | G77: 15.5 | H77: 85.9 | I77: =ROUND(I41,0) -> 19824 | J77: 17 | K77: 20.4 | L77: 19.8 | M77: 17.3 | N77: 13.8 | O77: 88.4 | P77: =ROUND(P41,0) -> 29073 | Q77: 16.2 | R77: 19.6 | S77: 19.4 | T77: 17.7 | U77: 14.5 | V77: 87.4 | W77: =ROUND(W41,0) -> 48897
B78: Chemistry | C78: =ROUND(C42,1) -> 23.5 | D78: 20.1 | E78: 18.8 | F78: 14.6 | G78: 11.4 | H78: 88.4 | I78: =ROUND(I42,0) -> 20132 | J78: 23.8 | K78: 22.1 | L78: 18.6 | M78: 14.9 | N78: 10.6 | O78: 90 | P78: =ROUND(P42,0) -> 16971 | Q78: 23.6 | R78: 21 | S78: 18.7 | T78: 14.8 | U78: 11 | V78: 89.1 | W78: =ROUND(W42,0) -> 37103
B79: Physics | C79: 22.7 | D79: 20 | E79: 18.5 | F79: 15.8 | G79: 11.6 | H79: 88.7 | I79: 23119 | J79: 23.6 | K79: 23.1 | L79: 19.3 | M79: 14.6 | N79: 10.4 | O79: 91 | P79: 6553 | Q79: 22.9 | R79: 20.7 | S79: 18.7 | T79: 15.5 | U79: 11.3 | V79: 89.2 | W79: 29672
B80: Other Science | C80: 12.2 | D80: 14.7 | E80: 21.6 | F80: 23.7 | G80: 16.1 | H80: 88.3 | I80: 2695 | J80: 11.7 | K80: 16.3 | L80: 18.5 | M80: 22.8 | N80: 17.8 | O80: 87.1 | P80: 1630 | Q80: 12 | R80: 15.3 | S80: 20.4 | T80: 23.4 | U80: 16.7 | V80: 87.8 | W80: 4325
B81: Mathematics | C81: 26.5 | D81: 18 | E81: 16.7 | F81: 14.7 | G81: 11.8 | H81: 87.8 | I81: 35936 | J81: 27.1 | K81: 21.2 | L81: 17.9 | M81: 14.1 | N81: 10.1 | O81: 90.4 | P81: 20653 | Q81: 26.8 | R81: 19.2 | S81: 17.1 | T81: 14.5 | U81: 11.2 | V81: 88.8 | W81: 56589
B82: Further Mathematics | C82: 49.4 | D82: 20.3 | E82: 12.1 | F82: 9 | G82: 5 | H82: 95.9 | I82: 3889 | J82: 47.6 | K82: 20.7 | L82: 14.2 | M82: 10.2 | N82: 3.9 | O82: 96.6 | P82: 1322 | Q82: 49 | R82: 20.4 | S82: 12.6 | T82: 9.3 | U82: 4.7 | V82: 96.1 | W82: 5211
B83: Design and Technology | C83: 11.4 | D83: 12.9 | E83: 22.7 | F83: 22.5 | G83: 17.4 | H83: 86.9 | I83: 8383 | J83: 14.1 | K83: 16.8 | L83: 25.2 | M83: 22.1 | N83: 13 | O83: 91.2 | P83: 2603 | Q83: 12 | R83: 13.8 | S83: 23.3 | T83: 22.4 | U83: 16.4 | V83: 87.9 | W83: 10986
B84: Computer Studies | C84: 8.9 | D84: 13.3 | E84: 20.6 | F84: 19.8 | G84: 17.1 | H84: 79.7 | I84: 10253 | J84: 5.2 | K84: 12.3 | L84: 20.5 | M84: 21.6 | N84: 18.8 | O84: 78.5 | P84: 2276 | Q84: 8.2 | R84: 13.1 | S84: 20.6 | T84: 20.1 | U84: 17.4 | V84: 79.5 | W84: 12529
B85: ICT | C85: 0 | D85: 0 | E85: 0 | F85: 0 | G85: 0 | H85: 0 | I85: 0 | J85: 0 | K85: 0 | L85: 0 | M85: 0 | N85: 0 | O85: 0 | P85: 0 | Q85: 0 | R85: 0 | S85: 0 | T85: 0 | U85: 0 | V85: 0 | W85: 0
B86: Home Economics | C86: 4.5 | D86: 7.9 | E86: 22.5 | F86: 22.5 | G86: 15.7 | H86: 73 | I86: 89 | J86: 11.5 | K86: 15.1 | L86: 20.3 | M86: 21.3 | N86: 15 | O86: 83.1 | P86: 1667 | Q86: 11.2 | R86: 14.7 | S86: 20.4 | T86: 21.4 | U86: 15 | V86: 82.6 | W86: 1756
B87: Accounting and Finance | C87: 7.7 | D87: 14.1 | E87: 15.8 | F87: 14 | G87: 14.5 | H87: 66.1 | I87: 1149 | J87: 11.7 | K87: 16.1 | L87: 11.9 | M87: 12.8 | N87: 12.2 | O87: 64.7 | P87: 720 | Q87: 9.3 | R87: 14.9 | S87: 14.3 | T87: 13.5 | U87: 13.6 | V87: 65.6 | W87: 1869
B88: Business Studies | C88: 8 | D88: 19.4 | E88: 24.6 | F88: 21.3 | G88: 14 | H88: 87.3 | I88: 16062 | J88: 8.7 | K88: 20.8 | L88: 24.3 | M88: 20.2 | N88: 13.1 | O88: 87 | P88: 13584 | Q88: 8.3 | R88: 20.1 | S88: 24.5 | T88: 20.8 | U88: 13.6 | V88: 87.2 | W88: 29646
B89: Economics | C89: 18.2 | D89: 17.7 | E89: 19.6 | F89: 17.5 | G89: 12.7 | H89: 85.7 | I89: 11693 | J89: 17.6 | K89: 18.3 | L89: 19.6 | M89: 16.4 | N89: 13 | O89: 84.9 | P89: 6457 | Q89: 18 | R89: 17.9 | S89: 19.6 | T89: 17.1 | U89: 12.8 | V89: 85.4 | W89: 18150
B90: Geography | C90: 13.1 | D90: 20.9 | E90: 23.8 | F90: 19.8 | G90: 13.1 | H90: 90.7 | I90: 21003 | J90: 18 | K90: 23.3 | L90: 22.6 | M90: 17.3 | N90: 11.3 | O90: 92.5 | P90: 17829 | Q90: 15.4 | R90: 22 | S90: 23.3 | T90: 18.7 | U90: 12.2 | V90: 91.5 | W90: 38832
B91: Government and Politics | C91: 19.7 | D91: 22.7 | E91: 22.2 | F91: 17 | G91: 9.4 | H91: 91 | I91: 4448 | J91: 19.4 | K91: 22.9 | L91: 22.3 | M91: 17 | N91: 9.8 | O91: 91.4 | P91: 3301 | Q91: 19.6 | R91: 22.8 | S91: 22.2 | T91: 17 | U91: 9.6 | V91: 91.2 | W91: 7749
B92: History | C92: 16.1 | D92: 19.9 | E92: 21.4 | F92: 18.2 | G92: 12.3 | H92: 87.9 | I92: 15483 | J92: 15.4 | K92: 19.1 | L92: 20.6 | M92: 19.3 | N92: 13 | O92: 87.3 | P92: 18954 | Q92: 15.7 | R92: 19.4 | S92: 21 | T92: 18.8 | U92: 12.7 | V92: 87.6 | W92: 34437
B93: Law | C93: 9.7 | D93: 11.4 | E93: 16.2 | F93: 17.9 | G93: 15.8 | H93: 71 | I93: 2931 | J93: =ROUND(J57,1) -> 11.6 | K93: 12.6 | L93: 17.3 | M93: 17.5 | N93: 15.7 | O93: 74.7 | P93: 4174 | Q93: =ROUND(Q57,1) -> 10.8 | R93: 12.1 | S93: 16.9 | T93: 17.6 | U93: 15.7 | V93: 73.2 | W93: 7105
B94: Psychology | C94: =ROUND(C58,1) -> 7.6 | D94: 13.9 | E94: 19 | F94: 19.9 | G94: 17.1 | H94: 77.5 | I94: 5674 | J94: 13.2 | K94: 19.2 | L94: 22 | M94: 18.9 | N94: 13.9 | O94: 87.2 | P94: 18205 | Q94: 11.9 | R94: 17.9 | S94: 21.3 | T94: 19.1 | U94: 14.6 | V94: 84.8 | W94: 23879
B95: Sociology | C95: 10.7 | D95: 17.5 | E95: 19 | F95: 16.1 | G95: 15.5 | H95: 78.9 | I95: 4843 | J95: 13.5 | K95: 19.7 | L95: 19.9 | M95: 16.9 | N95: 13.4 | O95: 83.5 | P95: 16071 | Q95: 12.9 | R95: 19.2 | S95: 19.7 | T95: 16.7 | U95: 13.9 | V95: 82.4 | W95: 20914
B96: Other social studies | C96: 11.7 | D96: 15 | E96: 15 | F96: 19.5 | G96: 13.5 | H96: 74.6 | I96: 615 | J96: 13.7 | K96: 16.2 | L96: 15 | M96: 18.1 | N96: 13.9 | O96: 76.8 | P96: 642 | Q96: 12.7 | R96: 15.6 | S96: 15 | T96: 18.8 | U96: 13.7 | V96: 75.7 | W96: 1257
B97: Art and Design | C97: 19.2 | D97: 18.2 | E97: 22.6 | F97: 18.8 | G97: 12.2 | H97: 91 | I97: 12938 | J97: 23.9 | K97: 20.6 | L97: 23.8 | M97: 17.2 | N97: 8.9 | O97: 94.4 | P97: 20877 | Q97: 22.1 | R97: 19.7 | S97: 23.3 | T97: 17.8 | U97: 10.2 | V97: 93.1 | W97: 33815
B98: Drama | C98: 10.4 | D98: 13.1 | E98: 22.4 | F98: 22.4 | G98: 15.2 | H98: 83.5 | I98: 2617 | J98: 13 | K98: 16.8 | L98: 25.9 | M98: 22 | N98: 12.3 | O98: 90 | P98: 7243 | Q98: 12.3 | R98: 15.8 | S98: 24.9 | T98: 22.1 | U98: 13.1 | V98: 88.3 | W98: 9860
B99: English | C99: 15.3 | D99: 19.3 | E99: 22.7 | F99: 20.3 | G99: 13.6 | H99: 91.2 | I99: 24212 | J99: 15.1 | K99: 19.5 | L99: 23.1 | M99: 21.3 | N99: 13.4 | O99: 92.4 | P99: 56334 | Q99: 15.2 | R99: 19.5 | S99: 23 | T99: 21 | U99: 13.4 | V99: 92.1 | W99: 80546
B100: Media/Film/TV Studies | C100: 8.2 | D100: 14.2 | E100: 28.4 | F100: 27.1 | G100: 14.3 | H100: 92.1 | I100: 4479 | J100: 11.3 | K100: 17 | L100: 30.6 | M100: 24.7 | N100: 11.1 | O100: 94.8 | P100: 6326 | Q100: 10 | R100: 15.9 | S100: 29.7 | T100: 25.7 | U100: 12.4 | V100: 93.7 | W100: 10805
B101: Other Communication Studies | C101: 6.8 | D101: 15.7 | E101: 19.2 | F101: 20.4 | G101: 14.8 | H101: 77 | I101: 2573 | J101: 11.9 | K101: 21.2 | L101: 25.7 | M101: 19.2 | N101: 10.6 | O101: 88.6 | P101: 5131 | Q101: 10.2 | R101: 19.4 | S101: 23.6 | T101: 19.6 | U101: 12 | V101: 84.7 | W101: 7704
B102: French | C102: 24.6 | D102: 21.2 | E102: 19.8 | F102: 17.3 | G102: 10.3 | H102: 93.2 | I102: 5899 | J102: 20.7 | K102: 20.7 | L102: 19.4 | M102: 17.5 | N102: 12.5 | O102: 90.8 | P102: 13730 | Q102: 21.9 | R102: 20.9 | S102: 19.5 | T102: 17.4 | U102: 11.8 | V102: 91.5 | W102: 19629
B103: German | C103: 31.2 | D103: 19.7 | E103: 19.6 | F103: 12.7 | G103: 10.8 | H103: 94 | I103: 2664 | J103: 24.7 | K103: 19.2 | L103: 19.8 | M103: 16.7 | N103: 11.3 | O103: 91.7 | P103: 6239 | Q103: 26.7 | R103: 19.3 | S103: 19.7 | T103: 15.5 | U103: 11.1 | V103: 92.4 | W103: 8903
B104: Spanish | C104: 26.8 | D104: 24.4 | E104: 21.9 | F104: 12.4 | G104: 8.1 | H104: 93.5 | I104: 1285 | J104: 24.7 | K104: 21.6 | L104: 19.4 | M104: 14.9 | N104: 11 | O104: 91.6 | P104: 3214 | Q104: 25.3 | R104: 22.4 | S104: 20.1 | T104: 14.2 | U104: 10.2 | V104: 92.2 | W104: 4499
B105: Other modern languages | C105: 30.5 | D105: 25.7 | E105: 17.4 | F105: 11.6 | G105: 6.1 | H105: 91.4 | I105: 1563 | J105: 34.6 | K105: 26.1 | L105: 17.2 | M105: 11.4 | N105: 4.6 | O105: 93.8 | P105: 1894 | Q105: 32.7 | R105: 25.9 | S105: 17.3 | T105: 11.5 | U105: 5.3 | V105: 92.7 | W105: 3457
B106: Classical Studies | C106: 27.5 | D106: 21.6 | E106: 18.9 | F106: 14.4 | G106: 9.4 | H106: 91.8 | I106: 2377 | J106: 27.3 | K106: 23.3 | L106: 20.8 | M106: 14.6 | N106: 8.1 | O106: 94 | P106: 3359 | Q106: 27.4 | R106: 22.6 | S106: 20 | T106: 14.5 | U106: 8.6 | V106: 93.1 | W106: 5736
B107: Religious Studies | C107: 16.5 | D107: 20.9 | E107: 21.9 | F107: 18.7 | G107: 10.8 | H107: 88.8 | I107: 1702 | J107: 15.2 | K107: 21 | L107: 23 | M107: 20.2 | N107: 11.5 | O107: 90.9 | P107: 5038 | Q107: 15.5 | R107: 21 | S107: 22.7 | T107: 19.8 | U107: 11.3 | V107: 90.3 | W107: 6740
B108: Music | C108: 19.3 | D108: 20.2 | E108: 21.6 | F108: 19.3 | G108: 10.5 | H108: 91 | I108: 2450 | J108: 20.4 | K108: 19.8 | L108: 23.8 | M108: 18.6 | N108: 11.3 | O108: 94 | P108: 3546 | Q108: 20 | R108: 20 | S108: 22.9 | T108: 18.9 | U108: 11 | V108: 92.8 | W108: 5996
B109: Physical Education | C109: 5.8 | D109: 10.8 | E109: 22.2 | F109: 26.9 | G109: 21.6 | H109: 87.3 | I109: 8315 | J109: =ROUND(J73,1) -> 13.9 | K109: 15.8 | L109: 22.8 | M109: 22.2 | N109: 15.5 | O109: 90.2 | P109: 5365 | Q109: =ROUND(Q73,1) -> 9 | R109: 12.8 | S109: 22.4 | T109: 25.1 | U109: 19.2 | V109: 88.5 | W109: 13680
B110: General Studies | C110: =ROUND(C74,1) -> 13.8 | D110: 17 | E110: 19.8 | F110: 19.2 | G110: 14.9 | H110: 84.8 | I110: 37948 | J110: 12.5 | K110: 16.3 | L110: 20.7 | M110: 19.7 | N110: 15.3 | O110: 84.4 | P110: 40858 | Q110: 13.1 | R110: 16.6 | S110: 20.3 | T110: 19.5 | U110: 15.1 | V110: 84.6 | W110: 78806
B111: All subjects | C111: 17.2 | D111: 18.1 | E111: 20.3 | F111: 18.3 | G111: 13.4 | H111: 87.4 | I111: 319243 | J111: 17.1 | K111: 19.6 | L111: 21.4 | M111: 18.5 | N111: 12.6 | O111: 89.2 | P111: 361839 | Q111: 17.1 | R111: 18.9 | S111: 20.9 | T111: 18.4 | U111: 13 | V111: 88.3 | W111: 681082

Sheet 1999data_new (hidden)
C3: Males | I3: Females | O3: Total | U3: total entries | X3: total passes
C4: A | D4: B | E4: C | F4: D | G4: E | H4: other | I4: A | J4: B | K4: C | L4: D | M4: E | N4: other | O4: A | P4: B | Q4: C | R4: D | S4: E | T4: other | U4: Male | V4: Female | W4: Male and Female | X4: Male | Y4: Female | Z4: Male and Female
B5: Biological Sciences | C5: 3011 | D5: 3317 | E5: 3589 | F5: 3445 | G5: 2742 | H5: 2435 | I5: 5201 | J5: 5753 | K5: 5712 | L5: 4996 | M5: 3858 | N5: 3133 | O5: 8212 | P5: 9070 | Q5: 9301 | R5: 8441 | S5: 6600 | T5: 5568 | U5: 18539 | V5: 28653 | W5: 47192 | X5: 16104 | Y5: 25520 | Z5: 41624
B6: Chemistry | C6: 4634 | D6: 3937 | E6: 3497 | F6: 2869 | G6: 2080 | H6: 1941 | I6: 4249 | J6: 3802 | K6: 3259 | L6: 2470 | M6: 1679 | N6: 1414 | O6: 8883 | P6: 7739 | Q6: 6756 | R6: 5339 | S6: 3759 | T6: 3355 | U6: 18958 | V6: 16873 | W6: 35831 | X6: 17017 | Y6: 15459 | Z6: 32476
B7: Physics | C7: 5488 | D7: 4468 | E7: 4238 | F7: 3592 | G7: 2671 | H7: 2374 | I7: 1726 | J7: 1458 | K7: 1307 | L7: 960 | M7: 680 | N7: 590 | O7: 7214 | P7: 5926 | Q7: 5545 | R7: 4552 | S7: 3351 | T7: 2964 | U7: 22831 | V7: 6721 | W7: 29552 | X7: 20457 | Y7: 6131 | Z7: 26588
B8: Other Science | C8: 332 | D8: 417 | E8: 526 | F8: 576 | G8: 405 | H8: 361 | I8: 206 | J8: 206 | K8: 357 | L8: 332 | M8: 231 | N8: 175 | O8: 538 | P8: 623 | Q8: 883 | R8: 908 | S8: 636 | T8: 536 | U8: 2617 | V8: 1507 | W8: 4124 | X8: 2256 | Y8: 1332 | Z8: 3588
B9: Mathematics | C9: 9485 | D9: 6368 | E9: 5957 | F9: 5153 | G9: 4300 | H9: 4359 | I9: 5665 | J9: 4270 | K9: 3605 | L9: 2927 | M9: 2103 | N9: 1908 | O9: 15150 | P9: 10638 | Q9: 9562 | R9: 8080 | S9: 6403 | T9: 6267 | U9: 35622 | V9: 20478 | W9: 56100 | X9: 31263 | Y9: 18570 | Z9: 49833
B10: Further Mathematics | C10: 1826 | D10: 739 | E10: 508 | F10: 306 | G10: 193 | H10: 193 | I10: 709 | J10: 264 | K10: 169 | L10: 116 | M10: 76 | N10: 46 | O10: 2535 | P10: 1003 | Q10: 677 | R10: 422 | S10: 269 | T10: 239 | U10: 3765 | V10: 1380 | W10: 5145 | X10: 3572 | Y10: 1334 | Z10: 4906
B11: Design and Technology | C11: 1124 | D11: 1179 | E11: 2081 | F11: 2011 | G11: 1252 | H11: 850 | I11: 441 | J11: 504 | K11: 796 | L11: 630 | M11: 355 | N11: 189 | O11: 1565 | P11: 1683 | Q11: 2877 | R11: 2641 | S11: 1607 | T11: 1039 | U11: 8497 | V11: 2915 | W11: 11412 | X11: 7647 | Y11: 2726 | Z11: 10373
B12: Computer Studies | C12: 927 | D12: 1159 | E12: 1592 | F12: 1793 | G12: 1519 | H12: 1928 | I12: 87 | J12: 139 | K12: 265 | L12: 298 | M12: 318 | N12: 410 | O12: 1014 | P12: 1298 | Q12: 1857 | R12: 2091 | S12: 1837 | T12: 2338 | U12: 8918 | V12: 1517 | W12: 10435 | X12: 6990 | Y12: 1107 | Z12: 8097
B13: ICT | C13: 171 | D13: 378 | E13: 662 | F13: 790 | G13: 589 | H13: 280 | I13: 94 | J13: 245 | K13: 389 | L13: 365 | M13: 195 | N13: 106 | O13: 265 | P13: 623 | Q13: 1051 | R13: 1155 | S13: 784 | T13: 386 | U13: 2870 | V13: 1394 | W13: 4264 | X13: 2590 | Y13: 1288 | Z13: 3878
B14: Home Economics | C14: 10 | D14: 5 | E14: 16 | F14: 21 | G14: 23 | H14: 27 | I14: 181 | J14: 241 | K14: 323 | L14: 310 | M14: 249 | N14: 258 | O14: 191 | P14: 246 | Q14: 339 | R14: 331 | S14: 272 | T14: 285 | U14: 102 | V14: 1562 | W14: 1664 | X14: 75 | Y14: 1304 | Z14: 1379
B15: Accounting and Finance | C15: 100 | D15: 193 | E15: 178 | F15: 181 | G15: 152 | H15: 399 | I15: 87 | J15: 129 | K15: 143 | L15: 129 | M15: 104 | N15: 204 | O15: 187 | P15: 322 | Q15: 321 | R15: 310 | S15: 256 | T15: 603 | U15: 1203 | V15: 796 | W15: 1999 | X15: 804 | Y15: 592 | Z15: 1396
B16: Business Studies | C16: 1424 | D16: 3322 | E16: 4272 | F16: 3478 | G16: 2183 | H16: 2035 | I16: 1323 | J16: 2814 | K16: 3411 | L16: 2817 | M16: 1854 | N16: 1690 | O16: 2747 | P16: 6136 | Q16: 7683 | R16: 6295 | S16: 4037 | T16: 3725 | U16: 16714 | V16: 13909 | W16: 30623 | X16: 14679 | Y16: 12219 | Z16: 26898
B17: Economics | C17: 2322 | D17: 2208 | E17: 2319 | F17: 2071 | G17: 1498 | H17: 1366 | I17: 1189 | J17: 1158 | K17: 1314 | L17: 1137 | M17: 888 | N17: 829 | O17: 3511 | P17: 3366 | Q17: 3633 | R17: 3208 | S17: 2386 | T17: 2195 | U17: 11784 | V17: 6515 | W17: 18299 | X17: 10418 | Y17: 5686 | Z17: 16104
B18: Geography | C18: 2948 | D18: 4216 | E18: 4741 | F18: 4031 | G18: 2547 | H18: 1644 | I18: 3250 | J18: 3946 | K18: 3934 | L18: 2976 | M18: 1694 | N18: 1127 | O18: 6198 | P18: 8162 | Q18: 8675 | R18: 7007 | S18: 4241 | T18: 2771 | U18: 20127 | V18: 16927 | W18: 37054 | X18: 18483 | Y18: 15800 | Z18: 34283
B19: Government and Politics | C19: 942 | D19: 978 | E19: 952 | F19: 766 | G19: 415 | H19: 371 | I19: 681 | J19: 706 | K19: 715 | L19: 505 | M19: 315 | N19: 261 | O19: 1623 | P19: 1684 | Q19: 1667 | R19: 1271 | S19: 730 | T19: 632 | U19: 4424 | V19: 3183 | W19: 7607 | X19: 4053 | Y19: 2922 | Z19: 6975
B20: History | C20: 2680 | D20: 3096 | E20: 3334 | F20: 2726 | G20: 1640 | H20: 1711 | I20: 3045 | J20: 3563 | K20: 3944 | L20: 3311 | M20: 2187 | N20: 2169 | O20: 5725 | P20: 6659 | Q20: 7278 | R20: 6037 | S20: 3827 | T20: 3880 | U20: 15187 | V20: 18219 | W20: 33406 | X20: 13476 | Y20: 16050 | Z20: 29526
B21: Law | C21: 296 | D21: 372 | E21: 482 | F21: 548 | G21: 458 | H21: 744 | I21: 518 | J21: 638 | K21: 746 | L21: 800 | M21: 580 | N21: 1035 | O21: 814 | P21: 1010 | Q21: 1228 | R21: 1348 | S21: 1038 | T21: 1779 | U21: 2900 | V21: 4317 | W21: 7217 | X21: 2156 | Y21: 3282 | Z21: 5438
B22: Psychology | C22: 446 | D22: 847 | E22: 1114 | F22: 1039 | G22: 889 | H22: 1063 | I22: 2620 | J22: 3737 | K22: 4078 | L22: 3412 | M22: 2407 | N22: 2157 | O22: 3066 | P22: 4584 | Q22: 5192 | R22: 4451 | S22: 3296 | T22: 3220 | U22: 5398 | V22: 18411 | W22: 23809 | X22: 4335 | Y22: 16254 | Z22: 20589
B23: Sociology | C23: 526 | D23: 872 | E23: 896 | F23: 775 | G23: 729 | H23: 883 | I23: 2196 | J23: 3068 | K23: 3070 | L23: 2454 | M23: 2096 | N23: 2210 | O23: 2722 | P23: 3940 | Q23: 3966 | R23: 3229 | S23: 2825 | T23: 3093 | U23: 4681 | V23: 15094 | W23: 19775 | X23: 3798 | Y23: 12884 | Z23: 16682
B24: Other social studies | C24: 132 | D24: 230 | E24: 245 | F24: 201 | G24: 137 | H24: 168 | I24: 234 | J24: 487 | K24: 586 | L24: 402 | M24: 184 | N24: 190 | O24: 366 | P24: 717 | Q24: 831 | R24: 603 | S24: 321 | T24: 358 | U24: 1113 | V24: 2083 | W24: 3196 | X24: 945 | Y24: 1893 | Z24: 2838
B25: Art and Design | C25: 2556 | D25: 2412 | E25: 3010 | F25: 2499 | G25: 1545 | H25: 1160 | I25: 5342 | J25: 4587 | K25: 5111 | L25: 3589 | M25: 1713 | N25: 1116 | O25: 7898 | P25: 6999 | Q25: 8121 | R25: 6088 | S25: 3258 | T25: 2276 | U25: 13182 | V25: 21458 | W25: 34640 | X25: 12022 | Y25: 20342 | Z25: 32364
B26: Drama | C26: 356 | D26: 400 | E26: 752 | F26: 603 | G26: 439 | H26: 370 | I26: 1102 | J26: 1439 | K26: 2092 | L26: 1582 | M26: 917 | N26: 601 | O26: 1458 | P26: 1839 | Q26: 2844 | R26: 2185 | S26: 1356 | T26: 971 | U26: 2920 | V26: 7733 | W26: 10653 | X26: 2550 | Y26: 7132 | Z26: 9682
B27: English | C27: 3751 | D27: 4748 | E27: 5223 | F27: 4495 | G27: 2935 | H27: 1809 | I27: 8192 | J27: 10424 | K27: 13210 | L27: 11805 | M27: 7310 | N27: 3756 | O27: 11943 | P27: 15172 | Q27: 18433 | R27: 16300 | S27: 10245 | T27: 5565 | U27: 22961 | V27: 54697 | W27: 77658 | X27: 21152 | Y27: 50941 | Z27: 72093
B28: Media/Film/TV Studies | C28: 409 | D28: 707 | E28: 1324 | F28: 1216 | G28: 647 | H28: 353 | I28: 634 | J28: 1234 | K28: 2242 | L28: 1657 | M28: 649 | N28: 302 | O28: 1043 | P28: 1941 | Q28: 3566 | R28: 2873 | S28: 1296 | T28: 655 | U28: 4656 | V28: 6718 | W28: 11374 | X28: 4303 | Y28: 6416 | Z28: 10719
B29: Other Communication Studies | C29: 203 | D29: 382 | E29: 474 | F29: 513 | G29: 346 | H29: 476 | I29: 508 | J29: 1008 | K29: 1215 | L29: 991 | M29: 541 | N29: 512 | O29: 711 | P29: 1390 | Q29: 1689 | R29: 1504 | S29: 887 | T29: 988 | U29: 2394 | V29: 4775 | W29: 7169 | X29: 1918 | Y29: 4263 | Z29: 6181
B30: French | C30: 1341 | D30: 1086 | E30: 1074 | F30: 809 | G30: 546 | H30: 412 | I30: 2786 | J30: 2594 | K30: 2507 | L30: 2126 | M30: 1502 | N30: 991 | O30: 4127 | P30: 3680 | Q30: 3581 | R30: 2935 | S30: 2048 | T30: 1403 | U30: 5268 | V30: 12506 | W30: 17774 | X30: 4856 | Y30: 11515 | Z30: 16371
B31: German | C31: 878 | D31: 515 | E31: 457 | F31: 341 | G31: 250 | H31: 158 | I31: 1454 | J31: 1163 | K31: 1133 | L31: 959 | M31: 735 | N31: 484 | O31: 2332 | P31: 1678 | Q31: 1590 | R31: 1300 | S31: 985 | T31: 642 | U31: 2599 | V31: 5928 | W31: 8527 | X31: 2441 | Y31: 5444 | Z31: 7885
B32: Spanish | C32: 341 | D32: 326 | E32: 256 | F32: 184 | G32: 119 | H32: 79 | I32: 765 | J32: 777 | K32: 700 | L32: 566 | M32: 289 | N32: 238 | O32: 1106 | P32: 1103 | Q32: 956 | R32: 750 | S32: 408 | T32: 317 | U32: 1305 | V32: 3335 | W32: 4640 | X32: 1226 | Y32: 3097 | Z32: 4323
B33: Other modern languages | C33: 478 | D33: 370 | E33: 281 | F33: 173 | G33: 103 | H33: 128 | I33: 743 | J33: 495 | K33: 337 | L33: 187 | M33: 102 | N33: 102 | O33: 1221 | P33: 865 | Q33: 618 | R33: 360 | S33: 205 | T33: 230 | U33: 1533 | V33: 1966 | W33: 3499 | X33: 1405 | Y33: 1864 | Z33: 3269
B34: Classical Studies | C34: 581 | D34: 453 | E34: 386 | F34: 315 | G34: 200 | H34: 152 | I34: 862 | J34: 771 | K34: 683 | L34: 368 | M34: 213 | N34: 163 | O34: 1443 | P34: 1224 | Q34: 1069 | R34: 683 | S34: 413 | T34: 315 | U34: 2087 | V34: 3060 | W34: 5147 | X34: 1935 | Y34: 2897 | Z34: 4832
B35: Religious Studies | C35: 275 | D35: 255 | E35: 259 | F35: 201 | G35: 164 | H35: 167 | I35: 693 | J35: 694 | K35: 841 | L35: 674 | M35: 405 | N35: 416 | O35: 968 | P35: 949 | Q35: 1100 | R35: 875 | S35: 569 | T35: 583 | U35: 1321 | V35: 3723 | W35: 5044 | X35: 1154 | Y35: 3307 | Z35: 4461
B36: Music | C36: 529 | D36: 492 | E36: 659 | F36: 501 | G36: 298 | H36: 193 | I36: 760 | J36: 726 | K36: 874 | L36: 674 | M36: 317 | N36: 195 | O36: 1289 | P36: 1218 | Q36: 1533 | R36: 1175 | S36: 615 | T36: 388 | U36: 2672 | V36: 3546 | W36: 6218 | X36: 2479 | Y36: 3351 | Z36: 5830
B37: Physical Education | C37: 606 | D37: 1001 | E37: 1984 | F37: 2421 | G37: 1862 | H37: 995 | I37: 940 | J37: 971 | K37: 1416 | L37: 1264 | M37: 806 | N37: 474 | O37: 1546 | P37: 1972 | Q37: 3400 | R37: 3685 | S37: 2668 | T37: 1469 | U37: 8869 | V37: 5871 | W37: 14740 | X37: 7874 | Y37: 5397 | Z37: 13271
B38: General Studies | C38: 5629 | D38: 7215 | E38: 7865 | F38: 7753 | G38: 5935 | H38: 5925 | I38: 4943 | J38: 6955 | K38: 8372 | L38: 8801 | M38: 7279 | N38: 7589 | O38: 10572 | P38: 14170 | Q38: 16237 | R38: 16554 | S38: 13214 | T38: 13514 | U38: 40322 | V38: 43939 | W38: 84261 | X38: 34397 | Y38: 36350 | Z38: 70747
B39: All subjects | C39: 56757 | D39: 58663 | E39: 65203 | F39: 58396 | G39: 41811 | H39: 37509 | I39: 63426 | J39: 70966 | K39: 78856 | L39: 66590 | M39: 44831 | N39: 37040 | O39: 120183 | P39: 129629 | Q39: 144059 | R39: 124986 | S39: 86642 | T39: 74549 | U39: 318339 | V39: 361709 | W39: 680048 | X39: 280830 | Y39: 324669 | Z39: 605499
B41: Biological Sciences | C41: 16.2 | D41: 17.9 | E41: 19.4 | F41: 18.6 | G41: 14.8 | H41: 86.9 | I41: 18539 | J41: 18.2 | K41: 20.1 | L41: 19.9 | M41: 17.4 | N41: 13.5 | O41: 89.1 | P41: 28653 | Q41: 17.4 | R41: 19.2 | S41: 19.7 | T41: 17.9 | U41: 14 | V41: 88.2 | W41: 47192
B42: Chemistry | C42: 24.4 | D42: 20.8 | E42: 18.4 | F42: 15.1 | G42: 11 | H42: 89.8 | I42: 18958 | J42: 25.2 | K42: 22.5 | L42: 19.3 | M42: 14.6 | N42: 10 | O42: 91.6 | P42: 16873 | Q42: 24.8 | R42: 21.6 | S42: 18.9 | T42: 14.9 | U42: 10.5 | V42: 90.6 | W42: 35831
B43: Physics | C43: 24 | D43: 19.6 | E43: 18.6 | F43: 15.7 | G43: 11.7 | H43: 89.6 | I43: 22831 | J43: 25.7 | K43: 21.7 | L43: 19.4 | M43: 14.3 | N43: 10.1 | O43: 91.2 | P43: 6721 | Q43: 24.4 | R43: 20.1 | S43: 18.8 | T43: 15.4 | U43: 11.3 | V43: 90 | W43: 29552
B44: Other Science | C44: 12.7 | D44: 15.9 | E44: 20.1 | F44: 22 | G44: 15.5 | H44: 86.2 | I44: 2617 | J44: 13.7 | K44: 13.7 | L44: 23.7 | M44: 22 | N44: 15.3 | O44: 88.4 | P44: 1507 | Q44: 13 | R44: 15.1 | S44: 21.4 | T44: 22 | U44: 15.4 | V44: 87 | W44: 4124
B45: Mathematics | C45: 26.6 | D45: 17.9 | E45: 16.7 | F45: 14.5 | G45: 12.1 | H45: 87.8 | I45: 35622 | J45: 27.7 | K45: 20.9 | L45: 17.6 | M45: 14.3 | N45: 10.3 | O45: 90.7 | P45: 20478 | Q45: 27 | R45: 19 | S45: 17 | T45: 14.4 | U45: 11.4 | V45: 88.8 | W45: 56100
B46: Further Mathematics | C46: 48.5 | D46: 19.6 | E46: 13.5 | F46: 8.1 | G46: 5.1 | H46: 94.9 | I46: 3765 | J46: 51.4 | K46: 19.1 | L46: 12.2 | M46: 8.4 | N46: 5.5 | O46: 96.7 | P46: 1380 | Q46: 49.3 | R46: 19.5 | S46: 13.2 | T46: 8.2 | U46: 5.2 | V46: 95.4 | W46: 5145
B47: Design and Technology | C47: 13.2 | D47: 13.9 | E47: 24.5 | F47: 23.7 | G47: 14.7 | H47: 90 | I47: 8497 | J47: 15.1 | K47: 17.3 | L47: 27.3 | M47: 21.6 | N47: 12.2 | O47: 93.5 | P47: 2915 | Q47: 13.7 | R47: 14.7 | S47: 25.2 | T47: 23.1 | U47: 14.1 | V47: 90.9 | W47: 11412
B48: Computer Studies | C48: 10.4 | D48: 13 | E48: 17.9 | F48: 20.1 | G48: 17 | H48: 78.4 | I48: 8918 | J48: 5.7 | K48: 9.2 | L48: 17.5 | M48: 19.6 | N48: 21 | O48: 73 | P48: 1517 | Q48: 9.7 | R48: 12.4 | S48: 17.8 | T48: 20 | U48: 17.6 | V48: 77.6 | W48: 10435
B49: ICT | C49: 6 | D49: 13.2 | E49: 23.1 | F49: 27.5 | G49: 20.5 | H49: 90.2 | I49: 2870 | J49: 6.7 | K49: 17.6 | L49: 27.9 | M49: 26.2 | N49: 14 | O49: 92.4 | P49: 1394 | Q49: 6.2 | R49: 14.6 | S49: 24.6 | T49: 27.1 | U49: 18.4 | V49: 90.9 | W49: 4264
B50: Home Economics | C50: 9.8 | D50: 4.9 | E50: 15.7 | F50: 20.6 | G50: 22.5 | H50: 73.5 | I50: 102 | J50: 11.6 | K50: 15.4 | L50: 20.7 | M50: 19.8 | N50: 15.9 | O50: 83.5 | P50: 1562 | Q50: 11.5 | R50: 14.8 | S50: 20.4 | T50: 19.9 | U50: 16.3 | V50: 82.9 | W50: 1664
B51: Accounting and Finance | C51: 8.3 | D51: 16 | E51: 14.8 | F51: 15 | G51: 12.6 | H51: 66.8 | I51: 1203 | J51: 10.9 | K51: 16.2 | L51: 18 | M51: 16.2 | N51: 13.1 | O51: 74.4 | P51: 796 | Q51: 9.4 | R51: 16.1 | S51: 16.1 | T51: 15.5 | U51: 12.8 | V51: 69.8 | W51: 1999
B52: Business Studies | C52: 8.5 | D52: 19.9 | E52: 25.6 | F52: 20.8 | G52: 13.1 | H52: 87.8 | I52: 16714 | J52: 9.5 | K52: 20.2 | L52: 24.5 | M52: 20.3 | N52: 13.3 | O52: 87.8 | P52: 13909 | Q52: 9 | R52: 20 | S52: 25.1 | T52: 20.6 | U52: 13.2 | V52: 87.8 | W52: 30623
B53: Economics | C53: 19.7 | D53: 18.7 | E53: 19.7 | F53: 17.6 | G53: 12.7 | H53: 88.4 | I53: 11784 | J53: 18.3 | K53: 17.8 | L53: 20.2 | M53: 17.5 | N53: 13.6 | O53: 87.3 | P53: 6515 | Q53: 19.2 | R53: 18.4 | S53: 19.9 | T53: 17.5 | U53: 13 | V53: 88 | W53: 18299
B54: Geography | C54: 14.6 | D54: 20.9 | E54: 23.6 | F54: 20 | G54: 12.7 | H54: 91.8 | I54: 20127 | J54: 19.2 | K54: 23.3 | L54: 23.2 | M54: 17.6 | N54: 10 | O54: 93.3 | P54: 16927 | Q54: 16.7 | R54: 22 | S54: 23.4 | T54: 18.9 | U54: 11.4 | V54: 92.5 | W54: 37054
B55: Government and Politics | C55: 21.3 | D55: 22.1 | E55: 21.5 | F55: 17.3 | G55: 9.4 | H55: 91.6 | I55: 4424 | J55: 21.4 | K55: 22.2 | L55: 22.5 | M55: 15.9 | N55: 9.9 | O55: 91.8 | P55: 3183 | Q55: 21.3 | R55: 22.1 | S55: 21.9 | T55: 16.7 | U55: 9.6 | V55: 91.7 | W55: 7607
B56: History | C56: 17.6 | D56: 20.4 | E56: 22 | F56: 17.9 | G56: 10.8 | H56: 88.7 | I56: 15187 | J56: 16.7 | K56: 19.6 | L56: 21.6 | M56: 18.2 | N56: 12 | O56: 88.1 | P56: 18219 | Q56: 17.1 | R56: 19.9 | S56: 21.8 | T56: 18.1 | U56: 11.5 | V56: 88.4 | W56: 33406
B57: Law | C57: 10.2 | D57: 12.8 | E57: 16.6 | F57: 18.9 | G57: 15.8 | H57: 74.3 | I57: 2900 | J57: 12 | K57: 14.8 | L57: 17.3 | M57: 18.5 | N57: 13.4 | O57: 76 | P57: 4317 | Q57: 11.3 | R57: 14 | S57: 17 | T57: 18.7 | U57: 14.4 | V57: 75.3 | W57: 7217
B58: Psychology | C58: 8.3 | D58: 15.7 | E58: 20.6 | F58: 19.2 | G58: 16.5 | H58: 80.3 | I58: 5398 | J58: 14.2 | K58: 20.3 | L58: 22.1 | M58: 18.5 | N58: 13.1 | O58: 88.3 | P58: 18411 | Q58: 12.9 | R58: 19.3 | S58: 21.8 | T58: 18.7 | U58: 13.8 | V58: 86.5 | W58: 23809
B59: Sociology | C59: 11.2 | D59: 18.6 | E59: 19.1 | F59: 16.6 | G59: 15.6 | H59: 81.1 | I59: 4681 | J59: 14.5 | K59: 20.3 | L59: 20.3 | M59: 16.3 | N59: 13.9 | O59: 85.4 | P59: 15094 | Q59: 13.8 | R59: 19.9 | S59: 20.1 | T59: 16.3 | U59: 14.3 | V59: 84.4 | W59: 19775
B60: Other social studies | C60: 11.9 | D60: 20.7 | E60: 22 | F60: 18.1 | G60: 12.3 | H60: 84.9 | I60: 1113 | J60: 11.2 | K60: 23.4 | L60: 28.1 | M60: 19.3 | N60: 8.8 | O60: 90.9 | P60: 2083 | Q60: 11.5 | R60: 22.4 | S60: 26 | T60: 18.9 | U60: 10 | V60: 88.8 | W60: 3196
B61: Art and Design | C61: 19.4 | D61: 18.3 | E61: 22.8 | F61: 19 | G61: 11.7 | H61: 91.2 | I61: 13182 | J61: 24.9 | K61: 21.4 | L61: 23.8 | M61: 16.7 | N61: 8 | O61: 94.8 | P61: 21458 | Q61: 22.8 | R61: 20.2 | S61: 23.4 | T61: 17.6 | U61: 9.4 | V61: 93.4 | W61: 34640
B62: Drama | C62: 12.2 | D62: 13.7 | E62: 25.8 | F62: 20.7 | G62: 15 | H62: 87.3 | I62: 2920 | J62: 14.3 | K62: 18.6 | L62: 27.1 | M62: 20.5 | N62: 11.9 | O62: 92.2 | P62: 7733 | Q62: 13.7 | R62: 17.3 | S62: 26.7 | T62: 20.5 | U62: 12.7 | V62: 90.9 | W62: 10653
B63: English | C63: 16.3 | D63: 20.7 | E63: 22.7 | F63: 19.6 | G63: 12.8 | H63: 92.1 | I63: 22961 | J63: 15 | K63: 19.1 | L63: 24.2 | M63: 21.6 | N63: 13.4 | O63: 93.1 | P63: 54697 | Q63: 15.4 | R63: 19.5 | S63: 23.7 | T63: 21 | U63: 13.2 | V63: 92.8 | W63: 77658
B64: Media/Film/TV Studies | C64: 8.8 | D64: 15.2 | E64: 28.4 | F64: 26.1 | G64: 13.9 | H64: 92.4 | I64: 4656 | J64: 9.4 | K64: 18.4 | L64: 33.4 | M64: 24.7 | N64: 9.7 | O64: 95.5 | P64: 6718 | Q64: 9.2 | R64: 17.1 | S64: 31.4 | T64: 25.3 | U64: 11.4 | V64: 94.2 | W64: 11374
B65: Other Communication Studies | C65: 8.5 | D65: 16 | E65: 19.8 | F65: 21.4 | G65: 14.5 | H65: 80.1 | I65: 2394 | J65: 10.6 | K65: 21.1 | L65: 25.4 | M65: 20.8 | N65: 11.3 | O65: 89.3 | P65: 4775 | Q65: 9.9 | R65: 19.4 | S65: 23.6 | T65: 21 | U65: 12.4 | V65: 86.2 | W65: 7169
B66: French | C66: 25.5 | D66: 20.6 | E66: 20.4 | F66: 15.4 | G66: 10.4 | H66: 92.2 | I66: 5268 | J66: 22.3 | K66: 20.7 | L66: 20 | M66: 17 | N66: 12 | O66: 92.1 | P66: 12506 | Q66: 23.2 | R66: 20.7 | S66: 20.1 | T66: 16.5 | U66: 11.5 | V66: 92.1 | W66: 17774
B67: German | C67: 33.8 | D67: 19.8 | E67: 17.6 | F67: 13.1 | G67: 9.6 | H67: 93.9 | I67: 2599 | J67: 24.5 | K67: 19.6 | L67: 19.1 | M67: 16.2 | N67: 12.4 | O67: 91.8 | P67: 5928 | Q67: 27.3 | R67: 19.7 | S67: 18.6 | T67: 15.2 | U67: 11.6 | V67: 92.5 | W67: 8527
B68: Spanish | C68: 26.1 | D68: 25 | E68: 19.6 | F68: 14.1 | G68: 9.1 | H68: 93.9 | I68: 1305 | J68: 22.9 | K68: 23.3 | L68: 21 | M68: 17 | N68: 8.7 | O68: 92.9 | P68: 3335 | Q68: 23.8 | R68: 23.8 | S68: 20.6 | T68: 16.2 | U68: 8.8 | V68: 93.2 | W68: 4640
B69: Other modern languages | C69: 31.2 | D69: 24.1 | E69: 18.3 | F69: 11.3 | G69: 6.7 | H69: 91.7 | I69: 1533 | J69: 37.8 | K69: 25.2 | L69: 17.1 | M69: 9.5 | N69: 5.2 | O69: 94.8 | P69: 1966 | Q69: 34.9 | R69: 24.7 | S69: 17.7 | T69: 10.3 | U69: 5.9 | V69: 93.4 | W69: 3499
B70: Classical Studies | C70: 27.8 | D70: 21.7 | E70: 18.5 | F70: 15.1 | G70: 9.6 | H70: 92.7 | I70: 2087 | J70: 28.2 | K70: 25.2 | L70: 22.3 | M70: 12 | N70: 7 | O70: 94.7 | P70: 3060 | Q70: 28 | R70: 23.8 | S70: 20.8 | T70: 13.3 | U70: 8 | V70: 93.9 | W70: 5147
B71: Religious Studies | C71: 20.8 | D71: 19.3 | E71: 19.6 | F71: 15.2 | G71: 12.4 | H71: 87.4 | I71: 1321 | J71: 18.6 | K71: 18.6 | L71: 22.6 | M71: 18.1 | N71: 10.9 | O71: 88.8 | P71: 3723 | Q71: 19.2 | R71: 18.8 | S71: 21.8 | T71: 17.3 | U71: 11.3 | V71: 88.4 | W71: 5044
B72: Music | C72: 19.8 | D72: 18.4 | E72: 24.7 | F72: 18.8 | G72: 11.2 | H72: 92.8 | I72: 2672 | J72: 21.4 | K72: 20.5 | L72: 24.6 | M72: 19 | N72: 8.9 | O72: 94.5 | P72: 3546 | Q72: 20.7 | R72: 19.6 | S72: 24.7 | T72: 18.9 | U72: 9.9 | V72: 93.8 | W72: 6218
B73: Physical Education | C73: 6.8 | D73: 11.3 | E73: 22.4 | F73: 27.3 | G73: 21 | H73: 88.8 | I73: 8869 | J73: 16 | K73: 16.5 | L73: 24.1 | M73: 21.5 | N73: 13.7 | O73: 91.9 | P73: 5871 | Q73: 10.5 | R73: 13.4 | S73: 23.1 | T73: 25 | U73: 18.1 | V73: 90 | W73: 14740
B74: General Studies | C74: 14 | D74: 17.9 | E74: 19.5 | F74: 19.2 | G74: 14.7 | H74: 85.3 | I74: 40322 | J74: 11.2 | K74: 15.8 | L74: 19.1 | M74: 20 | N74: 16.6 | O74: 82.7 | P74: 43939 | Q74: 12.5 | R74: 16.8 | S74: 19.3 | T74: 19.6 | U74: 15.7 | V74: 84 | W74: 84261
B75: All subjects | C75: 17.8 | D75: 18.4 | E75: 20.5 | F75: 18.3 | G75: 13.1 | H75: 88.2 | I75: 318339 | J75: 17.5 | K75: 19.6 | L75: 21.8 | M75: 18.4 | N75: 12.4 | O75: 89.8 | P75: 361709 | Q75: 17.7 | R75: 19.1 | S75: 21.2 | T75: 18.4 | U75: 12.7 | V75: 89 | W75: 680048
B77: Biological Sciences | C77: =ROUND(C41,1) -> 16.2 | D77: =ROUND(D41,1) -> 17.9 | E77: 19.4 | F77: 18.6 | G77: 14.8 | H77: 86.9 | I77: =ROUND(I41,0) -> 18539 | J77: 18.2 | K77: 20.1 | L77: 19.9 | M77: 17.4 | N77: 13.5 | O77: 89.1 | P77: =ROUND(P41,0) -> 28653 | Q77: 17.4 | R77: 19.2 | S77: 19.7 | T77: 17.9 | U77: 14 | V77: 88.2 | W77: =ROUND(W41,0) -> 47192
B78: Chemistry | C78: =ROUND(C42,1) -> 24.4 | D78: 20.8 | E78: 18.4 | F78: 15.1 | G78: 11 | H78: 89.8 | I78: =ROUND(I42,0) -> 18958 | J78: 25.2 | K78: 22.5 | L78: 19.3 | M78: 14.6 | N78: 10 | O78: 91.6 | P78: =ROUND(P42,0) -> 16873 | Q78: 24.8 | R78: 21.6 | S78: 18.9 | T78: 14.9 | U78: 10.5 | V78: 90.6 | W78: =ROUND(W42,0) -> 35831
B79: Physics | C79: 24 | D79: 19.6 | E79: 18.6 | F79: 15.7 | G79: 11.7 | H79: 89.6 | I79: 22831 | J79: 25.7 | K79: 21.7 | L79: 19.4 | M79: 14.3 | N79: 10.1 | O79: 91.2 | P79: 6721 | Q79: 24.4 | R79: 20.1 | S79: 18.8 | T79: 15.4 | U79: 11.3 | V79: 90 | W79: 29552
B80: Other Science | C80: 12.7 | D80: 15.9 | E80: 20.1 | F80: 22 | G80: 15.5 | H80: 86.2 | I80: 2617 | J80: 13.7 | K80: 13.7 | L80: 23.7 | M80: 22 | N80: 15.3 | O80: 88.4 | P80: 1507 | Q80: 13 | R80: 15.1 | S80: 21.4 | T80: 22 | U80: 15.4 | V80: 87 | W80: 4124
B81: Mathematics | C81: 26.6 | D81: 17.9 | E81: 16.7 | F81: 14.5 | G81: 12.1 | H81: 87.8 | I81: 35622 | J81: 27.7 | K81: 20.9 | L81: 17.6 | M81: 14.3 | N81: 10.3 | O81: 90.7 | P81: 20478 | Q81: 27 | R81: 19 | S81: 17 | T81: 14.4 | U81: 11.4 | V81: 88.8 | W81: 56100
B82: Further Mathematics | C82: 48.5 | D82: 19.6 | E82: 13.5 | F82: 8.1 | G82: 5.1 | H82: 94.9 | I82: 3765 | J82: 51.4 | K82: 19.1 | L82: 12.2 | M82: 8.4 | N82: 5.5 | O82: 96.7 | P82: 1380 | Q82: 49.3 | R82: 19.5 | S82: 13.2 | T82: 8.2 | U82: 5.2 | V82: 95.4 | W82: 5145
B83: Design and Technology | C83: 13.2 | D83: 13.9 | E83: 24.5 | F83: 23.7 | G83: 14.7 | H83: 90 | I83: 8497 | J83: 15.1 | K83: 17.3 | L83: 27.3 | M83: 21.6 | N83: 12.2 | O83: 93.5 | P83: 2915 | Q83: 13.7 | R83: 14.7 | S83: 25.2 | T83: 23.1 | U83: 14.1 | V83: 90.9 | W83: 11412
B84: Computer Studies | C84: 10.4 | D84: 13 | E84: 17.9 | F84: 20.1 | G84: 17 | H84: 78.4 | I84: 8918 | J84: 5.7 | K84: 9.2 | L84: 17.5 | M84: 19.6 | N84: 21 | O84: 73 | P84: 1517 | Q84: 9.7 | R84: 12.4 | S84: 17.8 | T84: 20 | U84: 17.6 | V84: 77.6 | W84: 10435
B85: ICT | C85: 6 | D85: 13.2 | E85: 23.1 | F85: 27.5 | G85: 20.5 | H85: 90.2 | I85: 2870 | J85: 6.7 | K85: 17.6 | L85: 27.9 | M85: 26.2 | N85: 14 | O85: 92.4 | P85: 1394 | Q85: 6.2 | R85: 14.6 | S85: 24.6 | T85: 27.1 | U85: 18.4 | V85: 90.9 | W85: 4264
B86: Home Economics | C86: 9.8 | D86: 4.9 | E86: 15.7 | F86: 20.6 | G86: 22.5 | H86: 73.5 | I86: 102 | J86: 11.6 | K86: 15.4 | L86: 20.7 | M86: 19.8 | N86: 15.9 | O86: 83.5 | P86: 1562 | Q86: 11.5 | R86: 14.8 | S86: 20.4 | T86: 19.9 | U86: 16.3 | V86: 82.9 | W86: 1664
B87: Accounting and Finance | C87: 8.3 | D87: 16 | E87: 14.8 | F87: 15 | G87: 12.6 | H87: 66.8 | I87: 1203 | J87: 10.9 | K87: 16.2 | L87: 18 | M87: 16.2 | N87: 13.1 | O87: 74.4 | P87: 796 | Q87: 9.4 | R87: 16.1 | S87: 16.1 | T87: 15.5 | U87: 12.8 | V87: 69.8 | W87: 1999
B88: Business Studies | C88: 8.5 | D88: 19.9 | E88: 25.6 | F88: 20.8 | G88: 13.1 | H88: 87.8 | I88: 16714 | J88: 9.5 | K88: 20.2 | L88: 24.5 | M88: 20.3 | N88: 13.3 | O88: 87.8 | P88: 13909 | Q88: 9 | R88: 20 | S88: 25.1 | T88: 20.6 | U88: 13.2 | V88: 87.8 | W88: 30623
B89: Economics | C89: 19.7 | D89: 18.7 | E89: 19.7 | F89: 17.6 | G89: 12.7 | H89: 88.4 | I89: 11784 | J89: 18.3 | K89: 17.8 | L89: 20.2 | M89: 17.5 | N89: 13.6 | O89: 87.3 | P89: 6515 | Q89: 19.2 | R89: 18.4 | S89: 19.9 | T89: 17.5 | U89: 13 | V89: 88 | W89: 18299
B90: Geography | C90: 14.6 | D90: 20.9 | E90: 23.6 | F90: 20 | G90: 12.7 | H90: 91.8 | I90: 20127 | J90: 19.2 | K90: 23.3 | L90: 23.2 | M90: 17.6 | N90: 10 | O90: 93.3 | P90: 16927 | Q90: 16.7 | R90: 22 | S90: 23.4 | T90: 18.9 | U90: 11.4 | V90: 92.5 | W90: 37054
B91: Government and Politics | C91: 21.3 | D91: 22.1 | E91: 21.5 | F91: 17.3 | G91: 9.4 | H91: 91.6 | I91: 4424 | J91: 21.4 | K91: 22.2 | L91: 22.5 | M91: 15.9 | N91: 9.9 | O91: 91.8 | P91: 3183 | Q91: 21.3 | R91: 22.1 | S91: 21.9 | T91: 16.7 | U91: 9.6 | V91: 91.7 | W91: 7607
B92: History | C92: 17.6 | D92: 20.4 | E92: 22 | F92: 17.9 | G92: 10.8 | H92: 88.7 | I92: 15187 | J92: 16.7 | K92: 19.6 | L92: 21.6 | M92: 18.2 | N92: 12 | O92: 88.1 | P92: 18219 | Q92: 17.1 | R92: 19.9 | S92: 21.8 | T92: 18.1 | U92: 11.5 | V92: 88.4 | W92: 33406
B93: Law | C93: 10.2 | D93: 12.8 | E93: 16.6 | F93: 18.9 | G93: 15.8 | H93: 74.3 | I93: 2900 | J93: =ROUND(J57,1) -> 12 | K93: 14.8 | L93: 17.3 | M93: 18.5 | N93: 13.4 | O93: 76 | P93: 4317 | Q93: =ROUND(Q57,1) -> 11.3 | R93: 14 | S93: 17 | T93: 18.7 | U93: 14.4 | V93: 75.3 | W93: 7217
B94: Psychology | C94: =ROUND(C58,1) -> 8.3 | D94: 15.7 | E94: 20.6 | F94: 19.2 | G94: 16.5 | H94: 80.3 | I94: 5398 | J94: 14.2 | K94: 20.3 | L94: 22.1 | M94: 18.5 | N94: 13.1 | O94: 88.3 | P94: 18411 | Q94: 12.9 | R94: 19.3 | S94: 21.8 | T94: 18.7 | U94: 13.8 | V94: 86.5 | W94: 23809
B95: Sociology | C95: 11.2 | D95: 18.6 | E95: 19.1 | F95: 16.6 | G95: 15.6 | H95: 81.1 | I95: 4681 | J95: 14.5 | K95: 20.3 | L95: 20.3 | M95: 16.3 | N95: 13.9 | O95: 85.4 | P95: 15094 | Q95: 13.8 | R95: 19.9 | S95: 20.1 | T95: 16.3 | U95: 14.3 | V95: 84.4 | W95: 19775
B96: Other social studies | C96: 11.9 | D96: 20.7 | E96: 22 | F96: 18.1 | G96: 12.3 | H96: 84.9 | I96: 1113 | J96: 11.2 | K96: 23.4 | L96: 28.1 | M96: 19.3 | N96: 8.8 | O96: 90.9 | P96: 2083 | Q96: 11.5 | R96: 22.4 | S96: 26 | T96: 18.9 | U96: 10 | V96: 88.8 | W96: 3196
B97: Art and Design | C97: 19.4 | D97: 18.3 | E97: 22.8 | F97: 19 | G97: 11.7 | H97: 91.2 | I97: 13182 | J97: 24.9 | K97: 21.4 | L97: 23.8 | M97: 16.7 | N97: 8 | O97: 94.8 | P97: 21458 | Q97: 22.8 | R97: 20.2 | S97: 23.4 | T97: 17.6 | U97: 9.4 | V97: 93.4 | W97: 34640
B98: Drama | C98: 12.2 | D98: 13.7 | E98: 25.8 | F98: 20.7 | G98: 15 | H98: 87.3 | I98: 2920 | J98: 14.3 | K98: 18.6 | L98: 27.1 | M98: 20.5 | N98: 11.9 | O98: 92.2 | P98: 7733 | Q98: 13.7 | R98: 17.3 | S98: 26.7 | T98: 20.5 | U98: 12.7 | V98: 90.9 | W98: 10653
B99: English | C99: 16.3 | D99: 20.7 | E99: 22.7 | F99: 19.6 | G99: 12.8 | H99: 92.1 | I99: 22961 | J99: 15 | K99: 19.1 | L99: 24.2 | M99: 21.6 | N99: 13.4 | O99: 93.1 | P99: 54697 | Q99: 15.4 | R99: 19.5 | S99: 23.7 | T99: 21 | U99: 13.2 | V99: 92.8 | W99: 77658
B100: Media/Film/TV Studies | C100: 8.8 | D100: 15.2 | E100: 28.4 | F100: 26.1 | G100: 13.9 | H100: 92.4 | I100: 4656 | J100: 9.4 | K100: 18.4 | L100: 33.4 | M100: 24.7 | N100: 9.7 | O100: 95.5 | P100: 6718 | Q100: 9.2 | R100: 17.1 | S100: 31.4 | T100: 25.3 | U100: 11.4 | V100: 94.2 | W100: 11374
B101: Other Communication Studies | C101: 8.5 | D101: 16 | E101: 19.8 | F101: 21.4 | G101: 14.5 | H101: 80.1 | I101: 2394 | J101: 10.6 | K101: 21.1 | L101: 25.4 | M101: 20.8 | N101: 11.3 | O101: 89.3 | P101: 4775 | Q101: 9.9 | R101: 19.4 | S101: 23.6 | T101: 21 | U101: 12.4 | V101: 86.2 | W101: 7169
B102: French | C102: 25.5 | D102: 20.6 | E102: 20.4 | F102: 15.4 | G102: 10.4 | H102: 92.2 | I102: 5268 | J102: 22.3 | K102: 20.7 | L102: 20 | M102: 17 | N102: 12 | O102: 92.1 | P102: 12506 | Q102: 23.2 | R102: 20.7 | S102: 20.1 | T102: 16.5 | U102: 11.5 | V102: 92.1 | W102: 17774
B103: German | C103: 33.8 | D103: 19.8 | E103: 17.6 | F103: 13.1 | G103: 9.6 | H103: 93.9 | I103: 2599 | J103: 24.5 | K103: 19.6 | L103: 19.1 | M103: 16.2 | N103: 12.4 | O103: 91.8 | P103: 5928 | Q103: 27.3 | R103: 19.7 | S103: 18.6 | T103: 15.2 | U103: 11.6 | V103: 92.5 | W103: 8527
B104: Spanish | C104: 26.1 | D104: 25 | E104: 19.6 | F104: 14.1 | G104: 9.1 | H104: 93.9 | I104: 1305 | J104: 22.9 | K104: 23.3 | L104: 21 | M104: 17 | N104: 8.7 | O104: 92.9 | P104: 3335 | Q104: 23.8 | R104: 23.8 | S104: 20.6 | T104: 16.2 | U104: 8.8 | V104: 93.2 | W104: 4640
B105: Other modern languages | C105: 31.2 | D105: 24.1 | E105: 18.3 | F105: 11.3 | G105: 6.7 | H105: 91.7 | I105: 1533 | J105: 37.8 | K105: 25.2 | L105: 17.1 | M105: 9.5 | N105: 5.2 | O105: 94.8 | P105: 1966 | Q105: 34.9 | R105: 24.7 | S105: 17.7 | T105: 10.3 | U105: 5.9 | V105: 93.4 | W105: 3499
B106: Classical Studies | C106: 27.8 | D106: 21.7 | E106: 18.5 | F106: 15.1 | G106: 9.6 | H106: 92.7 | I106: 2087 | J106: 28.2 | K106: 25.2 | L106: 22.3 | M106: 12 | N106: 7 | O106: 94.7 | P106: 3060 | Q106: 28 | R106: 23.8 | S106: 20.8 | T106: 13.3 | U106: 8 | V106: 93.9 | W106: 5147
B107: Religious Studies | C107: 20.8 | D107: 19.3 | E107: 19.6 | F107: 15.2 | G107: 12.4 | H107: 87.4 | I107: 1321 | J107: 18.6 | K107: 18.6 | L107: 22.6 | M107: 18.1 | N107: 10.9 | O107: 88.8 | P107: 3723 | Q107: 19.2 | R107: 18.8 | S107: 21.8 | T107: 17.3 | U107: 11.3 | V107: 88.4 | W107: 5044
B108: Music | C108: 19.8 | D108: 18.4 | E108: 24.7 | F108: 18.8 | G108: 11.2 | H108: 92.8 | I108: 2672 | J108: 21.4 | K108: 20.5 | L108: 24.6 | M108: 19 | N108: 8.9 | O108: 94.5 | P108: 3546 | Q108: 20.7 | R108: 19.6 | S108: 24.7 | T108: 18.9 | U108: 9.9 | V108: 93.8 | W108: 6218
B109: Physical Education | C109: 6.8 | D109: 11.3 | E109: 22.4 | F109: 27.3 | G109: 21 | H109: 88.8 | I109: 8869 | J109: =ROUND(J73,1) -> 16 | K109: 16.5 | L109: 24.1 | M109: 21.5 | N109: 13.7 | O109: 91.9 | P109: 5871 | Q109: =ROUND(Q73,1) -> 10.5 | R109: 13.4 | S109: 23.1 | T109: 25 | U109: 18.1 | V109: 90 | W109: 14740
B110: General Studies | C110: =ROUND(C74,1) -> 14 | D110: 17.9 | E110: 19.5 | F110: 19.2 | G110: 14.7 | H110: 85.3 | I110: 40322 | J110: 11.2 | K110: 15.8 | L110: 19.1 | M110: 20 | N110: 16.6 | O110: 82.7 | P110: 43939 | Q110: 12.5 | R110: 16.8 | S110: 19.3 | T110: 19.6 | U110: 15.7 | V110: 84 | W110: 84261
B111: All subjects | C111: 17.8 | D111: 18.4 | E111: 20.5 | F111: 18.3 | G111: 13.1 | H111: 88.2 | I111: 318339 | J111: 17.5 | K111: 19.6 | L111: 21.8 | M111: 18.4 | N111: 12.4 | O111: 89.8 | P111: 361709 | Q111: 17.7 | R111: 19.1 | S111: 21.2 | T111: 18.4 | U111: 12.7 | V111: 89 | W111: 680048

Sheet 2000data_new (hidden)
C3: Males | I3: Females | O3: Total | U3: total entries | X3: total passes
C4: A | D4: B | E4: C | F4: D | G4: E | H4: other | I4: A | J4: B | K4: C | L4: D | M4: E | N4: other | O4: A | P4: B | Q4: C | R4: D | S4: E | T4: other | U4: Male | V4: Female | W4: Male and Female | X4: Male | Y4: Female | Z4: Male and Female
B5: Biological Sciences | C5: 2832 | D5: 3227 | E5: 3435 | F5: 3310 | G5: 2733 | H5: 2215 | I5: 5356 | J5: 5928 | K5: 5756 | L5: 4864 | M5: 3709 | N5: 2825 | O5: 8188 | P5: 9155 | Q5: 9191 | R5: 8174 | S5: 6442 | T5: 5040 | U5: 17752 | V5: 28438 | W5: 46190 | X5: 15537 | Y5: 25613 | Z5: 41150
B6: Chemistry | C6: 4395 | D6: 3881 | E6: 3359 | F6: 2764 | G6: 1983 | H6: 1871 | I6: 4638 | J6: 3939 | K6: 3222 | L6: 2426 | M6: 1535 | N6: 1277 | O6: 9033 | P6: 7820 | Q6: 6581 | R6: 5190 | S6: 3518 | T6: 3148 | U6: 18253 | V6: 17037 | W6: 35290 | X6: 16382 | Y6: 15760 | Z6: 32142
B7: Physics | C7: 5262 | D7: 4193 | E7: 4006 | F7: 3402 | G7: 2569 | H7: 2363 | I7: 1840 | J7: 1421 | K7: 1168 | L7: 865 | M7: 624 | N7: 478 | O7: 7102 | P7: 5614 | Q7: 5174 | R7: 4267 | S7: 3193 | T7: 2841 | U7: 21795 | V7: 6396 | W7: 28191 | X7: 19432 | Y7: 5918 | Z7: 25350
B8: Other Science | C8: 347 | D8: 322 | E8: 495 | F8: 521 | G8: 396 | H8: 315 | I8: 191 | J8: 249 | K8: 311 | L8: 309 | M8: 222 | N8: 156 | O8: 538 | P8: 571 | Q8: 806 | R8: 830 | S8: 618 | T8: 471 | U8: 2396 | V8: 1438 | W8: 3834 | X8: 2081 | Y8: 1282 | Z8: 3363
B9: Mathematics | C9: 8991 | D9: 6198 | E9: 5649 | F9: 5057 | G9: 3661 | H9: 3943 | I9: 5786 | J9: 4111 | K9: 3570 | L9: 2886 | M9: 2061 | N9: 1761 | O9: 14777 | P9: 10309 | Q9: 9219 | R9: 7943 | S9: 5722 | T9: 5704 | U9: 33499 | V9: 20175 | W9: 53674 | X9: 29556 | Y9: 18414 | Z9: 47970
B10: Further Mathematics | C10: 1756 | D10: 663 | E10: 458 | F10: 318 | G10: 188 | H10: 137 | I10: 770 | J10: 278 | K10: 195 | L10: 127 | M10: 68 | N10: 57 | O10: 2526 | P10: 941 | Q10: 653 | R10: 445 | S10: 256 | T10: 194 | U10: 3520 | V10: 1495 | W10: 5015 | X10: 3383 | Y10: 1438 | Z10: 4821
B11: Design and Technology | C11: 1222 | D11: 1440 | E11: 2369 | F11: 2032 | G11: 1275 | H11: 821 | I11: 536 | J11: 678 | K11: 1006 | L11: 797 | M11: 378 | N11: 196 | O11: 1758 | P11: 2118 | Q11: 3375 | R11: 2829 | S11: 1653 | T11: 1017 | U11: 9159 | V11: 3591 | W11: 12750 | X11: 8338 | Y11: 3395 | Z11: 11733
B12: Computer Studies | C12: 914 | D12: 1254 | E12: 1667 | F12: 1915 | G12: 1589 | H12: 1891 | I12: 101 | J12: 193 | K12: 297 | L12: 331 | M12: 328 | N12: 371 | O12: 1015 | P12: 1447 | Q12: 1964 | R12: 2246 | S12: 1917 | T12: 2262 | U12: 9230 | V12: 1621 | W12: 10851 | X12: 7339 | Y12: 1250 | Z12: 8589
B13: ICT | C13: 208 | D13: 583 | E13: 1037 | F13: 1156 | G13: 727 | H13: 443 | I13: 130 | J13: 322 | K13: 561 | L13: 606 | M13: 339 | N13: 175 | O13: 338 | P13: 905 | Q13: 1598 | R13: 1762 | S13: 1066 | T13: 618 | U13: 4154 | V13: 2133 | W13: 6287 | X13: 3711 | Y13: 1958 | Z13: 5669
B14: Home Economics | C14: 3 | D14: 7 | E14: 15 | F14: 25 | G14: 17 | H14: 27 | I14: 158 | J14: 176 | K14: 280 | L14: 264 | M14: 163 | N14: 203 | O14: 161 | P14: 183 | Q14: 295 | R14: 289 | S14: 180 | T14: 230 | U14: 94 | V14: 1244 | W14: 1338 | X14: 67 | Y14: 1041 | Z14: 1108
B15: Accounting and Finance | C15: 116 | D15: 176 | E15: 197 | F15: 200 | G15: 142 | H15: 377 | I15: 67 | J15: 109 | K15: 128 | L15: 121 | M15: 103 | N15: 208 | O15: 183 | P15: 285 | Q15: 325 | R15: 321 | S15: 245 | T15: 585 | U15: 1208 | V15: 736 | W15: 1944 | X15: 831 | Y15: 528 | Z15: 1359
B16: Business Studies | C16: 1494 | D16: 3237 | E16: 4400 | F16: 3709 | G16: 2261 | H16: 1798 | I16: 1612 | J16: 2842 | K16: 3638 | L16: 2911 | M16: 1715 | N16: 1459 | O16: 3106 | P16: 6079 | Q16: 8038 | R16: 6620 | S16: 3976 | T16: 3257 | U16: 16899 | V16: 14177 | W16: 31076 | X16: 15101 | Y16: 12718 | Z16: 27819
B17: Economics | C17: 2406 | D17: 2118 | E17: 2147 | F17: 2025 | G17: 1423 | H17: 1231 | I17: 1276 | J17: 1100 | K17: 1089 | L17: 1032 | M17: 758 | N17: 679 | O17: 3682 | P17: 3218 | Q17: 3236 | R17: 3057 | S17: 2181 | T17: 1910 | U17: 11350 | V17: 5934 | W17: 17284 | X17: 10119 | Y17: 5255 | Z17: 15374
B18: Geography | C18: 2771 | D18: 3789 | E18: 4146 | F18: 3438 | G18: 2300 | H18: 1487 | I18: 3232 | J18: 3599 | K18: 3360 | L18: 2460 | M18: 1463 | N18: 972 | O18: 6003 | P18: 7388 | Q18: 7506 | R18: 5898 | S18: 3763 | T18: 2459 | U18: 17931 | V18: 15086 | W18: 33017 | X18: 16444 | Y18: 14114 | Z18: 30558
B19: Government and Politics | C19: 915 | D19: 888 | E19: 947 | F19: 621 | G19: 427 | H19: 331 | I19: 764 | J19: 709 | K19: 657 | L19: 474 | M19: 305 | N19: 248 | O19: 1679 | P19: 1597 | Q19: 1604 | R19: 1095 | S19: 732 | T19: 579 | U19: 4129 | V19: 3157 | W19: 7286 | X19: 3798 | Y19: 2909 | Z19: 6707
B20: History | C20: 2633 | D20: 3043 | E20: 3332 | F20: 2724 | G20: 1704 | H20: 1608 | I20: 3178 | J20: 3640 | K20: 4065 | L20: 3190 | M20: 2063 | N20: 1960 | O20: 5811 | P20: 6683 | Q20: 7397 | R20: 5914 | S20: 3767 | T20: 3568 | U20: 15044 | V20: 18096 | W20: 33140 | X20: 13436 | Y20: 16136 | Z20: 29572
B21: Law | C21: 244 | D21: 391 | E21: 510 | F21: 479 | G21: 419 | H21: 746 | I21: 517 | J21: 732 | K21: 774 | L21: 757 | M21: 647 | N21: 973 | O21: 761 | P21: 1123 | Q21: 1284 | R21: 1236 | S21: 1066 | T21: 1719 | U21: 2789 | V21: 4400 | W21: 7189 | X21: 2043 | Y21: 3427 | Z21: 5470
B22: Psychology | C22: 450 | D22: 800 | E22: 1183 | F22: 1163 | G22: 958 | H22: 1083 | I22: 2713 | J22: 4167 | K22: 4201 | L22: 3652 | M22: 2556 | N22: 2147 | O22: 3163 | P22: 4967 | Q22: 5384 | R22: 4815 | S22: 3514 | T22: 3230 | U22: 5637 | V22: 19436 | W22: 25073 | X22: 4554 | Y22: 17289 | Z22: 21843
B23: Sociology | C23: 520 | D23: 781 | E23: 858 | F23: 794 | G23: 652 | H23: 842 | I23: 2284 | J23: 3187 | K23: 3129 | L23: 2591 | M23: 1906 | N23: 2026 | O23: 2804 | P23: 3968 | Q23: 3987 | R23: 3385 | S23: 2558 | T23: 2868 | U23: 4447 | V23: 15123 | W23: 19570 | X23: 3605 | Y23: 13097 | Z23: 16702
B24: Other social studies | C24: 64 | D24: 93 | E24: 107 | F24: 100 | G24: 112 | H24: 182 | I24: 104 | J24: 123 | K24: 128 | L24: 150 | M24: 117 | N24: 149 | O24: 168 | P24: 216 | Q24: 235 | R24: 250 | S24: 229 | T24: 331 | U24: 658 | V24: 771 | W24: 1429 | X24: 476 | Y24: 622 | Z24: 1098
B25: Art and Design | C25: 2513 | D25: 2349 | E25: 2863 | F25: 2286 | G25: 1375 | H25: 1130 | I25: 5319 | J25: 4652 | K25: 5248 | L25: 3557 | M25: 1731 | N25: 1127 | O25: 7832 | P25: 7001 | Q25: 8111 | R25: 5843 | S25: 3106 | T25: 2257 | U25: 12516 | V25: 21634 | W25: 34150 | X25: 11386 | Y25: 20507 | Z25: 31893
B26: Drama | C26: 372 | D26: 449 | E26: 820 | F26: 671 | G26: 412 | H26: 328 | I26: 1169 | J26: 1499 | K26: 2291 | L26: 1684 | M26: 845 | N26: 555 | O26: 1541 | P26: 1948 | Q26: 3111 | R26: 2355 | S26: 1257 | T26: 883 | U26: 3052 | V26: 8043 | W26: 11095 | X26: 2724 | Y26: 7488 | Z26: 10212
B27: English | C27: 3710 | D27: 4328 | E27: 5086 | F27: 4385 | G27: 2734 | H27: 1650 | I27: 8198 | J27: 10274 | K27: 12870 | L27: 11220 | M27: 6610 | N27: 3278 | O27: 11908 | P27: 14602 | Q27: 17956 | R27: 15605 | S27: 9344 | T27: 4928 | U27: 21893 | V27: 52450 | W27: 74343 | X27: 20243 | Y27: 49172 | Z27: 69415
B28: Media/Film/TV Studies | C28: 402 | D28: 707 | E28: 1445 | F28: 1400 | G28: 707 | H28: 347 | I28: 728 | J28: 1339 | K28: 2259 | L28: 1784 | M28: 729 | N28: 319 | O28: 1130 | P28: 2046 | Q28: 3704 | R28: 3184 | S28: 1436 | T28: 666 | U28: 5008 | V28: 7158 | W28: 12166 | X28: 4661 | Y28: 6839 | Z28: 11500
B29: Other Communication Studies | C29: 219 | D29: 383 | E29: 487 | F29: 494 | G29: 364 | H29: 492 | I29: 462 | J29: 1054 | K29: 1244 | L29: 1011 | M29: 497 | N29: 482 | O29: 681 | P29: 1437 | Q29: 1731 | R29: 1505 | S29: 861 | T29: 974 | U29: 2439 | V29: 4750 | W29: 7189 | X29: 1947 | Y29: 4268 | Z29: 6215
B30: French | C30: 1180 | D30: 974 | E30: 885 | F30: 647 | G30: 447 | H30: 323 | I30: 2454 | J30: 2280 | K30: 2169 | L30: 1837 | M30: 1187 | N30: 857 | O30: 3634 | P30: 3254 | Q30: 3054 | R30: 2484 | S30: 1634 | T30: 1180 | U30: 4456 | V30: 10784 | W30: 15240 | X30: 4133 | Y30: 9927 | Z30: 14060
B31: German | C31: 842 | D31: 483 | E31: 384 | F31: 333 | G31: 232 | H31: 160 | I31: 1385 | J31: 1018 | K31: 996 | L31: 839 | M31: 580 | N31: 329 | O31: 2227 | P31: 1501 | Q31: 1380 | R31: 1172 | S31: 812 | T31: 489 | U31: 2434 | V31: 5147 | W31: 7581 | X31: 2274 | Y31: 4818 | Z31: 7092
B32: Spanish | C32: 376 | D32: 347 | E32: 265 | F32: 179 | G32: 112 | H32: 72 | I32: 773 | J32: 757 | K32: 619 | L32: 462 | M32: 317 | N32: 237 | O32: 1149 | P32: 1104 | Q32: 884 | R32: 641 | S32: 429 | T32: 309 | U32: 1351 | V32: 3165 | W32: 4516 | X32: 1279 | Y32: 2928 | Z32: 4207
B33: Other modern languages | C33: 519 | D33: 376 | E33: 253 | F33: 163 | G33: 106 | H33: 167 | I33: 821 | J33: 567 | K33: 342 | L33: 177 | M33: 80 | N33: 89 | O33: 1340 | P33: 943 | Q33: 595 | R33: 340 | S33: 186 | T33: 256 | U33: 1584 | V33: 2076 | W33: 3660 | X33: 1417 | Y33: 1987 | Z33: 3404
B34: Classical Studies | C34: 635 | D34: 467 | E34: 432 | F34: 300 | G34: 159 | H34: 147 | I34: 847 | J34: 720 | K34: 608 | L34: 355 | M34: 198 | N34: 151 | O34: 1482 | P34: 1187 | Q34: 1040 | R34: 655 | S34: 357 | T34: 298 | U34: 2140 | V34: 2879 | W34: 5019 | X34: 1993 | Y34: 2728 | Z34: 4721
B35: Religious Studies | C35: 336 | D35: 449 | E35: 419 | F35: 314 | G35: 151 | H35: 170 | I35: 825 | J35: 1204 | K35: 1308 | L35: 1005 | M35: 564 | N35: 416 | O35: 1161 | P35: 1653 | Q35: 1727 | R35: 1319 | S35: 715 | T35: 586 | U35: 1839 | V35: 5322 | W35: 7161 | X35: 1669 | Y35: 4906 | Z35: 6575
B36: Music | C36: 559 | D36: 493 | E36: 598 | F36: 507 | G36: 283 | H36: 211 | I36: 773 | J36: 704 | K36: 844 | L36: 625 | M36: 335 | N36: 195 | O36: 1332 | P36: 1197 | Q36: 1442 | R36: 1132 | S36: 618 | T36: 406 | U36: 2651 | V36: 3476 | W36: 6127 | X36: 2440 | Y36: 3281 | Z36: 5721
B37: Physical Education | C37: 689 | D37: 1131 | E37: 2243 | F37: 2663 | G37: 1862 | H37: 998 | I37: 1016 | J37: 1079 | K37: 1469 | L37: 1376 | M37: 865 | N37: 462 | O37: 1705 | P37: 2210 | Q37: 3712 | R37: 4039 | S37: 2727 | T37: 1460 | U37: 9586 | V37: 6267 | W37: 15853 | X37: 8588 | Y37: 5805 | Z37: 14393
B38: General Studies | C38: 5452 | D38: 6738 | E38: 8172 | F38: 8606 | G38: 6450 | H38: 6319 | I38: 5484 | J38: 7158 | K38: 9275 | L38: 9583 | M38: 7366 | N38: 7231 | O38: 10936 | P38: 13896 | Q38: 17447 | R38: 18189 | S38: 13816 | T38: 13550 | U38: 41737 | V38: 46097 | W38: 87834 | X38: 35418 | Y38: 38866 | Z38: 74284
B39: All subjects | C39: 55347 | D39: 56758 | E39: 64669 | F39: 58701 | G39: 40930 | H39: 36225 | I39: 65507 | J39: 71808 | K39: 79077 | L39: 66328 | M39: 42964 | N39: 34048 | O39: 120854 | P39: 128566 | Q39: 143746 | R39: 125029 | S39: 83894 | T39: 70273 | U39: 312630 | V39: 359732 | W39: 672362 | X39: 276405 | Y39: 325684 | Z39: 602089
B41: Biological Sciences | C41: 16 | D41: 18.2 | E41: 19.3 | F41: 18.6 | G41: 15.4 | H41: 87.5 | I41: 17752 | J41: 18.8 | K41: 20.8 | L41: 20.2 | M41: 17.1 | N41: 13 | O41: 90.1 | P41: 28438 | Q41: 17.7 | R41: 19.8 | S41: 19.9 | T41: 17.7 | U41: 13.9 | V41: 89.1 | W41: 46190
B42: Chemistry | C42: 24.1 | D42: 21.3 | E42: 18.4 | F42: 15.1 | G42: 10.9 | H42: 89.7 | I42: 18253 | J42: 27.2 | K42: 23.1 | L42: 18.9 | M42: 14.2 | N42: 9 | O42: 92.5 | P42: 17037 | Q42: 25.6 | R42: 22.2 | S42: 18.6 | T42: 14.7 | U42: 10 | V42: 91.1 | W42: 35290
B43: Physics | C43: 24.1 | D43: 19.2 | E43: 18.4 | F43: 15.6 | G43: 11.8 | H43: 89.2 | I43: 21795 | J43: 28.8 | K43: 22.2 | L43: 18.3 | M43: 13.5 | N43: 9.8 | O43: 92.5 | P43: 6396 | Q43: 25.2 | R43: 19.9 | S43: 18.4 | T43: 15.1 | U43: 11.3 | V43: 89.9 | W43: 28191
B44: Other Science | C44: 14.5 | D44: 13.4 | E44: 20.7 | F44: 21.7 | G44: 16.5 | H44: 86.9 | I44: 2396 | J44: 13.3 | K44: 17.3 | L44: 21.6 | M44: 21.5 | N44: 15.4 | O44: 89.2 | P44: 1438 | Q44: 14 | R44: 14.9 | S44: 21 | T44: 21.6 | U44: 16.1 | V44: 87.7 | W44: 3834
B45: Mathematics | C45: 26.8 | D45: 18.5 | E45: 16.9 | F45: 15.1 | G45: 10.9 | H45: 88.2 | I45: 33499 | J45: 28.7 | K45: 20.4 | L45: 17.7 | M45: 14.3 | N45: 10.2 | O45: 91.3 | P45: 20175 | Q45: 27.5 | R45: 19.2 | S45: 17.2 | T45: 14.8 | U45: 10.7 | V45: 89.4 | W45: 53674
B46: Further Mathematics | C46: 49.9 | D46: 18.8 | E46: 13 | F46: 9 | G46: 5.3 | H46: 96.1 | I46: 3520 | J46: 51.5 | K46: 18.6 | L46: 13 | M46: 8.5 | N46: 4.5 | O46: 96.2 | P46: 1495 | Q46: 50.4 | R46: 18.8 | S46: 13 | T46: 8.9 | U46: 5.1 | V46: 96.1 | W46: 5015
B47: Design and Technology | C47: 13.3 | D47: 15.7 | E47: 25.9 | F47: 22.2 | G47: 13.9 | H47: 91 | I47: 9159 | J47: 14.9 | K47: 18.9 | L47: 28 | M47: 22.2 | N47: 10.5 | O47: 94.5 | P47: 3591 | Q47: 13.8 | R47: 16.6 | S47: 26.5 | T47: 22.2 | U47: 13 | V47: 92 | W47: 12750
B48: Computer Studies | C48: 9.9 | D48: 13.6 | E48: 18.1 | F48: 20.7 | G48: 17.2 | H48: 79.5 | I48: 9230 | J48: 6.2 | K48: 11.9 | L48: 18.3 | M48: 20.4 | N48: 20.2 | O48: 77.1 | P48: 1621 | Q48: 9.4 | R48: 13.3 | S48: 18.1 | T48: 20.7 | U48: 17.7 | V48: 79.2 | W48: 10851
B49: ICT | C49: 5 | D49: 14 | E49: 25 | F49: 27.8 | G49: 17.5 | H49: 89.3 | I49: 4154 | J49: 6.1 | K49: 15.1 | L49: 26.3 | M49: 28.4 | N49: 15.9 | O49: 91.8 | P49: 2133 | Q49: 5.4 | R49: 14.4 | S49: 25.4 | T49: 28 | U49: 17 | V49: 90.2 | W49: 6287
B50: Home Economics | C50: 3.2 | D50: 7.4 | E50: 16 | F50: 26.6 | G50: 18.1 | H50: 71.3 | I50: 94 | J50: 12.7 | K50: 14.1 | L50: 22.5 | M50: 21.2 | N50: 13.1 | O50: 83.7 | P50: 1244 | Q50: 12 | R50: 13.7 | S50: 22 | T50: 21.6 | U50: 13.5 | V50: 82.8 | W50: 1338
B51: Accounting and Finance | C51: 9.6 | D51: 14.6 | E51: 16.3 | F51: 16.6 | G51: 11.8 | H51: 68.8 | I51: 1208 | J51: 9.1 | K51: 14.8 | L51: 17.4 | M51: 16.4 | N51: 14 | O51: 71.7 | P51: 736 | Q51: 9.4 | R51: 14.7 | S51: 16.7 | T51: 16.5 | U51: 12.6 | V51: 69.9 | W51: 1944
B52: Business Studies | C52: 8.8 | D52: 19.2 | E52: 26 | F52: 21.9 | G52: 13.4 | H52: 89.4 | I52: 16899 | J52: 11.4 | K52: 20 | L52: 25.7 | M52: 20.5 | N52: 12.1 | O52: 89.7 | P52: 14177 | Q52: 10 | R52: 19.6 | S52: 25.9 | T52: 21.3 | U52: 12.8 | V52: 89.5 | W52: 31076
B53: Economics | C53: 21.2 | D53: 18.7 | E53: 18.9 | F53: 17.8 | G53: 12.5 | H53: 89.2 | I53: 11350 | J53: 21.5 | K53: 18.5 | L53: 18.4 | M53: 17.4 | N53: 12.8 | O53: 88.6 | P53: 5934 | Q53: 21.3 | R53: 18.6 | S53: 18.7 | T53: 17.7 | U53: 12.6 | V53: 88.9 | W53: 17284
B54: Geography | C54: 15.5 | D54: 21.1 | E54: 23.1 | F54: 19.2 | G54: 12.8 | H54: 91.7 | I54: 17931 | J54: 21.4 | K54: 23.9 | L54: 22.3 | M54: 16.3 | N54: 9.7 | O54: 93.6 | P54: 15086 | Q54: 18.2 | R54: 22.4 | S54: 22.7 | T54: 17.9 | U54: 11.4 | V54: 92.6 | W54: 33017
B55: Government and Politics | C55: 22.2 | D55: 21.5 | E55: 22.9 | F55: 15 | G55: 10.3 | H55: 92 | I55: 4129 | J55: 24.2 | K55: 22.5 | L55: 20.8 | M55: 15 | N55: 9.7 | O55: 92.1 | P55: 3157 | Q55: 23 | R55: 21.9 | S55: 22 | T55: 15 | U55: 10 | V55: 92.1 | W55: 7286
B56: History | C56: 17.5 | D56: 20.2 | E56: 22.1 | F56: 18.1 | G56: 11.3 | H56: 89.3 | I56: 15044 | J56: 17.6 | K56: 20.1 | L56: 22.5 | M56: 17.6 | N56: 11.4 | O56: 89.2 | P56: 18096 | Q56: 17.5 | R56: 20.2 | S56: 22.3 | T56: 17.8 | U56: 11.4 | V56: 89.2 | W56: 33140
B57: Law | C57: 8.7 | D57: 14 | E57: 18.3 | F57: 17.2 | G57: 15 | H57: 73.3 | I57: 2789 | J57: 11.8 | K57: 16.6 | L57: 17.6 | M57: 17.2 | N57: 14.7 | O57: 77.9 | P57: 4400 | Q57: 10.6 | R57: 15.6 | S57: 17.9 | T57: 17.2 | U57: 14.8 | V57: 76.1 | W57: 7189
B58: Psychology | C58: 8 | D58: 14.2 | E58: 21 | F58: 20.6 | G58: 17 | H58: 80.8 | I58: 5637 | J58: 14 | K58: 21.4 | L58: 21.6 | M58: 18.8 | N58: 13.2 | O58: 89 | P58: 19436 | Q58: 12.6 | R58: 19.8 | S58: 21.5 | T58: 19.2 | U58: 14 | V58: 87.1 | W58: 25073
B59: Sociology | C59: 11.7 | D59: 17.6 | E59: 19.3 | F59: 17.9 | G59: 14.7 | H59: 81.1 | I59: 4447 | J59: 15.1 | K59: 21.1 | L59: 20.7 | M59: 17.1 | N59: 12.6 | O59: 86.6 | P59: 15123 | Q59: 14.3 | R59: 20.3 | S59: 20.4 | T59: 17.3 | U59: 13.1 | V59: 85.3 | W59: 19570
B60: Other social studies | C60: 9.7 | D60: 14.1 | E60: 16.3 | F60: 15.2 | G60: 17 | H60: 72.3 | I60: 658 | J60: 13.5 | K60: 16 | L60: 16.6 | M60: 19.5 | N60: 15.2 | O60: 80.7 | P60: 771 | Q60: 11.8 | R60: 15.1 | S60: 16.4 | T60: 17.5 | U60: 16 | V60: 76.8 | W60: 1429
B61: Art and Design | C61: 20.1 | D61: 18.8 | E61: 22.9 | F61: 18.3 | G61: 11 | H61: 91 | I61: 12516 | J61: 24.6 | K61: 21.5 | L61: 24.3 | M61: 16.4 | N61: 8 | O61: 94.8 | P61: 21634 | Q61: 22.9 | R61: 20.5 | S61: 23.8 | T61: 17.1 | U61: 9.1 | V61: 93.4 | W61: 34150
B62: Drama | C62: 12.2 | D62: 14.7 | E62: 26.9 | F62: 22 | G62: 13.5 | H62: 89.3 | I62: 3052 | J62: 14.5 | K62: 18.6 | L62: 28.5 | M62: 20.9 | N62: 10.5 | O62: 93.1 | P62: 8043 | Q62: 13.9 | R62: 17.6 | S62: 28 | T62: 21.2 | U62: 11.3 | V62: 92 | W62: 11095
B63: English | C63: 16.9 | D63: 19.8 | E63: 23.2 | F63: 20 | G63: 12.5 | H63: 92.5 | I63: 21893 | J63: 15.6 | K63: 19.6 | L63: 24.5 | M63: 21.4 | N63: 12.6 | O63: 93.8 | P63: 52450 | Q63: 16 | R63: 19.6 | S63: 24.2 | T63: 21 | U63: 12.6 | V63: 93.4 | W63: 74343
B64: Media/Film/TV Studies | C64: 8 | D64: 14.1 | E64: 28.9 | F64: 28 | G64: 14.1 | H64: 93.1 | I64: 5008 | J64: 10.2 | K64: 18.7 | L64: 31.6 | M64: 24.9 | N64: 10.2 | O64: 95.5 | P64: 7158 | Q64: 9.3 | R64: 16.8 | S64: 30.4 | T64: 26.2 | U64: 11.8 | V64: 94.5 | W64: 12166
B65: Other Communication Studies | C65: 9 | D65: 15.7 | E65: 20 | F65: 20.3 | G65: 14.9 | H65: 79.8 | I65: 2439 | J65: 9.7 | K65: 22.2 | L65: 26.2 | M65: 21.3 | N65: 10.5 | O65: 89.9 | P65: 4750 | Q65: 9.5 | R65: 20 | S65: 24.1 | T65: 20.9 | U65: 12 | V65: 86.5 | W65: 7189
B66: French | C66: 26.5 | D66: 21.9 | E66: 19.9 | F66: 14.5 | G66: 10 | H66: 92.8 | I66: 4456 | J66: 22.8 | K66: 21.1 | L66: 20.1 | M66: 17 | N66: 11 | O66: 92.1 | P66: 10784 | Q66: 23.8 | R66: 21.4 | S66: 20 | T66: 16.3 | U66: 10.7 | V66: 92.3 | W66: 15240
B67: German | C67: 34.6 | D67: 19.8 | E67: 15.8 | F67: 13.7 | G67: 9.5 | H67: 93.4 | I67: 2434 | J67: 26.9 | K67: 19.8 | L67: 19.4 | M67: 16.3 | N67: 11.3 | O67: 93.6 | P67: 5147 | Q67: 29.4 | R67: 19.8 | S67: 18.2 | T67: 15.5 | U67: 10.7 | V67: 93.5 | W67: 7581
B68: Spanish | C68: 27.8 | D68: 25.7 | E68: 19.6 | F68: 13.2 | G68: 8.3 | H68: 94.7 | I68: 1351 | J68: 24.4 | K68: 23.9 | L68: 19.6 | M68: 14.6 | N68: 10 | O68: 92.5 | P68: 3165 | Q68: 25.4 | R68: 24.4 | S68: 19.6 | T68: 14.2 | U68: 9.5 | V68: 93.2 | W68: 4516
B69: Other modern languages | C69: 32.8 | D69: 23.7 | E69: 16 | F69: 10.3 | G69: 6.7 | H69: 89.5 | I69: 1584 | J69: 39.5 | K69: 27.3 | L69: 16.5 | M69: 8.5 | N69: 3.9 | O69: 95.7 | P69: 2076 | Q69: 36.6 | R69: 25.8 | S69: 16.3 | T69: 9.3 | U69: 5.1 | V69: 93 | W69: 3660
B70: Classical Studies | C70: 29.7 | D70: 21.8 | E70: 20.2 | F70: 14 | G70: 7.4 | H70: 93.1 | I70: 2140 | J70: 29.4 | K70: 25 | L70: 21.1 | M70: 12.3 | N70: 6.9 | O70: 94.8 | P70: 2879 | Q70: 29.5 | R70: 23.7 | S70: 20.7 | T70: 13.1 | U70: 7.1 | V70: 94.1 | W70: 5019
B71: Religious Studies | C71: 18.3 | D71: 24.4 | E71: 22.8 | F71: 17.1 | G71: 8.2 | H71: 90.8 | I71: 1839 | J71: 15.5 | K71: 22.6 | L71: 24.6 | M71: 18.9 | N71: 10.6 | O71: 92.2 | P71: 5322 | Q71: 16.2 | R71: 23.1 | S71: 24.1 | T71: 18.4 | U71: 10 | V71: 91.8 | W71: 7161
B72: Music | C72: 21.1 | D72: 18.6 | E72: 22.6 | F72: 19.1 | G72: 10.7 | H72: 92 | I72: 2651 | J72: 22.2 | K72: 20.3 | L72: 24.3 | M72: 18 | N72: 9.6 | O72: 94.4 | P72: 3476 | Q72: 21.7 | R72: 19.5 | S72: 23.5 | T72: 18.5 | U72: 10.1 | V72: 93.4 | W72: 6127
B73: Physical Education | C73: 7.2 | D73: 11.8 | E73: 23.4 | F73: 27.8 | G73: 19.4 | H73: 89.6 | I73: 9586 | J73: 16.2 | K73: 17.2 | L73: 23.4 | M73: 22 | N73: 13.8 | O73: 92.6 | P73: 6267 | Q73: 10.8 | R73: 13.9 | S73: 23.4 | T73: 25.5 | U73: 17.2 | V73: 90.8 | W73: 15853
B74: General Studies | C74: 13.1 | D74: 16.1 | E74: 19.6 | F74: 20.6 | G74: 15.5 | H74: 84.9 | I74: 41737 | J74: 11.9 | K74: 15.5 | L74: 20.1 | M74: 20.8 | N74: 16 | O74: 84.3 | P74: 46097 | Q74: 12.5 | R74: 15.8 | S74: 19.9 | T74: 20.7 | U74: 15.7 | V74: 84.6 | W74: 87834
B75: All subjects | C75: 17.7 | D75: 18.2 | E75: 20.7 | F75: 18.8 | G75: 13.1 | H75: 88.4 | I75: 312630 | J75: 18.2 | K75: 20 | L75: 22 | M75: 18.4 | N75: 11.9 | O75: 90.5 | P75: 359732 | Q75: 18 | R75: 19.1 | S75: 21.4 | T75: 18.6 | U75: 12.5 | V75: 89.5 | W75: 672362
B77: Biological Sciences | C77: =ROUND(C41,1) -> 16 | D77: =ROUND(D41,1) -> 18.2 | E77: 19.3 | F77: 18.6 | G77: 15.4 | H77: 87.5 | I77: =ROUND(I41,0) -> 17752 | J77: 18.8 | K77: 20.8 | L77: 20.2 | M77: 17.1 | N77: 13 | O77: 90.1 | P77: =ROUND(P41,0) -> 28438 | Q77: 17.7 | R77: 19.8 | S77: 19.9 | T77: 17.7 | U77: 13.9 | V77: 89.1 | W77: =ROUND(W41,0) -> 46190
B78: Chemistry | C78: =ROUND(C42,1) -> 24.1 | D78: 21.3 | E78: 18.4 | F78: 15.1 | G78: 10.9 | H78: 89.7 | I78: =ROUND(I42,0) -> 18253 | J78: =ROUND(J42,1) -> 27.2 | K78: 23.1 | L78: 18.9 | M78: 14.2 | N78: 9 | O78: 92.5 | P78: =ROUND(P42,0) -> 17037 | Q78: =ROUND(Q42,1) -> 25.6 | R78: 22.2 | S78: 18.6 | T78: 14.7 | U78: 10 | V78: 91.1 | W78: =ROUND(W42,0) -> 35290
B79: Physics | C79: =ROUND(C43,1) -> 24.1 | D79: 19.2 | E79: 18.4 | F79: 15.6 | G79: 11.8 | H79: 89.2 | I79: 21795 | J79: =ROUND(J43,1) -> 28.8 | K79: 22.2 | L79: 18.3 | M79: 13.5 | N79: 9.8 | O79: 92.5 | P79: 6396 | Q79: =ROUND(Q43,1) -> 25.2 | R79: 19.9 | S79: 18.4 | T79: 15.1 | U79: 11.3 | V79: 89.9 | W79: 28191
B80: Other Science | C80: =ROUND(C44,1) -> 14.5 | D80: 13.4 | E80: 20.7 | F80: 21.7 | G80: 16.5 | H80: 86.9 | I80: 2396 | J80: =ROUND(J44,1) -> 13.3 | K80: 17.3 | L80: 21.6 | M80: 21.5 | N80: 15.4 | O80: 89.2 | P80: 1438 | Q80: =ROUND(Q44,1) -> 14 | R80: 14.9 | S80: 21 | T80: 21.6 | U80: 16.1 | V80: 87.7 | W80: 3834
B81: Mathematics | C81: =ROUND(C45,1) -> 26.8 | D81: 18.5 | E81: 16.9 | F81: 15.1 | G81: 10.9 | H81: 88.2 | I81: 33499 | J81: =ROUND(J45,1) -> 28.7 | K81: 20.4 | L81: 17.7 | M81: 14.3 | N81: 10.2 | O81: 91.3 | P81: 20175 | Q81: =ROUND(Q45,1) -> 27.5 | R81: 19.2 | S81: 17.2 | T81: 14.8 | U81: 10.7 | V81: 89.4 | W81: 53674
B82: Further Mathematics | C82: =ROUND(C46,1) -> 49.9 | D82: 18.8 | E82: 13 | F82: 9 | G82: 5.3 | H82: 96.1 | I82: 3520 | J82: =ROUND(J46,1) -> 51.5 | K82: 18.6 | L82: 13 | M82: 8.5 | N82: 4.5 | O82: 96.2 | P82: 1495 | Q82: =ROUND(Q46,1) -> 50.4 | R82: 18.8 | S82: 13 | T82: 8.9 | U82: 5.1 | V82: 96.1 | W82: 5015
B83: Design and Technology | C83: =ROUND(C47,1) -> 13.3 | D83: 15.7 | E83: 25.9 | F83: 22.2 | G83: 13.9 | H83: 91 | I83: 9159 | J83: =ROUND(J47,1) -> 14.9 | K83: 18.9 | L83: 28 | M83: 22.2 | N83: 10.5 | O83: 94.5 | P83: 3591 | Q83: =ROUND(Q47,1) -> 13.8 | R83: 16.6 | S83: 26.5 | T83: 22.2 | U83: 13 | V83: 92 | W83: 12750
B84: Computer Studies | C84: =ROUND(C48,1) -> 9.9 | D84: 13.6 | E84: 18.1 | F84: 20.7 | G84: 17.2 | H84: 79.5 | I84: 9230 | J84: =ROUND(J48,1) -> 6.2 | K84: 11.9 | L84: 18.3 | M84: 20.4 | N84: 20.2 | O84: 77.1 | P84: 1621 | Q84: =ROUND(Q48,1) -> 9.4 | R84: 13.3 | S84: 18.1 | T84: 20.7 | U84: 17.7 | V84: 79.2 | W84: 10851
B85: ICT | C85: =ROUND(C49,1) -> 5 | D85: 14 | E85: 25 | F85: 27.8 | G85: 17.5 | H85: 89.3 | I85: 4154 | J85: =ROUND(J49,1) -> 6.1 | K85: 15.1 | L85: 26.3 | M85: 28.4 | N85: 15.9 | O85: 91.8 | P85: 2133 | Q85: =ROUND(Q49,1) -> 5.4 | R85: 14.4 | S85: 25.4 | T85: 28 | U85: 17 | V85: 90.2 | W85: 6287
B86: Home Economics | C86: =ROUND(C50,1) -> 3.2 | D86: 7.4 | E86: 16 | F86: 26.6 | G86: 18.1 | H86: 71.3 | I86: 94 | J86: =ROUND(J50,1) -> 12.7 | K86: 14.1 | L86: 22.5 | M86: 21.2 | N86: 13.1 | O86: 83.7 | P86: 1244 | Q86: =ROUND(Q50,1) -> 12 | R86: 13.7 | S86: 22 | T86: 21.6 | U86: 13.5 | V86: 82.8 | W86: 1338
B87: Accounting and Finance | C87: =ROUND(C51,1) -> 9.6 | D87: 14.6 | E87: 16.3 | F87: 16.6 | G87: 11.8 | H87: 68.8 | I87: 1208 | J87: =ROUND(J51,1) -> 9.1 | K87: 14.8 | L87: 17.4 | M87: 16.4 | N87: 14 | O87: 71.7 | P87: 736 | Q87: =ROUND(Q51,1) -> 9.4 | R87: 14.7 | S87: 16.7 | T87: 16.5 | U87: 12.6 | V87: 69.9 | W87: 1944
B88: Business Studies | C88: =ROUND(C52,1) -> 8.8 | D88: 19.2 | E88: 26 | F88: 21.9 | G88: 13.4 | H88: 89.4 | I88: 16899 | J88: =ROUND(J52,1) -> 11.4 | K88: 20 | L88: 25.7 | M88: 20.5 | N88: 12.1 | O88: 89.7 | P88: 14177 | Q88: =ROUND(Q52,1) -> 10 | R88: 19.6 | S88: 25.9 | T88: 21.3 | U88: 12.8 | V88: 89.5 | W88: 31076
B89: Economics | C89: =ROUND(C53,1) -> 21.2 | D89: 18.7 | E89: 18.9 | F89: 17.8 | G89: 12.5 | H89: 89.2 | I89: 11350 | J89: =ROUND(J53,1) -> 21.5 | K89: 18.5 | L89: 18.4 | M89: 17.4 | N89: 12.8 | O89: 88.6 | P89: 5934 | Q89: =ROUND(Q53,1) -> 21.3 | R89: 18.6 | S89: 18.7 | T89: 17.7 | U89: 12.6 | V89: 88.9 | W89: 17284
B90: Geography | C90: =ROUND(C54,1) -> 15.5 | D90: 21.1 | E90: 23.1 | F90: 19.2 | G90: 12.8 | H90: 91.7 | I90: 17931 | J90: =ROUND(J54,1) -> 21.4 | K90: 23.9 | L90: 22.3 | M90: 16.3 | N90: 9.7 | O90: 93.6 | P90: 15086 | Q90: =ROUND(Q54,1) -> 18.2 | R90: 22.4 | S90: 22.7 | T90: 17.9 | U90: 11.4 | V90: 92.6 | W90: 33017
B91: Government and Politics | C91: =ROUND(C55,1) -> 22.2 | D91: 21.5 | E91: 22.9 | F91: 15 | G91: 10.3 | H91: 92 | I91: 4129 | J91: =ROUND(J55,1) -> 24.2 | K91: 22.5 | L91: 20.8 | M91: 15 | N91: 9.7 | O91: 92.1 | P91: 3157 | Q91: =ROUND(Q55,1) -> 23 | R91: 21.9 | S91: 22 | T91: 15 | U91: 10 | V91: 92.1 | W91: 7286
B92: History | C92: =ROUND(C56,1) -> 17.5 | D92: 20.2 | E92: 22.1 | F92: 18.1 | G92: 11.3 | H92: 89.3 | I92: 15044 | J92: =ROUND(J56,1) -> 17.6 | K92: 20.1 | L92: 22.5 | M92: 17.6 | N92: 11.4 | O92: 89.2 | P92: 18096 | Q92: =ROUND(Q56,1) -> 17.5 | R92: 20.2 | S92: 22.3 | T92: 17.8 | U92: 11.4 | V92: 89.2 | W92: 33140
B93: Law | C93: =ROUND(C57,1) -> 8.7 | D93: 14 | E93: 18.3 | F93: 17.2 | G93: 15 | H93: 73.3 | I93: 2789 | J93: =ROUND(J57,1) -> 11.8 | K93: 16.6 | L93: 17.6 | M93: 17.2 | N93: 14.7 | O93: 77.9 | P93: 4400 | Q93: =ROUND(Q57,1) -> 10.6 | R93: 15.6 | S93: 17.9 | T93: 17.2 | U93: 14.8 | V93: 76.1 | W93: 7189
B94: Psychology | C94: =ROUND(C58,1) -> 8 | D94: 14.2 | E94: 21 | F94: 20.6 | G94: 17 | H94: 80.8 | I94: 5637 | J94: =ROUND(J58,1) -> 14 | K94: 21.4 | L94: 21.6 | M94: 18.8 | N94: 13.2 | O94: 89 | P94: 19436 | Q94: =ROUND(Q58,1) -> 12.6 | R94: 19.8 | S94: 21.5 | T94: 19.2 | U94: 14 | V94: 87.1 | W94: 25073
B95: Sociology | C95: =ROUND(C59,1) -> 11.7 | D95: 17.6 | E95: 19.3 | F95: 17.9 | G95: 14.7 | H95: 81.1 | I95: 4447 | J95: =ROUND(J59,1) -> 15.1 | K95: 21.1 | L95: 20.7 | M95: 17.1 | N95: 12.6 | O95: 86.6 | P95: 15123 | Q95: =ROUND(Q59,1) -> 14.3 | R95: 20.3 | S95: 20.4 | T95: 17.3 | U95: 13.1 | V95: 85.3 | W95: 19570
B96: Other social studies | C96: =ROUND(C60,1) -> 9.7 | D96: 14.1 | E96: 16.3 | F96: 15.2 | G96: 17 | H96: 72.3 | I96: 658 | J96: =ROUND(J60,1) -> 13.5 | K96: 16 | L96: 16.6 | M96: 19.5 | N96: 15.2 | O96: 80.7 | P96: 771 | Q96: =ROUND(Q60,1) -> 11.8 | R96: 15.1 | S96: 16.4 | T96: 17.5 | U96: 16 | V96: 76.8 | W96: 1429
B97: Art and Design | C97: =ROUND(C61,1) -> 20.1 | D97: 18.8 | E97: 22.9 | F97: 18.3 | G97: 11 | H97: 91 | I97: 12516 | J97: =ROUND(J61,1) -> 24.6 | K97: 21.5 | L97: 24.3 | M97: 16.4 | N97: 8 | O97: 94.8 | P97: 21634 | Q97: =ROUND(Q61,1) -> 22.9 | R97: 20.5 | S97: 23.8 | T97: 17.1 | U97: 9.1 | V97: 93.4 | W97: 34150
B98: Drama | C98: =ROUND(C62,1) -> 12.2 | D98: 14.7 | E98: 26.9 | F98: 22 | G98: 13.5 | H98: 89.3 | I98: 3052 | J98: =ROUND(J62,1) -> 14.5 | K98: 18.6 | L98: 28.5 | M98: 20.9 | N98: 10.5 | O98: 93.1 | P98: 8043 | Q98: =ROUND(Q62,1) -> 13.9 | R98: 17.6 | S98: 28 | T98: 21.2 | U98: 11.3 | V98: 92 | W98: 11095
B99: English | C99: =ROUND(C63,1) -> 16.9 | D99: 19.8 | E99: 23.2 | F99: 20 | G99: 12.5 | H99: 92.5 | I99: 21893 | J99: =ROUND(J63,1) -> 15.6 | K99: 19.6 | L99: 24.5 | M99: 21.4 | N99: 12.6 | O99: 93.8 | P99: 52450 | Q99: =ROUND(Q63,1) -> 16 | R99: 19.6 | S99: 24.2 | T99: 21 | U99: 12.6 | V99: 93.4 | W99: 74343
B100: Media/Film/TV Studies | C100: =ROUND(C64,1) -> 8 | D100: 14.1 | E100: 28.9 | F100: 28 | G100: 14.1 | H100: 93.1 | I100: 5008 | J100: =ROUND(J64,1) -> 10.2 | K100: 18.7 | L100: 31.6 | M100: 24.9 | N100: 10.2 | O100: 95.5 | P100: 7158 | Q100: =ROUND(Q64,1) -> 9.3 | R100: 16.8 | S100: 30.4 | T100: 26.2 | U100: 11.8 | V100: 94.5 | W100: 12166
B101: Other Communication Studies | C101: =ROUND(C65,1) -> 9 | D101: 15.7 | E101: 20 | F101: 20.3 | G101: 14.9 | H101: 79.8 | I101: 2439 | J101: =ROUND(J65,1) -> 9.7 | K101: 22.2 | L101: 26.2 | M101: 21.3 | N101: 10.5 | O101: 89.9 | P101: 4750 | Q101: =ROUND(Q65,1) -> 9.5 | R101: 20 | S101: 24.1 | T101: 20.9 | U101: 12 | V101: 86.5 | W101: 7189
B102: French | C102: =ROUND(C66,1) -> 26.5 | D102: 21.9 | E102: 19.9 | F102: 14.5 | G102: 10 | H102: 92.8 | I102: 4456 | J102: =ROUND(J66,1) -> 22.8 | K102: 21.1 | L102: 20.1 | M102: 17 | N102: 11 | O102: 92.1 | P102: 10784 | Q102: =ROUND(Q66,1) -> 23.8 | R102: 21.4 | S102: 20 | T102: 16.3 | U102: 10.7 | V102: 92.3 | W102: 15240
B103: German | C103: =ROUND(C67,1) -> 34.6 | D103: 19.8 | E103: 15.8 | F103: 13.7 | G103: 9.5 | H103: 93.4 | I103: 2434 | J103: =ROUND(J67,1) -> 26.9 | K103: 19.8 | L103: 19.4 | M103: 16.3 | N103: 11.3 | O103: 93.6 | P103: 5147 | Q103: =ROUND(Q67,1) -> 29.4 | R103: 19.8 | S103: 18.2 | T103: 15.5 | U103: 10.7 | V103: 93.5 | W103: 7581
B104: Spanish | C104: =ROUND(C68,1) -> 27.8 | D104: 25.7 | E104: 19.6 | F104: 13.2 | G104: 8.3 | H104: 94.7 | I104: 1351 | J104: =ROUND(J68,1) -> 24.4 | K104: 23.9 | L104: 19.6 | M104: 14.6 | N104: 10 | O104: 92.5 | P104: 3165 | Q104: =ROUND(Q68,1) -> 25.4 | R104: 24.4 | S104: 19.6 | T104: 14.2 | U104: 9.5 | V104: 93.2 | W104: 4516
B105: Other modern languages | C105: =ROUND(C69,1) -> 32.8 | D105: 23.7 | E105: 16 | F105: 10.3 | G105: 6.7 | H105: 89.5 | I105: 1584 | J105: =ROUND(J69,1) -> 39.5 | K105: 27.3 | L105: 16.5 | M105: 8.5 | N105: 3.9 | O105: 95.7 | P105: 2076 | Q105: =ROUND(Q69,1) -> 36.6 | R105: 25.8 | S105: 16.3 | T105: 9.3 | U105: 5.1 | V105: 93 | W105: 3660
B106: Classical Studies | C106: =ROUND(C70,1) -> 29.7 | D106: 21.8 | E106: 20.2 | F106: 14 | G106: 7.4 | H106: 93.1 | I106: 2140 | J106: =ROUND(J70,1) -> 29.4 | K106: 25 | L106: 21.1 | M106: 12.3 | N106: 6.9 | O106: 94.8 | P106: 2879 | Q106: =ROUND(Q70,1) -> 29.5 | R106: 23.7 | S106: 20.7 | T106: 13.1 | U106: 7.1 | V106: 94.1 | W106: 5019
B107: Religious Studies | C107: =ROUND(C71,1) -> 18.3 | D107: 24.4 | E107: 22.8 | F107: 17.1 | G107: 8.2 | H107: 90.8 | I107: 1839 | J107: =ROUND(J71,1) -> 15.5 | K107: 22.6 | L107: 24.6 | M107: 18.9 | N107: 10.6 | O107: 92.2 | P107: 5322 | Q107: =ROUND(Q71,1) -> 16.2 | R107: 23.1 | S107: 24.1 | T107: 18.4 | U107: 10 | V107: 91.8 | W107: 7161
B108: Music | C108: =ROUND(C72,1) -> 21.1 | D108: 18.6 | E108: 22.6 | F108: 19.1 | G108: 10.7 | H108: 92 | I108: 2651 | J108: =ROUND(J72,1) -> 22.2 | K108: 20.3 | L108: 24.3 | M108: 18 | N108: 9.6 | O108: 94.4 | P108: 3476 | Q108: =ROUND(Q72,1) -> 21.7 | R108: 19.5 | S108: 23.5 | T108: 18.5 | U108: 10.1 | V108: 93.4 | W108: 6127
B109: Physical Education | C109: =ROUND(C73,1) -> 7.2 | D109: 11.8 | E109: 23.4 | F109: 27.8 | G109: 19.4 | H109: 89.6 | I109: 9586 | J109: =ROUND(J73,1) -> 16.2 | K109: 17.2 | L109: 23.4 | M109: 22 | N109: 13.8 | O109: 92.6 | P109: 6267 | Q109: =ROUND(Q73,1) -> 10.8 | R109: 13.9 | S109: 23.4 | T109: 25.5 | U109: 17.2 | V109: 90.8 | W109: 15853
B110: General Studies | C110: =ROUND(C74,1) -> 13.1 | D110: 16.1 | E110: 19.6 | F110: 20.6 | G110: 15.5 | H110: 84.9 | I110: 41737 | J110: =ROUND(J74,1) -> 11.9 | K110: 15.5 | L110: 20.1 | M110: 20.8 | N110: 16 | O110: 84.3 | P110: 46097 | Q110: =ROUND(Q74,1) -> 12.5 | R110: 15.8 | S110: 19.9 | T110: 20.7 | U110: 15.7 | V110: 84.6 | W110: 87834
B111: All subjects | C111: 17.7 | D111: 18.2 | E111: 20.7 | F111: 18.8 | G111: 13.1 | H111: 88.4 | I111: 312630 | J111: 18.2 | K111: 20 | L111: 22 | M111: 18.4 | N111: 11.9 | O111: 90.5 | P111: 359732 | Q111: 18 | R111: 19.1 | S111: 21.4 | T111: 18.6 | U111: 12.5 | V111: 89.5 | W111: 672362

Sheet 2001data_new (hidden)
C3: Males | I3: Females | O3: Total | U3: total entries | X3: total passes
C4: A | D4: B | E4: C | F4: D | G4: E | H4: other | I4: A | J4: B | K4: C | L4: D | M4: E | N4: other | O4: A | P4: B | Q4: C | R4: D | S4: E | T4: other | U4: Male | V4: Female | W4: Male and Female | X4: Male | Y4: Female | Z4: Male and Female
B5: Biological Sciences | C5: 2836 | D5: 3175 | E5: 3392 | F5: 2969 | G5: 2589 | H5: 2064 | I5: 5487 | J5: 5771 | K5: 5481 | L5: 4625 | M5: 3521 | N5: 2682 | O5: 8323 | P5: 8946 | Q5: 8873 | R5: 7594 | S5: 6110 | T5: 4746 | U5: 17025 | V5: 27567 | W5: 44592 | X5: 14961 | Y5: 24885 | Z5: 39846
B6: Chemistry | C6: 4384 | D6: 3570 | E6: 3150 | F6: 2535 | G6: 1882 | H6: 1603 | I6: 4597 | J6: 3861 | K6: 3151 | L6: 2239 | M6: 1637 | N6: 1262 | O6: 8981 | P6: 7431 | Q6: 6301 | R6: 4774 | S6: 3519 | T6: 2865 | U6: 17124 | V6: 16747 | W6: 33871 | X6: 15521 | Y6: 15485 | Z6: 31006
B7: Physics | C7: 5373 | D7: 4215 | E7: 4069 | F7: 3279 | G7: 2673 | H7: 2401 | I7: 1665 | J7: 1393 | K7: 1098 | L7: 848 | M7: 560 | N7: 457 | O7: 7038 | P7: 5608 | Q7: 5167 | R7: 4127 | S7: 3233 | T7: 2858 | U7: 22010 | V7: 6021 | W7: 28031 | X7: 19609 | Y7: 5564 | Z7: 25173
B8: Other Science | C8: 390 | D8: 361 | E8: 473 | F8: 480 | G8: 371 | H8: 276 | I8: 168 | J8: 201 | K8: 278 | L8: 262 | M8: 207 | N8: 120 | O8: 558 | P8: 562 | Q8: 751 | R8: 742 | S8: 578 | T8: 396 | U8: 2351 | V8: 1236 | W8: 3587 | X8: 2075 | Y8: 1116 | Z8: 3191
B9: Mathematics | C9: 9131 | D9: 6014 | E9: 5428 | F9: 5037 | G9: 3985 | H9: 4308 | I9: 5653 | J9: 4147 | K9: 3582 | L9: 2888 | M9: 2123 | N9: 1861 | O9: 14784 | P9: 10161 | Q9: 9010 | R9: 7925 | S9: 6108 | T9: 6169 | U9: 33903 | V9: 20254 | W9: 54157 | X9: 29595 | Y9: 18393 | Z9: 47988
B10: Further Mathematics | C10: 1899 | D10: 670 | E10: 468 | F10: 325 | G10: 191 | H10: 184 | I10: 700 | J10: 249 | K10: 163 | L10: 110 | M10: 63 | N10: 41 | O10: 2599 | P10: 919 | Q10: 631 | R10: 435 | S10: 254 | T10: 225 | U10: 3737 | V10: 1326 | W10: 5063 | X10: 3553 | Y10: 1285 | Z10: 4838
B11: Design and Technology | C11: 1389 | D11: 1510 | E11: 2364 | F11: 2165 | G11: 1344 | H11: 909 | I11: 690 | J11: 811 | K11: 1143 | L11: 780 | M11: 437 | N11: 239 | O11: 2079 | P11: 2321 | Q11: 3507 | R11: 2945 | S11: 1781 | T11: 1148 | U11: 9681 | V11: 4100 | W11: 13781 | X11: 8772 | Y11: 3861 | Z11: 12633
B12: Computer Studies | C12: 1019 | D12: 1249 | E12: 1751 | F12: 1972 | G12: 1552 | H12: 1819 | I12: 111 | J12: 200 | K12: 312 | L12: 295 | M12: 290 | N12: 343 | O12: 1130 | P12: 1449 | Q12: 2063 | R12: 2267 | S12: 1842 | T12: 2162 | U12: 9362 | V12: 1551 | W12: 10913 | X12: 7543 | Y12: 1208 | Z12: 8751
B13: ICT | C13: 310 | D13: 855 | E13: 1564 | F13: 1607 | G13: 1138 | H13: 698 | I13: 183 | J13: 528 | K13: 763 | L13: 795 | M13: 524 | N13: 251 | O13: 493 | P13: 1383 | Q13: 2327 | R13: 2402 | S13: 1662 | T13: 949 | U13: 6172 | V13: 3044 | W13: 9216 | X13: 5474 | Y13: 2793 | Z13: 8267
B14: Home Economics | C14: 4 | D14: 5 | E14: 24 | F14: 12 | G14: 11 | H14: 19 | I14: 150 | J14: 193 | K14: 208 | L14: 231 | M14: 168 | N14: 165 | O14: 154 | P14: 198 | Q14: 232 | R14: 243 | S14: 179 | T14: 184 | U14: 75 | V14: 1115 | W14: 1190 | X14: 56 | Y14: 950 | Z14: 1006
B15: Accounting and Finance | C15: 123 | D15: 216 | E15: 181 | F15: 185 | G15: 149 | H15: 320 | I15: 76 | J15: 120 | K15: 125 | L15: 139 | M15: 120 | N15: 202 | O15: 199 | P15: 336 | Q15: 306 | R15: 324 | S15: 269 | T15: 522 | U15: 1174 | V15: 782 | W15: 1956 | X15: 854 | Y15: 580 | Z15: 1434
B16: Business Studies | C16: 1780 | D16: 3594 | E16: 4469 | F16: 3661 | G16: 2049 | H16: 1487 | I16: 1620 | J16: 2967 | K16: 3556 | L16: 2742 | M16: 1684 | N16: 1231 | O16: 3400 | P16: 6561 | Q16: 8025 | R16: 6403 | S16: 3733 | T16: 2718 | U16: 17040 | V16: 13800 | W16: 30840 | X16: 15553 | Y16: 12569 | Z16: 28122
B17: Economics | C17: 2514 | D17: 2146 | E17: 2271 | F17: 1973 | G17: 1260 | H17: 1066 | I17: 1280 | J17: 1051 | K17: 1153 | L17: 990 | M17: 630 | N17: 594 | O17: 3794 | P17: 3197 | Q17: 3424 | R17: 2963 | S17: 1890 | T17: 1660 | U17: 11230 | V17: 5698 | W17: 16928 | X17: 10164 | Y17: 5104 | Z17: 15268
B18: Geography | C18: 2852 | D18: 3864 | E18: 4069 | F18: 3457 | G18: 2198 | H18: 1465 | I18: 3513 | J18: 3563 | K18: 3385 | L18: 2421 | M18: 1413 | N18: 906 | O18: 6365 | P18: 7427 | Q18: 7454 | R18: 5878 | S18: 3611 | T18: 2371 | U18: 17905 | V18: 15201 | W18: 33106 | X18: 16440 | Y18: 14295 | Z18: 30735
B19: Government and Politics | C19: 893 | D19: 893 | E19: 945 | F19: 691 | G19: 401 | H19: 288 | I19: 698 | J19: 712 | K19: 648 | L19: 466 | M19: 263 | N19: 245 | O19: 1591 | P19: 1605 | Q19: 1593 | R19: 1157 | S19: 664 | T19: 533 | U19: 4111 | V19: 3032 | W19: 7143 | X19: 3823 | Y19: 2787 | Z19: 6610
B20: History | C20: 2904 | D20: 3367 | E20: 3561 | F20: 2793 | G20: 1628 | H20: 1640 | I20: 3397 | J20: 3708 | K20: 3905 | L20: 3116 | M20: 1835 | N20: 1976 | O20: 6301 | P20: 7075 | Q20: 7466 | R20: 5909 | S20: 3463 | T20: 3616 | U20: 15893 | V20: 17937 | W20: 33830 | X20: 14253 | Y20: 15961 | Z20: 30214
B21: Law | C21: 323 | D21: 405 | E21: 517 | F21: 497 | G21: 481 | H21: 670 | I21: 602 | J21: 714 | K21: 820 | L21: 777 | M21: 647 | N21: 945 | O21: 925 | P21: 1119 | Q21: 1337 | R21: 1274 | S21: 1128 | T21: 1615 | U21: 2893 | V21: 4505 | W21: 7398 | X21: 2223 | Y21: 3560 | Z21: 5783
B22: Psychology | C22: 525 | D22: 964 | E22: 1250 | F22: 1174 | G22: 878 | H22: 1120 | I22: 3120 | J22: 4514 | K22: 4667 | L22: 3669 | M22: 2595 | N22: 2207 | O22: 3645 | P22: 5478 | Q22: 5917 | R22: 4843 | S22: 3473 | T22: 3327 | U22: 5911 | V22: 20772 | W22: 26683 | X22: 4791 | Y22: 18565 | Z22: 23356
B23: Sociology | C23: 559 | D23: 744 | E23: 901 | F23: 821 | G23: 638 | H23: 819 | I23: 2258 | J23: 3094 | K23: 3060 | L23: 2405 | M23: 1869 | N23: 1923 | O23: 2817 | P23: 3838 | Q23: 3961 | R23: 3226 | S23: 2507 | T23: 2742 | U23: 4482 | V23: 14609 | W23: 19091 | X23: 3663 | Y23: 12686 | Z23: 16349
B24: Other social studies | C24: 66 | D24: 107 | E24: 128 | F24: 117 | G24: 76 | H24: 136 | I24: 106 | J24: 141 | K24: 146 | L24: 102 | M24: 98 | N24: 131 | O24: 172 | P24: 248 | Q24: 274 | R24: 219 | S24: 174 | T24: 267 | U24: 630 | V24: 724 | W24: 1354 | X24: 494 | Y24: 593 | Z24: 1087
B25: Art and Design | C25: 2819 | D25: 2250 | E25: 2969 | F25: 2285 | G25: 1224 | H25: 857 | I25: 6226 | J25: 5084 | K25: 5760 | L25: 3481 | M25: 1517 | N25: 865 | O25: 9045 | P25: 7334 | Q25: 8729 | R25: 5766 | S25: 2741 | T25: 1722 | U25: 12404 | V25: 22933 | W25: 35337 | X25: 11547 | Y25: 22068 | Z25: 33615
B26: Drama | C26: 339 | D26: 503 | E26: 954 | F26: 703 | G26: 400 | H26: 276 | I26: 1416 | J26: 1582 | K26: 2490 | L26: 1734 | M26: 868 | N26: 520 | O26: 1755 | P26: 2085 | Q26: 3444 | R26: 2437 | S26: 1268 | T26: 796 | U26: 3175 | V26: 8610 | W26: 11785 | X26: 2899 | Y26: 8090 | Z26: 10989
B27: English | C27: 3811 | D27: 4386 | E27: 5072 | F27: 4284 | G27: 2628 | H27: 1579 | I27: 8415 | J27: 10253 | K27: 12850 | L27: 11078 | M27: 6313 | N27: 3080 | O27: 12226 | P27: 14639 | Q27: 17922 | R27: 15362 | S27: 8941 | T27: 4659 | U27: 21760 | V27: 51989 | W27: 73749 | X27: 20181 | Y27: 48909 | Z27: 69090
B28: Media/Film/TV Studies | C28: 559 | D28: 892 | E28: 1796 | F28: 1455 | G28: 643 | H28: 338 | I28: 926 | J28: 1526 | K28: 2777 | L28: 1760 | M28: 675 | N28: 309 | O28: 1485 | P28: 2418 | Q28: 4573 | R28: 3215 | S28: 1318 | T28: 647 | U28: 5683 | V28: 7973 | W28: 13656 | X28: 5345 | Y28: 7664 | Z28: 13009
B29: Other Communication Studies | C29: 243 | D29: 397 | E29: 525 | F29: 456 | G29: 319 | H29: 399 | I29: 604 | J29: 1063 | K29: 1434 | L29: 883 | M29: 446 | N29: 397 | O29: 847 | P29: 1460 | Q29: 1959 | R29: 1339 | S29: 765 | T29: 796 | U29: 2339 | V29: 4827 | W29: 7166 | X29: 1940 | Y29: 4430 | Z29: 6370
B30: French | C30: 1287 | D30: 1013 | E30: 914 | F30: 719 | G30: 436 | H30: 326 | I30: 2562 | J30: 2148 | K30: 2075 | L30: 1753 | M30: 1241 | N30: 919 | O30: 3849 | P30: 3161 | Q30: 2989 | R30: 2472 | S30: 1677 | T30: 1245 | U30: 4695 | V30: 10698 | W30: 15393 | X30: 4369 | Y30: 9779 | Z30: 14148
B31: German | C31: 846 | D31: 519 | E31: 469 | F31: 326 | G31: 230 | H31: 134 | I31: 1387 | J31: 1023 | K31: 955 | L31: 804 | M31: 537 | N31: 377 | O31: 2233 | P31: 1542 | Q31: 1424 | R31: 1130 | S31: 767 | T31: 511 | U31: 2524 | V31: 5083 | W31: 7607 | X31: 2390 | Y31: 4706 | Z31: 7096
B32: Spanish | C32: 439 | D32: 336 | E32: 258 | F32: 160 | G32: 97 | H32: 73 | I32: 795 | J32: 715 | K32: 610 | L32: 450 | M32: 314 | N32: 254 | O32: 1234 | P32: 1051 | Q32: 868 | R32: 610 | S32: 411 | T32: 327 | U32: 1363 | V32: 3138 | W32: 4501 | X32: 1290 | Y32: 2884 | Z32: 4174
B33: Other modern languages | C33: 577 | D33: 422 | E33: 291 | F33: 105 | G33: 52 | H33: 81 | I33: 870 | J33: 450 | K33: 291 | L33: 138 | M33: 64 | N33: 68 | O33: 1447 | P33: 872 | Q33: 582 | R33: 243 | S33: 116 | T33: 149 | U33: 1528 | V33: 1881 | W33: 3409 | X33: 1447 | Y33: 1813 | Z33: 3260
B34: Classical Studies | C34: 599 | D34: 505 | E34: 366 | F34: 261 | G34: 120 | H34: 115 | I34: 795 | J34: 784 | K34: 604 | L34: 368 | M34: 134 | N34: 86 | O34: 1394 | P34: 1289 | Q34: 970 | R34: 629 | S34: 254 | T34: 201 | U34: 1966 | V34: 2771 | W34: 4737 | X34: 1851 | Y34: 2685 | Z34: 4536
B35: Religious Studies | C35: 368 | D35: 464 | E35: 448 | F35: 303 | G35: 166 | H35: 142 | I35: 976 | J35: 1292 | K35: 1497 | L35: 980 | M35: 476 | N35: 372 | O35: 1344 | P35: 1756 | Q35: 1945 | R35: 1283 | S35: 642 | T35: 514 | U35: 1891 | V35: 5593 | W35: 7484 | X35: 1749 | Y35: 5221 | Z35: 6970
B36: Music | C36: 604 | D36: 523 | E36: 652 | F36: 550 | G36: 242 | H36: 184 | I36: 776 | J36: 667 | K36: 873 | L36: 643 | M36: 351 | N36: 176 | O36: 1380 | P36: 1190 | Q36: 1525 | R36: 1193 | S36: 593 | T36: 360 | U36: 2755 | V36: 3486 | W36: 6241 | X36: 2571 | Y36: 3310 | Z36: 5881
B37: Physical Education | C37: 823 | D37: 1222 | E37: 2490 | F37: 2768 | G37: 1891 | H37: 963 | I37: 1174 | J37: 1074 | K37: 1560 | L37: 1475 | M37: 877 | N37: 462 | O37: 1997 | P37: 2296 | Q37: 4050 | R37: 4243 | S37: 2768 | T37: 1425 | U37: 10157 | V37: 6622 | W37: 16779 | X37: 9194 | Y37: 6160 | Z37: 15354
B38: General Studies | C38: 6073 | D38: 7223 | E38: 8346 | F38: 8746 | G38: 6598 | H38: 6472 | I38: 5858 | J38: 7461 | K38: 9208 | L38: 9917 | M38: 7916 | N38: 7161 | O38: 11931 | P38: 14684 | Q38: 17554 | R38: 18663 | S38: 14514 | T38: 13633 | U38: 43458 | V38: 47521 | W38: 90979 | X38: 36986 | Y38: 40360 | Z38: 77346
B39: All subjects | C39: 58661 | D39: 58579 | E39: 66525 | F39: 58871 | G39: 40540 | H39: 35231 | I39: 68854 | J39: 73060 | K39: 80628 | L39: 65364 | M39: 42413 | N39: 32827 | O39: 127515 | P39: 131639 | Q39: 147153 | R39: 124235 | S39: 82953 | T39: 68058 | U39: 318407 | V39: 363146 | W39: 681553 | X39: 283176 | Y39: 330319 | Z39: 613495
B41: Biological Sciences | C41: 16.7 | D41: 18.6 | E41: 19.9 | F41: 17.4 | G41: 15.2 | H41: 87.9 | I41: 17025 | J41: 19.9 | K41: 20.9 | L41: 19.9 | M41: 16.8 | N41: 12.8 | O41: 90.3 | P41: 27567 | Q41: 18.7 | R41: 20.1 | S41: 19.9 | T41: 17 | U41: 13.7 | V41: 89.4 | W41: 44592
B42: Chemistry | C42: 25.6 | D42: 20.8 | E42: 18.4 | F42: 14.8 | G42: 11 | H42: 90.6 | I42: 17124 | J42: 27.4 | K42: 23.1 | L42: 18.8 | M42: 13.4 | N42: 9.8 | O42: 92.5 | P42: 16747 | Q42: 26.5 | R42: 21.9 | S42: 18.6 | T42: 14.1 | U42: 10.4 | V42: 91.5 | W42: 33871
B43: Physics | C43: 24.4 | D43: 19.2 | E43: 18.5 | F43: 14.9 | G43: 12.1 | H43: 89.1 | I43: 22010 | J43: 27.7 | K43: 23.1 | L43: 18.2 | M43: 14.1 | N43: 9.3 | O43: 92.4 | P43: 6021 | Q43: 25.1 | R43: 20 | S43: 18.4 | T43: 14.7 | U43: 11.5 | V43: 89.8 | W43: 28031
B44: Other Science | C44: 16.6 | D44: 15.4 | E44: 20.1 | F44: 20.4 | G44: 15.8 | H44: 88.3 | I44: 2351 | J44: 13.6 | K44: 16.3 | L44: 22.5 | M44: 21.2 | N44: 16.7 | O44: 90.3 | P44: 1236 | Q44: 15.6 | R44: 15.7 | S44: 20.9 | T44: 20.7 | U44: 16.1 | V44: 89 | W44: 3587
B45: Mathematics | C45: 26.9 | D45: 17.7 | E45: 16 | F45: 14.9 | G45: 11.8 | H45: 87.3 | I45: 33903 | J45: 27.9 | K45: 20.5 | L45: 17.7 | M45: 14.3 | N45: 10.5 | O45: 90.8 | P45: 20254 | Q45: 27.3 | R45: 18.8 | S45: 16.6 | T45: 14.6 | U45: 11.3 | V45: 88.6 | W45: 54157
B46: Further Mathematics | C46: 50.8 | D46: 17.9 | E46: 12.5 | F46: 8.7 | G46: 5.1 | H46: 95.1 | I46: 3737 | J46: 52.8 | K46: 18.8 | L46: 12.3 | M46: 8.3 | N46: 4.8 | O46: 96.9 | P46: 1326 | Q46: 51.3 | R46: 18.2 | S46: 12.5 | T46: 8.6 | U46: 5 | V46: 95.6 | W46: 5063
B47: Design and Technology | C47: 14.3 | D47: 15.6 | E47: 24.4 | F47: 22.4 | G47: 13.9 | H47: 90.6 | I47: 9681 | J47: 16.8 | K47: 19.8 | L47: 27.9 | M47: 19 | N47: 10.7 | O47: 94.2 | P47: 4100 | Q47: 15.1 | R47: 16.8 | S47: 25.4 | T47: 21.4 | U47: 12.9 | V47: 91.7 | W47: 13781
B48: Computer Studies | C48: 10.9 | D48: 13.3 | E48: 18.7 | F48: 21.1 | G48: 16.6 | H48: 80.6 | I48: 9362 | J48: 7.2 | K48: 12.9 | L48: 20.1 | M48: 19 | N48: 18.7 | O48: 77.9 | P48: 1551 | Q48: 10.4 | R48: 13.3 | S48: 18.9 | T48: 20.8 | U48: 16.9 | V48: 80.2 | W48: 10913
B49: ICT | C49: 5 | D49: 13.9 | E49: 25.3 | F49: 26 | G49: 18.4 | H49: 88.7 | I49: 6172 | J49: 6 | K49: 17.3 | L49: 25.1 | M49: 26.1 | N49: 17.2 | O49: 91.8 | P49: 3044 | Q49: 5.3 | R49: 15 | S49: 25.2 | T49: 26.1 | U49: 18 | V49: 89.7 | W49: 9216
B50: Home Economics | C50: 5.3 | D50: 6.7 | E50: 32 | F50: 16 | G50: 14.7 | H50: 74.7 | I50: 75 | J50: 13.5 | K50: 17.3 | L50: 18.7 | M50: 20.7 | N50: 15.1 | O50: 85.2 | P50: 1115 | Q50: 12.9 | R50: 16.6 | S50: 19.5 | T50: 20.4 | U50: 15 | V50: 84.5 | W50: 1190
B51: Accounting and Finance | C51: 10.5 | D51: 18.4 | E51: 15.4 | F51: 15.8 | G51: 12.7 | H51: 72.7 | I51: 1174 | J51: 9.7 | K51: 15.3 | L51: 16 | M51: 17.8 | N51: 15.3 | O51: 74.2 | P51: 782 | Q51: 10.2 | R51: 17.2 | S51: 15.6 | T51: 16.6 | U51: 13.8 | V51: 73.3 | W51: 1956
B52: Business Studies | C52: 10.4 | D52: 21.1 | E52: 26.2 | F52: 21.5 | G52: 12 | H52: 91.3 | I52: 17040 | J52: 11.7 | K52: 21.5 | L52: 25.8 | M52: 19.9 | N52: 12.2 | O52: 91.1 | P52: 13800 | Q52: 11 | R52: 21.3 | S52: 26 | T52: 20.8 | U52: 12.1 | V52: 91.2 | W52: 30840
B53: Economics | C53: 22.4 | D53: 19.1 | E53: 20.2 | F53: 17.6 | G53: 11.2 | H53: 90.5 | I53: 11230 | J53: 22.5 | K53: 18.4 | L53: 20.2 | M53: 17.4 | N53: 11.1 | O53: 89.6 | P53: 5698 | Q53: 22.4 | R53: 18.9 | S53: 20.2 | T53: 17.5 | U53: 11.2 | V53: 90.2 | W53: 16928
B54: Geography | C54: 15.9 | D54: 21.6 | E54: 22.7 | F54: 19.3 | G54: 12.3 | H54: 91.8 | I54: 17905 | J54: 23.1 | K54: 23.4 | L54: 22.3 | M54: 15.9 | N54: 9.3 | O54: 94 | P54: 15201 | Q54: 19.2 | R54: 22.4 | S54: 22.5 | T54: 17.8 | U54: 10.9 | V54: 92.8 | W54: 33106
B55: Government and Politics | C55: 21.7 | D55: 21.7 | E55: 23 | F55: 16.8 | G55: 9.8 | H55: 93 | I55: 4111 | J55: 23 | K55: 23.5 | L55: 21.4 | M55: 15.4 | N55: 8.7 | O55: 91.9 | P55: 3032 | Q55: 22.3 | R55: 22.5 | S55: 22.3 | T55: 16.2 | U55: 9.3 | V55: 92.5 | W55: 7143
B56: History | C56: 18.3 | D56: 21.2 | E56: 22.4 | F56: 17.6 | G56: 10.2 | H56: 89.7 | I56: 15893 | J56: 18.9 | K56: 20.7 | L56: 21.8 | M56: 17.4 | N56: 10.2 | O56: 89 | P56: 17937 | Q56: 18.6 | R56: 20.9 | S56: 22.1 | T56: 17.5 | U56: 10.2 | V56: 89.3 | W56: 33830
B57: Law | C57: 11.2 | D57: 14 | E57: 17.9 | F57: 17.2 | G57: 16.6 | H57: 76.8 | I57: 2893 | J57: 13.4 | K57: 15.8 | L57: 18.2 | M57: 17.2 | N57: 14.4 | O57: 79 | P57: 4505 | Q57: 12.5 | R57: 15.1 | S57: 18.1 | T57: 17.2 | U57: 15.2 | V57: 78.2 | W57: 7398
B58: Psychology | C58: 8.9 | D58: 16.3 | E58: 21.1 | F58: 19.9 | G58: 14.9 | H58: 81.1 | I58: 5911 | J58: 15 | K58: 21.7 | L58: 22.5 | M58: 17.7 | N58: 12.5 | O58: 89.4 | P58: 20772 | Q58: 13.7 | R58: 20.5 | S58: 22.2 | T58: 18.2 | U58: 13 | V58: 87.5 | W58: 26683
B59: Sociology | C59: 12.5 | D59: 16.6 | E59: 20.1 | F59: 18.3 | G59: 14.2 | H59: 81.7 | I59: 4482 | J59: 15.5 | K59: 21.2 | L59: 20.9 | M59: 16.5 | N59: 12.8 | O59: 86.8 | P59: 14609 | Q59: 14.8 | R59: 20.1 | S59: 20.7 | T59: 16.9 | U59: 13.1 | V59: 85.6 | W59: 19091
B60: Other social studies | C60: 10.5 | D60: 17 | E60: 20.3 | F60: 18.6 | G60: 12.1 | H60: 78.4 | I60: 630 | J60: 14.6 | K60: 19.5 | L60: 20.2 | M60: 14.1 | N60: 13.5 | O60: 81.9 | P60: 724 | Q60: 12.7 | R60: 18.3 | S60: 20.2 | T60: 16.2 | U60: 12.9 | V60: 80.3 | W60: 1354
B61: Art and Design | C61: 22.7 | D61: 18.1 | E61: 23.9 | F61: 18.4 | G61: 9.9 | H61: 93.1 | I61: 12404 | J61: 27.1 | K61: 22.2 | L61: 25.1 | M61: 15.2 | N61: 6.6 | O61: 96.2 | P61: 22933 | Q61: 25.6 | R61: 20.8 | S61: 24.7 | T61: 16.3 | U61: 7.8 | V61: 95.1 | W61: 35337
B62: Drama | C62: 10.7 | D62: 15.8 | E62: 30 | F62: 22.1 | G62: 12.6 | H62: 91.3 | I62: 3175 | J62: 16.4 | K62: 18.4 | L62: 28.9 | M62: 20.1 | N62: 10.1 | O62: 94 | P62: 8610 | Q62: 14.9 | R62: 17.7 | S62: 29.2 | T62: 20.7 | U62: 10.8 | V62: 93.2 | W62: 11785
B63: English | C63: 17.5 | D63: 20.2 | E63: 23.3 | F63: 19.7 | G63: 12.1 | H63: 92.7 | I63: 21760 | J63: 16.2 | K63: 19.7 | L63: 24.7 | M63: 21.3 | N63: 12.1 | O63: 94.1 | P63: 51989 | Q63: 16.6 | R63: 19.8 | S63: 24.3 | T63: 20.8 | U63: 12.1 | V63: 93.7 | W63: 73749
B64: Media/Film/TV Studies | C64: 9.8 | D64: 15.7 | E64: 31.6 | F64: 25.6 | G64: 11.3 | H64: 94.1 | I64: 5683 | J64: 11.6 | K64: 19.1 | L64: 34.8 | M64: 22.1 | N64: 8.5 | O64: 96.1 | P64: 7973 | Q64: 10.9 | R64: 17.7 | S64: 33.5 | T64: 23.5 | U64: 9.7 | V64: 95.3 | W64: 13656
B65: Other Communication Studies | C65: 10.4 | D65: 17 | E65: 22.4 | F65: 19.5 | G65: 13.6 | H65: 82.9 | I65: 2339 | J65: 12.5 | K65: 22 | L65: 29.7 | M65: 18.3 | N65: 9.2 | O65: 91.8 | P65: 4827 | Q65: 11.8 | R65: 20.4 | S65: 27.3 | T65: 18.7 | U65: 10.7 | V65: 88.9 | W65: 7166
B66: French | C66: 27.4 | D66: 21.6 | E66: 19.5 | F66: 15.3 | G66: 9.3 | H66: 93.1 | I66: 4695 | J66: 23.9 | K66: 20.1 | L66: 19.4 | M66: 16.4 | N66: 11.6 | O66: 91.4 | P66: 10698 | Q66: 25 | R66: 20.5 | S66: 19.4 | T66: 16.1 | U66: 10.9 | V66: 91.9 | W66: 15393
B67: German | C67: 33.5 | D67: 20.6 | E67: 18.6 | F67: 12.9 | G67: 9.1 | H67: 94.7 | I67: 2524 | J67: 27.3 | K67: 20.1 | L67: 18.8 | M67: 15.8 | N67: 10.6 | O67: 92.6 | P67: 5083 | Q67: 29.4 | R67: 20.3 | S67: 18.7 | T67: 14.9 | U67: 10.1 | V67: 93.3 | W67: 7607
B68: Spanish | C68: 32.2 | D68: 24.7 | E68: 18.9 | F68: 11.7 | G68: 7.1 | H68: 94.6 | I68: 1363 | J68: 25.3 | K68: 22.8 | L68: 19.4 | M68: 14.3 | N68: 10 | O68: 91.9 | P68: 3138 | Q68: 27.4 | R68: 23.4 | S68: 19.3 | T68: 13.6 | U68: 9.1 | V68: 92.7 | W68: 4501
B69: Other modern languages | C69: 37.8 | D69: 27.6 | E69: 19 | F69: 6.9 | G69: 3.4 | H69: 94.7 | I69: 1528 | J69: 46.3 | K69: 23.9 | L69: 15.5 | M69: 7.3 | N69: 3.4 | O69: 96.4 | P69: 1881 | Q69: 42.4 | R69: 25.6 | S69: 17.1 | T69: 7.1 | U69: 3.4 | V69: 95.6 | W69: 3409
B70: Classical Studies | C70: 30.5 | D70: 25.7 | E70: 18.6 | F70: 13.3 | G70: 6.1 | H70: 94.2 | I70: 1966 | J70: 28.7 | K70: 28.3 | L70: 21.8 | M70: 13.3 | N70: 4.8 | O70: 96.9 | P70: 2771 | Q70: 29.4 | R70: 27.2 | S70: 20.5 | T70: 13.3 | U70: 5.4 | V70: 95.8 | W70: 4737
B71: Religious Studies | C71: 19.5 | D71: 24.5 | E71: 23.7 | F71: 16 | G71: 8.8 | H71: 92.5 | I71: 1891 | J71: 17.5 | K71: 23.1 | L71: 26.8 | M71: 17.5 | N71: 8.5 | O71: 93.3 | P71: 5593 | Q71: 18 | R71: 23.5 | S71: 26 | T71: 17.1 | U71: 8.6 | V71: 93.1 | W71: 7484
B72: Music | C72: 21.9 | D72: 19 | E72: 23.7 | F72: 20 | G72: 8.8 | H72: 93.3 | I72: 2755 | J72: 22.3 | K72: 19.1 | L72: 25 | M72: 18.4 | N72: 10.1 | O72: 95 | P72: 3486 | Q72: 22.1 | R72: 19.1 | S72: 24.4 | T72: 19.1 | U72: 9.5 | V72: 94.2 | W72: 6241
B73: Physical Education | C73: 8.1 | D73: 12 | E73: 24.5 | F73: 27.3 | G73: 18.6 | H73: 90.5 | I73: 10157 | J73: 17.7 | K73: 16.2 | L73: 23.6 | M73: 22.3 | N73: 13.2 | O73: 93 | P73: 6622 | Q73: 11.9 | R73: 13.7 | S73: 24.1 | T73: 25.3 | U73: 16.5 | V73: 91.5 | W73: 16779
B74: General Studies | C74: 14 | D74: 16.6 | E74: 19.2 | F74: 20.1 | G74: 15.2 | H74: 85.1 | I74: 43458 | J74: 12.3 | K74: 15.7 | L74: 19.4 | M74: 20.9 | N74: 16.7 | O74: 84.9 | P74: 47521 | Q74: 13.1 | R74: 16.1 | S74: 19.3 | T74: 20.5 | U74: 16 | V74: 85 | W74: 90979
B75: All subjects | C75: 18.4 | D75: 18.4 | E75: 20.9 | F75: 18.5 | G75: 12.7 | H75: 88.9 | I75: 318407 | J75: 19 | K75: 20.1 | L75: 22.2 | M75: 18 | N75: 11.7 | O75: 91 | P75: 363146 | Q75: 18.7 | R75: 19.3 | S75: 21.6 | T75: 18.2 | U75: 12.2 | V75: 90 | W75: 681553
B77: Biological Sciences | C77: =ROUND(C41,1) -> 16.7 | D77: =ROUND(D41,1) -> 18.6 | E77: 19.9 | F77: 17.4 | G77: 15.2 | H77: 87.9 | I77: =ROUND(I41,0) -> 17025 | J77: 19.9 | K77: 20.9 | L77: 19.9 | M77: 16.8 | N77: 12.8 | O77: 90.3 | P77: =ROUND(P41,0) -> 27567 | Q77: 18.7 | R77: 20.1 | S77: 19.9 | T77: 17 | U77: 13.7 | V77: 89.4 | W77: =ROUND(W41,0) -> 44592
B78: Chemistry | C78: =ROUND(C42,1) -> 25.6 | D78: 20.8 | E78: 18.4 | F78: 14.8 | G78: 11 | H78: 90.6 | I78: =ROUND(I42,0) -> 17124 | J78: =ROUND(J42,1) -> 27.4 | K78: 23.1 | L78: 18.8 | M78: 13.4 | N78: 9.8 | O78: 92.5 | P78: =ROUND(P42,0) -> 16747 | Q78: =ROUND(Q42,1) -> 26.5 | R78: 21.9 | S78: 18.6 | T78: 14.1 | U78: 10.4 | V78: 91.5 | W78: =ROUND(W42,0) -> 33871
B79: Physics | C79: =ROUND(C43,1) -> 24.4 | D79: 19.2 | E79: 18.5 | F79: 14.9 | G79: 12.1 | H79: 89.1 | I79: 22010 | J79: =ROUND(J43,1) -> 27.7 | K79: 23.1 | L79: 18.2 | M79: 14.1 | N79: 9.3 | O79: 92.4 | P79: 6021 | Q79: =ROUND(Q43,1) -> 25.1 | R79: 20 | S79: 18.4 | T79: 14.7 | U79: 11.5 | V79: 89.8 | W79: 28031
B80: Other Science | C80: =ROUND(C44,1) -> 16.6 | D80: 15.4 | E80: 20.1 | F80: 20.4 | G80: 15.8 | H80: 88.3 | I80: 2351 | J80: =ROUND(J44,1) -> 13.6 | K80: 16.3 | L80: 22.5 | M80: 21.2 | N80: 16.7 | O80: 90.3 | P80: 1236 | Q80: =ROUND(Q44,1) -> 15.6 | R80: 15.7 | S80: 20.9 | T80: 20.7 | U80: 16.1 | V80: 89 | W80: 3587
B81: Mathematics | C81: =ROUND(C45,1) -> 26.9 | D81: 17.7 | E81: 16 | F81: 14.9 | G81: 11.8 | H81: 87.3 | I81: 33903 | J81: =ROUND(J45,1) -> 27.9 | K81: 20.5 | L81: 17.7 | M81: 14.3 | N81: 10.5 | O81: 90.8 | P81: 20254 | Q81: =ROUND(Q45,1) -> 27.3 | R81: 18.8 | S81: 16.6 | T81: 14.6 | U81: 11.3 | V81: 88.6 | W81: 54157
B82: Further Mathematics | C82: =ROUND(C46,1) -> 50.8 | D82: 17.9 | E82: 12.5 | F82: 8.7 | G82: 5.1 | H82: 95.1 | I82: 3737 | J82: =ROUND(J46,1) -> 52.8 | K82: 18.8 | L82: 12.3 | M82: 8.3 | N82: 4.8 | O82: 96.9 | P82: 1326 | Q82: =ROUND(Q46,1) -> 51.3 | R82: 18.2 | S82: 12.5 | T82: 8.6 | U82: 5 | V82: 95.6 | W82: 5063
B83: Design and Technology | C83: =ROUND(C47,1) -> 14.3 | D83: 15.6 | E83: 24.4 | F83: 22.4 | G83: 13.9 | H83: 90.6 | I83: 9681 | J83: =ROUND(J47,1) -> 16.8 | K83: 19.8 | L83: 27.9 | M83: 19 | N83: 10.7 | O83: 94.2 | P83: 4100 | Q83: =ROUND(Q47,1) -> 15.1 | R83: 16.8 | S83: 25.4 | T83: 21.4 | U83: 12.9 | V83: 91.7 | W83: 13781
B84: Computer Studies | C84: =ROUND(C48,1) -> 10.9 | D84: 13.3 | E84: 18.7 | F84: 21.1 | G84: 16.6 | H84: 80.6 | I84: 9362 | J84: =ROUND(J48,1) -> 7.2 | K84: 12.9 | L84: 20.1 | M84: 19 | N84: 18.7 | O84: 77.9 | P84: 1551 | Q84: =ROUND(Q48,1) -> 10.4 | R84: 13.3 | S84: 18.9 | T84: 20.8 | U84: 16.9 | V84: 80.2 | W84: 10913
B85: ICT | C85: =ROUND(C49,1) -> 5 | D85: 13.9 | E85: 25.3 | F85: 26 | G85: 18.4 | H85: 88.7 | I85: 6172 | J85: =ROUND(J49,1) -> 6 | K85: 17.3 | L85: 25.1 | M85: 26.1 | N85: 17.2 | O85: 91.8 | P85: 3044 | Q85: =ROUND(Q49,1) -> 5.3 | R85: 15 | S85: 25.2 | T85: 26.1 | U85: 18 | V85: 89.7 | W85: 9216
B86: Home Economics | C86: =ROUND(C50,1) -> 5.3 | D86: 6.7 | E86: 32 | F86: 16 | G86: 14.7 | H86: 74.7 | I86: 75 | J86: =ROUND(J50,1) -> 13.5 | K86: 17.3 | L86: 18.7 | M86: 20.7 | N86: 15.1 | O86: 85.2 | P86: 1115 | Q86: =ROUND(Q50,1) -> 12.9 | R86: 16.6 | S86: 19.5 | T86: 20.4 | U86: 15 | V86: 84.5 | W86: 1190
B87: Accounting and Finance | C87: =ROUND(C51,1) -> 10.5 | D87: 18.4 | E87: 15.4 | F87: 15.8 | G87: 12.7 | H87: 72.7 | I87: 1174 | J87: =ROUND(J51,1) -> 9.7 | K87: 15.3 | L87: 16 | M87: 17.8 | N87: 15.3 | O87: 74.2 | P87: 782 | Q87: =ROUND(Q51,1) -> 10.2 | R87: 17.2 | S87: 15.6 | T87: 16.6 | U87: 13.8 | V87: 73.3 | W87: 1956
B88: Business Studies | C88: =ROUND(C52,1) -> 10.4 | D88: 21.1 | E88: 26.2 | F88: 21.5 | G88: 12 | H88: 91.3 | I88: 17040 | J88: =ROUND(J52,1) -> 11.7 | K88: 21.5 | L88: 25.8 | M88: 19.9 | N88: 12.2 | O88: 91.1 | P88: 13800 | Q88: =ROUND(Q52,1) -> 11 | R88: 21.3 | S88: 26 | T88: 20.8 | U88: 12.1 | V88: 91.2 | W88: 30840
B89: Economics | C89: =ROUND(C53,1) -> 22.4 | D89: 19.1 | E89: 20.2 | F89: 17.6 | G89: 11.2 | H89: 90.5 | I89: 11230 | J89: =ROUND(J53,1) -> 22.5 | K89: 18.4 | L89: 20.2 | M89: 17.4 | N89: 11.1 | O89: 89.6 | P89: 5698 | Q89: =ROUND(Q53,1) -> 22.4 | R89: 18.9 | S89: 20.2 | T89: 17.5 | U89: 11.2 | V89: 90.2 | W89: 16928
B90: Geography | C90: =ROUND(C54,1) -> 15.9 | D90: 21.6 | E90: 22.7 | F90: 19.3 | G90: 12.3 | H90: 91.8 | I90: 17905 | J90: =ROUND(J54,1) -> 23.1 | K90: 23.4 | L90: 22.3 | M90: 15.9 | N90: 9.3 | O90: 94 | P90: 15201 | Q90: =ROUND(Q54,1) -> 19.2 | R90: 22.4 | S90: 22.5 | T90: 17.8 | U90: 10.9 | V90: 92.8 | W90: 33106
B91: Government and Politics | C91: =ROUND(C55,1) -> 21.7 | D91: 21.7 | E91: 23 | F91: 16.8 | G91: 9.8 | H91: 93 | I91: 4111 | J91: =ROUND(J55,1) -> 23 | K91: 23.5 | L91: 21.4 | M91: 15.4 | N91: 8.7 | O91: 91.9 | P91: 3032 | Q91: =ROUND(Q55,1) -> 22.3 | R91: 22.5 | S91: 22.3 | T91: 16.2 | U91: 9.3 | V91: 92.5 | W91: 7143
B92: History | C92: =ROUND(C56,1) -> 18.3 | D92: 21.2 | E92: 22.4 | F92: 17.6 | G92: 10.2 | H92: 89.7 | I92: 15893 | J92: =ROUND(J56,1) -> 18.9 | K92: 20.7 | L92: 21.8 | M92: 17.4 | N92: 10.2 | O92: 89 | P92: 17937 | Q92: =ROUND(Q56,1) -> 18.6 | R92: 20.9 | S92: 22.1 | T92: 17.5 | U92: 10.2 | V92: 89.3 | W92: 33830
B93: Law | C93: =ROUND(C57,1) -> 11.2 | D93: 14 | E93: 17.9 | F93: 17.2 | G93: 16.6 | H93: 76.8 | I93: 2893 | J93: =ROUND(J57,1) -> 13.4 | K93: 15.8 | L93: 18.2 | M93: 17.2 | N93: 14.4 | O93: 79 | P93: 4505 | Q93: =ROUND(Q57,1) -> 12.5 | R93: 15.1 | S93: 18.1 | T93: 17.2 | U93: 15.2 | V93: 78.2 | W93: 7398
B94: Psychology | C94: =ROUND(C58,1) -> 8.9 | D94: 16.3 | E94: 21.1 | F94: 19.9 | G94: 14.9 | H94: 81.1 | I94: 5911 | J94: =ROUND(J58,1) -> 15 | K94: 21.7 | L94: 22.5 | M94: 17.7 | N94: 12.5 | O94: 89.4 | P94: 20772 | Q94: =ROUND(Q58,1) -> 13.7 | R94: 20.5 | S94: 22.2 | T94: 18.2 | U94: 13 | V94: 87.5 | W94: 26683
B95: Sociology | C95: =ROUND(C59,1) -> 12.5 | D95: 16.6 | E95: 20.1 | F95: 18.3 | G95: 14.2 | H95: 81.7 | I95: 4482 | J95: =ROUND(J59,1) -> 15.5 | K95: 21.2 | L95: 20.9 | M95: 16.5 | N95: 12.8 | O95: 86.8 | P95: 14609 | Q95: =ROUND(Q59,1) -> 14.8 | R95: 20.1 | S95: 20.7 | T95: 16.9 | U95: 13.1 | V95: 85.6 | W95: 19091
B96: Other social studies | C96: =ROUND(C60,1) -> 10.5 | D96: 17 | E96: 20.3 | F96: 18.6 | G96: 12.1 | H96: 78.4 | I96: 630 | J96: =ROUND(J60,1) -> 14.6 | K96: 19.5 | L96: 20.2 | M96: 14.1 | N96: 13.5 | O96: 81.9 | P96: 724 | Q96: =ROUND(Q60,1) -> 12.7 | R96: 18.3 | S96: 20.2 | T96: 16.2 | U96: 12.9 | V96: 80.3 | W96: 1354
B97: Art and Design | C97: =ROUND(C61,1) -> 22.7 | D97: 18.1 | E97: 23.9 | F97: 18.4 | G97: 9.9 | H97: 93.1 | I97: 12404 | J97: =ROUND(J61,1) -> 27.1 | K97: 22.2 | L97: 25.1 | M97: 15.2 | N97: 6.6 | O97: 96.2 | P97: 22933 | Q97: =ROUND(Q61,1) -> 25.6 | R97: 20.8 | S97: 24.7 | T97: 16.3 | U97: 7.8 | V97: 95.1 | W97: 35337
B98: Drama | C98: =ROUND(C62,1) -> 10.7 | D98: 15.8 | E98: 30 | F98: 22.1 | G98: 12.6 | H98: 91.3 | I98: 3175 | J98: =ROUND(J62,1) -> 16.4 | K98: 18.4 | L98: 28.9 | M98: 20.1 | N98: 10.1 | O98: 94 | P98: 8610 | Q98: =ROUND(Q62,1) -> 14.9 | R98: 17.7 | S98: 29.2 | T98: 20.7 | U98: 10.8 | V98: 93.2 | W98: 11785
B99: English | C99: =ROUND(C63,1) -> 17.5 | D99: 20.2 | E99: 23.3 | F99: 19.7 | G99: 12.1 | H99: 92.7 | I99: 21760 | J99: =ROUND(J63,1) -> 16.2 | K99: 19.7 | L99: 24.7 | M99: 21.3 | N99: 12.1 | O99: 94.1 | P99: 51989 | Q99: =ROUND(Q63,1) -> 16.6 | R99: 19.8 | S99: 24.3 | T99: 20.8 | U99: 12.1 | V99: 93.7 | W99: 73749
B100: Media/Film/TV Studies | C100: =ROUND(C64,1) -> 9.8 | D100: 15.7 | E100: 31.6 | F100: 25.6 | G100: 11.3 | H100: 94.1 | I100: 5683 | J100: =ROUND(J64,1) -> 11.6 | K100: 19.1 | L100: 34.8 | M100: 22.1 | N100: 8.5 | O100: 96.1 | P100: 7973 | Q100: =ROUND(Q64,1) -> 10.9 | R100: 17.7 | S100: 33.5 | T100: 23.5 | U100: 9.7 | V100: 95.3 | W100: 13656
B101: Other Communication Studies | C101: =ROUND(C65,1) -> 10.4 | D101: 17 | E101: 22.4 | F101: 19.5 | G101: 13.6 | H101: 82.9 | I101: 2339 | J101: =ROUND(J65,1) -> 12.5 | K101: 22 | L101: 29.7 | M101: 18.3 | N101: 9.2 | O101: 91.8 | P101: 4827 | Q101: =ROUND(Q65,1) -> 11.8 | R101: 20.4 | S101: 27.3 | T101: 18.7 | U101: 10.7 | V101: 88.9 | W101: 7166
B102: French | C102: =ROUND(C66,1) -> 27.4 | D102: 21.6 | E102: 19.5 | F102: 15.3 | G102: 9.3 | H102: 93.1 | I102: 4695 | J102: =ROUND(J66,1) -> 23.9 | K102: 20.1 | L102: 19.4 | M102: 16.4 | N102: 11.6 | O102: 91.4 | P102: 10698 | Q102: =ROUND(Q66,1) -> 25 | R102: 20.5 | S102: 19.4 | T102: 16.1 | U102: 10.9 | V102: 91.9 | W102: 15393
B103: German | C103: =ROUND(C67,1) -> 33.5 | D103: 20.6 | E103: 18.6 | F103: 12.9 | G103: 9.1 | H103: 94.7 | I103: 2524 | J103: =ROUND(J67,1) -> 27.3 | K103: 20.1 | L103: 18.8 | M103: 15.8 | N103: 10.6 | O103: 92.6 | P103: 5083 | Q103: =ROUND(Q67,1) -> 29.4 | R103: 20.3 | S103: 18.7 | T103: 14.9 | U103: 10.1 | V103: 93.3 | W103: 7607
B104: Spanish | C104: =ROUND(C68,1) -> 32.2 | D104: 24.7 | E104: 18.9 | F104: 11.7 | G104: 7.1 | H104: 94.6 | I104: 1363 | J104: =ROUND(J68,1) -> 25.3 | K104: 22.8 | L104: 19.4 | M104: 14.3 | N104: 10 | O104: 91.9 | P104: 3138 | Q104: =ROUND(Q68,1) -> 27.4 | R104: 23.4 | S104: 19.3 | T104: 13.6 | U104: 9.1 | V104: 92.7 | W104: 4501
B105: Other modern languages | C105: =ROUND(C69,1) -> 37.8 | D105: 27.6 | E105: 19 | F105: 6.9 | G105: 3.4 | H105: 94.7 | I105: 1528 | J105: =ROUND(J69,1) -> 46.3 | K105: 23.9 | L105: 15.5 | M105: 7.3 | N105: 3.4 | O105: 96.4 | P105: 1881 | Q105: =ROUND(Q69,1) -> 42.4 | R105: 25.6 | S105: 17.1 | T105: 7.1 | U105: 3.4 | V105: 95.6 | W105: 3409
B106: Classical Studies | C106: =ROUND(C70,1) -> 30.5 | D106: 25.7 | E106: 18.6 | F106: 13.3 | G106: 6.1 | H106: 94.2 | I106: 1966 | J106: =ROUND(J70,1) -> 28.7 | K106: 28.3 | L106: 21.8 | M106: 13.3 | N106: 4.8 | O106: 96.9 | P106: 2771 | Q106: =ROUND(Q70,1) -> 29.4 | R106: 27.2 | S106: 20.5 | T106: 13.3 | U106: 5.4 | V106: 95.8 | W106: 4737
B107: Religious Studies | C107: =ROUND(C71,1) -> 19.5 | D107: 24.5 | E107: 23.7 | F107: 16 | G107: 8.8 | H107: 92.5 | I107: 1891 | J107: =ROUND(J71,1) -> 17.5 | K107: 23.1 | L107: 26.8 | M107: 17.5 | N107: 8.5 | O107: 93.3 | P107: 5593 | Q107: =ROUND(Q71,1) -> 18 | R107: 23.5 | S107: 26 | T107: 17.1 | U107: 8.6 | V107: 93.1 | W107: 7484
B108: Music | C108: =ROUND(C72,1) -> 21.9 | D108: 19 | E108: 23.7 | F108: 20 | G108: 8.8 | H108: 93.3 | I108: 2755 | J108: =ROUND(J72,1) -> 22.3 | K108: 19.1 | L108: 25 | M108: 18.4 | N108: 10.1 | O108: 95 | P108: 3486 | Q108: =ROUND(Q72,1) -> 22.1 | R108: 19.1 | S108: 24.4 | T108: 19.1 | U108: 9.5 | V108: 94.2 | W108: 6241
B109: Physical Education | C109: =ROUND(C73,1) -> 8.1 | D109: 12 | E109: 24.5 | F109: 27.3 | G109: 18.6 | H109: 90.5 | I109: 10157 | J109: =ROUND(J73,1) -> 17.7 | K109: 16.2 | L109: 23.6 | M109: 22.3 | N109: 13.2 | O109: 93 | P109: 6622 | Q109: =ROUND(Q73,1) -> 11.9 | R109: 13.7 | S109: 24.1 | T109: 25.3 | U109: 16.5 | V109: 91.5 | W109: 16779
B110: General Studies | C110: =ROUND(C74,1) -> 14 | D110: 16.6 | E110: 19.2 | F110: 20.1 | G110: 15.2 | H110: 85.1 | I110: 43458 | J110: =ROUND(J74,1) -> 12.3 | K110: 15.7 | L110: 19.4 | M110: 20.9 | N110: 16.7 | O110: 84.9 | P110: 47521 | Q110: =ROUND(Q74,1) -> 13.1 | R110: 16.1 | S110: 19.3 | T110: 20.5 | U110: 16 | V110: 85 | W110: 90979
B111: All subjects | C111: =ROUND(C75,1) -> 18.4 | D111: 18.4 | E111: 20.9 | F111: 18.5 | G111: 12.7 | H111: 88.9 | I111: 318407 | J111: =ROUND(J75,1) -> 19 | K111: 20.1 | L111: 22.2 | M111: 18 | N111: 11.7 | O111: 91 | P111: 363146 | Q111: =ROUND(Q75,1) -> 18.7 | R111: 19.3 | S111: 21.6 | T111: 18.2 | U111: 12.2 | V111: 90 | W111: 681553

Sheet 2002data_new (hidden)
C3: Males | I3: Females | O3: Total | U3: total entries | X3: total passes
C4: A | D4: B | E4: C | F4: D | G4: E | H4: other | I4: A | J4: B | K4: C | L4: D | M4: E | N4: other | O4: A | P4: B | Q4: C | R4: D | S4: E | T4: other | U4: Male | V4: Female | W4: Male and Female | X4: Male | Y4: Female | Z4: Male and Female
B5: Biological Sciences | C5: 3328 | D5: 3227 | E5: 3428 | F5: 3208 | G5: 2640 | H5: 1598 | I5: 6332 | J5: 5650 | K5: 5561 | L5: 4968 | M5: 3531 | N5: 1936 | O5: 9660 | P5: 8877 | Q5: 8989 | R5: 8176 | S5: 6171 | T5: 3534 | U5: 17429 | V5: 27978 | W5: 45407 | X5: 15831 | Y5: 26042 | Z5: 41873
B6: Chemistry | C6: 4273 | D6: 3524 | E6: 3007 | F6: 2445 | G6: 1736 | H6: 947 | I6: 4855 | J6: 3978 | K6: 3188 | L6: 2268 | M6: 1436 | N6: 667 | O6: 9128 | P6: 7502 | Q6: 6195 | R6: 4713 | S6: 3172 | T6: 1614 | U6: 15932 | V6: 16392 | W6: 32324 | X6: 14985 | Y6: 15725 | Z6: 30710
B7: Physics | C7: 5461 | D7: 4254 | E7: 4004 | F7: 3566 | G7: 2733 | H7: 1523 | I7: 2030 | J7: 1439 | K7: 1156 | L7: 920 | M7: 526 | N7: 248 | O7: 7491 | P7: 5693 | Q7: 5160 | R7: 4486 | S7: 3259 | T7: 1771 | U7: 21541 | V7: 6319 | W7: 27860 | X7: 20018 | Y7: 6071 | Z7: 26089
B8: Other Science | C8: 512 | D8: 506 | E8: 509 | F8: 503 | G8: 339 | H8: 145 | I8: 246 | J8: 240 | K8: 266 | L8: 248 | M8: 149 | N8: 77 | O8: 758 | P8: 746 | Q8: 775 | R8: 751 | S8: 488 | T8: 222 | U8: 2514 | V8: 1226 | W8: 3740 | X8: 2369 | Y8: 1149 | Z8: 3518
B9: Mathematics | C9: 9487 | D9: 5425 | E9: 4645 | F9: 3725 | G9: 2625 | H9: 1868 | I9: 6389 | J9: 3515 | K9: 2718 | L9: 1918 | M9: 1161 | N9: 680 | O9: 15876 | P9: 8940 | Q9: 7363 | R9: 5643 | S9: 3786 | T9: 2548 | U9: 27775 | V9: 16381 | W9: 44156 | X9: 25907 | Y9: 15701 | Z9: 41608
B10: Further Mathematics | C10: 2008 | D10: 535 | E10: 315 | F10: 196 | G10: 111 | H10: 86 | I10: 826 | J10: 202 | K10: 106 | L10: 58 | M10: 33 | N10: 22 | O10: 2834 | P10: 737 | Q10: 421 | R10: 254 | S10: 144 | T10: 108 | U10: 3251 | V10: 1247 | W10: 4498 | X10: 3165 | Y10: 1225 | Z10: 4390
B11: Design and Technology | C11: 1072 | D11: 1742 | E11: 2198 | F11: 2140 | G11: 1353 | H11: 537 | I11: 821 | J11: 1310 | K11: 1368 | L11: 1012 | M11: 505 | N11: 128 | O11: 1893 | P11: 3052 | Q11: 3566 | R11: 3152 | S11: 1858 | T11: 665 | U11: 9042 | V11: 5144 | W11: 14186 | X11: 8505 | Y11: 5016 | Z11: 13521
B12: Computer Studies | C12: 961 | D12: 1367 | E12: 1670 | F12: 1787 | G12: 1543 | H12: 937 | I12: 120 | J12: 182 | K12: 233 | L12: 230 | M12: 200 | N12: 99 | O12: 1081 | P12: 1549 | Q12: 1903 | R12: 2017 | S12: 1743 | T12: 1036 | U12: 8265 | V12: 1064 | W12: 9329 | X12: 7328 | Y12: 965 | Z12: 8293
B13: ICT | C13: 521 | D13: 1214 | E13: 2055 | F13: 2622 | G13: 2184 | H13: 1217 | I13: 385 | J13: 754 | K13: 1193 | L13: 1386 | M13: 1064 | N13: 442 | O13: 906 | P13: 1968 | Q13: 3248 | R13: 4008 | S13: 3248 | T13: 1659 | U13: 9813 | V13: 5224 | W13: 15037 | X13: 8596 | Y13: 4782 | Z13: 13378
B14: Home Economics | C14: 2 | D14: 4 | E14: 9 | F14: 9 | G14: 5 | H14: 6 | I14: 94 | J14: 137 | K14: 181 | L14: 126 | M14: 81 | N14: 37 | O14: 96 | P14: 141 | Q14: 190 | R14: 135 | S14: 86 | T14: 43 | U14: 35 | V14: 656 | W14: 691 | X14: 29 | Y14: 619 | Z14: 648
B15: Accounting and Finance | C15: 150 | D15: 211 | E15: 239 | F15: 290 | G15: 254 | H15: 213 | I15: 108 | J15: 110 | K15: 132 | L15: 157 | M15: 156 | N15: 118 | O15: 258 | P15: 321 | Q15: 371 | R15: 447 | S15: 410 | T15: 331 | U15: 1357 | V15: 781 | W15: 2138 | X15: 1144 | Y15: 663 | Z15: 1807
B16: Business Studies | C16: 1892 | D16: 3783 | E16: 5209 | F16: 4408 | G16: 2548 | H16: 839 | I16: 1733 | J16: 3061 | K16: 3699 | L16: 2826 | M16: 1559 | N16: 536 | O16: 3625 | P16: 6844 | Q16: 8908 | R16: 7234 | S16: 4107 | T16: 1375 | U16: 18679 | V16: 13414 | W16: 32093 | X16: 17840 | Y16: 12878 | Z16: 30718
B17: Economics | C17: 2460 | D17: 2306 | E17: 2030 | F17: 1445 | G17: 760 | H17: 345 | I17: 1292 | J17: 978 | K17: 780 | L17: 516 | M17: 324 | N17: 133 | O17: 3752 | P17: 3284 | Q17: 2810 | R17: 1961 | S17: 1084 | T17: 478 | U17: 9346 | V17: 4023 | W17: 13369 | X17: 9001 | Y17: 3890 | Z17: 12891
B18: Geography | C18: 2766 | D18: 3995 | E18: 4332 | F18: 3525 | G18: 1846 | H18: 537 | I18: 3521 | J18: 3761 | K18: 3391 | L18: 2146 | M18: 993 | N18: 254 | O18: 6287 | P18: 7756 | Q18: 7723 | R18: 5671 | S18: 2839 | T18: 791 | U18: 17001 | V18: 14066 | W18: 31067 | X18: 16464 | Y18: 13812 | Z18: 30276
B19: Government and Politics | C19: 1059 | D19: 1096 | E19: 919 | F19: 674 | G19: 322 | H19: 125 | I19: 870 | J19: 815 | K19: 632 | L19: 395 | M19: 232 | N19: 89 | O19: 1929 | P19: 1911 | Q19: 1551 | R19: 1069 | S19: 554 | T19: 214 | U19: 4195 | V19: 3033 | W19: 7228 | X19: 4070 | Y19: 2944 | Z19: 7014
B20: History | C20: 3311 | D20: 4267 | E20: 4297 | F20: 3141 | G20: 1659 | H20: 506 | I20: 3986 | J20: 4744 | K20: 4420 | L20: 3114 | M20: 1609 | N20: 459 | O20: 7297 | P20: 9011 | Q20: 8717 | R20: 6255 | S20: 3268 | T20: 965 | U20: 17181 | V20: 18332 | W20: 35513 | X20: 16675 | Y20: 17873 | Z20: 34548
B21: Law | C21: 404 | D21: 618 | E21: 677 | F21: 710 | G21: 589 | H21: 394 | I21: 826 | J21: 1011 | K21: 1117 | L21: 1005 | M21: 719 | N21: 436 | O21: 1230 | P21: 1629 | Q21: 1794 | R21: 1715 | S21: 1308 | T21: 830 | U21: 3392 | V21: 5114 | W21: 8506 | X21: 2998 | Y21: 4678 | Z21: 7676
B22: Psychology | C22: 666 | D22: 1212 | E22: 1629 | F22: 1756 | G22: 1338 | H22: 735 | I22: 4408 | J22: 5449 | K22: 5694 | L22: 4764 | M22: 3032 | N22: 1325 | O22: 5074 | P22: 6661 | Q22: 7323 | R22: 6520 | S22: 4370 | T22: 2060 | U22: 7336 | V22: 24672 | W22: 32008 | X22: 6601 | Y22: 23347 | Z22: 29948
B23: Sociology | C23: 569 | D23: 913 | E23: 1159 | F23: 1021 | G23: 647 | H23: 319 | I23: 2564 | J23: 3606 | K23: 3940 | L23: 2923 | M23: 1685 | N23: 739 | O23: 3133 | P23: 4519 | Q23: 5099 | R23: 3944 | S23: 2332 | T23: 1058 | U23: 4628 | V23: 15457 | W23: 20085 | X23: 4309 | Y23: 14718 | Z23: 19027
B24: Other social studies | C24: 114 | D24: 190 | E24: 179 | F24: 141 | G24: 97 | H24: 49 | I24: 157 | J24: 209 | K24: 182 | L24: 161 | M24: 85 | N24: 49 | O24: 271 | P24: 399 | Q24: 361 | R24: 302 | S24: 182 | T24: 98 | U24: 770 | V24: 843 | W24: 1613 | X24: 721 | Y24: 794 | Z24: 1515
B25: Art and Design | C25: 2238 | D25: 1994 | E25: 2155 | F25: 1884 | G25: 1109 | H25: 616 | I25: 6356 | J25: 5251 | K25: 4684 | L25: 3218 | M25: 1495 | N25: 687 | O25: 8594 | P25: 7245 | Q25: 6839 | R25: 5102 | S25: 2604 | T25: 1303 | U25: 9996 | V25: 21691 | W25: 31687 | X25: 9380 | Y25: 21004 | Z25: 30384
B26: Drama | C26: 421 | D26: 811 | E26: 1073 | F26: 705 | G26: 333 | H26: 138 | I26: 1567 | J26: 2604 | K26: 2588 | L26: 1547 | M26: 616 | N26: 153 | O26: 1988 | P26: 3415 | Q26: 3661 | R26: 2252 | S26: 949 | T26: 291 | U26: 3481 | V26: 9075 | W26: 12556 | X26: 3343 | Y26: 8922 | Z26: 12265
B27: English | C27: 4039 | D27: 5103 | E27: 5895 | F27: 4666 | G27: 1999 | H27: 521 | I27: 9326 | J27: 12311 | K27: 13752 | L27: 10162 | M27: 3918 | N27: 803 | O27: 13365 | P27: 17414 | Q27: 19647 | R27: 14828 | S27: 5917 | T27: 1324 | U27: 22223 | V27: 50272 | W27: 72495 | X27: 21702 | Y27: 49469 | Z27: 71171
B28: Media/Film/TV Studies | C28: 594 | D28: 1473 | E28: 2321 | F28: 1750 | G28: 706 | H28: 189 | I28: 1266 | J28: 2525 | K28: 3090 | L28: 2050 | M28: 633 | N28: 151 | O28: 1860 | P28: 3998 | Q28: 5411 | R28: 3800 | S28: 1339 | T28: 340 | U28: 7033 | V28: 9715 | W28: 16748 | X28: 6844 | Y28: 9564 | Z28: 16408
B29: Other Communication Studies | C29: 247 | D29: 517 | E29: 736 | F29: 456 | G29: 219 | H29: 82 | I29: 623 | J29: 1345 | K29: 1519 | L29: 859 | M29: 257 | N29: 89 | O29: 870 | P29: 1862 | Q29: 2255 | R29: 1315 | S29: 476 | T29: 171 | U29: 2257 | V29: 4692 | W29: 6949 | X29: 2175 | Y29: 4603 | Z29: 6778
B30: French | C30: 1326 | D30: 1080 | E30: 869 | F30: 581 | G30: 316 | H30: 124 | I30: 2669 | J30: 2289 | K30: 1985 | L30: 1350 | M30: 749 | N30: 261 | O30: 3995 | P30: 3369 | Q30: 2854 | R30: 1931 | S30: 1065 | T30: 385 | U30: 4296 | V30: 9303 | W30: 13599 | X30: 4172 | Y30: 9042 | Z30: 13214
B31: German | C31: 718 | D31: 468 | E31: 436 | F31: 298 | G31: 204 | H31: 68 | I31: 1211 | J31: 956 | K31: 840 | L31: 653 | M31: 404 | N31: 111 | O31: 1929 | P31: 1424 | Q31: 1276 | R31: 951 | S31: 608 | T31: 179 | U31: 2192 | V31: 4175 | W31: 6367 | X31: 2124 | Y31: 4064 | Z31: 6188
B32: Spanish | C32: 447 | D32: 371 | E32: 255 | F32: 165 | G32: 93 | H32: 40 | I32: 918 | J32: 792 | K32: 654 | L32: 389 | M32: 230 | N32: 76 | O32: 1365 | P32: 1163 | Q32: 909 | R32: 554 | S32: 323 | T32: 116 | U32: 1371 | V32: 3059 | W32: 4430 | X32: 1331 | Y32: 2983 | Z32: 4314
B33: Other modern languages | C33: 705 | D33: 458 | E33: 279 | F33: 130 | G33: 49 | H33: 61 | I33: 1022 | J33: 622 | K33: 313 | L33: 111 | M33: 39 | N33: 71 | O33: 1727 | P33: 1080 | Q33: 592 | R33: 241 | S33: 88 | T33: 132 | U33: 1682 | V33: 2178 | W33: 3860 | X33: 1621 | Y33: 2107 | Z33: 3728
B34: Classical Studies | C34: 692 | D34: 554 | E34: 454 | F34: 255 | G34: 135 | H34: 35 | I34: 902 | J34: 825 | K34: 660 | L34: 309 | M34: 96 | N34: 27 | O34: 1594 | P34: 1379 | Q34: 1114 | R34: 564 | S34: 231 | T34: 62 | U34: 2125 | V34: 2819 | W34: 4944 | X34: 2090 | Y34: 2792 | Z34: 4882
B35: Religious Studies | C35: 529 | D35: 674 | E35: 590 | F35: 366 | G35: 194 | H35: 87 | I35: 1348 | J35: 1729 | K35: 1534 | L35: 979 | M35: 413 | N35: 164 | O35: 1877 | P35: 2403 | Q35: 2124 | R35: 1345 | S35: 607 | T35: 251 | U35: 2440 | V35: 6167 | W35: 8607 | X35: 2353 | Y35: 6003 | Z35: 8356
B36: Music | C36: 620 | D36: 705 | E36: 784 | F36: 644 | G36: 329 | H36: 118 | I36: 815 | J36: 889 | K36: 891 | L36: 611 | M36: 289 | N36: 72 | O36: 1435 | P36: 1594 | Q36: 1675 | R36: 1255 | S36: 618 | T36: 190 | U36: 3200 | V36: 3567 | W36: 6767 | X36: 3082 | Y36: 3495 | Z36: 6577
B37: Physical Education | C37: 804 | D37: 1607 | E37: 2502 | F37: 2695 | G37: 1834 | H37: 580 | I37: 1278 | J37: 1405 | K37: 1636 | L37: 1327 | M37: 751 | N37: 236 | O37: 2082 | P37: 3012 | Q37: 4138 | R37: 4022 | S37: 2585 | T37: 816 | U37: 10022 | V37: 6633 | W37: 16655 | X37: 9442 | Y37: 6397 | Z37: 15839
B38: General Studies | C38: 3155 | D38: 4392 | E38: 5733 | F38: 6203 | G38: 4980 | H38: 3616 | I38: 3860 | J38: 5121 | K38: 6623 | L38: 6741 | M38: 4996 | N38: 3101 | O38: 7015 | P38: 9513 | Q38: 12356 | R38: 12944 | S38: 9976 | T38: 6717 | U38: 28079 | V38: 30442 | W38: 58521 | X38: 24463 | Y38: 27341 | Z38: 51804
B39: All subjects | C39: 57551 | D39: 60596 | E39: 66592 | F39: 58110 | G39: 37829 | H39: 19201 | I39: 74724 | J39: 79815 | K39: 80726 | L39: 61447 | M39: 33966 | N39: 14476 | O39: 132275 | P39: 140411 | Q39: 147318 | R39: 119557 | S39: 71795 | T39: 33677 | U39: 299879 | V39: 345154 | W39: 645033 | X39: 280678 | Y39: 330678 | Z39: 611356
B41: Biological Sciences | C41: 19.1 | D41: 18.5 | E41: 19.7 | F41: 18.4 | G41: 15.1 | H41: 90.8 | I41: 17429 | J41: 22.6 | K41: 20.2 | L41: 19.9 | M41: 17.8 | N41: 12.6 | O41: 93.1 | P41: 27978 | Q41: 21.3 | R41: 19.5 | S41: 19.8 | T41: 18 | U41: 13.6 | V41: 92.2 | W41: 45407
B42: Chemistry | C42: 26.8 | D42: 22.1 | E42: 18.9 | F42: 15.3 | G42: 10.9 | H42: 94.1 | I42: 15932 | J42: 29.6 | K42: 24.3 | L42: 19.4 | M42: 13.8 | N42: 8.8 | O42: 95.9 | P42: 16392 | Q42: 28.2 | R42: 23.2 | S42: 19.2 | T42: 14.6 | U42: 9.8 | V42: 95 | W42: 32324
B43: Physics | C43: 25.4 | D43: 19.7 | E43: 18.6 | F43: 16.6 | G43: 12.7 | H43: 92.9 | I43: 21541 | J43: 32.1 | K43: 22.8 | L43: 18.3 | M43: 14.6 | N43: 8.3 | O43: 96.1 | P43: 6319 | Q43: 26.9 | R43: 20.4 | S43: 18.5 | T43: 16.1 | U43: 11.7 | V43: 93.6 | W43: 27860
B44: Other Science | C44: 20.4 | D44: 20.1 | E44: 20.2 | F44: 20 | G44: 13.5 | H44: 94.2 | I44: 2514 | J44: 20.1 | K44: 19.6 | L44: 21.7 | M44: 20.2 | N44: 12.2 | O44: 93.7 | P44: 1226 | Q44: 20.3 | R44: 19.9 | S44: 20.7 | T44: 20.1 | U44: 13 | V44: 94.1 | W44: 3740
B45: Mathematics | C45: 34.2 | D45: 19.5 | E45: 16.7 | F45: 13.4 | G45: 9.5 | H45: 93.3 | I45: 27775 | J45: 39 | K45: 21.5 | L45: 16.6 | M45: 11.7 | N45: 7.1 | O45: 95.8 | P45: 16381 | Q45: 36 | R45: 20.2 | S45: 16.7 | T45: 12.8 | U45: 8.6 | V45: 94.2 | W45: 44156
B46: Further Mathematics | C46: 61.8 | D46: 16.5 | E46: 9.7 | F46: 6 | G46: 3.4 | H46: 97.4 | I46: 3251 | J46: 66.2 | K46: 16.2 | L46: 8.5 | M46: 4.7 | N46: 2.6 | O46: 98.2 | P46: 1247 | Q46: 63 | R46: 16.4 | S46: 9.4 | T46: 5.6 | U46: 3.2 | V46: 97.6 | W46: 4498
B47: Design and Technology | C47: 11.9 | D47: 19.3 | E47: 24.3 | F47: 23.7 | G47: 15 | H47: 94.1 | I47: 9042 | J47: 16 | K47: 25.5 | L47: 26.6 | M47: 19.7 | N47: 9.8 | O47: 97.5 | P47: 5144 | Q47: 13.3 | R47: 21.5 | S47: 25.1 | T47: 22.2 | U47: 13.1 | V47: 95.3 | W47: 14186
B48: Computer Studies | C48: 11.6 | D48: 16.5 | E48: 20.2 | F48: 21.6 | G48: 18.7 | H48: 88.7 | I48: 8265 | J48: 11.3 | K48: 17.1 | L48: 21.9 | M48: 21.6 | N48: 18.8 | O48: 90.7 | P48: 1064 | Q48: 11.6 | R48: 16.6 | S48: 20.4 | T48: 21.6 | U48: 18.7 | V48: 88.9 | W48: 9329
B49: ICT | C49: 5.3 | D49: 12.4 | E49: 20.9 | F49: 26.7 | G49: 22.3 | H49: 87.6 | I49: 9813 | J49: 7.4 | K49: 14.4 | L49: 22.8 | M49: 26.5 | N49: 20.4 | O49: 91.5 | P49: 5224 | Q49: 6 | R49: 13.1 | S49: 21.6 | T49: 26.7 | U49: 21.6 | V49: 89 | W49: 15037
B50: Home Economics | C50: x | D50: 11.4 | E50: 25.7 | F50: 25.7 | G50: 14.3 | H50: 82.9 | I50: 35 | J50: 14.3 | K50: 20.9 | L50: 27.6 | M50: 19.2 | N50: 12.3 | O50: 94.4 | P50: 656 | Q50: 13.9 | R50: 20.4 | S50: 27.5 | T50: 19.5 | U50: 12.4 | V50: 93.8 | W50: 691
B51: Accounting and Finance | C51: 11.1 | D51: 15.5 | E51: 17.6 | F51: 21.4 | G51: 18.7 | H51: 84.3 | I51: 1357 | J51: 13.8 | K51: 14.1 | L51: 16.9 | M51: 20.1 | N51: 20 | O51: 84.9 | P51: 781 | Q51: 12.1 | R51: 15 | S51: 17.4 | T51: 20.9 | U51: 19.2 | V51: 84.5 | W51: 2138
B52: Business Studies | C52: 10.1 | D52: 20.3 | E52: 27.9 | F52: 23.6 | G52: 13.6 | H52: 95.5 | I52: 18679 | J52: 12.9 | K52: 22.8 | L52: 27.6 | M52: 21.1 | N52: 11.6 | O52: 96 | P52: 13414 | Q52: 11.3 | R52: 21.3 | S52: 27.8 | T52: 22.5 | U52: 12.8 | V52: 95.7 | W52: 32093
B53: Economics | C53: 26.3 | D53: 24.7 | E53: 21.7 | F53: 15.5 | G53: 8.1 | H53: 96.3 | I53: 9346 | J53: 32.1 | K53: 24.3 | L53: 19.4 | M53: 12.8 | N53: 8.1 | O53: 96.7 | P53: 4023 | Q53: 28.1 | R53: 24.6 | S53: 21 | T53: 14.7 | U53: 8.1 | V53: 96.4 | W53: 13369
B54: Geography | C54: 16.3 | D54: 23.5 | E54: 25.5 | F54: 20.7 | G54: 10.9 | H54: 96.8 | I54: 17001 | J54: 25 | K54: 26.7 | L54: 24.1 | M54: 15.3 | N54: 7.1 | O54: 98.2 | P54: 14066 | Q54: 20.2 | R54: 25 | S54: 24.9 | T54: 18.3 | U54: 9.1 | V54: 97.5 | W54: 31067
B55: Government and Politics | C55: 25.2 | D55: 26.1 | E55: 21.9 | F55: 16.1 | G55: 7.7 | H55: 97 | I55: 4195 | J55: 28.7 | K55: 26.9 | L55: 20.8 | M55: 13 | N55: 7.6 | O55: 97.1 | P55: 3033 | Q55: 26.7 | R55: 26.4 | S55: 21.5 | T55: 14.8 | U55: 7.7 | V55: 97 | W55: 7228
B56: History | C56: 19.3 | D56: 24.8 | E56: 25 | F56: 18.3 | G56: 9.7 | H56: 97.1 | I56: 17181 | J56: 21.7 | K56: 25.9 | L56: 24.1 | M56: 17 | N56: 8.8 | O56: 97.5 | P56: 18332 | Q56: 20.5 | R56: 25.4 | S56: 24.5 | T56: 17.6 | U56: 9.2 | V56: 97.3 | W56: 35513
B57: Law | C57: 11.9 | D57: 18.2 | E57: 20 | F57: 20.9 | G57: 17.4 | H57: 88.4 | I57: 3392 | J57: 16.2 | K57: 19.8 | L57: 21.8 | M57: 19.7 | N57: 14.1 | O57: 91.5 | P57: 5114 | Q57: 14.5 | R57: 19.2 | S57: 21.1 | T57: 20.2 | U57: 15.4 | V57: 90.2 | W57: 8506
B58: Psychology | C58: 9.1 | D58: 16.5 | E58: 22.2 | F58: 23.9 | G58: 18.2 | H58: 90 | I58: 7336 | J58: 17.9 | K58: 22.1 | L58: 23.1 | M58: 19.3 | N58: 12.3 | O58: 94.6 | P58: 24672 | Q58: 15.9 | R58: 20.8 | S58: 22.9 | T58: 20.4 | U58: 13.7 | V58: 93.6 | W58: 32008
B59: Sociology | C59: 12.3 | D59: 19.7 | E59: 25 | F59: 22.1 | G59: 14 | H59: 93.1 | I59: 4628 | J59: 16.6 | K59: 23.3 | L59: 25.5 | M59: 18.9 | N59: 10.9 | O59: 95.2 | P59: 15457 | Q59: 15.6 | R59: 22.5 | S59: 25.4 | T59: 19.6 | U59: 11.6 | V59: 94.7 | W59: 20085
B60: Other social studies | C60: 14.8 | D60: 24.7 | E60: 23.2 | F60: 18.3 | G60: 12.6 | H60: 93.6 | I60: 770 | J60: 18.6 | K60: 24.8 | L60: 21.6 | M60: 19.1 | N60: 10.1 | O60: 94.2 | P60: 843 | Q60: 16.8 | R60: 24.7 | S60: 22.4 | T60: 18.7 | U60: 11.3 | V60: 93.9 | W60: 1613
B61: Art and Design | C61: 22.4 | D61: 19.9 | E61: 21.6 | F61: 18.8 | G61: 11.1 | H61: 93.8 | I61: 9996 | J61: 29.3 | K61: 24.2 | L61: 21.6 | M61: 14.8 | N61: 6.9 | O61: 96.8 | P61: 21691 | Q61: 27.1 | R61: 22.9 | S61: 21.6 | T61: 16.1 | U61: 8.2 | V61: 95.9 | W61: 31687
B62: Drama | C62: 12.1 | D62: 23.3 | E62: 30.8 | F62: 20.3 | G62: 9.6 | H62: 96 | I62: 3481 | J62: 17.3 | K62: 28.7 | L62: 28.5 | M62: 17 | N62: 6.8 | O62: 98.3 | P62: 9075 | Q62: 15.8 | R62: 27.2 | S62: 29.2 | T62: 17.9 | U62: 7.6 | V62: 97.7 | W62: 12556
B63: English | C63: 18.2 | D63: 23 | E63: 26.5 | F63: 21 | G63: 9 | H63: 97.7 | I63: 22223 | J63: 18.6 | K63: 24.5 | L63: 27.4 | M63: 20.2 | N63: 7.8 | O63: 98.4 | P63: 50272 | Q63: 18.4 | R63: 24 | S63: 27.1 | T63: 20.5 | U63: 8.2 | V63: 98.2 | W63: 72495
B64: Media/Film/TV Studies | C64: 8.4 | D64: 20.9 | E64: 33 | F64: 24.9 | G64: 10 | H64: 97.3 | I64: 7033 | J64: 13 | K64: 26 | L64: 31.8 | M64: 21.1 | N64: 6.5 | O64: 98.4 | P64: 9715 | Q64: 11.1 | R64: 23.9 | S64: 32.3 | T64: 22.7 | U64: 8 | V64: 98 | W64: 16748
B65: Other Communication Studies | C65: 10.9 | D65: 22.9 | E65: 32.6 | F65: 20.2 | G65: 9.7 | H65: 96.4 | I65: 2257 | J65: 13.3 | K65: 28.7 | L65: 32.4 | M65: 18.3 | N65: 5.5 | O65: 98.1 | P65: 4692 | Q65: 12.5 | R65: 26.8 | S65: 32.5 | T65: 18.9 | U65: 6.8 | V65: 97.5 | W65: 6949
B66: French | C66: 30.9 | D66: 25.1 | E66: 20.2 | F66: 13.5 | G66: 7.4 | H66: 97.1 | I66: 4296 | J66: 28.7 | K66: 24.6 | L66: 21.3 | M66: 14.5 | N66: 8.1 | O66: 97.2 | P66: 9303 | Q66: 29.4 | R66: 24.8 | S66: 21 | T66: 14.2 | U66: 7.8 | V66: 97.2 | W66: 13599
B67: German | C67: 32.8 | D67: 21.4 | E67: 19.9 | F67: 13.6 | G67: 9.3 | H67: 96.9 | I67: 2192 | J67: 29 | K67: 22.9 | L67: 20.1 | M67: 15.6 | N67: 9.7 | O67: 97.3 | P67: 4175 | Q67: 30.3 | R67: 22.4 | S67: 20 | T67: 14.9 | U67: 9.5 | V67: 97.2 | W67: 6367
B68: Spanish | C68: 32.6 | D68: 27.1 | E68: 18.6 | F68: 12 | G68: 6.8 | H68: 97.1 | I68: 1371 | J68: 30 | K68: 25.9 | L68: 21.4 | M68: 12.7 | N68: 7.5 | O68: 97.5 | P68: 3059 | Q68: 30.8 | R68: 26.3 | S68: 20.5 | T68: 12.5 | U68: 7.3 | V68: 97.4 | W68: 4430
B69: Other modern languages | C69: 41.9 | D69: 27.2 | E69: 16.6 | F69: 7.7 | G69: 2.9 | H69: 96.4 | I69: 1682 | J69: 46.9 | K69: 28.6 | L69: 14.4 | M69: 5.1 | N69: 1.8 | O69: 96.7 | P69: 2178 | Q69: 44.7 | R69: 28 | S69: 15.3 | T69: 6.2 | U69: 2.3 | V69: 96.6 | W69: 3860
B70: Classical Studies | C70: 32.6 | D70: 26.1 | E70: 21.4 | F70: 12 | G70: 6.4 | H70: 98.4 | I70: 2125 | J70: 32 | K70: 29.3 | L70: 23.4 | M70: 11 | N70: 3.4 | O70: 99 | P70: 2819 | Q70: 32.2 | R70: 27.9 | S70: 22.5 | T70: 11.4 | U70: 4.7 | V70: 98.7 | W70: 4944
B71: Religious Studies | C71: 21.7 | D71: 27.6 | E71: 24.2 | F71: 15 | G71: 8 | H71: 96.4 | I71: 2440 | J71: 21.9 | K71: 28 | L71: 24.9 | M71: 15.9 | N71: 6.7 | O71: 97.3 | P71: 6167 | Q71: 21.8 | R71: 27.9 | S71: 24.7 | T71: 15.6 | U71: 7.1 | V71: 97.1 | W71: 8607
B72: Music | C72: 19.4 | D72: 22 | E72: 24.5 | F72: 20.1 | G72: 10.3 | H72: 96.3 | I72: 3200 | J72: 22.8 | K72: 24.9 | L72: 25 | M72: 17.1 | N72: 8.1 | O72: 98 | P72: 3567 | Q72: 21.2 | R72: 23.6 | S72: 24.8 | T72: 18.5 | U72: 9.1 | V72: 97.2 | W72: 6767
B73: Physical Education | C73: 8 | D73: 16 | E73: 25 | F73: 26.9 | G73: 18.3 | H73: 94.2 | I73: 10022 | J73: 19.3 | K73: 21.2 | L73: 24.7 | M73: 20 | N73: 11.3 | O73: 96.4 | P73: 6633 | Q73: 12.5 | R73: 18.1 | S73: 24.8 | T73: 24.1 | U73: 15.5 | V73: 95.1 | W73: 16655
B74: General Studies | C74: 11.2 | D74: 15.6 | E74: 20.4 | F74: 22.1 | G74: 17.7 | H74: 87.1 | I74: 28079 | J74: 12.7 | K74: 16.8 | L74: 21.8 | M74: 22.1 | N74: 16.4 | O74: 89.8 | P74: 30442 | Q74: 12 | R74: 16.3 | S74: 21.1 | T74: 22.1 | U74: 17 | V74: 88.5 | W74: 58521
B75: All subjects | C75: 19.2 | D75: 20.2 | E75: 22.2 | F75: 19.4 | G75: 12.6 | H75: 93.6 | I75: 299879 | J75: 21.6 | K75: 23.1 | L75: 23.4 | M75: 17.8 | N75: 9.8 | O75: 95.8 | P75: 345154 | Q75: 20.5 | R75: 21.8 | S75: 22.8 | T75: 18.5 | U75: 11.1 | V75: 94.8 | W75: 645033
B77: Biological Sciences | C77: =ROUND(C41,1) -> 19.1 | D77: =ROUND(D41,1) -> 18.5 | E77: 19.7 | F77: 18.4 | G77: 15.1 | H77: 90.8 | I77: =ROUND(I41,0) -> 17429 | J77: 22.6 | K77: 20.2 | L77: 19.9 | M77: 17.8 | N77: 12.6 | O77: 93.1 | P77: =ROUND(P41,0) -> 27978 | Q77: 21.3 | R77: 19.5 | S77: 19.8 | T77: 18 | U77: 13.6 | V77: 92.2 | W77: =ROUND(W41,0) -> 45407
B78: Chemistry | C78: =ROUND(C42,1) -> 26.8 | D78: 22.1 | E78: 18.9 | F78: 15.3 | G78: 10.9 | H78: 94.1 | I78: =ROUND(I42,0) -> 15932 | J78: =ROUND(J42,1) -> 29.6 | K78: 24.3 | L78: 19.4 | M78: 13.8 | N78: 8.8 | O78: 95.9 | P78: =ROUND(P42,0) -> 16392 | Q78: =ROUND(Q42,1) -> 28.2 | R78: 23.2 | S78: 19.2 | T78: 14.6 | U78: 9.8 | V78: 95 | W78: =ROUND(W42,0) -> 32324
B79: Physics | C79: =ROUND(C43,1) -> 25.4 | D79: 19.7 | E79: 18.6 | F79: 16.6 | G79: 12.7 | H79: 92.9 | I79: 21541 | J79: =ROUND(J43,1) -> 32.1 | K79: 22.8 | L79: 18.3 | M79: 14.6 | N79: 8.3 | O79: 96.1 | P79: 6319 | Q79: =ROUND(Q43,1) -> 26.9 | R79: 20.4 | S79: 18.5 | T79: 16.1 | U79: 11.7 | V79: 93.6 | W79: 27860
B80: Other Science | C80: =ROUND(C44,1) -> 20.4 | D80: 20.1 | E80: 20.2 | F80: 20 | G80: 13.5 | H80: 94.2 | I80: 2514 | J80: =ROUND(J44,1) -> 20.1 | K80: 19.6 | L80: 21.7 | M80: 20.2 | N80: 12.2 | O80: 93.7 | P80: 1226 | Q80: =ROUND(Q44,1) -> 20.3 | R80: 19.9 | S80: 20.7 | T80: 20.1 | U80: 13 | V80: 94.1 | W80: 3740
B81: Mathematics | C81: =ROUND(C45,1) -> 34.2 | D81: 19.5 | E81: 16.7 | F81: 13.4 | G81: 9.5 | H81: 93.3 | I81: 27775 | J81: =ROUND(J45,1) -> 39 | K81: 21.5 | L81: 16.6 | M81: 11.7 | N81: 7.1 | O81: 95.8 | P81: 16381 | Q81: =ROUND(Q45,1) -> 36 | R81: 20.2 | S81: 16.7 | T81: 12.8 | U81: 8.6 | V81: 94.2 | W81: 44156
B82: Further Mathematics | C82: =ROUND(C46,1) -> 61.8 | D82: 16.5 | E82: 9.7 | F82: 6 | G82: 3.4 | H82: 97.4 | I82: 3251 | J82: =ROUND(J46,1) -> 66.2 | K82: 16.2 | L82: 8.5 | M82: 4.7 | N82: 2.6 | O82: 98.2 | P82: 1247 | Q82: =ROUND(Q46,1) -> 63 | R82: 16.4 | S82: 9.4 | T82: 5.6 | U82: 3.2 | V82: 97.6 | W82: 4498
B83: Design and Technology | C83: =ROUND(C47,1) -> 11.9 | D83: 19.3 | E83: 24.3 | F83: 23.7 | G83: 15 | H83: 94.1 | I83: 9042 | J83: =ROUND(J47,1) -> 16 | K83: 25.5 | L83: 26.6 | M83: 19.7 | N83: 9.8 | O83: 97.5 | P83: 5144 | Q83: =ROUND(Q47,1) -> 13.3 | R83: 21.5 | S83: 25.1 | T83: 22.2 | U83: 13.1 | V83: 95.3 | W83: 14186
B84: Computer Studies | C84: =ROUND(C48,1) -> 11.6 | D84: 16.5 | E84: 20.2 | F84: 21.6 | G84: 18.7 | H84: 88.7 | I84: 8265 | J84: =ROUND(J48,1) -> 11.3 | K84: 17.1 | L84: 21.9 | M84: 21.6 | N84: 18.8 | O84: 90.7 | P84: 1064 | Q84: =ROUND(Q48,1) -> 11.6 | R84: 16.6 | S84: 20.4 | T84: 21.6 | U84: 18.7 | V84: 88.9 | W84: 9329
B85: ICT | C85: =ROUND(C49,1) -> 5.3 | D85: 12.4 | E85: 20.9 | F85: 26.7 | G85: 22.3 | H85: 87.6 | I85: 9813 | J85: =ROUND(J49,1) -> 7.4 | K85: 14.4 | L85: 22.8 | M85: 26.5 | N85: 20.4 | O85: 91.5 | P85: 5224 | Q85: =ROUND(Q49,1) -> 6 | R85: 13.1 | S85: 21.6 | T85: 26.7 | U85: 21.6 | V85: 89 | W85: 15037
B86: Home Economics | C86: x | D86: =ROUND(D50,1) -> 11.4 | E86: 25.7 | F86: 25.7 | G86: 14.3 | H86: 82.9 | I86: 35 | J86: =ROUND(J50,1) -> 14.3 | K86: 20.9 | L86: 27.6 | M86: 19.2 | N86: 12.3 | O86: 94.4 | P86: 656 | Q86: =ROUND(Q50,1) -> 13.9 | R86: 20.4 | S86: 27.5 | T86: 19.5 | U86: 12.4 | V86: 93.8 | W86: 691
B87: Accounting and Finance | C87: =ROUND(C51,1) -> 11.1 | D87: 15.5 | E87: 17.6 | F87: 21.4 | G87: 18.7 | H87: 84.3 | I87: 1357 | J87: =ROUND(J51,1) -> 13.8 | K87: 14.1 | L87: 16.9 | M87: 20.1 | N87: 20 | O87: 84.9 | P87: 781 | Q87: =ROUND(Q51,1) -> 12.1 | R87: 15 | S87: 17.4 | T87: 20.9 | U87: 19.2 | V87: 84.5 | W87: 2138
B88: Business Studies | C88: =ROUND(C52,1) -> 10.1 | D88: 20.3 | E88: 27.9 | F88: 23.6 | G88: 13.6 | H88: 95.5 | I88: 18679 | J88: =ROUND(J52,1) -> 12.9 | K88: 22.8 | L88: 27.6 | M88: 21.1 | N88: 11.6 | O88: 96 | P88: 13414 | Q88: =ROUND(Q52,1) -> 11.3 | R88: 21.3 | S88: 27.8 | T88: 22.5 | U88: 12.8 | V88: 95.7 | W88: 32093
B89: Economics | C89: =ROUND(C53,1) -> 26.3 | D89: 24.7 | E89: 21.7 | F89: 15.5 | G89: 8.1 | H89: 96.3 | I89: 9346 | J89: =ROUND(J53,1) -> 32.1 | K89: 24.3 | L89: 19.4 | M89: 12.8 | N89: 8.1 | O89: 96.7 | P89: 4023 | Q89: =ROUND(Q53,1) -> 28.1 | R89: 24.6 | S89: 21 | T89: 14.7 | U89: 8.1 | V89: 96.4 | W89: 13369
B90: Geography | C90: =ROUND(C54,1) -> 16.3 | D90: 23.5 | E90: 25.5 | F90: 20.7 | G90: 10.9 | H90: 96.8 | I90: 17001 | J90: =ROUND(J54,1) -> 25 | K90: 26.7 | L90: 24.1 | M90: 15.3 | N90: 7.1 | O90: 98.2 | P90: 14066 | Q90: =ROUND(Q54,1) -> 20.2 | R90: 25 | S90: 24.9 | T90: 18.3 | U90: 9.1 | V90: 97.5 | W90: 31067
B91: Government and Politics | C91: =ROUND(C55,1) -> 25.2 | D91: 26.1 | E91: 21.9 | F91: 16.1 | G91: 7.7 | H91: 97 | I91: 4195 | J91: =ROUND(J55,1) -> 28.7 | K91: 26.9 | L91: 20.8 | M91: 13 | N91: 7.6 | O91: 97.1 | P91: 3033 | Q91: =ROUND(Q55,1) -> 26.7 | R91: 26.4 | S91: 21.5 | T91: 14.8 | U91: 7.7 | V91: 97 | W91: 7228
B92: History | C92: =ROUND(C56,1) -> 19.3 | D92: 24.8 | E92: 25 | F92: 18.3 | G92: 9.7 | H92: 97.1 | I92: 17181 | J92: =ROUND(J56,1) -> 21.7 | K92: 25.9 | L92: 24.1 | M92: 17 | N92: 8.8 | O92: 97.5 | P92: 18332 | Q92: =ROUND(Q56,1) -> 20.5 | R92: 25.4 | S92: 24.5 | T92: 17.6 | U92: 9.2 | V92: 97.3 | W92: 35513
B93: Law | C93: =ROUND(C57,1) -> 11.9 | D93: 18.2 | E93: 20 | F93: 20.9 | G93: 17.4 | H93: 88.4 | I93: 3392 | J93: =ROUND(J57,1) -> 16.2 | K93: 19.8 | L93: 21.8 | M93: 19.7 | N93: 14.1 | O93: 91.5 | P93: 5114 | Q93: =ROUND(Q57,1) -> 14.5 | R93: 19.2 | S93: 21.1 | T93: 20.2 | U93: 15.4 | V93: 90.2 | W93: 8506
B94: Psychology | C94: =ROUND(C58,1) -> 9.1 | D94: 16.5 | E94: 22.2 | F94: 23.9 | G94: 18.2 | H94: 90 | I94: 7336 | J94: =ROUND(J58,1) -> 17.9 | K94: 22.1 | L94: 23.1 | M94: 19.3 | N94: 12.3 | O94: 94.6 | P94: 24672 | Q94: =ROUND(Q58,1) -> 15.9 | R94: 20.8 | S94: 22.9 | T94: 20.4 | U94: 13.7 | V94: 93.6 | W94: 32008
B95: Sociology | C95: =ROUND(C59,1) -> 12.3 | D95: 19.7 | E95: 25 | F95: 22.1 | G95: 14 | H95: 93.1 | I95: 4628 | J95: =ROUND(J59,1) -> 16.6 | K95: 23.3 | L95: 25.5 | M95: 18.9 | N95: 10.9 | O95: 95.2 | P95: 15457 | Q95: =ROUND(Q59,1) -> 15.6 | R95: 22.5 | S95: 25.4 | T95: 19.6 | U95: 11.6 | V95: 94.7 | W95: 20085
B96: Other social studies | C96: =ROUND(C60,1) -> 14.8 | D96: 24.7 | E96: 23.2 | F96: 18.3 | G96: 12.6 | H96: 93.6 | I96: 770 | J96: =ROUND(J60,1) -> 18.6 | K96: 24.8 | L96: 21.6 | M96: 19.1 | N96: 10.1 | O96: 94.2 | P96: 843 | Q96: =ROUND(Q60,1) -> 16.8 | R96: 24.7 | S96: 22.4 | T96: 18.7 | U96: 11.3 | V96: 93.9 | W96: 1613
B97: Art and Design | C97: =ROUND(C61,1) -> 22.4 | D97: 19.9 | E97: 21.6 | F97: 18.8 | G97: 11.1 | H97: 93.8 | I97: 9996 | J97: =ROUND(J61,1) -> 29.3 | K97: 24.2 | L97: 21.6 | M97: 14.8 | N97: 6.9 | O97: 96.8 | P97: 21691 | Q97: =ROUND(Q61,1) -> 27.1 | R97: 22.9 | S97: 21.6 | T97: 16.1 | U97: 8.2 | V97: 95.9 | W97: 31687
B98: Drama | C98: =ROUND(C62,1) -> 12.1 | D98: 23.3 | E98: 30.8 | F98: 20.3 | G98: 9.6 | H98: 96 | I98: 3481 | J98: =ROUND(J62,1) -> 17.3 | K98: 28.7 | L98: 28.5 | M98: 17 | N98: 6.8 | O98: 98.3 | P98: 9075 | Q98: =ROUND(Q62,1) -> 15.8 | R98: 27.2 | S98: 29.2 | T98: 17.9 | U98: 7.6 | V98: 97.7 | W98: 12556
B99: English | C99: =ROUND(C63,1) -> 18.2 | D99: 23 | E99: 26.5 | F99: 21 | G99: 9 | H99: 97.7 | I99: 22223 | J99: =ROUND(J63,1) -> 18.6 | K99: 24.5 | L99: 27.4 | M99: 20.2 | N99: 7.8 | O99: 98.4 | P99: 50272 | Q99: =ROUND(Q63,1) -> 18.4 | R99: 24 | S99: 27.1 | T99: 20.5 | U99: 8.2 | V99: 98.2 | W99: 72495
B100: Media/Film/TV Studies | C100: =ROUND(C64,1) -> 8.4 | D100: 20.9 | E100: 33 | F100: 24.9 | G100: 10 | H100: 97.3 | I100: 7033 | J100: =ROUND(J64,1) -> 13 | K100: 26 | L100: 31.8 | M100: 21.1 | N100: 6.5 | O100: 98.4 | P100: 9715 | Q100: =ROUND(Q64,1) -> 11.1 | R100: 23.9 | S100: 32.3 | T100: 22.7 | U100: 8 | V100: 98 | W100: 16748
B101: Other Communication Studies | C101: =ROUND(C65,1) -> 10.9 | D101: 22.9 | E101: 32.6 | F101: 20.2 | G101: 9.7 | H101: 96.4 | I101: 2257 | J101: =ROUND(J65,1) -> 13.3 | K101: 28.7 | L101: 32.4 | M101: 18.3 | N101: 5.5 | O101: 98.1 | P101: 4692 | Q101: =ROUND(Q65,1) -> 12.5 | R101: 26.8 | S101: 32.5 | T101: 18.9 | U101: 6.8 | V101: 97.5 | W101: 6949
B102: French | C102: =ROUND(C66,1) -> 30.9 | D102: 25.1 | E102: 20.2 | F102: 13.5 | G102: 7.4 | H102: 97.1 | I102: 4296 | J102: =ROUND(J66,1) -> 28.7 | K102: 24.6 | L102: 21.3 | M102: 14.5 | N102: 8.1 | O102: 97.2 | P102: 9303 | Q102: =ROUND(Q66,1) -> 29.4 | R102: 24.8 | S102: 21 | T102: 14.2 | U102: 7.8 | V102: 97.2 | W102: 13599
B103: German | C103: =ROUND(C67,1) -> 32.8 | D103: 21.4 | E103: 19.9 | F103: 13.6 | G103: 9.3 | H103: 96.9 | I103: 2192 | J103: =ROUND(J67,1) -> 29 | K103: 22.9 | L103: 20.1 | M103: 15.6 | N103: 9.7 | O103: 97.3 | P103: 4175 | Q103: =ROUND(Q67,1) -> 30.3 | R103: 22.4 | S103: 20 | T103: 14.9 | U103: 9.5 | V103: 97.2 | W103: 6367
B104: Spanish | C104: =ROUND(C68,1) -> 32.6 | D104: 27.1 | E104: 18.6 | F104: 12 | G104: 6.8 | H104: 97.1 | I104: 1371 | J104: =ROUND(J68,1) -> 30 | K104: 25.9 | L104: 21.4 | M104: 12.7 | N104: 7.5 | O104: 97.5 | P104: 3059 | Q104: =ROUND(Q68,1) -> 30.8 | R104: 26.3 | S104: 20.5 | T104: 12.5 | U104: 7.3 | V104: 97.4 | W104: 4430
B105: Other modern languages | C105: =ROUND(C69,1) -> 41.9 | D105: 27.2 | E105: 16.6 | F105: 7.7 | G105: 2.9 | H105: 96.4 | I105: 1682 | J105: =ROUND(J69,1) -> 46.9 | K105: 28.6 | L105: 14.4 | M105: 5.1 | N105: 1.8 | O105: 96.7 | P105: 2178 | Q105: =ROUND(Q69,1) -> 44.7 | R105: 28 | S105: 15.3 | T105: 6.2 | U105: 2.3 | V105: 96.6 | W105: 3860
B106: Classical Studies | C106: =ROUND(C70,1) -> 32.6 | D106: 26.1 | E106: 21.4 | F106: 12 | G106: 6.4 | H106: 98.4 | I106: 2125 | J106: =ROUND(J70,1) -> 32 | K106: 29.3 | L106: 23.4 | M106: 11 | N106: 3.4 | O106: 99 | P106: 2819 | Q106: =ROUND(Q70,1) -> 32.2 | R106: 27.9 | S106: 22.5 | T106: 11.4 | U106: 4.7 | V106: 98.7 | W106: 4944
B107: Religious Studies | C107: =ROUND(C71,1) -> 21.7 | D107: 27.6 | E107: 24.2 | F107: 15 | G107: 8 | H107: 96.4 | I107: 2440 | J107: =ROUND(J71,1) -> 21.9 | K107: 28 | L107: 24.9 | M107: 15.9 | N107: 6.7 | O107: 97.3 | P107: 6167 | Q107: =ROUND(Q71,1) -> 21.8 | R107: 27.9 | S107: 24.7 | T107: 15.6 | U107: 7.1 | V107: 97.1 | W107: 8607
B108: Music | C108: =ROUND(C72,1) -> 19.4 | D108: 22 | E108: 24.5 | F108: 20.1 | G108: 10.3 | H108: 96.3 | I108: 3200 | J108: =ROUND(J72,1) -> 22.8 | K108: 24.9 | L108: 25 | M108: 17.1 | N108: 8.1 | O108: 98 | P108: 3567 | Q108: =ROUND(Q72,1) -> 21.2 | R108: 23.6 | S108: 24.8 | T108: 18.5 | U108: 9.1 | V108: 97.2 | W108: 6767
B109: Physical Education | C109: =ROUND(C73,1) -> 8 | D109: 16 | E109: 25 | F109: 26.9 | G109: 18.3 | H109: 94.2 | I109: 10022 | J109: =ROUND(J73,1) -> 19.3 | K109: 21.2 | L109: 24.7 | M109: 20 | N109: 11.3 | O109: 96.4 | P109: 6633 | Q109: =ROUND(Q73,1) -> 12.5 | R109: 18.1 | S109: 24.8 | T109: 24.1 | U109: 15.5 | V109: 95.1 | W109: 16655
B110: General Studies | C110: =ROUND(C74,1) -> 11.2 | D110: 15.6 | E110: 20.4 | F110: 22.1 | G110: 17.7 | H110: 87.1 | I110: 28079 | J110: =ROUND(J74,1) -> 12.7 | K110: 16.8 | L110: 21.8 | M110: 22.1 | N110: 16.4 | O110: 89.8 | P110: 30442 | Q110: =ROUND(Q74,1) -> 12 | R110: 16.3 | S110: 21.1 | T110: 22.1 | U110: 17 | V110: 88.5 | W110: 58521
B111: All subjects | C111: =ROUND(C75,1) -> 19.2 | D111: 20.2 | E111: 22.2 | F111: 19.4 | G111: 12.6 | H111: 93.6 | I111: 299879 | J111: =ROUND(J75,1) -> 21.6 | K111: 23.1 | L111: 23.4 | M111: 17.8 | N111: 9.8 | O111: 95.8 | P111: 345154 | Q111: =ROUND(Q75,1) -> 20.5 | R111: 21.8 | S111: 22.8 | T111: 18.5 | U111: 11.1 | V111: 94.8 | W111: 645033

Sheet 2003data_new (hidden)
C3: Males | I3: Females | O3: Total | U3: total entries | X3: total passes
C4: A | D4: B | E4: C | F4: D | G4: E | H4: other | I4: A | J4: B | K4: C | L4: D | M4: E | N4: other | O4: A | P4: B | Q4: C | R4: D | S4: E | T4: other | U4: Male | V4: Female | W4: Male and Female | X4: Male | Y4: Female | Z4: Male and Female
B5: Biological Sciences | C5: 3266 | D5: 3298 | E5: 3454 | F5: 3136 | G5: 2580 | H5: 1286 | I5: 6213 | J5: 5850 | K5: 5503 | L5: 4545 | M5: 3350 | N5: 1421 | O5: 9479 | P5: 9148 | Q5: 8957 | R5: 7681 | S5: 5930 | T5: 2707 | U5: 17020 | V5: 26882 | W5: 43902 | X5: 15734 | Y5: 25461 | Z5: 41195
B6: Chemistry | C6: 4115 | D6: 3526 | E6: 2866 | F6: 2279 | G6: 1617 | H6: 721 | I6: 4941 | J6: 3996 | K6: 3025 | L6: 2136 | M6: 1332 | N6: 511 | O6: 9056 | P6: 7522 | Q6: 5891 | R6: 4415 | S6: 2949 | T6: 1232 | U6: 15124 | V6: 15941 | W6: 31065 | X6: 14403 | Y6: 15430 | Z6: 29833
B7: Physics | C7: 5297 | D7: 4153 | E7: 3787 | F7: 3404 | G7: 2541 | H7: 1188 | I7: 1912 | J7: 1358 | K7: 1085 | L7: 786 | M7: 567 | N7: 200 | O7: 7209 | P7: 5511 | Q7: 4872 | R7: 4190 | S7: 3108 | T7: 1388 | U7: 20370 | V7: 5908 | W7: 26278 | X7: 19182 | Y7: 5708 | Z7: 24890
B8: Other Science | C8: 591 | D8: 508 | E8: 616 | F8: 532 | G8: 412 | H8: 161 | I8: 231 | J8: 240 | K8: 269 | L8: 246 | M8: 169 | N8: 54 | O8: 822 | P8: 748 | Q8: 885 | R8: 778 | S8: 581 | T8: 215 | U8: 2820 | V8: 1209 | W8: 4029 | X8: 2659 | Y8: 1155 | Z8: 3814
B9: Mathematics | C9: 9712 | D9: 5544 | E9: 4750 | F9: 3656 | G9: 2528 | H9: 1510 | I9: 6596 | J9: 3782 | K9: 2756 | L9: 1950 | M9: 1074 | N9: 595 | O9: 16308 | P9: 9326 | Q9: 7506 | R9: 5606 | S9: 3602 | T9: 2105 | U9: 27700 | V9: 16753 | W9: 44453 | X9: 26190 | Y9: 16158 | Z9: 42348
B10: Further Mathematics | C10: 2046 | D10: 543 | E10: 352 | F10: 229 | G10: 183 | H10: 69 | I10: 829 | J10: 233 | K10: 113 | L10: 84 | M10: 37 | N10: 12 | O10: 2875 | P10: 776 | Q10: 465 | R10: 313 | S10: 220 | T10: 81 | U10: 3422 | V10: 1308 | W10: 4730 | X10: 3353 | Y10: 1296 | Z10: 4649
B11: Design and Technology | C11: 1208 | D11: 1847 | E11: 2386 | F11: 2264 | G11: 1371 | H11: 441 | I11: 1063 | J11: 1500 | K11: 1538 | L11: 1118 | M11: 512 | N11: 126 | O11: 2271 | P11: 3347 | Q11: 3924 | R11: 3382 | S11: 1883 | T11: 567 | U11: 9517 | V11: 5857 | W11: 15374 | X11: 9076 | Y11: 5731 | Z11: 14807
B12: Computer Studies | C12: 929 | D12: 1261 | E12: 1635 | F12: 1608 | G12: 1275 | H12: 611 | I12: 104 | J12: 180 | K12: 195 | L12: 215 | M12: 166 | N12: 77 | O12: 1033 | P12: 1441 | Q12: 1830 | R12: 1823 | S12: 1441 | T12: 688 | U12: 7319 | V12: 937 | W12: 8256 | X12: 6708 | Y12: 860 | Z12: 7568
B13: ICT | C13: 551 | D13: 1438 | E13: 2520 | F13: 2895 | G13: 2328 | H13: 1002 | I13: 414 | J13: 995 | K13: 1370 | L13: 1460 | M13: 992 | N13: 344 | O13: 965 | P13: 2433 | Q13: 3890 | R13: 4355 | S13: 3320 | T13: 1346 | U13: 10734 | V13: 5575 | W13: 16309 | X13: 9732 | Y13: 5231 | Z13: 14963
B14: Home Economics | C14: 1 | D14: 8 | E14: 9 | F14: 17 | G14: 12 | H14: 4 | I14: 91 | J14: 125 | K14: 132 | L14: 120 | M14: 65 | N14: 16 | O14: 92 | P14: 133 | Q14: 141 | R14: 137 | S14: 77 | T14: 20 | U14: 51 | V14: 549 | W14: 600 | X14: 47 | Y14: 533 | Z14: 580
B15: Accounting and Finance | C15: 151 | D15: 223 | E15: 296 | F15: 301 | G15: 305 | H15: 166 | I15: 132 | J15: 149 | K15: 170 | L15: 208 | M15: 171 | N15: 99 | O15: 283 | P15: 372 | Q15: 466 | R15: 509 | S15: 476 | T15: 265 | U15: 1442 | V15: 929 | W15: 2371 | X15: 1276 | Y15: 830 | Z15: 2106
B16: Business Studies | C16: 2244 | D16: 4413 | E16: 5376 | F16: 4464 | G16: 2216 | H16: 566 | I16: 1983 | J16: 3164 | K16: 3582 | L16: 2747 | M16: 1330 | N16: 359 | O16: 4227 | P16: 7577 | Q16: 8958 | R16: 7211 | S16: 3546 | T16: 925 | U16: 19279 | V16: 13165 | W16: 32444 | X16: 18713 | Y16: 12806 | Z16: 31519
B17: Economics | C17: 2842 | D17: 2434 | E17: 1977 | F17: 1306 | G17: 620 | H17: 203 | I17: 1401 | J17: 1018 | K17: 764 | L17: 470 | M17: 219 | N17: 63 | O17: 4243 | P17: 3452 | Q17: 2741 | R17: 1776 | S17: 839 | T17: 266 | U17: 9382 | V17: 3935 | W17: 13317 | X17: 9179 | Y17: 3872 | Z17: 13051
B18: Geography | C18: 3189 | D18: 4253 | E18: 4165 | F18: 3200 | G18: 1665 | H18: 374 | I18: 3979 | J18: 3841 | K18: 3324 | L18: 2094 | M18: 887 | N18: 208 | O18: 7168 | P18: 8094 | Q18: 7489 | R18: 5294 | S18: 2552 | T18: 582 | U18: 16846 | V18: 14333 | W18: 31179 | X18: 16472 | Y18: 14125 | Z18: 30597
B19: Government and Politics | C19: 1267 | D19: 1298 | E19: 1043 | F19: 721 | G19: 399 | H19: 153 | I19: 1060 | J19: 872 | K19: 665 | L19: 382 | M19: 196 | N19: 78 | O19: 2327 | P19: 2170 | Q19: 1708 | R19: 1103 | S19: 595 | T19: 231 | U19: 4881 | V19: 3253 | W19: 8134 | X19: 4728 | Y19: 3175 | Z19: 7903
B20: History | C20: 3956 | D20: 4420 | E20: 4413 | F20: 3228 | G20: 1473 | H20: 375 | I20: 4569 | J20: 4942 | K20: 4293 | L20: 3161 | M20: 1333 | N20: 350 | O20: 8525 | P20: 9362 | Q20: 8706 | R20: 6389 | S20: 2806 | T20: 725 | U20: 17865 | V20: 18648 | W20: 36513 | X20: 17490 | Y20: 18298 | Z20: 35788
B21: Law | C21: 548 | D21: 756 | E21: 888 | F21: 863 | G21: 613 | H21: 305 | I21: 1204 | J21: 1331 | K21: 1415 | L21: 1152 | M21: 697 | N21: 325 | O21: 1752 | P21: 2087 | Q21: 2303 | R21: 2015 | S21: 1310 | T21: 630 | U21: 3973 | V21: 6124 | W21: 10097 | X21: 3668 | Y21: 5799 | Z21: 9467
B22: Psychology | C22: 976 | D22: 1657 | E22: 2088 | F22: 2109 | G22: 1489 | H22: 770 | I22: 5671 | J22: 6955 | K22: 6877 | L22: 5299 | M22: 2971 | N22: 1035 | O22: 6647 | P22: 8612 | Q22: 8965 | R22: 7408 | S22: 4460 | T22: 1805 | U22: 9089 | V22: 28808 | W22: 37897 | X22: 8319 | Y22: 27773 | Z22: 36092
B23: Sociology | C23: 679 | D23: 1115 | E23: 1248 | F23: 1062 | G23: 606 | H23: 281 | I23: 3195 | J23: 4169 | K23: 4033 | L23: 2782 | M23: 1430 | N23: 468 | O23: 3874 | P23: 5284 | Q23: 5281 | R23: 3844 | S23: 2036 | T23: 749 | U23: 4991 | V23: 16077 | W23: 21068 | X23: 4710 | Y23: 15609 | Z23: 20319
B24: Other social studies | C24: 142 | D24: 239 | E24: 244 | F24: 176 | G24: 126 | H24: 48 | I24: 212 | J24: 245 | K24: 219 | L24: 164 | M24: 83 | N24: 35 | O24: 354 | P24: 484 | Q24: 463 | R24: 340 | S24: 209 | T24: 83 | U24: 975 | V24: 958 | W24: 1933 | X24: 927 | Y24: 923 | Z24: 1850
B25: Art and Design | C25: 2235 | D25: 2160 | E25: 2384 | F25: 2058 | G25: 1115 | H25: 516 | I25: 6929 | J25: 5715 | K25: 5354 | L25: 3403 | M25: 1530 | N25: 593 | O25: 9164 | P25: 7875 | Q25: 7738 | R25: 5461 | S25: 2645 | T25: 1109 | U25: 10468 | V25: 23524 | W25: 33992 | X25: 9952 | Y25: 22931 | Z25: 32883
B26: Drama | C26: 395 | D26: 865 | E26: 1257 | F26: 785 | G26: 344 | H26: 80 | I26: 1562 | J26: 2869 | K26: 3031 | L26: 1714 | M26: 558 | N26: 96 | O26: 1957 | P26: 3734 | Q26: 4288 | R26: 2499 | S26: 902 | T26: 176 | U26: 3726 | V26: 9830 | W26: 13556 | X26: 3646 | Y26: 9734 | Z26: 13380
B27: English | C27: 4339 | D27: 4994 | E27: 5674 | F27: 4288 | G27: 1818 | H27: 403 | I27: 9882 | J27: 12601 | K27: 13847 | L27: 10060 | M27: 3478 | N27: 627 | O27: 14221 | P27: 17595 | Q27: 19521 | R27: 14348 | S27: 5296 | T27: 1030 | U27: 21516 | V27: 50495 | W27: 72011 | X27: 21113 | Y27: 49868 | Z27: 70981
B28: Media/Film/TV Studies | C28: 735 | D28: 1726 | E28: 2529 | F28: 2123 | G28: 794 | H28: 203 | I28: 1519 | J28: 2954 | K28: 3514 | L28: 2293 | M28: 744 | N28: 136 | O28: 2254 | P28: 4680 | Q28: 6043 | R28: 4416 | S28: 1538 | T28: 339 | U28: 8110 | V28: 11160 | W28: 19270 | X28: 7907 | Y28: 11024 | Z28: 18931
B29: Other Communication Studies | C29: 324 | D29: 775 | E29: 835 | F29: 510 | G29: 200 | H29: 81 | I29: 689 | J29: 1478 | K29: 1624 | L29: 817 | M29: 237 | N29: 55 | O29: 1013 | P29: 2253 | Q29: 2459 | R29: 1327 | S29: 437 | T29: 136 | U29: 2725 | V29: 4900 | W29: 7625 | X29: 2644 | Y29: 4845 | Z29: 7489
B30: French | C30: 1421 | D30: 1077 | E30: 803 | F30: 518 | G30: 287 | H30: 89 | I30: 2631 | J30: 2287 | K30: 1784 | L30: 1211 | M30: 618 | N30: 178 | O30: 4052 | P30: 3364 | Q30: 2587 | R30: 1729 | S30: 905 | T30: 267 | U30: 4195 | V30: 8709 | W30: 12904 | X30: 4106 | Y30: 8531 | Z30: 12637
B31: German | C31: 725 | D31: 496 | E31: 391 | F31: 311 | G31: 170 | H31: 47 | I31: 1127 | J31: 962 | K31: 803 | L31: 624 | M31: 307 | N31: 105 | O31: 1852 | P31: 1458 | Q31: 1194 | R31: 935 | S31: 477 | T31: 152 | U31: 2140 | V31: 3928 | W31: 6068 | X31: 2093 | Y31: 3823 | Z31: 5916
B32: Spanish | C32: 522 | D32: 395 | E32: 262 | F32: 154 | G32: 85 | H32: 15 | I32: 999 | J32: 815 | K32: 604 | L32: 405 | M32: 193 | N32: 55 | O32: 1521 | P32: 1210 | Q32: 866 | R32: 559 | S32: 278 | T32: 70 | U32: 1433 | V32: 3071 | W32: 4504 | X32: 1418 | Y32: 3016 | Z32: 4434
B33: Other modern languages | C33: 769 | D33: 477 | E33: 251 | F33: 92 | G33: 59 | H33: 70 | I33: 1191 | J33: 579 | K33: 292 | L33: 107 | M33: 44 | N33: 68 | O33: 1960 | P33: 1056 | Q33: 543 | R33: 199 | S33: 103 | T33: 138 | U33: 1718 | V33: 2281 | W33: 3999 | X33: 1648 | Y33: 2213 | Z33: 3861
B34: Classical Studies | C34: 744 | D34: 565 | E34: 445 | F34: 322 | G34: 113 | H34: 31 | I34: 1042 | J34: 919 | K34: 670 | L34: 341 | M34: 105 | N34: 19 | O34: 1786 | P34: 1484 | Q34: 1115 | R34: 663 | S34: 218 | T34: 50 | U34: 2220 | V34: 3096 | W34: 5316 | X34: 2189 | Y34: 3077 | Z34: 5266
B35: Religious Studies | C35: 779 | D35: 807 | E35: 720 | F35: 436 | G35: 222 | H35: 69 | I35: 1670 | J35: 2069 | K35: 1756 | L35: 1115 | M35: 403 | N35: 127 | O35: 2449 | P35: 2876 | Q35: 2476 | R35: 1551 | S35: 625 | T35: 196 | U35: 3033 | V35: 7140 | W35: 10173 | X35: 2964 | Y35: 7013 | Z35: 9977
B36: Music | C36: 751 | D36: 794 | E36: 932 | F36: 745 | G36: 412 | H36: 160 | I36: 868 | J36: 904 | K36: 973 | L36: 687 | M36: 332 | N36: 85 | O36: 1619 | P36: 1698 | Q36: 1905 | R36: 1432 | S36: 744 | T36: 245 | U36: 3794 | V36: 3849 | W36: 7643 | X36: 3634 | Y36: 3764 | Z36: 7398
B37: Physical Education | C37: 906 | D37: 1961 | E37: 2847 | F37: 2948 | G37: 2072 | H37: 602 | I37: 1395 | J37: 1704 | K37: 1847 | L37: 1454 | M37: 792 | N37: 235 | O37: 2301 | P37: 3665 | Q37: 4694 | R37: 4402 | S37: 2864 | T37: 837 | U37: 11336 | V37: 7427 | W37: 18763 | X37: 10734 | Y37: 7192 | Z37: 17926
B38: General Studies | C38: 3132 | D38: 4391 | E38: 5887 | F38: 6151 | G38: 4790 | H38: 2485 | I38: 3953 | J38: 5472 | K38: 6966 | L38: 6713 | M38: 4852 | N38: 2105 | O38: 7085 | P38: 9863 | Q38: 12853 | R38: 12864 | S38: 9642 | T38: 4590 | U38: 26836 | V38: 30061 | W38: 56897 | X38: 24351 | Y38: 27956 | Z38: 52307
B39: All subjects | C39: 61487 | D39: 64417 | E39: 69330 | F39: 58891 | G39: 36840 | H39: 15085 | I39: 81257 | J39: 86273 | K39: 84393 | L39: 62063 | M39: 31774 | N39: 10860 | O39: 142744 | P39: 150690 | Q39: 153723 | R39: 120954 | S39: 68614 | T39: 25945 | U39: 306050 | V39: 356620 | W39: 662670 | X39: 290965 | Y39: 345760 | Z39: 636725
B41: Biological Sciences | C41: 19.2 | D41: 19.4 | E41: 20.3 | F41: 18.4 | G41: 15.2 | H41: 92.4 | I41: 17020 | J41: 23.1 | K41: 21.8 | L41: 20.5 | M41: 16.9 | N41: 12.5 | O41: 94.7 | P41: 26882 | Q41: 21.6 | R41: 20.8 | S41: 20.4 | T41: 17.5 | U41: 13.5 | V41: 93.8 | W41: 43902
B42: Chemistry | C42: 27.2 | D42: 23.3 | E42: 19 | F42: 15.1 | G42: 10.7 | H42: 95.2 | I42: 15124 | J42: 31 | K42: 25.1 | L42: 19 | M42: 13.4 | N42: 8.4 | O42: 96.8 | P42: 15941 | Q42: 29.2 | R42: 24.2 | S42: 19 | T42: 14.2 | U42: 9.5 | V42: 96 | W42: 31065
B43: Physics | C43: 26 | D43: 20.4 | E43: 18.6 | F43: 16.7 | G43: 12.5 | H43: 94.2 | I43: 20370 | J43: 32.4 | K43: 23 | L43: 18.4 | M43: 13.3 | N43: 9.6 | O43: 96.6 | P43: 5908 | Q43: 27.4 | R43: 21 | S43: 18.5 | T43: 15.9 | U43: 11.8 | V43: 94.7 | W43: 26278
B44: Other Science | C44: 21 | D44: 18 | E44: 21.8 | F44: 18.9 | G44: 14.6 | H44: 94.3 | I44: 2820 | J44: 19.1 | K44: 19.9 | L44: 22.2 | M44: 20.3 | N44: 14 | O44: 95.5 | P44: 1209 | Q44: 20.4 | R44: 18.6 | S44: 22 | T44: 19.3 | U44: 14.4 | V44: 94.7 | W44: 4029
B45: Mathematics | C45: 35.1 | D45: 20 | E45: 17.1 | F45: 13.2 | G45: 9.1 | H45: 94.5 | I45: 27700 | J45: 39.4 | K45: 22.6 | L45: 16.5 | M45: 11.6 | N45: 6.4 | O45: 96.4 | P45: 16753 | Q45: 36.7 | R45: 21 | S45: 16.9 | T45: 12.6 | U45: 8.1 | V45: 95.3 | W45: 44453
B46: Further Mathematics | C46: 59.8 | D46: 15.9 | E46: 10.3 | F46: 6.7 | G46: 5.3 | H46: 98 | I46: 3422 | J46: 63.4 | K46: 17.8 | L46: 8.6 | M46: 6.4 | N46: 2.8 | O46: 99.1 | P46: 1308 | Q46: 60.8 | R46: 16.4 | S46: 9.8 | T46: 6.6 | U46: 4.7 | V46: 98.3 | W46: 4730
B47: Design and Technology | C47: 12.7 | D47: 19.4 | E47: 25.1 | F47: 23.8 | G47: 14.4 | H47: 95.4 | I47: 9517 | J47: 18.1 | K47: 25.6 | L47: 26.3 | M47: 19.1 | N47: 8.7 | O47: 97.8 | P47: 5857 | Q47: 14.8 | R47: 21.8 | S47: 25.5 | T47: 22 | U47: 12.2 | V47: 96.3 | W47: 15374
B48: Computer Studies | C48: 12.7 | D48: 17.2 | E48: 22.3 | F48: 22 | G48: 17.4 | H48: 91.7 | I48: 7319 | J48: 11.1 | K48: 19.2 | L48: 20.8 | M48: 22.9 | N48: 17.7 | O48: 91.8 | P48: 937 | Q48: 12.5 | R48: 17.5 | S48: 22.2 | T48: 22.1 | U48: 17.5 | V48: 91.7 | W48: 8256
B49: ICT | C49: 5.1 | D49: 13.4 | E49: 23.5 | F49: 27 | G49: 21.7 | H49: 90.7 | I49: 10734 | J49: 7.4 | K49: 17.8 | L49: 24.6 | M49: 26.2 | N49: 17.8 | O49: 93.8 | P49: 5575 | Q49: 5.9 | R49: 14.9 | S49: 23.9 | T49: 26.7 | U49: 20.4 | V49: 91.7 | W49: 16309
B50: Home Economics | C50: x | D50: 15.7 | E50: 17.6 | F50: 33.3 | G50: 23.5 | H50: 92.2 | I50: 51 | J50: 16.6 | K50: 22.8 | L50: 24 | M50: 21.9 | N50: 11.8 | O50: 97.1 | P50: 549 | Q50: 15.3 | R50: 22.2 | S50: 23.5 | T50: 22.8 | U50: 12.8 | V50: 96.7 | W50: 600
B51: Accounting and Finance | C51: 10.5 | D51: 15.5 | E51: 20.5 | F51: 20.9 | G51: 21.2 | H51: 88.5 | I51: 1442 | J51: 14.2 | K51: 16 | L51: 18.3 | M51: 22.4 | N51: 18.4 | O51: 89.3 | P51: 929 | Q51: 11.9 | R51: 15.7 | S51: 19.7 | T51: 21.5 | U51: 20.1 | V51: 88.8 | W51: 2371
B52: Business Studies | C52: 11.6 | D52: 22.9 | E52: 27.9 | F52: 23.2 | G52: 11.5 | H52: 97.1 | I52: 19279 | J52: 15.1 | K52: 24 | L52: 27.2 | M52: 20.9 | N52: 10.1 | O52: 97.3 | P52: 13165 | Q52: 13 | R52: 23.4 | S52: 27.6 | T52: 22.2 | U52: 10.9 | V52: 97.1 | W52: 32444
B53: Economics | C53: 30.3 | D53: 25.9 | E53: 21.1 | F53: 13.9 | G53: 6.6 | H53: 97.8 | I53: 9382 | J53: 35.6 | K53: 25.9 | L53: 19.4 | M53: 11.9 | N53: 5.6 | O53: 98.4 | P53: 3935 | Q53: 31.9 | R53: 25.9 | S53: 20.6 | T53: 13.3 | U53: 6.3 | V53: 98 | W53: 13317
B54: Geography | C54: 18.9 | D54: 25.2 | E54: 24.7 | F54: 19 | G54: 9.9 | H54: 97.8 | I54: 16846 | J54: 27.8 | K54: 26.8 | L54: 23.2 | M54: 14.6 | N54: 6.2 | O54: 98.5 | P54: 14333 | Q54: 23 | R54: 26 | S54: 24 | T54: 17 | U54: 8.2 | V54: 98.1 | W54: 31179
B55: Government and Politics | C55: 26 | D55: 26.6 | E55: 21.4 | F55: 14.8 | G55: 8.2 | H55: 96.9 | I55: 4881 | J55: 32.6 | K55: 26.8 | L55: 20.4 | M55: 11.7 | N55: 6 | O55: 97.6 | P55: 3253 | Q55: 28.6 | R55: 26.7 | S55: 21 | T55: 13.6 | U55: 7.3 | V55: 97.2 | W55: 8134
B56: History | C56: 22.1 | D56: 24.7 | E56: 24.7 | F56: 18.1 | G56: 8.2 | H56: 97.9 | I56: 17865 | J56: 24.5 | K56: 26.5 | L56: 23 | M56: 17 | N56: 7.1 | O56: 98.1 | P56: 18648 | Q56: 23.3 | R56: 25.6 | S56: 23.8 | T56: 17.5 | U56: 7.7 | V56: 98 | W56: 36513
B57: Law | C57: 13.8 | D57: 19 | E57: 22.4 | F57: 21.7 | G57: 15.4 | H57: 92.3 | I57: 3973 | J57: 19.7 | K57: 21.7 | L57: 23.1 | M57: 18.8 | N57: 11.4 | O57: 94.7 | P57: 6124 | Q57: 17.4 | R57: 20.7 | S57: 22.8 | T57: 20 | U57: 13 | V57: 93.8 | W57: 10097
B58: Psychology | C58: 10.7 | D58: 18.2 | E58: 23 | F58: 23.2 | G58: 16.4 | H58: 91.5 | I58: 9089 | J58: 19.7 | K58: 24.1 | L58: 23.9 | M58: 18.4 | N58: 10.3 | O58: 96.4 | P58: 28808 | Q58: 17.5 | R58: 22.7 | S58: 23.7 | T58: 19.5 | U58: 11.8 | V58: 95.2 | W58: 37897
B59: Sociology | C59: 13.6 | D59: 22.3 | E59: 25 | F59: 21.3 | G59: 12.1 | H59: 94.4 | I59: 4991 | J59: 19.9 | K59: 25.9 | L59: 25.1 | M59: 17.3 | N59: 8.9 | O59: 97.1 | P59: 16077 | Q59: 18.4 | R59: 25.1 | S59: 25.1 | T59: 18.2 | U59: 9.7 | V59: 96.4 | W59: 21068
B60: Other social studies | C60: 14.6 | D60: 24.5 | E60: 25 | F60: 18.1 | G60: 12.9 | H60: 95.1 | I60: 975 | J60: 22.1 | K60: 25.6 | L60: 22.9 | M60: 17.1 | N60: 8.7 | O60: 96.3 | P60: 958 | Q60: 18.3 | R60: 25 | S60: 24 | T60: 17.6 | U60: 10.8 | V60: 95.7 | W60: 1933
B61: Art and Design | C61: 21.4 | D61: 20.6 | E61: 22.8 | F61: 19.7 | G61: 10.7 | H61: 95.1 | I61: 10468 | J61: 29.5 | K61: 24.3 | L61: 22.8 | M61: 14.5 | N61: 6.5 | O61: 97.5 | P61: 23524 | Q61: 27 | R61: 23.2 | S61: 22.8 | T61: 16.1 | U61: 7.8 | V61: 96.7 | W61: 33992
B62: Drama | C62: 10.6 | D62: 23.2 | E62: 33.7 | F62: 21.1 | G62: 9.2 | H62: 97.9 | I62: 3726 | J62: 15.9 | K62: 29.2 | L62: 30.8 | M62: 17.4 | N62: 5.7 | O62: 99 | P62: 9830 | Q62: 14.4 | R62: 27.5 | S62: 31.6 | T62: 18.4 | U62: 6.7 | V62: 98.7 | W62: 13556
B63: English | C63: 20.2 | D63: 23.2 | E63: 26.4 | F63: 19.9 | G63: 8.4 | H63: 98.1 | I63: 21516 | J63: 19.6 | K63: 25 | L63: 27.4 | M63: 19.9 | N63: 6.9 | O63: 98.8 | P63: 50495 | Q63: 19.7 | R63: 24.4 | S63: 27.1 | T63: 19.9 | U63: 7.4 | V63: 98.6 | W63: 72011
B64: Media/Film/TV Studies | C64: 9.1 | D64: 21.3 | E64: 31.2 | F64: 26.2 | G64: 9.8 | H64: 97.5 | I64: 8110 | J64: 13.6 | K64: 26.5 | L64: 31.5 | M64: 20.5 | N64: 6.7 | O64: 98.8 | P64: 11160 | Q64: 11.7 | R64: 24.3 | S64: 31.4 | T64: 22.9 | U64: 8 | V64: 98.2 | W64: 19270
B65: Other Communication Studies | C65: 11.9 | D65: 28.4 | E65: 30.6 | F65: 18.7 | G65: 7.3 | H65: 97 | I65: 2725 | J65: 14.1 | K65: 30.2 | L65: 33.1 | M65: 16.7 | N65: 4.8 | O65: 98.9 | P65: 4900 | Q65: 13.3 | R65: 29.5 | S65: 32.2 | T65: 17.4 | U65: 5.7 | V65: 98.2 | W65: 7625
B66: French | C66: 33.9 | D66: 25.7 | E66: 19.1 | F66: 12.3 | G66: 6.8 | H66: 97.9 | I66: 4195 | J66: 30.2 | K66: 26.3 | L66: 20.5 | M66: 13.9 | N66: 7.1 | O66: 98 | P66: 8709 | Q66: 31.4 | R66: 26.1 | S66: 20 | T66: 13.4 | U66: 7 | V66: 97.9 | W66: 12904
B67: German | C67: 33.9 | D67: 23.2 | E67: 18.3 | F67: 14.5 | G67: 7.9 | H67: 97.8 | I67: 2140 | J67: 28.7 | K67: 24.5 | L67: 20.4 | M67: 15.9 | N67: 7.8 | O67: 97.3 | P67: 3928 | Q67: 30.5 | R67: 24 | S67: 19.7 | T67: 15.4 | U67: 7.9 | V67: 97.5 | W67: 6068
B68: Spanish | C68: 36.4 | D68: 27.6 | E68: 18.3 | F68: 10.7 | G68: 5.9 | H68: 99 | I68: 1433 | J68: 32.5 | K68: 26.5 | L68: 19.7 | M68: 13.2 | N68: 6.3 | O68: 98.2 | P68: 3071 | Q68: 33.8 | R68: 26.9 | S68: 19.2 | T68: 12.4 | U68: 6.2 | V68: 98.4 | W68: 4504
B69: Other modern languages | C69: 44.8 | D69: 27.8 | E69: 14.6 | F69: 5.4 | G69: 3.4 | H69: 95.9 | I69: 1718 | J69: 52.2 | K69: 25.4 | L69: 12.8 | M69: 4.7 | N69: 1.9 | O69: 97 | P69: 2281 | Q69: 49 | R69: 26.4 | S69: 13.6 | T69: 5 | U69: 2.6 | V69: 96.5 | W69: 3999
B70: Classical Studies | C70: 33.5 | D70: 25.5 | E70: 20 | F70: 14.5 | G70: 5.1 | H70: 98.6 | I70: 2220 | J70: 33.7 | K70: 29.7 | L70: 21.6 | M70: 11 | N70: 3.4 | O70: 99.4 | P70: 3096 | Q70: 33.6 | R70: 27.9 | S70: 21 | T70: 12.5 | U70: 4.1 | V70: 99.1 | W70: 5316
B71: Religious Studies | C71: 25.7 | D71: 26.6 | E71: 23.7 | F71: 14.4 | G71: 7.3 | H71: 97.7 | I71: 3033 | J71: 23.4 | K71: 29 | L71: 24.6 | M71: 15.6 | N71: 5.6 | O71: 98.2 | P71: 7140 | Q71: 24.1 | R71: 28.3 | S71: 24.3 | T71: 15.2 | U71: 6.1 | V71: 98.1 | W71: 10173
B72: Music | C72: 19.8 | D72: 20.9 | E72: 24.6 | F72: 19.6 | G72: 10.9 | H72: 95.8 | I72: 3794 | J72: 22.6 | K72: 23.5 | L72: 25.3 | M72: 17.8 | N72: 8.6 | O72: 97.8 | P72: 3849 | Q72: 21.2 | R72: 22.2 | S72: 24.9 | T72: 18.7 | U72: 9.7 | V72: 96.8 | W72: 7643
B73: Physical Education | C73: 8 | D73: 17.3 | E73: 25.1 | F73: 26 | G73: 18.3 | H73: 94.7 | I73: 11336 | J73: 18.8 | K73: 22.9 | L73: 24.9 | M73: 19.6 | N73: 10.7 | O73: 96.8 | P73: 7427 | Q73: 12.3 | R73: 19.5 | S73: 25 | T73: 23.5 | U73: 15.3 | V73: 95.5 | W73: 18763
B74: General Studies | C74: 11.7 | D74: 16.4 | E74: 21.9 | F74: 22.9 | G74: 17.8 | H74: 90.7 | I74: 26836 | J74: 13.1 | K74: 18.2 | L74: 23.2 | M74: 22.3 | N74: 16.1 | O74: 93 | P74: 30061 | Q74: 12.5 | R74: 17.3 | S74: 22.6 | T74: 22.6 | U74: 16.9 | V74: 91.9 | W74: 56897
B75: All subjects | C75: 20.1 | D75: 21 | E75: 22.7 | F75: 19.2 | G75: 12 | H75: 95.1 | I75: 306050 | J75: 22.8 | K75: 24.2 | L75: 23.7 | M75: 17.4 | N75: 8.9 | O75: 97 | P75: 356620 | Q75: 21.5 | R75: 22.7 | S75: 23.2 | T75: 18.3 | U75: 10.4 | V75: 96.1 | W75: 662670
B77: Biological Sciences | C77: =ROUND(C41,1) -> 19.2 | D77: =ROUND(D41,1) -> 19.4 | E77: 20.3 | F77: 18.4 | G77: 15.2 | H77: 92.4 | I77: =ROUND(I41,0) -> 17020 | J77: 23.1 | K77: 21.8 | L77: 20.5 | M77: 16.9 | N77: 12.5 | O77: 94.7 | P77: =ROUND(P41,0) -> 26882 | Q77: 21.6 | R77: 20.8 | S77: 20.4 | T77: 17.5 | U77: 13.5 | V77: 93.8 | W77: =ROUND(W41,0) -> 43902
B78: Chemistry | C78: =ROUND(C42,1) -> 27.2 | D78: 23.3 | E78: 19 | F78: 15.1 | G78: 10.7 | H78: 95.2 | I78: =ROUND(I42,0) -> 15124 | J78: =ROUND(J42,1) -> 31 | K78: 25.1 | L78: 19 | M78: 13.4 | N78: 8.4 | O78: 96.8 | P78: =ROUND(P42,0) -> 15941 | Q78: =ROUND(Q42,1) -> 29.2 | R78: 24.2 | S78: 19 | T78: 14.2 | U78: 9.5 | V78: 96 | W78: =ROUND(W42,0) -> 31065
B79: Physics | C79: =ROUND(C43,1) -> 26 | D79: 20.4 | E79: 18.6 | F79: 16.7 | G79: 12.5 | H79: 94.2 | I79: 20370 | J79: =ROUND(J43,1) -> 32.4 | K79: 23 | L79: 18.4 | M79: 13.3 | N79: 9.6 | O79: 96.6 | P79: 5908 | Q79: =ROUND(Q43,1) -> 27.4 | R79: 21 | S79: 18.5 | T79: 15.9 | U79: 11.8 | V79: 94.7 | W79: 26278
B80: Other Science | C80: =ROUND(C44,1) -> 21 | D80: 18 | E80: 21.8 | F80: 18.9 | G80: 14.6 | H80: 94.3 | I80: 2820 | J80: =ROUND(J44,1) -> 19.1 | K80: 19.9 | L80: 22.2 | M80: 20.3 | N80: 14 | O80: 95.5 | P80: 1209 | Q80: =ROUND(Q44,1) -> 20.4 | R80: 18.6 | S80: 22 | T80: 19.3 | U80: 14.4 | V80: 94.7 | W80: 4029
B81: Mathematics | C81: =ROUND(C45,1) -> 35.1 | D81: 20 | E81: 17.1 | F81: 13.2 | G81: 9.1 | H81: 94.5 | I81: 27700 | J81: =ROUND(J45,1) -> 39.4 | K81: 22.6 | L81: 16.5 | M81: 11.6 | N81: 6.4 | O81: 96.4 | P81: 16753 | Q81: =ROUND(Q45,1) -> 36.7 | R81: 21 | S81: 16.9 | T81: 12.6 | U81: 8.1 | V81: 95.3 | W81: 44453
B82: Further Mathematics | C82: =ROUND(C46,1) -> 59.8 | D82: 15.9 | E82: 10.3 | F82: 6.7 | G82: 5.3 | H82: 98 | I82: 3422 | J82: =ROUND(J46,1) -> 63.4 | K82: 17.8 | L82: 8.6 | M82: 6.4 | N82: 2.8 | O82: 99.1 | P82: 1308 | Q82: =ROUND(Q46,1) -> 60.8 | R82: 16.4 | S82: 9.8 | T82: 6.6 | U82: 4.7 | V82: 98.3 | W82: 4730
B83: Design and Technology | C83: =ROUND(C47,1) -> 12.7 | D83: 19.4 | E83: 25.1 | F83: 23.8 | G83: 14.4 | H83: 95.4 | I83: 9517 | J83: =ROUND(J47,1) -> 18.1 | K83: 25.6 | L83: 26.3 | M83: 19.1 | N83: 8.7 | O83: 97.8 | P83: 5857 | Q83: =ROUND(Q47,1) -> 14.8 | R83: 21.8 | S83: 25.5 | T83: 22 | U83: 12.2 | V83: 96.3 | W83: 15374
B84: Computer Studies | C84: =ROUND(C48,1) -> 12.7 | D84: 17.2 | E84: 22.3 | F84: 22 | G84: 17.4 | H84: 91.7 | I84: 7319 | J84: =ROUND(J48,1) -> 11.1 | K84: 19.2 | L84: 20.8 | M84: 22.9 | N84: 17.7 | O84: 91.8 | P84: 937 | Q84: =ROUND(Q48,1) -> 12.5 | R84: 17.5 | S84: 22.2 | T84: 22.1 | U84: 17.5 | V84: 91.7 | W84: 8256
B85: ICT | C85: =ROUND(C49,1) -> 5.1 | D85: 13.4 | E85: 23.5 | F85: 27 | G85: 21.7 | H85: 90.7 | I85: 10734 | J85: =ROUND(J49,1) -> 7.4 | K85: 17.8 | L85: 24.6 | M85: 26.2 | N85: 17.8 | O85: 93.8 | P85: 5575 | Q85: =ROUND(Q49,1) -> 5.9 | R85: 14.9 | S85: 23.9 | T85: 26.7 | U85: 20.4 | V85: 91.7 | W85: 16309
B86: Home Economics | C86: x | D86: =ROUND(D50,1) -> 15.7 | E86: 17.6 | F86: 33.3 | G86: 23.5 | H86: 92.2 | I86: 51 | J86: =ROUND(J50,1) -> 16.6 | K86: 22.8 | L86: 24 | M86: 21.9 | N86: 11.8 | O86: 97.1 | P86: 549 | Q86: =ROUND(Q50,1) -> 15.3 | R86: 22.2 | S86: 23.5 | T86: 22.8 | U86: 12.8 | V86: 96.7 | W86: 600
B87: Accounting and Finance | C87: =ROUND(C51,1) -> 10.5 | D87: 15.5 | E87: 20.5 | F87: 20.9 | G87: 21.2 | H87: 88.5 | I87: 1442 | J87: =ROUND(J51,1) -> 14.2 | K87: 16 | L87: 18.3 | M87: 22.4 | N87: 18.4 | O87: 89.3 | P87: 929 | Q87: =ROUND(Q51,1) -> 11.9 | R87: 15.7 | S87: 19.7 | T87: 21.5 | U87: 20.1 | V87: 88.8 | W87: 2371
B88: Business Studies | C88: =ROUND(C52,1) -> 11.6 | D88: 22.9 | E88: 27.9 | F88: 23.2 | G88: 11.5 | H88: 97.1 | I88: 19279 | J88: =ROUND(J52,1) -> 15.1 | K88: 24 | L88: 27.2 | M88: 20.9 | N88: 10.1 | O88: 97.3 | P88: 13165 | Q88: =ROUND(Q52,1) -> 13 | R88: 23.4 | S88: 27.6 | T88: 22.2 | U88: 10.9 | V88: 97.1 | W88: 32444
B89: Economics | C89: =ROUND(C53,1) -> 30.3 | D89: 25.9 | E89: 21.1 | F89: 13.9 | G89: 6.6 | H89: 97.8 | I89: 9382 | J89: =ROUND(J53,1) -> 35.6 | K89: 25.9 | L89: 19.4 | M89: 11.9 | N89: 5.6 | O89: 98.4 | P89: 3935 | Q89: =ROUND(Q53,1) -> 31.9 | R89: 25.9 | S89: 20.6 | T89: 13.3 | U89: 6.3 | V89: 98 | W89: 13317
B90: Geography | C90: =ROUND(C54,1) -> 18.9 | D90: 25.2 | E90: 24.7 | F90: 19 | G90: 9.9 | H90: 97.8 | I90: 16846 | J90: =ROUND(J54,1) -> 27.8 | K90: 26.8 | L90: 23.2 | M90: 14.6 | N90: 6.2 | O90: 98.5 | P90: 14333 | Q90: =ROUND(Q54,1) -> 23 | R90: 26 | S90: 24 | T90: 17 | U90: 8.2 | V90: 98.1 | W90: 31179
B91: Government and Politics | C91: =ROUND(C55,1) -> 26 | D91: 26.6 | E91: 21.4 | F91: 14.8 | G91: 8.2 | H91: 96.9 | I91: 4881 | J91: =ROUND(J55,1) -> 32.6 | K91: 26.8 | L91: 20.4 | M91: 11.7 | N91: 6 | O91: 97.6 | P91: 3253 | Q91: =ROUND(Q55,1) -> 28.6 | R91: 26.7 | S91: 21 | T91: 13.6 | U91: 7.3 | V91: 97.2 | W91: 8134
B92: History | C92: =ROUND(C56,1) -> 22.1 | D92: 24.7 | E92: 24.7 | F92: 18.1 | G92: 8.2 | H92: 97.9 | I92: 17865 | J92: =ROUND(J56,1) -> 24.5 | K92: 26.5 | L92: 23 | M92: 17 | N92: 7.1 | O92: 98.1 | P92: 18648 | Q92: =ROUND(Q56,1) -> 23.3 | R92: 25.6 | S92: 23.8 | T92: 17.5 | U92: 7.7 | V92: 98 | W92: 36513
B93: Law | C93: =ROUND(C57,1) -> 13.8 | D93: 19 | E93: 22.4 | F93: 21.7 | G93: 15.4 | H93: 92.3 | I93: 3973 | J93: =ROUND(J57,1) -> 19.7 | K93: 21.7 | L93: 23.1 | M93: 18.8 | N93: 11.4 | O93: 94.7 | P93: 6124 | Q93: =ROUND(Q57,1) -> 17.4 | R93: 20.7 | S93: 22.8 | T93: 20 | U93: 13 | V93: 93.8 | W93: 10097
B94: Psychology | C94: =ROUND(C58,1) -> 10.7 | D94: 18.2 | E94: 23 | F94: 23.2 | G94: 16.4 | H94: 91.5 | I94: 9089 | J94: =ROUND(J58,1) -> 19.7 | K94: 24.1 | L94: 23.9 | M94: 18.4 | N94: 10.3 | O94: 96.4 | P94: 28808 | Q94: =ROUND(Q58,1) -> 17.5 | R94: 22.7 | S94: 23.7 | T94: 19.5 | U94: 11.8 | V94: 95.2 | W94: 37897
B95: Sociology | C95: =ROUND(C59,1) -> 13.6 | D95: 22.3 | E95: 25 | F95: 21.3 | G95: 12.1 | H95: 94.4 | I95: 4991 | J95: =ROUND(J59,1) -> 19.9 | K95: 25.9 | L95: 25.1 | M95: 17.3 | N95: 8.9 | O95: 97.1 | P95: 16077 | Q95: =ROUND(Q59,1) -> 18.4 | R95: 25.1 | S95: 25.1 | T95: 18.2 | U95: 9.7 | V95: 96.4 | W95: 21068
B96: Other social studies | C96: =ROUND(C60,1) -> 14.6 | D96: 24.5 | E96: 25 | F96: 18.1 | G96: 12.9 | H96: 95.1 | I96: 975 | J96: =ROUND(J60,1) -> 22.1 | K96: 25.6 | L96: 22.9 | M96: 17.1 | N96: 8.7 | O96: 96.3 | P96: 958 | Q96: =ROUND(Q60,1) -> 18.3 | R96: 25 | S96: 24 | T96: 17.6 | U96: 10.8 | V96: 95.7 | W96: 1933
B97: Art and Design | C97: =ROUND(C61,1) -> 21.4 | D97: 20.6 | E97: 22.8 | F97: 19.7 | G97: 10.7 | H97: 95.1 | I97: 10468 | J97: =ROUND(J61,1) -> 29.5 | K97: 24.3 | L97: 22.8 | M97: 14.5 | N97: 6.5 | O97: 97.5 | P97: 23524 | Q97: =ROUND(Q61,1) -> 27 | R97: 23.2 | S97: 22.8 | T97: 16.1 | U97: 7.8 | V97: 96.7 | W97: 33992
B98: Drama | C98: =ROUND(C62,1) -> 10.6 | D98: 23.2 | E98: 33.7 | F98: 21.1 | G98: 9.2 | H98: 97.9 | I98: 3726 | J98: =ROUND(J62,1) -> 15.9 | K98: 29.2 | L98: 30.8 | M98: 17.4 | N98: 5.7 | O98: 99 | P98: 9830 | Q98: =ROUND(Q62,1) -> 14.4 | R98: 27.5 | S98: 31.6 | T98: 18.4 | U98: 6.7 | V98: 98.7 | W98: 13556
B99: English | C99: =ROUND(C63,1) -> 20.2 | D99: 23.2 | E99: 26.4 | F99: 19.9 | G99: 8.4 | H99: 98.1 | I99: 21516 | J99: =ROUND(J63,1) -> 19.6 | K99: 25 | L99: 27.4 | M99: 19.9 | N99: 6.9 | O99: 98.8 | P99: 50495 | Q99: =ROUND(Q63,1) -> 19.7 | R99: 24.4 | S99: 27.1 | T99: 19.9 | U99: 7.4 | V99: 98.6 | W99: 72011
B100: Media/Film/TV Studies | C100: =ROUND(C64,1) -> 9.1 | D100: 21.3 | E100: 31.2 | F100: 26.2 | G100: 9.8 | H100: 97.5 | I100: 8110 | J100: =ROUND(J64,1) -> 13.6 | K100: 26.5 | L100: 31.5 | M100: 20.5 | N100: 6.7 | O100: 98.8 | P100: 11160 | Q100: =ROUND(Q64,1) -> 11.7 | R100: 24.3 | S100: 31.4 | T100: 22.9 | U100: 8 | V100: 98.2 | W100: 19270
B101: Other Communication Studies | C101: =ROUND(C65,1) -> 11.9 | D101: 28.4 | E101: 30.6 | F101: 18.7 | G101: 7.3 | H101: 97 | I101: 2725 | J101: =ROUND(J65,1) -> 14.1 | K101: 30.2 | L101: 33.1 | M101: 16.7 | N101: 4.8 | O101: 98.9 | P101: 4900 | Q101: =ROUND(Q65,1) -> 13.3 | R101: 29.5 | S101: 32.2 | T101: 17.4 | U101: 5.7 | V101: 98.2 | W101: 7625
B102: French | C102: =ROUND(C66,1) -> 33.9 | D102: 25.7 | E102: 19.1 | F102: 12.3 | G102: 6.8 | H102: 97.9 | I102: 4195 | J102: =ROUND(J66,1) -> 30.2 | K102: 26.3 | L102: 20.5 | M102: 13.9 | N102: 7.1 | O102: 98 | P102: 8709 | Q102: =ROUND(Q66,1) -> 31.4 | R102: 26.1 | S102: 20 | T102: 13.4 | U102: 7 | V102: 97.9 | W102: 12904
B103: German | C103: =ROUND(C67,1) -> 33.9 | D103: 23.2 | E103: 18.3 | F103: 14.5 | G103: 7.9 | H103: 97.8 | I103: 2140 | J103: =ROUND(J67,1) -> 28.7 | K103: 24.5 | L103: 20.4 | M103: 15.9 | N103: 7.8 | O103: 97.3 | P103: 3928 | Q103: =ROUND(Q67,1) -> 30.5 | R103: 24 | S103: 19.7 | T103: 15.4 | U103: 7.9 | V103: 97.5 | W103: 6068
B104: Spanish | C104: =ROUND(C68,1) -> 36.4 | D104: 27.6 | E104: 18.3 | F104: 10.7 | G104: 5.9 | H104: 99 | I104: 1433 | J104: =ROUND(J68,1) -> 32.5 | K104: 26.5 | L104: 19.7 | M104: 13.2 | N104: 6.3 | O104: 98.2 | P104: 3071 | Q104: =ROUND(Q68,1) -> 33.8 | R104: 26.9 | S104: 19.2 | T104: 12.4 | U104: 6.2 | V104: 98.4 | W104: 4504
B105: Other modern languages | C105: =ROUND(C69,1) -> 44.8 | D105: 27.8 | E105: 14.6 | F105: 5.4 | G105: 3.4 | H105: 95.9 | I105: 1718 | J105: =ROUND(J69,1) -> 52.2 | K105: 25.4 | L105: 12.8 | M105: 4.7 | N105: 1.9 | O105: 97 | P105: 2281 | Q105: =ROUND(Q69,1) -> 49 | R105: 26.4 | S105: 13.6 | T105: 5 | U105: 2.6 | V105: 96.5 | W105: 3999
B106: Classical Studies | C106: =ROUND(C70,1) -> 33.5 | D106: 25.5 | E106: 20 | F106: 14.5 | G106: 5.1 | H106: 98.6 | I106: 2220 | J106: =ROUND(J70,1) -> 33.7 | K106: 29.7 | L106: 21.6 | M106: 11 | N106: 3.4 | O106: 99.4 | P106: 3096 | Q106: =ROUND(Q70,1) -> 33.6 | R106: 27.9 | S106: 21 | T106: 12.5 | U106: 4.1 | V106: 99.1 | W106: 5316
B107: Religious Studies | C107: =ROUND(C71,1) -> 25.7 | D107: 26.6 | E107: 23.7 | F107: 14.4 | G107: 7.3 | H107: 97.7 | I107: 3033 | J107: =ROUND(J71,1) -> 23.4 | K107: 29 | L107: 24.6 | M107: 15.6 | N107: 5.6 | O107: 98.2 | P107: 7140 | Q107: =ROUND(Q71,1) -> 24.1 | R107: 28.3 | S107: 24.3 | T107: 15.2 | U107: 6.1 | V107: 98.1 | W107: 10173
B108: Music | C108: =ROUND(C72,1) -> 19.8 | D108: 20.9 | E108: 24.6 | F108: 19.6 | G108: 10.9 | H108: 95.8 | I108: 3794 | J108: =ROUND(J72,1) -> 22.6 | K108: 23.5 | L108: 25.3 | M108: 17.8 | N108: 8.6 | O108: 97.8 | P108: 3849 | Q108: =ROUND(Q72,1) -> 21.2 | R108: 22.2 | S108: 24.9 | T108: 18.7 | U108: 9.7 | V108: 96.8 | W108: 7643
B109: Physical Education | C109: =ROUND(C73,1) -> 8 | D109: 17.3 | E109: 25.1 | F109: 26 | G109: 18.3 | H109: 94.7 | I109: 11336 | J109: =ROUND(J73,1) -> 18.8 | K109: 22.9 | L109: 24.9 | M109: 19.6 | N109: 10.7 | O109: 96.8 | P109: 7427 | Q109: =ROUND(Q73,1) -> 12.3 | R109: 19.5 | S109: 25 | T109: 23.5 | U109: 15.3 | V109: 95.5 | W109: 18763
B110: General Studies | C110: =ROUND(C74,1) -> 11.7 | D110: 16.4 | E110: 21.9 | F110: 22.9 | G110: 17.8 | H110: 90.7 | I110: 26836 | J110: =ROUND(J74,1) -> 13.1 | K110: 18.2 | L110: 23.2 | M110: 22.3 | N110: 16.1 | O110: 93 | P110: 30061 | Q110: =ROUND(Q74,1) -> 12.5 | R110: 17.3 | S110: 22.6 | T110: 22.6 | U110: 16.9 | V110: 91.9 | W110: 56897
B111: All subjects | C111: =ROUND(C75,1) -> 20.1 | D111: 21 | E111: 22.7 | F111: 19.2 | G111: 12 | H111: 95.1 | I111: 306050 | J111: =ROUND(J75,1) -> 22.8 | K111: 24.2 | L111: 23.7 | M111: 17.4 | N111: 8.9 | O111: 97 | P111: 356620 | Q111: =ROUND(Q75,1) -> 21.5 | R111: 22.7 | S111: 23.2 | T111: 18.3 | U111: 10.4 | V111: 96.1 | W111: 662670

Sheet 2004data_new (hidden)
C3: Males | I3: Females | O3: Total | U3: total entries | X3: total passes
C4: A | D4: B | E4: C | F4: D | G4: E | H4: other | I4: A | J4: B | K4: C | L4: D | M4: E | N4: other | O4: A | P4: B | Q4: C | R4: D | S4: E | T4: other | U4: Male | V4: Female | W4: Male and Female | X4: Male | Y4: Female | Z4: Male and Female
B5: Biological Sciences | C5: 3583 | D5: 3621 | E5: 3619 | F5: 3184 | G5: 2504 | H5: 1109 | I5: 6377 | J5: 5858 | K5: 5572 | L5: 4502 | M5: 3075 | N5: 1231 | O5: 9960 | P5: 9479 | Q5: 9191 | R5: 7686 | S5: 5579 | T5: 2340 | U5: 17620 | V5: 26615 | W5: 44235 | X5: 16511 | Y5: 25384 | Z5: 41895
B6: Chemistry | C6: 4683 | D6: 3692 | E6: 3023 | F6: 2256 | G6: 1568 | H6: 619 | I6: 5074 | J6: 4156 | K6: 3109 | L6: 2169 | M6: 1342 | N6: 439 | O6: 9757 | P6: 7848 | Q6: 6132 | R6: 4425 | S6: 2910 | T6: 1058 | U6: 15841 | V6: 16289 | W6: 32130 | X6: 15222 | Y6: 15850 | Z6: 31072
B7: Physics | C7: 5256 | D7: 3871 | E7: 3724 | F7: 3056 | G7: 2286 | H7: 1030 | I7: 1843 | J7: 1245 | K7: 989 | L7: 725 | M7: 431 | N7: 150 | O7: 7099 | P7: 5116 | Q7: 4713 | R7: 3781 | S7: 2717 | T7: 1180 | U7: 19223 | V7: 5383 | W7: 24606 | X7: 18193 | Y7: 5233 | Z7: 23426
B8: Other Science | C8: 626 | D8: 516 | E8: 604 | F8: 499 | G8: 373 | H8: 119 | I8: 201 | J8: 234 | K8: 231 | L8: 215 | M8: 118 | N8: 37 | O8: 827 | P8: 750 | Q8: 835 | R8: 714 | S8: 491 | T8: 156 | U8: 2737 | V8: 1036 | W8: 3773 | X8: 2618 | Y8: 999 | Z8: 3617
B9: Mathematics | C9: 10461 | D9: 5863 | E9: 4773 | F9: 3617 | G9: 2453 | H9: 1212 | I9: 6929 | J9: 4046 | K9: 2998 | L9: 1949 | M9: 1208 | N9: 508 | O9: 17390 | P9: 9909 | Q9: 7771 | R9: 5566 | S9: 3661 | T9: 1720 | U9: 28379 | V9: 17638 | W9: 46017 | X9: 27167 | Y9: 17130 | Z9: 44297
B10: Further Mathematics | C10: 2177 | D10: 626 | E10: 402 | F10: 251 | G10: 159 | H10: 84 | I10: 861 | J10: 234 | K10: 142 | L10: 91 | M10: 62 | N10: 22 | O10: 3038 | P10: 860 | Q10: 544 | R10: 342 | S10: 221 | T10: 106 | U10: 3699 | V10: 1412 | W10: 5111 | X10: 3615 | Y10: 1390 | Z10: 5005
B11: Design and Technology | C11: 1173 | D11: 1898 | E11: 2452 | F11: 2191 | G11: 1375 | H11: 415 | I11: 1179 | J11: 1473 | K11: 1523 | L11: 1107 | M11: 573 | N11: 123 | O11: 2352 | P11: 3371 | Q11: 3975 | R11: 3298 | S11: 1948 | T11: 538 | U11: 9504 | V11: 5978 | W11: 15482 | X11: 9089 | Y11: 5855 | Z11: 14944
B12: Computer Studies | C12: 834 | D12: 1156 | E12: 1351 | F12: 1351 | G12: 1021 | H12: 444 | I12: 123 | J12: 134 | K12: 136 | L12: 160 | M12: 102 | N12: 41 | O12: 957 | P12: 1290 | Q12: 1487 | R12: 1511 | S12: 1123 | T12: 485 | U12: 6157 | V12: 696 | W12: 6853 | X12: 5713 | Y12: 655 | Z12: 6368
B13: ICT | C13: 560 | D13: 1388 | E13: 2312 | F13: 2640 | G13: 1829 | H13: 689 | I13: 421 | J13: 966 | K13: 1386 | L13: 1281 | M13: 744 | N13: 233 | O13: 981 | P13: 2354 | Q13: 3698 | R13: 3921 | S13: 2573 | T13: 922 | U13: 9418 | V13: 5031 | W13: 14449 | X13: 8729 | Y13: 4798 | Z13: 13527
B14: Home Economics | C14: 2 | D14: 5 | E14: 9 | F14: 9 | G14: 12 | H14: 4 | I14: 81 | J14: 137 | K14: 104 | L14: 107 | M14: 55 | N14: 14 | O14: 83 | P14: 142 | Q14: 113 | R14: 116 | S14: 67 | T14: 18 | U14: 41 | V14: 498 | W14: 539 | X14: 37 | Y14: 484 | Z14: 521
B15: Accounting and Finance | C15: 176 | D15: 241 | E15: 351 | F15: 399 | G15: 328 | H15: 165 | I15: 147 | J15: 183 | K15: 209 | L15: 184 | M15: 174 | N15: 103 | O15: 323 | P15: 424 | Q15: 560 | R15: 583 | S15: 502 | T15: 268 | U15: 1660 | V15: 1000 | W15: 2660 | X15: 1495 | Y15: 897 | Z15: 2392
B16: Business Studies | C16: 2542 | D16: 4441 | E16: 5196 | F16: 4091 | G16: 1870 | H16: 483 | I16: 2060 | J16: 3178 | K16: 3429 | L16: 2609 | M16: 1159 | N16: 229 | O16: 4602 | P16: 7619 | Q16: 8625 | R16: 6700 | S16: 3029 | T16: 712 | U16: 18623 | V16: 12664 | W16: 31287 | X16: 18140 | Y16: 12435 | Z16: 30575
B17: Economics | C17: 2961 | D17: 2534 | E17: 1973 | F17: 1249 | G17: 603 | H17: 192 | I17: 1445 | J17: 1046 | K17: 749 | L17: 424 | M17: 174 | N17: 58 | O17: 4406 | P17: 3580 | Q17: 2722 | R17: 1673 | S17: 777 | T17: 250 | U17: 9512 | V17: 3896 | W17: 13408 | X17: 9320 | Y17: 3838 | Z17: 13158
B18: Geography | C18: 3336 | D18: 4135 | E18: 4088 | F18: 3054 | G18: 1522 | H18: 336 | I18: 3916 | J18: 3714 | K18: 2997 | L18: 1841 | M18: 802 | N18: 165 | O18: 7252 | P18: 7849 | Q18: 7085 | R18: 4895 | S18: 2324 | T18: 501 | U18: 16471 | V18: 13435 | W18: 29906 | X18: 16135 | Y18: 13270 | Z18: 29405
B19: Government and Politics | C19: 1357 | D19: 1410 | E19: 1137 | F19: 740 | G19: 329 | H19: 144 | I19: 1101 | J19: 925 | K19: 657 | L19: 420 | M19: 200 | N19: 74 | O19: 2458 | P19: 2335 | Q19: 1794 | R19: 1160 | S19: 529 | T19: 218 | U19: 5117 | V19: 3377 | W19: 8494 | X19: 4973 | Y19: 3303 | Z19: 8276
B20: History | C20: 4229 | D20: 4727 | E20: 4803 | F20: 3311 | G20: 1603 | H20: 392 | I20: 4789 | J20: 5188 | K20: 4509 | L20: 3011 | M20: 1296 | N20: 292 | O20: 9018 | P20: 9915 | Q20: 9312 | R20: 6322 | S20: 2899 | T20: 684 | U20: 19065 | V20: 19085 | W20: 38150 | X20: 18673 | Y20: 18793 | Z20: 37466
B21: Law | C21: 685 | D21: 965 | E21: 1091 | F21: 1032 | G21: 689 | H21: 328 | I21: 1388 | J21: 1549 | K21: 1668 | L21: 1302 | M21: 777 | N21: 367 | O21: 2073 | P21: 2514 | Q21: 2759 | R21: 2334 | S21: 1466 | T21: 695 | U21: 4790 | V21: 7051 | W21: 11841 | X21: 4462 | Y21: 6684 | Z21: 11146
B22: Psychology | C22: 1214 | D22: 2074 | E22: 2632 | F22: 2397 | G22: 1770 | H22: 699 | I22: 6606 | J22: 7823 | K22: 7685 | L22: 5661 | M22: 3137 | N22: 1109 | O22: 7820 | P22: 9897 | Q22: 10317 | R22: 8058 | S22: 4907 | T22: 1808 | U22: 10786 | V22: 32021 | W22: 42807 | X22: 10087 | Y22: 30912 | Z22: 40999
B23: Sociology | C23: 754 | D23: 1257 | E23: 1423 | F23: 1171 | G23: 534 | H23: 211 | I23: 3424 | J23: 4359 | K23: 4459 | L23: 3053 | M23: 1320 | N23: 395 | O23: 4178 | P23: 5616 | Q23: 5882 | R23: 4224 | S23: 1854 | T23: 606 | U23: 5350 | V23: 17010 | W23: 22360 | X23: 5139 | Y23: 16615 | Z23: 21754
B24: Other social studies | C24: 218 | D24: 270 | E24: 312 | F24: 236 | G24: 121 | H24: 49 | I24: 217 | J24: 304 | K24: 250 | L24: 201 | M24: 116 | N24: 44 | O24: 435 | P24: 574 | Q24: 562 | R24: 437 | S24: 237 | T24: 93 | U24: 1206 | V24: 1132 | W24: 2338 | X24: 1157 | Y24: 1088 | Z24: 2245
B25: Art and Design | C25: 2411 | D25: 2378 | E25: 2503 | F25: 1998 | G25: 1150 | H25: 500 | I25: 6917 | J25: 5930 | K25: 5232 | L25: 3400 | M25: 1561 | N25: 585 | O25: 9328 | P25: 8308 | Q25: 7735 | R25: 5398 | S25: 2711 | T25: 1085 | U25: 10940 | V25: 23625 | W25: 34565 | X25: 10440 | Y25: 23040 | Z25: 33480
B26: Drama | C26: 488 | D26: 1031 | E26: 1256 | F26: 814 | G26: 347 | H26: 67 | I26: 1660 | J26: 2999 | K26: 3147 | L26: 1573 | M26: 475 | N26: 98 | O26: 2148 | P26: 4030 | Q26: 4403 | R26: 2387 | S26: 822 | T26: 165 | U26: 4003 | V26: 9952 | W26: 13955 | X26: 3936 | Y26: 9854 | Z26: 13790
B27: English | C27: 4680 | D27: 5057 | E27: 5828 | F27: 4508 | G27: 1854 | H27: 385 | I27: 10190 | J27: 12062 | K27: 13951 | L27: 10079 | M27: 3721 | N27: 652 | O27: 14870 | P27: 17119 | Q27: 19779 | R27: 14587 | S27: 5575 | T27: 1037 | U27: 22312 | V27: 50655 | W27: 72967 | X27: 21927 | Y27: 50003 | Z27: 71930
B28: Media/Film/TV Studies | C28: 909 | D28: 2030 | E28: 2952 | F28: 2227 | G28: 759 | H28: 189 | I28: 1774 | J28: 3471 | K28: 3731 | L28: 2166 | M28: 624 | N28: 158 | O28: 2683 | P28: 5501 | Q28: 6683 | R28: 4393 | S28: 1383 | T28: 347 | U28: 9066 | V28: 11924 | W28: 20990 | X28: 8877 | Y28: 11766 | Z28: 20643
B29: Other Communication Studies | C29: 417 | D29: 869 | E29: 998 | F29: 577 | G29: 169 | H29: 65 | I29: 767 | J29: 1564 | K29: 1753 | L29: 833 | M29: 247 | N29: 50 | O29: 1184 | P29: 2433 | Q29: 2751 | R29: 1410 | S29: 416 | T29: 115 | U29: 3095 | V29: 5214 | W29: 8309 | X29: 3030 | Y29: 5164 | Z29: 8194
B30: French | C30: 1406 | D30: 1090 | E30: 770 | F30: 493 | G30: 246 | H30: 70 | I30: 2767 | J30: 2195 | K30: 1688 | L30: 1130 | M30: 513 | N30: 112 | O30: 4173 | P30: 3285 | Q30: 2458 | R30: 1623 | S30: 759 | T30: 182 | U30: 4075 | V30: 8405 | W30: 12480 | X30: 4005 | Y30: 8293 | Z30: 12298
B31: German | C31: 699 | D31: 469 | E31: 354 | F31: 299 | G31: 143 | H31: 57 | I31: 1109 | J31: 905 | K31: 752 | L31: 532 | M31: 261 | N31: 63 | O31: 1808 | P31: 1374 | Q31: 1106 | R31: 831 | S31: 404 | T31: 120 | U31: 2021 | V31: 3622 | W31: 5643 | X31: 1964 | Y31: 3559 | Z31: 5523
B32: Spanish | C32: 559 | D32: 377 | E32: 255 | F32: 132 | G32: 65 | H32: 23 | I32: 1084 | J32: 886 | K32: 669 | L32: 379 | M32: 170 | N32: 51 | O32: 1643 | P32: 1263 | Q32: 924 | R32: 511 | S32: 235 | T32: 74 | U32: 1411 | V32: 3239 | W32: 4650 | X32: 1388 | Y32: 3188 | Z32: 4576
B33: Other modern languages | C33: 734 | D33: 557 | E33: 274 | F33: 120 | G33: 56 | H33: 74 | I33: 1174 | J33: 727 | K33: 318 | L33: 135 | M33: 48 | N33: 62 | O33: 1908 | P33: 1284 | Q33: 592 | R33: 255 | S33: 104 | T33: 136 | U33: 1815 | V33: 2464 | W33: 4279 | X33: 1741 | Y33: 2402 | Z33: 4143
B34: Classical Studies | C34: 768 | D34: 568 | E34: 484 | F34: 252 | G34: 103 | H34: 26 | I34: 1094 | J34: 902 | K34: 607 | L34: 331 | M34: 98 | N34: 28 | O34: 1862 | P34: 1470 | Q34: 1091 | R34: 583 | S34: 201 | T34: 54 | U34: 2201 | V34: 3060 | W34: 5261 | X34: 2175 | Y34: 3032 | Z34: 5207
B35: Religious Studies | C35: 905 | D35: 984 | E35: 838 | F35: 489 | G35: 216 | H35: 67 | I35: 2100 | J35: 2487 | K35: 1952 | L35: 1149 | M35: 424 | N35: 114 | O35: 3005 | P35: 3471 | Q35: 2790 | R35: 1638 | S35: 640 | T35: 181 | U35: 3499 | V35: 8226 | W35: 11725 | X35: 3432 | Y35: 8112 | Z35: 11544
B36: Music | C36: 728 | D36: 896 | E36: 1008 | F36: 902 | G36: 493 | H36: 221 | I36: 934 | J36: 912 | K36: 956 | L36: 716 | M36: 373 | N36: 91 | O36: 1662 | P36: 1808 | Q36: 1964 | R36: 1618 | S36: 866 | T36: 312 | U36: 4248 | V36: 3982 | W36: 8230 | X36: 4027 | Y36: 3891 | Z36: 7918
B37: Physical Education | C37: 940 | D37: 2035 | E37: 2943 | F37: 3031 | G37: 1900 | H37: 511 | I37: 1534 | J37: 1861 | K37: 1935 | L37: 1506 | M37: 811 | N37: 227 | O37: 2474 | P37: 3896 | Q37: 4878 | R37: 4537 | S37: 2711 | T37: 738 | U37: 11360 | V37: 7874 | W37: 19234 | X37: 10849 | Y37: 7647 | Z37: 18496
B38: General Studies | C38: 3118 | D38: 4579 | E38: 5940 | F38: 6395 | G38: 4744 | H38: 2233 | I38: 3867 | J38: 5470 | K38: 7155 | L38: 6991 | M38: 4784 | N38: 1914 | O38: 6985 | P38: 10049 | Q38: 13095 | R38: 13386 | S38: 9528 | T38: 4147 | U38: 27009 | V38: 30181 | W38: 57190 | X38: 24776 | Y38: 28267 | Z38: 53043
B39: All subjects | C39: 65589 | D39: 67610 | E39: 71678 | F39: 58971 | G39: 35194 | H39: 13212 | I39: 85153 | J39: 89123 | K39: 86648 | L39: 61932 | M39: 30975 | N39: 9839 | O39: 150742 | P39: 156733 | Q39: 158326 | R39: 120903 | S39: 66169 | T39: 23051 | U39: 312254 | V39: 363670 | W39: 675924 | X39: 299042 | Y39: 353831 | Z39: 652873
B41: Biological Sciences | C41: 20.3 | D41: 20.6 | E41: 20.5 | F41: 18.1 | G41: 14.2 | H41: 93.7 | I41: 17620 | J41: 24 | K41: 22 | L41: 20.9 | M41: 16.9 | N41: 11.6 | O41: 95.4 | P41: 26615 | Q41: 22.5 | R41: 21.4 | S41: 20.8 | T41: 17.4 | U41: 12.6 | V41: 94.7 | W41: 44235
B42: Chemistry | C42: 29.6 | D42: 23.3 | E42: 19.1 | F42: 14.2 | G42: 9.9 | H42: 96.1 | I42: 15841 | J42: 31.1 | K42: 25.5 | L42: 19.1 | M42: 13.3 | N42: 8.2 | O42: 97.3 | P42: 16289 | Q42: 30.4 | R42: 24.4 | S42: 19.1 | T42: 13.8 | U42: 9.1 | V42: 96.7 | W42: 32130
B43: Physics | C43: 27.3 | D43: 20.1 | E43: 19.4 | F43: 15.9 | G43: 11.9 | H43: 94.6 | I43: 19223 | J43: 34.2 | K43: 23.1 | L43: 18.4 | M43: 13.5 | N43: 8 | O43: 97.2 | P43: 5383 | Q43: 28.9 | R43: 20.8 | S43: 19.2 | T43: 15.4 | U43: 11 | V43: 95.2 | W43: 24606
B44: Other Science | C44: 22.9 | D44: 18.9 | E44: 22.1 | F44: 18.2 | G44: 13.6 | H44: 95.7 | I44: 2737 | J44: 19.4 | K44: 22.6 | L44: 22.3 | M44: 20.8 | N44: 11.4 | O44: 96.4 | P44: 1036 | Q44: 21.9 | R44: 19.9 | S44: 22.1 | T44: 18.9 | U44: 13 | V44: 95.9 | W44: 3773
B45: Mathematics | C45: 36.9 | D45: 20.7 | E45: 16.8 | F45: 12.7 | G45: 8.6 | H45: 95.7 | I45: 28379 | J45: 39.3 | K45: 22.9 | L45: 17 | M45: 11.1 | N45: 6.8 | O45: 97.1 | P45: 17638 | Q45: 37.8 | R45: 21.5 | S45: 16.9 | T45: 12.1 | U45: 8 | V45: 96.3 | W45: 46017
B46: Further Mathematics | C46: 58.9 | D46: 16.9 | E46: 10.9 | F46: 6.8 | G46: 4.3 | H46: 97.7 | I46: 3699 | J46: 61 | K46: 16.6 | L46: 10.1 | M46: 6.4 | N46: 4.4 | O46: 98.4 | P46: 1412 | Q46: 59.4 | R46: 16.8 | S46: 10.6 | T46: 6.7 | U46: 4.3 | V46: 97.9 | W46: 5111
B47: Design and Technology | C47: 12.3 | D47: 20 | E47: 25.8 | F47: 23.1 | G47: 14.5 | H47: 95.6 | I47: 9504 | J47: 19.7 | K47: 24.6 | L47: 25.5 | M47: 18.5 | N47: 9.6 | O47: 97.9 | P47: 5978 | Q47: 15.2 | R47: 21.8 | S47: 25.7 | T47: 21.3 | U47: 12.6 | V47: 96.5 | W47: 15482
B48: Computer Studies | C48: 13.5 | D48: 18.8 | E48: 21.9 | F48: 21.9 | G48: 16.6 | H48: 92.8 | I48: 6157 | J48: 17.7 | K48: 19.3 | L48: 19.5 | M48: 23 | N48: 14.7 | O48: 94.1 | P48: 696 | Q48: 14 | R48: 18.8 | S48: 21.7 | T48: 22 | U48: 16.4 | V48: 92.9 | W48: 6853
B49: ICT | C49: 5.9 | D49: 14.7 | E49: 24.5 | F49: 28 | G49: 19.4 | H49: 92.7 | I49: 9418 | J49: 8.4 | K49: 19.2 | L49: 27.5 | M49: 25.5 | N49: 14.8 | O49: 95.4 | P49: 5031 | Q49: 6.8 | R49: 16.3 | S49: 25.6 | T49: 27.1 | U49: 17.8 | V49: 93.6 | W49: 14449
B50: Home Economics | C50: x | D50: 12.2 | E50: 22 | F50: 22 | G50: 29.3 | H50: 90.2 | I50: 41 | J50: 16.3 | K50: 27.5 | L50: 20.9 | M50: 21.5 | N50: 11 | O50: 97.2 | P50: 498 | Q50: 15.4 | R50: 26.3 | S50: 21 | T50: 21.5 | U50: 12.4 | V50: 96.7 | W50: 539
B51: Accounting and Finance | C51: 10.6 | D51: 14.5 | E51: 21.1 | F51: 24 | G51: 19.8 | H51: 90.1 | I51: 1660 | J51: 14.7 | K51: 18.3 | L51: 20.9 | M51: 18.4 | N51: 17.4 | O51: 89.7 | P51: 1000 | Q51: 12.1 | R51: 15.9 | S51: 21.1 | T51: 21.9 | U51: 18.9 | V51: 89.9 | W51: 2660
B52: Business Studies | C52: 13.6 | D52: 23.8 | E52: 27.9 | F52: 22 | G52: 10 | H52: 97.4 | I52: 18623 | J52: 16.3 | K52: 25.1 | L52: 27.1 | M52: 20.6 | N52: 9.2 | O52: 98.2 | P52: 12664 | Q52: 14.7 | R52: 24.4 | S52: 27.6 | T52: 21.4 | U52: 9.7 | V52: 97.7 | W52: 31287
B53: Economics | C53: 31.1 | D53: 26.6 | E53: 20.7 | F53: 13.1 | G53: 6.3 | H53: 98 | I53: 9512 | J53: 37.1 | K53: 26.8 | L53: 19.2 | M53: 10.9 | N53: 4.5 | O53: 98.5 | P53: 3896 | Q53: 32.9 | R53: 26.7 | S53: 20.3 | T53: 12.5 | U53: 5.8 | V53: 98.1 | W53: 13408
B54: Geography | C54: 20.3 | D54: 25.1 | E54: 24.8 | F54: 18.5 | G54: 9.2 | H54: 98 | I54: 16471 | J54: 29.1 | K54: 27.6 | L54: 22.3 | M54: 13.7 | N54: 6 | O54: 98.8 | P54: 13435 | Q54: 24.2 | R54: 26.2 | S54: 23.7 | T54: 16.4 | U54: 7.8 | V54: 98.3 | W54: 29906
B55: Government and Politics | C55: 26.5 | D55: 27.6 | E55: 22.2 | F55: 14.5 | G55: 6.4 | H55: 97.2 | I55: 5117 | J55: 32.6 | K55: 27.4 | L55: 19.5 | M55: 12.4 | N55: 5.9 | O55: 97.8 | P55: 3377 | Q55: 28.9 | R55: 27.5 | S55: 21.1 | T55: 13.7 | U55: 6.2 | V55: 97.4 | W55: 8494
B56: History | C56: 22.2 | D56: 24.8 | E56: 25.2 | F56: 17.4 | G56: 8.4 | H56: 97.9 | I56: 19065 | J56: 25.1 | K56: 27.2 | L56: 23.6 | M56: 15.8 | N56: 6.8 | O56: 98.5 | P56: 19085 | Q56: 23.6 | R56: 26 | S56: 24.4 | T56: 16.6 | U56: 7.6 | V56: 98.2 | W56: 38150
B57: Law | C57: 14.3 | D57: 20.1 | E57: 22.8 | F57: 21.5 | G57: 14.4 | H57: 93.2 | I57: 4790 | J57: 19.7 | K57: 22 | L57: 23.7 | M57: 18.5 | N57: 11 | O57: 94.8 | P57: 7051 | Q57: 17.5 | R57: 21.2 | S57: 23.3 | T57: 19.7 | U57: 12.4 | V57: 94.1 | W57: 11841
B58: Psychology | C58: 11.3 | D58: 19.2 | E58: 24.4 | F58: 22.2 | G58: 16.4 | H58: 93.5 | I58: 10786 | J58: 20.6 | K58: 24.4 | L58: 24 | M58: 17.7 | N58: 9.8 | O58: 96.5 | P58: 32021 | Q58: 18.3 | R58: 23.1 | S58: 24.1 | T58: 18.8 | U58: 11.5 | V58: 95.8 | W58: 42807
B59: Sociology | C59: 14.1 | D59: 23.5 | E59: 26.6 | F59: 21.9 | G59: 10 | H59: 96.1 | I59: 5350 | J59: 20.1 | K59: 25.6 | L59: 26.2 | M59: 17.9 | N59: 7.8 | O59: 97.7 | P59: 17010 | Q59: 18.7 | R59: 25.1 | S59: 26.3 | T59: 18.9 | U59: 8.3 | V59: 97.3 | W59: 22360
B60: Other social studies | C60: 18.1 | D60: 22.4 | E60: 25.9 | F60: 19.6 | G60: 10 | H60: 95.9 | I60: 1206 | J60: 19.2 | K60: 26.9 | L60: 22.1 | M60: 17.8 | N60: 10.2 | O60: 96.1 | P60: 1132 | Q60: 18.6 | R60: 24.6 | S60: 24 | T60: 18.7 | U60: 10.1 | V60: 96 | W60: 2338
B61: Art and Design | C61: 22 | D61: 21.7 | E61: 22.9 | F61: 18.3 | G61: 10.5 | H61: 95.4 | I61: 10940 | J61: 29.3 | K61: 25.1 | L61: 22.1 | M61: 14.4 | N61: 6.6 | O61: 97.5 | P61: 23625 | Q61: 27 | R61: 24 | S61: 22.4 | T61: 15.6 | U61: 7.8 | V61: 96.9 | W61: 34565
B62: Drama | C62: 12.2 | D62: 25.8 | E62: 31.4 | F62: 20.3 | G62: 8.7 | H62: 98.3 | I62: 4003 | J62: 16.7 | K62: 30.1 | L62: 31.6 | M62: 15.8 | N62: 4.8 | O62: 99 | P62: 9952 | Q62: 15.4 | R62: 28.9 | S62: 31.6 | T62: 17.1 | U62: 5.9 | V62: 98.8 | W62: 13955
B63: English | C63: 21 | D63: 22.7 | E63: 26.1 | F63: 20.2 | G63: 8.3 | H63: 98.3 | I63: 22312 | J63: 20.1 | K63: 23.8 | L63: 27.5 | M63: 19.9 | N63: 7.3 | O63: 98.7 | P63: 50655 | Q63: 20.4 | R63: 23.5 | S63: 27.1 | T63: 20 | U63: 7.6 | V63: 98.6 | W63: 72967
B64: Media/Film/TV Studies | C64: 10 | D64: 22.4 | E64: 32.6 | F64: 24.6 | G64: 8.4 | H64: 97.9 | I64: 9066 | J64: 14.9 | K64: 29.1 | L64: 31.3 | M64: 18.2 | N64: 5.2 | O64: 98.7 | P64: 11924 | Q64: 12.8 | R64: 26.2 | S64: 31.8 | T64: 20.9 | U64: 6.6 | V64: 98.3 | W64: 20990
B65: Other Communication Studies | C65: 13.5 | D65: 28.1 | E65: 32.2 | F65: 18.6 | G65: 5.5 | H65: 97.9 | I65: 3095 | J65: 14.7 | K65: 30 | L65: 33.6 | M65: 16 | N65: 4.7 | O65: 99 | P65: 5214 | Q65: 14.2 | R65: 29.3 | S65: 33.1 | T65: 17 | U65: 5 | V65: 98.6 | W65: 8309
B66: French | C66: 34.5 | D66: 26.7 | E66: 18.9 | F66: 12.1 | G66: 6 | H66: 98.3 | I66: 4075 | J66: 32.9 | K66: 26.1 | L66: 20.1 | M66: 13.4 | N66: 6.1 | O66: 98.7 | P66: 8405 | Q66: 33.4 | R66: 26.3 | S66: 19.7 | T66: 13 | U66: 6.1 | V66: 98.5 | W66: 12480
B67: German | C67: 34.6 | D67: 23.2 | E67: 17.5 | F67: 14.8 | G67: 7.1 | H67: 97.2 | I67: 2021 | J67: 30.6 | K67: 25 | L67: 20.8 | M67: 14.7 | N67: 7.2 | O67: 98.3 | P67: 3622 | Q67: 32 | R67: 24.3 | S67: 19.6 | T67: 14.7 | U67: 7.2 | V67: 97.9 | W67: 5643
B68: Spanish | C68: 39.6 | D68: 26.7 | E68: 18.1 | F68: 9.4 | G68: 4.6 | H68: 98.4 | I68: 1411 | J68: 33.5 | K68: 27.4 | L68: 20.7 | M68: 11.7 | N68: 5.2 | O68: 98.4 | P68: 3239 | Q68: 35.3 | R68: 27.2 | S68: 19.9 | T68: 11 | U68: 5.1 | V68: 98.4 | W68: 4650
B69: Other modern languages | C69: 40.4 | D69: 30.7 | E69: 15.1 | F69: 6.6 | G69: 3.1 | H69: 95.9 | I69: 1815 | J69: 47.6 | K69: 29.5 | L69: 12.9 | M69: 5.5 | N69: 1.9 | O69: 97.5 | P69: 2464 | Q69: 44.6 | R69: 30 | S69: 13.8 | T69: 6 | U69: 2.4 | V69: 96.8 | W69: 4279
B70: Classical Studies | C70: 34.9 | D70: 25.8 | E70: 22 | F70: 11.4 | G70: 4.7 | H70: 98.8 | I70: 2201 | J70: 35.8 | K70: 29.5 | L70: 19.8 | M70: 10.8 | N70: 3.2 | O70: 99.1 | P70: 3060 | Q70: 35.4 | R70: 27.9 | S70: 20.7 | T70: 11.1 | U70: 3.8 | V70: 99 | W70: 5261
B71: Religious Studies | C71: 25.9 | D71: 28.1 | E71: 23.9 | F71: 14 | G71: 6.2 | H71: 98.1 | I71: 3499 | J71: 25.5 | K71: 30.2 | L71: 23.7 | M71: 14 | N71: 5.2 | O71: 98.6 | P71: 8226 | Q71: 25.6 | R71: 29.6 | S71: 23.8 | T71: 14 | U71: 5.5 | V71: 98.5 | W71: 11725
B72: Music | C72: 17.1 | D72: 21.1 | E72: 23.7 | F72: 21.2 | G72: 11.6 | H72: 94.8 | I72: 4248 | J72: 23.5 | K72: 22.9 | L72: 24 | M72: 18 | N72: 9.4 | O72: 97.7 | P72: 3982 | Q72: 20.2 | R72: 22 | S72: 23.9 | T72: 19.7 | U72: 10.5 | V72: 96.2 | W72: 8230
B73: Physical Education | C73: 8.3 | D73: 17.9 | E73: 25.9 | F73: 26.7 | G73: 16.7 | H73: 95.5 | I73: 11360 | J73: 19.5 | K73: 23.6 | L73: 24.6 | M73: 19.1 | N73: 10.3 | O73: 97.1 | P73: 7874 | Q73: 12.9 | R73: 20.3 | S73: 25.4 | T73: 23.6 | U73: 14.1 | V73: 96.2 | W73: 19234
B74: General Studies | C74: 11.5 | D74: 17 | E74: 22 | F74: 23.7 | G74: 17.6 | H74: 91.7 | I74: 27009 | J74: 12.8 | K74: 18.1 | L74: 23.7 | M74: 23.2 | N74: 15.9 | O74: 93.7 | P74: 30181 | Q74: 12.2 | R74: 17.6 | S74: 22.9 | T74: 23.4 | U74: 16.7 | V74: 92.7 | W74: 57190
B75: All subjects | C75: 21 | D75: 21.7 | E75: 23 | F75: 18.9 | G75: 11.3 | H75: 95.8 | I75: 312254 | J75: 23.4 | K75: 24.5 | L75: 23.8 | M75: 17 | N75: 8.5 | O75: 97.3 | P75: 363670 | Q75: 22.3 | R75: 23.2 | S75: 23.4 | T75: 17.9 | U75: 9.8 | V75: 96.6 | W75: 675924
B77: Biological Sciences | C77: =ROUND(C41,1) -> 20.3 | D77: =ROUND(D41,1) -> 20.6 | E77: 20.5 | F77: 18.1 | G77: 14.2 | H77: 93.7 | I77: =ROUND(I41,0) -> 17620 | J77: 24 | K77: 22 | L77: 20.9 | M77: 16.9 | N77: 11.6 | O77: 95.4 | P77: =ROUND(P41,0) -> 26615 | Q77: 22.5 | R77: 21.4 | S77: 20.8 | T77: 17.4 | U77: 12.6 | V77: 94.7 | W77: =ROUND(W41,0) -> 44235
B78: Chemistry | C78: =ROUND(C42,1) -> 29.6 | D78: 23.3 | E78: 19.1 | F78: 14.2 | G78: 9.9 | H78: 96.1 | I78: =ROUND(I42,0) -> 15841 | J78: =ROUND(J42,1) -> 31.1 | K78: 25.5 | L78: 19.1 | M78: 13.3 | N78: 8.2 | O78: 97.3 | P78: =ROUND(P42,0) -> 16289 | Q78: =ROUND(Q42,1) -> 30.4 | R78: 24.4 | S78: 19.1 | T78: 13.8 | U78: 9.1 | V78: 96.7 | W78: =ROUND(W42,0) -> 32130
B79: Physics | C79: =ROUND(C43,1) -> 27.3 | D79: 20.1 | E79: 19.4 | F79: 15.9 | G79: 11.9 | H79: 94.6 | I79: 19223 | J79: =ROUND(J43,1) -> 34.2 | K79: 23.1 | L79: 18.4 | M79: 13.5 | N79: 8 | O79: 97.2 | P79: 5383 | Q79: =ROUND(Q43,1) -> 28.9 | R79: 20.8 | S79: 19.2 | T79: 15.4 | U79: 11 | V79: 95.2 | W79: 24606
B80: Other Science | C80: =ROUND(C44,1) -> 22.9 | D80: 18.9 | E80: 22.1 | F80: 18.2 | G80: 13.6 | H80: 95.7 | I80: 2737 | J80: =ROUND(J44,1) -> 19.4 | K80: 22.6 | L80: 22.3 | M80: 20.8 | N80: 11.4 | O80: 96.4 | P80: 1036 | Q80: =ROUND(Q44,1) -> 21.9 | R80: 19.9 | S80: 22.1 | T80: 18.9 | U80: 13 | V80: 95.9 | W80: 3773
B81: Mathematics | C81: =ROUND(C45,1) -> 36.9 | D81: 20.7 | E81: 16.8 | F81: 12.7 | G81: 8.6 | H81: 95.7 | I81: 28379 | J81: =ROUND(J45,1) -> 39.3 | K81: 22.9 | L81: 17 | M81: 11.1 | N81: 6.8 | O81: 97.1 | P81: 17638 | Q81: =ROUND(Q45,1) -> 37.8 | R81: 21.5 | S81: 16.9 | T81: 12.1 | U81: 8 | V81: 96.3 | W81: 46017
B82: Further Mathematics | C82: =ROUND(C46,1) -> 58.9 | D82: 16.9 | E82: 10.9 | F82: 6.8 | G82: 4.3 | H82: 97.7 | I82: 3699 | J82: =ROUND(J46,1) -> 61 | K82: 16.6 | L82: 10.1 | M82: 6.4 | N82: 4.4 | O82: 98.4 | P82: 1412 | Q82: =ROUND(Q46,1) -> 59.4 | R82: 16.8 | S82: 10.6 | T82: 6.7 | U82: 4.3 | V82: 97.9 | W82: 5111
B83: Design and Technology | C83: =ROUND(C47,1) -> 12.3 | D83: 20 | E83: 25.8 | F83: 23.1 | G83: 14.5 | H83: 95.6 | I83: 9504 | J83: =ROUND(J47,1) -> 19.7 | K83: 24.6 | L83: 25.5 | M83: 18.5 | N83: 9.6 | O83: 97.9 | P83: 5978 | Q83: =ROUND(Q47,1) -> 15.2 | R83: 21.8 | S83: 25.7 | T83: 21.3 | U83: 12.6 | V83: 96.5 | W83: 15482
B84: Computer Studies | C84: =ROUND(C48,1) -> 13.5 | D84: 18.8 | E84: 21.9 | F84: 21.9 | G84: 16.6 | H84: 92.8 | I84: 6157 | J84: =ROUND(J48,1) -> 17.7 | K84: 19.3 | L84: 19.5 | M84: 23 | N84: 14.7 | O84: 94.1 | P84: 696 | Q84: =ROUND(Q48,1) -> 14 | R84: 18.8 | S84: 21.7 | T84: 22 | U84: 16.4 | V84: 92.9 | W84: 6853
B85: ICT | C85: =ROUND(C49,1) -> 5.9 | D85: 14.7 | E85: 24.5 | F85: 28 | G85: 19.4 | H85: 92.7 | I85: 9418 | J85: =ROUND(J49,1) -> 8.4 | K85: 19.2 | L85: 27.5 | M85: 25.5 | N85: 14.8 | O85: 95.4 | P85: 5031 | Q85: =ROUND(Q49,1) -> 6.8 | R85: 16.3 | S85: 25.6 | T85: 27.1 | U85: 17.8 | V85: 93.6 | W85: 14449
B86: Home Economics | C86: x | D86: =ROUND(D50,1) -> 12.2 | E86: 22 | F86: 22 | G86: 29.3 | H86: 90.2 | I86: 41 | J86: =ROUND(J50,1) -> 16.3 | K86: 27.5 | L86: 20.9 | M86: 21.5 | N86: 11 | O86: 97.2 | P86: 498 | Q86: =ROUND(Q50,1) -> 15.4 | R86: 26.3 | S86: 21 | T86: 21.5 | U86: 12.4 | V86: 96.7 | W86: 539
B87: Accounting and Finance | C87: =ROUND(C51,1) -> 10.6 | D87: 14.5 | E87: 21.1 | F87: 24 | G87: 19.8 | H87: 90.1 | I87: 1660 | J87: =ROUND(J51,1) -> 14.7 | K87: 18.3 | L87: 20.9 | M87: 18.4 | N87: 17.4 | O87: 89.7 | P87: 1000 | Q87: =ROUND(Q51,1) -> 12.1 | R87: 15.9 | S87: 21.1 | T87: 21.9 | U87: 18.9 | V87: 89.9 | W87: 2660
B88: Business Studies | C88: =ROUND(C52,1) -> 13.6 | D88: 23.8 | E88: 27.9 | F88: 22 | G88: 10 | H88: 97.4 | I88: 18623 | J88: =ROUND(J52,1) -> 16.3 | K88: 25.1 | L88: 27.1 | M88: 20.6 | N88: 9.2 | O88: 98.2 | P88: 12664 | Q88: =ROUND(Q52,1) -> 14.7 | R88: 24.4 | S88: 27.6 | T88: 21.4 | U88: 9.7 | V88: 97.7 | W88: 31287
B89: Economics | C89: =ROUND(C53,1) -> 31.1 | D89: 26.6 | E89: 20.7 | F89: 13.1 | G89: 6.3 | H89: 98 | I89: 9512 | J89: =ROUND(J53,1) -> 37.1 | K89: 26.8 | L89: 19.2 | M89: 10.9 | N89: 4.5 | O89: 98.5 | P89: 3896 | Q89: =ROUND(Q53,1) -> 32.9 | R89: 26.7 | S89: 20.3 | T89: 12.5 | U89: 5.8 | V89: 98.1 | W89: 13408
B90: Geography | C90: =ROUND(C54,1) -> 20.3 | D90: 25.1 | E90: 24.8 | F90: 18.5 | G90: 9.2 | H90: 98 | I90: 16471 | J90: =ROUND(J54,1) -> 29.1 | K90: 27.6 | L90: 22.3 | M90: 13.7 | N90: 6 | O90: 98.8 | P90: 13435 | Q90: =ROUND(Q54,1) -> 24.2 | R90: 26.2 | S90: 23.7 | T90: 16.4 | U90: 7.8 | V90: 98.3 | W90: 29906
B91: Government and Politics | C91: =ROUND(C55,1) -> 26.5 | D91: 27.6 | E91: 22.2 | F91: 14.5 | G91: 6.4 | H91: 97.2 | I91: 5117 | J91: =ROUND(J55,1) -> 32.6 | K91: 27.4 | L91: 19.5 | M91: 12.4 | N91: 5.9 | O91: 97.8 | P91: 3377 | Q91: =ROUND(Q55,1) -> 28.9 | R91: 27.5 | S91: 21.1 | T91: 13.7 | U91: 6.2 | V91: 97.4 | W91: 8494
B92: History | C92: =ROUND(C56,1) -> 22.2 | D92: 24.8 | E92: 25.2 | F92: 17.4 | G92: 8.4 | H92: 97.9 | I92: 19065 | J92: =ROUND(J56,1) -> 25.1 | K92: 27.2 | L92: 23.6 | M92: 15.8 | N92: 6.8 | O92: 98.5 | P92: 19085 | Q92: =ROUND(Q56,1) -> 23.6 | R92: 26 | S92: 24.4 | T92: 16.6 | U92: 7.6 | V92: 98.2 | W92: 38150
B93: Law | C93: =ROUND(C57,1) -> 14.3 | D93: 20.1 | E93: 22.8 | F93: 21.5 | G93: 14.4 | H93: 93.2 | I93: 4790 | J93: =ROUND(J57,1) -> 19.7 | K93: 22 | L93: 23.7 | M93: 18.5 | N93: 11 | O93: 94.8 | P93: 7051 | Q93: =ROUND(Q57,1) -> 17.5 | R93: 21.2 | S93: 23.3 | T93: 19.7 | U93: 12.4 | V93: 94.1 | W93: 11841
B94: Psychology | C94: =ROUND(C58,1) -> 11.3 | D94: 19.2 | E94: 24.4 | F94: 22.2 | G94: 16.4 | H94: 93.5 | I94: 10786 | J94: =ROUND(J58,1) -> 20.6 | K94: 24.4 | L94: 24 | M94: 17.7 | N94: 9.8 | O94: 96.5 | P94: 32021 | Q94: =ROUND(Q58,1) -> 18.3 | R94: 23.1 | S94: 24.1 | T94: 18.8 | U94: 11.5 | V94: 95.8 | W94: 42807
B95: Sociology | C95: =ROUND(C59,1) -> 14.1 | D95: 23.5 | E95: 26.6 | F95: 21.9 | G95: 10 | H95: 96.1 | I95: 5350 | J95: =ROUND(J59,1) -> 20.1 | K95: 25.6 | L95: 26.2 | M95: 17.9 | N95: 7.8 | O95: 97.7 | P95: 17010 | Q95: =ROUND(Q59,1) -> 18.7 | R95: 25.1 | S95: 26.3 | T95: 18.9 | U95: 8.3 | V95: 97.3 | W95: 22360
B96: Other social studies | C96: =ROUND(C60,1) -> 18.1 | D96: 22.4 | E96: 25.9 | F96: 19.6 | G96: 10 | H96: 95.9 | I96: 1206 | J96: =ROUND(J60,1) -> 19.2 | K96: 26.9 | L96: 22.1 | M96: 17.8 | N96: 10.2 | O96: 96.1 | P96: 1132 | Q96: =ROUND(Q60,1) -> 18.6 | R96: 24.6 | S96: 24 | T96: 18.7 | U96: 10.1 | V96: 96 | W96: 2338
B97: Art and Design | C97: =ROUND(C61,1) -> 22 | D97: 21.7 | E97: 22.9 | F97: 18.3 | G97: 10.5 | H97: 95.4 | I97: 10940 | J97: =ROUND(J61,1) -> 29.3 | K97: 25.1 | L97: 22.1 | M97: 14.4 | N97: 6.6 | O97: 97.5 | P97: 23625 | Q97: =ROUND(Q61,1) -> 27 | R97: 24 | S97: 22.4 | T97: 15.6 | U97: 7.8 | V97: 96.9 | W97: 34565
B98: Drama | C98: =ROUND(C62,1) -> 12.2 | D98: 25.8 | E98: 31.4 | F98: 20.3 | G98: 8.7 | H98: 98.3 | I98: 4003 | J98: =ROUND(J62,1) -> 16.7 | K98: 30.1 | L98: 31.6 | M98: 15.8 | N98: 4.8 | O98: 99 | P98: 9952 | Q98: =ROUND(Q62,1) -> 15.4 | R98: 28.9 | S98: 31.6 | T98: 17.1 | U98: 5.9 | V98: 98.8 | W98: 13955
B99: English | C99: =ROUND(C63,1) -> 21 | D99: 22.7 | E99: 26.1 | F99: 20.2 | G99: 8.3 | H99: 98.3 | I99: 22312 | J99: =ROUND(J63,1) -> 20.1 | K99: 23.8 | L99: 27.5 | M99: 19.9 | N99: 7.3 | O99: 98.7 | P99: 50655 | Q99: =ROUND(Q63,1) -> 20.4 | R99: 23.5 | S99: 27.1 | T99: 20 | U99: 7.6 | V99: 98.6 | W99: 72967
B100: Media/Film/TV Studies | C100: =ROUND(C64,1) -> 10 | D100: 22.4 | E100: 32.6 | F100: 24.6 | G100: 8.4 | H100: 97.9 | I100: 9066 | J100: =ROUND(J64,1) -> 14.9 | K100: 29.1 | L100: 31.3 | M100: 18.2 | N100: 5.2 | O100: 98.7 | P100: 11924 | Q100: =ROUND(Q64,1) -> 12.8 | R100: 26.2 | S100: 31.8 | T100: 20.9 | U100: 6.6 | V100: 98.3 | W100: 20990
B101: Other Communication Studies | C101: =ROUND(C65,1) -> 13.5 | D101: 28.1 | E101: 32.2 | F101: 18.6 | G101: 5.5 | H101: 97.9 | I101: 3095 | J101: =ROUND(J65,1) -> 14.7 | K101: 30 | L101: 33.6 | M101: 16 | N101: 4.7 | O101: 99 | P101: 5214 | Q101: =ROUND(Q65,1) -> 14.2 | R101: 29.3 | S101: 33.1 | T101: 17 | U101: 5 | V101: 98.6 | W101: 8309
B102: French | C102: =ROUND(C66,1) -> 34.5 | D102: 26.7 | E102: 18.9 | F102: 12.1 | G102: 6 | H102: 98.3 | I102: 4075 | J102: =ROUND(J66,1) -> 32.9 | K102: 26.1 | L102: 20.1 | M102: 13.4 | N102: 6.1 | O102: 98.7 | P102: 8405 | Q102: =ROUND(Q66,1) -> 33.4 | R102: 26.3 | S102: 19.7 | T102: 13 | U102: 6.1 | V102: 98.5 | W102: 12480
B103: German | C103: =ROUND(C67,1) -> 34.6 | D103: 23.2 | E103: 17.5 | F103: 14.8 | G103: 7.1 | H103: 97.2 | I103: 2021 | J103: =ROUND(J67,1) -> 30.6 | K103: 25 | L103: 20.8 | M103: 14.7 | N103: 7.2 | O103: 98.3 | P103: 3622 | Q103: =ROUND(Q67,1) -> 32 | R103: 24.3 | S103: 19.6 | T103: 14.7 | U103: 7.2 | V103: 97.9 | W103: 5643
B104: Spanish | C104: =ROUND(C68,1) -> 39.6 | D104: 26.7 | E104: 18.1 | F104: 9.4 | G104: 4.6 | H104: 98.4 | I104: 1411 | J104: =ROUND(J68,1) -> 33.5 | K104: 27.4 | L104: 20.7 | M104: 11.7 | N104: 5.2 | O104: 98.4 | P104: 3239 | Q104: =ROUND(Q68,1) -> 35.3 | R104: 27.2 | S104: 19.9 | T104: 11 | U104: 5.1 | V104: 98.4 | W104: 4650
B105: Other modern languages | C105: =ROUND(C69,1) -> 40.4 | D105: 30.7 | E105: 15.1 | F105: 6.6 | G105: 3.1 | H105: 95.9 | I105: 1815 | J105: =ROUND(J69,1) -> 47.6 | K105: 29.5 | L105: 12.9 | M105: 5.5 | N105: 1.9 | O105: 97.5 | P105: 2464 | Q105: =ROUND(Q69,1) -> 44.6 | R105: 30 | S105: 13.8 | T105: 6 | U105: 2.4 | V105: 96.8 | W105: 4279
B106: Classical Studies | C106: =ROUND(C70,1) -> 34.9 | D106: 25.8 | E106: 22 | F106: 11.4 | G106: 4.7 | H106: 98.8 | I106: 2201 | J106: =ROUND(J70,1) -> 35.8 | K106: 29.5 | L106: 19.8 | M106: 10.8 | N106: 3.2 | O106: 99.1 | P106: 3060 | Q106: =ROUND(Q70,1) -> 35.4 | R106: 27.9 | S106: 20.7 | T106: 11.1 | U106: 3.8 | V106: 99 | W106: 5261
B107: Religious Studies | C107: =ROUND(C71,1) -> 25.9 | D107: 28.1 | E107: 23.9 | F107: 14 | G107: 6.2 | H107: 98.1 | I107: 3499 | J107: =ROUND(J71,1) -> 25.5 | K107: 30.2 | L107: 23.7 | M107: 14 | N107: 5.2 | O107: 98.6 | P107: 8226 | Q107: =ROUND(Q71,1) -> 25.6 | R107: 29.6 | S107: 23.8 | T107: 14 | U107: 5.5 | V107: 98.5 | W107: 11725
B108: Music | C108: =ROUND(C72,1) -> 17.1 | D108: 21.1 | E108: 23.7 | F108: 21.2 | G108: 11.6 | H108: 94.8 | I108: 4248 | J108: =ROUND(J72,1) -> 23.5 | K108: 22.9 | L108: 24 | M108: 18 | N108: 9.4 | O108: 97.7 | P108: 3982 | Q108: =ROUND(Q72,1) -> 20.2 | R108: 22 | S108: 23.9 | T108: 19.7 | U108: 10.5 | V108: 96.2 | W108: 8230
B109: Physical Education | C109: =ROUND(C73,1) -> 8.3 | D109: 17.9 | E109: 25.9 | F109: 26.7 | G109: 16.7 | H109: 95.5 | I109: 11360 | J109: =ROUND(J73,1) -> 19.5 | K109: 23.6 | L109: 24.6 | M109: 19.1 | N109: 10.3 | O109: 97.1 | P109: 7874 | Q109: =ROUND(Q73,1) -> 12.9 | R109: 20.3 | S109: 25.4 | T109: 23.6 | U109: 14.1 | V109: 96.2 | W109: 19234
B110: General Studies | C110: =ROUND(C74,1) -> 11.5 | D110: 17 | E110: 22 | F110: 23.7 | G110: 17.6 | H110: 91.7 | I110: 27009 | J110: =ROUND(J74,1) -> 12.8 | K110: 18.1 | L110: 23.7 | M110: 23.2 | N110: 15.9 | O110: 93.7 | P110: 30181 | Q110: =ROUND(Q74,1) -> 12.2 | R110: 17.6 | S110: 22.9 | T110: 23.4 | U110: 16.7 | V110: 92.7 | W110: 57190
B111: All subjects | C111: =ROUND(C75,1) -> 21 | D111: 21.7 | E111: 23 | F111: 18.9 | G111: 11.3 | H111: 95.8 | I111: 312254 | J111: =ROUND(J75,1) -> 23.4 | K111: 24.5 | L111: 23.8 | M111: 17 | N111: 8.5 | O111: 97.3 | P111: 363670 | Q111: =ROUND(Q75,1) -> 22.3 | R111: 23.2 | S111: 23.4 | T111: 17.9 | U111: 9.8 | V111: 96.6 | W111: 675924

Sheet 2005data_new (hidden)
C3: Males | I3: Females | O3: Total | U3: total entries | X3: total passes
C4: A | D4: B | E4: C | F4: D | G4: E | H4: other | I4: A | J4: B | K4: C | L4: D | M4: E | N4: other | O4: A | P4: B | Q4: C | R4: D | S4: E | T4: other | U4: Male | V4: Female | W4: Male and Female | X4: Male | Y4: Female | Z4: Male and Female
B5: Biological Sciences | C5: 4134 | D5: 3855 | E5: 3825 | F5: 3324 | G5: 2488 | H5: 1055 | I5: 6409 | J5: 6056 | K5: 5548 | L5: 4574 | M5: 3196 | N5: 1198 | O5: 10543 | P5: 9911 | Q5: 9373 | R5: 7898 | S5: 5684 | T5: 2253 | U5: 18681 | V5: 26981 | W5: 45662 | X5: 17626 | Y5: 25783 | Z5: 43409
B6: Chemistry | C6: 4852 | D6: 4029 | E6: 3203 | F6: 2461 | G6: 1609 | H6: 630 | I6: 5063 | J6: 4227 | K6: 3137 | L6: 2163 | M6: 1295 | N6: 495 | O6: 9915 | P6: 8256 | Q6: 6340 | R6: 4624 | S6: 2904 | T6: 1125 | U6: 16784 | V6: 16380 | W6: 33164 | X6: 16154 | Y6: 15885 | Z6: 32039
B7: Physics | C7: 5171 | D7: 3936 | E7: 3521 | F7: 3069 | G7: 2265 | H7: 958 | I7: 1769 | J7: 1185 | K7: 937 | L7: 659 | M7: 445 | N7: 179 | O7: 6940 | P7: 5121 | Q7: 4458 | R7: 3728 | S7: 2710 | T7: 1137 | U7: 18920 | V7: 5174 | W7: 24094 | X7: 17962 | Y7: 4995 | Z7: 22957
B8: Other Science | C8: 582 | D8: 584 | E8: 566 | F8: 540 | G8: 352 | H8: 118 | I8: 202 | J8: 237 | K8: 225 | L8: 201 | M8: 139 | N8: 33 | O8: 784 | P8: 821 | Q8: 791 | R8: 741 | S8: 491 | T8: 151 | U8: 2742 | V8: 1037 | W8: 3779 | X8: 2624 | Y8: 1004 | Z8: 3628
B9: Mathematics | C9: 11202 | D9: 5987 | E9: 4665 | F9: 3450 | G9: 2224 | H9: 1083 | I9: 7493 | J9: 3942 | K9: 2715 | L9: 1856 | M9: 1023 | N9: 394 | O9: 18695 | P9: 9929 | Q9: 7380 | R9: 5306 | S9: 3247 | T9: 1477 | U9: 28611 | V9: 17423 | W9: 46034 | X9: 27528 | Y9: 17029 | Z9: 44557
B10: Further Mathematics | C10: 2164 | D10: 661 | E10: 404 | F10: 285 | G10: 141 | H10: 75 | I10: 898 | J10: 257 | K10: 167 | L10: 68 | M10: 50 | N10: 22 | O10: 3062 | P10: 918 | Q10: 571 | R10: 353 | S10: 191 | T10: 97 | U10: 3730 | V10: 1462 | W10: 5192 | X10: 3655 | Y10: 1440 | Z10: 5095
B11: Design and Technology | C11: 1185 | D11: 1983 | E11: 2495 | F11: 2247 | G11: 1305 | H11: 386 | I11: 1308 | J11: 1721 | K11: 1670 | L11: 1165 | M11: 484 | N11: 128 | O11: 2493 | P11: 3704 | Q11: 4165 | R11: 3412 | S11: 1789 | T11: 514 | U11: 9601 | V11: 6476 | W11: 16077 | X11: 9215 | Y11: 6348 | Z11: 15563
B12: Computer Studies | C12: 773 | D12: 972 | E12: 1192 | F12: 1175 | G12: 863 | H12: 344 | I12: 76 | J12: 108 | K12: 103 | L12: 108 | M12: 77 | N12: 19 | O12: 849 | P12: 1080 | Q12: 1295 | R12: 1283 | S12: 940 | T12: 363 | U12: 5319 | V12: 491 | W12: 5810 | X12: 4975 | Y12: 472 | Z12: 5447
B13: ICT | C13: 517 | D13: 1246 | E13: 1947 | F13: 2329 | G13: 1698 | H13: 612 | I13: 417 | J13: 804 | K13: 1160 | L13: 1152 | M13: 730 | N13: 241 | O13: 934 | P13: 2050 | Q13: 3107 | R13: 3481 | S13: 2428 | T13: 853 | U13: 8349 | V13: 4504 | W13: 12853 | X13: 7737 | Y13: 4263 | Z13: 12000
B14: Home Economics | C14: 1 | D14: 2 | E14: 7 | F14: 10 | G14: 10 | H14: 5 | I14: 75 | J14: 88 | K14: 112 | L14: 92 | M14: 63 | N14: 10 | O14: 76 | P14: 90 | Q14: 119 | R14: 102 | S14: 73 | T14: 15 | U14: 35 | V14: 440 | W14: 475 | X14: 30 | Y14: 430 | Z14: 460
B15: Accounting and Finance | C15: 184 | D15: 351 | E15: 398 | F15: 382 | G15: 302 | H15: 149 | I15: 145 | J15: 229 | K15: 219 | L15: 250 | M15: 140 | N15: 73 | O15: 329 | P15: 580 | Q15: 617 | R15: 632 | S15: 442 | T15: 222 | U15: 1766 | V15: 1056 | W15: 2822 | X15: 1617 | Y15: 983 | Z15: 2600
B16: Business Studies | C16: 2626 | D16: 4428 | E16: 5046 | F16: 3787 | G16: 1626 | H16: 399 | I16: 2033 | J16: 3138 | K16: 3269 | L16: 2389 | M16: 973 | N16: 234 | O16: 4659 | P16: 7566 | Q16: 8315 | R16: 6176 | S16: 2599 | T16: 633 | U16: 17912 | V16: 12036 | W16: 29948 | X16: 17513 | Y16: 11802 | Z16: 29315
B17: Economics | C17: 3045 | D17: 2594 | E17: 1932 | F17: 1229 | G17: 525 | H17: 141 | I17: 1575 | J17: 1091 | K17: 698 | L17: 397 | M17: 158 | N17: 34 | O17: 4620 | P17: 3685 | Q17: 2630 | R17: 1626 | S17: 683 | T17: 175 | U17: 9466 | V17: 3953 | W17: 13419 | X17: 9325 | Y17: 3919 | Z17: 13244
B18: Geography | C18: 3192 | D18: 3848 | E18: 3963 | F18: 2848 | G18: 1374 | H18: 298 | I18: 3784 | J18: 3519 | K18: 2909 | L18: 1814 | M18: 698 | N18: 136 | O18: 6976 | P18: 7367 | Q18: 6872 | R18: 4662 | S18: 2072 | T18: 434 | U18: 15523 | V18: 12860 | W18: 28383 | X18: 15225 | Y18: 12724 | Z18: 27949
